Workbook

Sheet 使用方法 (hidden)
A1: "エコアップ認証ＣＯ₂排出量補正ブック"の使用方法について
A4: ■このブックの使用目的
B5: 本Excelブックは、平成２８年度の報告から、電力のCO₂温暖化排出係数が変更されるのに伴い、これまでの旧CO₂温暖化排出係数で算出 された、エコアップ認証制度での基準排出量や、ＣＯ₂排出量実績を、新しいＣＯ₂温暖化排出係数で計算し直し、エコアップ認証報告の際に 必要な基準排出量や目標値、実績値及び原単位を算出、換算するために使用します。 また、これまでよりエネルギーの由来を、建物系、工場・現場系、自動車燃料系とに分けたことにより、系統にふさわしい原単位指標が選べ ることで、より細かいエネルギーの管理をできるようにしました。
A9: ■作業の流れ
G11: ◇CO₂排出量について、複数の事業所別、要因別に計算する場合、"NO"を選択する。
G13: １．これまでの電力やガス、燃料実績を新しい係数でＣＯ₂排出量に算出し直しする。
G14: "No"の場合、これまでの電力やガス、燃料実績を別々に細かく算出し直しする。
G16: ２．新しい係数によるＣＯ₂排出量から、新しい基準排出量や原単位を算出する。
G18: ３．新しい基準排出量とこれまでの基準排出量を比較し、補正率を算出する。
G20: ４．これまでの削減目標に補正率を乗じて、新しい係数での目標値に補正する。
G21: ４’．.他事業所や別発生要因のCO₂排出量が必要であれば、同様に１～算出する。
G23: ５．新しい基準排出量や原単位、目標値をもとに、エコアップ報告用の表を再作成する。
G25: ６．求められた数値をエコアップ認証報告書に転記、引用する。
G27: ※１：認証希望申出、新規認証取得の場合は、３～4の作業は不要。
G28: ※２：報告書書類をＥｘｃｅｌ様式で作成する場合、５の作業は不要。
A30: ■計算作業方法
A32: １．これまでのエネルギー実績値再入力による換算
B33: ・これまでのＣＯ₂実績の元となった電力やガス、燃料実績値を「燃料単位換算」、「算定報告様式」ワークシートに入力します。
B34: ・エネルギーは事務所由来の「ｱ）（建物系）」と、「ｲ）（現場・工場）」、「ｳ）（自動車燃料）」との３系統で算出します。 これまで ｲ）は対象外であった場合や区別していなかった場合は、これまで通り、ｱ）とｳ) だけでの利用で構いません。
B35: 「ｲ)(工場・現場)」について、これまで 建物系と集約して、目標や実績管理をお願いしてきましたが、今後は、建物系とは別に報告が できるようになりました。３系統で算出することにより、別管理ができ、それぞれ独自の原単位指標を割り当てすることができ、エネル ギー量の変化を評価するためのふさわしい原単位管理ができるようになります。 区分けの再設定は認証新規・更新でのタイミングから、３系統で算出することをお勧めします。認証期間の途中で、エネルギー実績の 区分け等を変更したい場合は予め県にご相談ください。
B36: ・データを入力する各ワークシートには、「（建物）系」：紺色と、「（自動車燃料）」系：水色、「(工場・現場)系」：茶色の3種類があります。 間違いのないよう、注意して入力してください。
B39: 【◇複数の他事業所別、さらに発生要因別のCO₂排出量を計算する場合】
B40: ・作業の流れの１～４を別Ｅｘｃｅｌブックでの、各ワークシートでCO₂排出量を算出するか、別に算出した結果を《他事業所等のCO₂排出量》 ワークシートに数値を入力すると、《ＣＯ₂排出量（換算後）》シートで合計値が合算される。
B43: ｱ) 建物系CO₂排出量(主に事務所やビルで使用するエネルギー由来のもの)
B44: ★使用するワークシート：紺色の《燃料単位換算（建物系）》、《算定報告様式（建物系）》ワークシート
B46: １）電力 | D46: 《算定報告様式(建物系）》シートの電力欄に各年度の電力量実績(電力会社からの帳票の実績値）を記入する。
D47: 昼間(有効電力量）、夜間（；無効電力量＝総電力量－有効電力量）が分かる場合は、昼間、夜間にそれぞれ分けて
D48: 実績を記入する。わからない場合は”その他の買電”の欄に使用実績を記入する。
B50: ２）都市ガス | D50: 《燃料単位換算(建物系）》シートでの契約ガス会社からの請求帳票に表記されている”口径”を選び、使用”単位”に
D51: 合った数値を記入する。 使用の”単位”はセルで該当する単位を選ぶ。
B53: ３）LPG | D53: 《燃料単位換算（建物系）》シートでの契約ガス会社からの”種別”に合った行を選択し、使用”単位”に合った数値を
D54: 記入する。
B56: ４）灯油・その他 | D56: 《算定報告様式(建物系）》シートの該当する行の、単位のセルから該当する単位を選択し選択した単位に合った実績
D57: 値を記入する。
B59: ５）太陽光発電量 | D59: 発電し、自社で使用した電力量を記入する。売電した場合は記入はしない。
D60: 自社で消費した電力量を”再生可能エネルギーを自家消費した電気”の行に記入する。
B63: ｲ) 工場・現場系CO₂排出量（工事現場や工場で使用するエネルギー由来のもの、生産や現場作業で使用する機器のエネルギー
B64: が対象。尚、工場等で事務所系と製造・現場設備系を区別したい場合、事務所系は「ｱ)（建物系）」シートを使用してもよい）
B65: ★使用するワークシート：茶色の《燃料単位換算（工場・現場）》、《算定報告様式（工場・現場）》ワークシート
B67: １）電力 | D67: 《算定報告様式（工場・現場）》シートの電力欄に各年度の電力量実績(電力会社からの帳票の実績値）を記入する。
D68: 昼間(有効電力量）、夜間（；無効電力量＝総電力量－有効電力量）が分かる場合は、昼間、夜間にそれぞれ分けて
D69: 実績を記入する。わからない場合は”その他の買電”の欄に使用実績を記入する。
B71: ２）都市ガス | D71: 《燃料単位換算(工場・現場）》シートでの契約ガス会社からの請求帳票に表記されている”口径”を選び、使用”単位”
D72: に合った数値を記入する。 使用の”単位”はセルで該当する単位を選ぶ。
B74: ３）LPG | D74: 《燃料単位換算（工場・現場）》シートでの契約ガス会社からの”種別”に合った行を選択し、使用”単位”に合った数値
D75: を記入する。
B77: ４）軽油・重油等 | D77: 《算定報告様式(建物系）》シートの該当する行の、単位のセルから該当する単位を選択し選択した単位に合った実績
D78: 値を記入する。
B80: ５）太陽光発電量 | D80: 発電し、自社で使用した電力量を記入する。売電した場合は記入はしない。
D81: 自社で消費した電力量を”再生可能エネルギーを自家消費した電気”の行に記入する。
B83: ６）その他エネルギー | D83: 該当する項目、単位を選んで購入伝票等の実績値を記入する。
B87: ｳ) 自動車燃料CO₂排出量
B88: （走行距離と関連のない重機等は「ｲ)工場・現場系」シートを利用して区別してもよい。）
B89: ★使用するワークシート：水色の《自動車燃料チェック》ワークシート
B91: １）ガソリン | D91: 《自動車燃料チェック》シートの”ガソリン”燃料使用量に実績を記入する。
B93: ２）軽油 | D93: 《自動車燃料チェック》シートの”軽油”燃料使用量に実績を記入する。
D94: トラックやダンプなど道路を走行するものを対象とする。
B96: ３）その他燃料類 | D96: 《自動車燃料チェック》シートの該当する燃料について、使用量実績を記入する。
D97: トラックやダンプなど道路を走行するものを対象とする。
A98: ２．新しい基準排出量、原単位の算出
B99: 新しい係数によるＣＯ₂排出量から、新しい基準排出量や原単位を算出します。
B100: １．項の通り、データを記入すると、これまでのＣＯ₂排出量が新しい温暖化係数にて、赤色の《CO₂補正計算表》ワークシートのｱ)、ｲ)、ｳ)の 各項目の行に新しい温暖化係数で換算されたCO₂排出量が表記されます。 原単位を再計算するため、（２）の表に必要な原単位指標を入力すると、新しい係数で換算された原単位数値が表記されます。
B103: ★使用するワークシート：赤色の《CO₂補正計算結果》ワークシート
B105: １）基準年度 | D105: （１）温室効果ガス排出量（エネルギー起源CO2）表の”エコアップ基準年度”について、エコアップ認証報告書に報告
D106: している基準排出量算出に使用した対象年度のセルに”○”を選択する。対処年度以外は必ず空欄とする。
B108: ２）原単位指標 | D108: これまで使用した原単位指標を《ＣＯ₂補正計算結果》シートの（２）温室効果ガス排出量原単位表に指標数値を入力
D109: する。
D110: １～６の原単位指標に該当する指標がない場合、７に使用原単位指標名を手入力し、そのデータ数値を入力する。
D111: 指標数値はこれまでのものだけでなく、参考にしたい指標も複数記入できる。
D112: これまで使用していた指標の”○”にマウス等でチェックし”●”を入れると、要求する原単位数値が表示される。
B114: ３）各排出量原単位 | D114: （３）～（５）排出量原単位表にて、それぞれにふさわしい原単位指標を（２）表の１～７の番号から選択すると、
D115: それぞれの原単位数値が表示され、また、選択した対処年度での平均原単位が水色のセルに表記される。
D116: （５）の自動車系原単位表では、対象年度を他とは独自に設定できる。
B118: ４）基準排出量 | D118: （１）、（２）表の下の赤色のセルに新しい排出係数で算出されたa.ＣＯ₂基準排出量、ｃ．ＣＯ₂基準原単位が表記される。
D119: 基準年度の選択に問題がなければ”ＯＫ”と表示が出る。
A123: ３．補正率の算出
B124: 新しい基準排出量とこれまでの基準排出量を比較し、補正率を算出します。
B125: これまでのエコアップ認証報告書で使用していた、旧ＣＯ₂温暖化係数で算出されたｂ．ＣＯ₂基準排出量や、ｄ．ＣＯ₂基準原単位数値を記入 することにより、補正率（修正比率）を算出します（表記されます）。
B127: ★使用するワークシート：赤色の《CO₂補正計算結果》ワークシート
B128: 【重要】 これまでの目標排出量が電力など各エネルギー内訳を把握されている場合や、新たに目標値を設定する場合は、３～４の 補正率を算出する方法を用いず、電力やガソリンなど、各エネルギーの目標使用量から１～２の方法で目標値を算出できる 場合がありますので、その場合の方法については、別途ご相談ください。
B131: １）基準排出量 | D131: 《ＣＯ₂補正計算結果》シートの（１）表の”ｂ．（これまでの）エコアップ認証ＣＯ₂基準排出量”のセルに、これまで報告書
D132: で使用した（旧温暖化排出係数で算出された）基準排出量数値（小数点１桁まで）を記入する。
D133: 正しく記入すると、赤いセルに排出量補正値が表記される。
B135: ２）基準原単位 | D135: 《ＣＯ₂補正計算結果》シートの（２）表の”ｄ．（これまでの）エコアップ認証ＣＯ₂基準排出量原単位”のセルに、これまでの
D136: 報告書で使用した（旧温暖化排出係数で算出された）基準原単位数値（小数点４桁までを）記入する。
D137: 正しく記入すると、赤いセルに原単位補正値が表記される。
A141: ４．目標値などの補正
B142: これまで設定していた目標値などを、３項で得た補正率を乗じて、新しいＣＯ₂温暖化係数での目標値に補正します。
B143: ★使用するワークシート：赤色の《CO₂補正計算結果》ワークシート
B144: 独自にエネルギー内訳から新たに算出する場合や、補正する場合はこの（３）表は使用しません。
B146: １）目標排出量の補正 | D146: 《ＣＯ₂補正計算結果》シートの（３）表の”e.これまでのＣＯ₂排出量目標値”の該当する年度にこれまでのCO₂排出量
D147: 目標値を記入する。
D148: ”f.補正後のCO₂排出量目標値”の段の各年度セルに補正された目標値が表記される。
B150: ２）目標原単位の補正 | D150: 《ＣＯ₂補正計算結果》シートの（３）表の”g.これまでのCO₂原単位目標値”の該当する年度に、これまでのCO₂排出
D151: 目標原単位値を記入する。
D152: ”h.補正後のCO₂原単位目標値”の段の各年度セルに補正された目標原単位値が表記される。
A153: ５．ＣＯ₂排出量実績表、目標の再作成
B154: １～４の作業で得られた所定のCO₂排出量や原単位数値などから、エコアップ報告書に必要な表を再作成します。
B155: 他事業所や発生要因別に他ブックで計算した場合は、《他事業所等のCO₂排出量》ワークシートに得られた数値を入力します。
B156: ★使用するワークシート：赤色の《CO₂排出量（換算後）》ワークシート、或いは、独自に目標値を算出する場合は紺色の《CO₂排出量
B157: 換算(単独）》ワークシート
B158: 新たな目標表を作成する場合は赤色の《CO₂排出量(新規・更新用）》ワークシートをご利用ください。
B160: １）計算方法の選択 | D160: 他事業所や他発生要因で別ブック等でCO₂排出量を計算し、《他事業所等のCO₂排出量》シートに数値を入力している
D161: 場合か否か、どちらかにチェックを入れます。
D162: 《他事業所等のCO₂排出量》シートを利用している場合、CO₂排出量は１～４で得られたCO₂数値との合計値が表記
D163: される。他事業所等との合計値を得たくない場合は、《他事業所等のCO₂排出量》シートの各数値をクリアーしておく。
B165: ２）年度の記入 | D165: 《CO₂排出量（換算後）》シートの ”ｱ) 建物系CO2排出量実績表”に最初の該当年度数値を記入すると、以降の年度
D166: は自動的に表記され、《ＣＯ₂補正計算結果》シートの該当のＣＯ₂排出量数値が表記される。
B168: ３）CO₂原単位 | D168: ｱ)、ｲ)、ｳ)､ｴ）表のそれぞれに事業者の指標としてふさわしい原単位指標を選び、各年度欄にその指標値を記入する。
D169: 指標数値は同一指標でなく、各排出量ごとにふさわしい、独立した指標を記入してよい。
B171: ４）基準値 | D171: 《CO₂補正計算結果》シート（１）（２）表の 赤色のセルに表示された”ａ．新しい基準排出量”、”ｃ．基準原単位”
D172: での数値を《ＣＯ₂排出量（換算後）》シートの基準値のそれぞれのセルに転記する。
B174: ５）目標値 | D174: 《ＣＯ₂補正計算結果》シート（３）表の 補正後の”ｆ．目標排出量”、 ”ｈ．目標原単位”値を参照して、数値を転記する。
D175: 紺色の《CO₂排出量換算(単独）》ワークシートを利用する場合、各年度の目標値や目標原単位数値を手入力する。
A179: ６．報告書への数値転記
B180: １～５の作業で得られた所定のCO₂排出量や原単位数値などをエコアップ報告書に転記、引用します。
B181: 赤色の《CO₂排出量（換算後）》、《CO₂排出量(新規・更新用）》ワークシートでの該当の数値を報告書に転記します。、
B182: ★使用するワークシート：赤色の《CO₂排出量（換算後）》、《CO₂排出量(新規・更新用）》ワークシート、もしくは、紺色の《ＣＯ₂排出量
B183: 換算(単独）》ワークシート
A186: ■提出必要書類
B188: エコアップ認証報告書提出の際は、本ブックの以下のシートも併せて提出してください。（データ記入の無いシートは提出不要です。）
B189: １．燃料単位換算(建物系）
B190: ２．算定報告様式(建物系）
B191: ３．自動車燃料チェック
B192: ４．燃料単位換算（工場・現場）・・・工場・現場の対象がない場合、提出不要
B193: ５．算定報告様式(工場・現場）・・・工場・現場の対象がない場合、提出不要
B194: ６．ＣＯ₂補正計算結果
B195: ７．ＣＯ₂排出量(換算後）、もしくはＣＯ₂排出量換算(単独）
B196: ８．CO₂排出量（新規・更新用）・・・・定期報告や目標値の変更でない場合、提出不要
B197: ９．他事業所等のCO₂排出量・・・・記載していない場合や、該当がない場合、提出不要
B198: １０．別紙１（建物系）、別紙１（工場・現場）のそれぞれ前年実績シート
B200: ※１、２、３、６、７は必須です。その他、該当年度外の《別紙１○○》シート及び《ＣＯ₂実績管理表(参考）》シートは提出不要です。
A203: ■付録
B205: ◎《ＣＯ₂実績管理表(参考）》ワークシート
B206: ＣＯ₂排出量や原単位、各指標データの管理・分析用にご利用ください。

Sheet 表紙

Sheet シート一覧
A49: 改訂履歴
A50: 28.6.20 １．燃料単位換算シート 名前の定義：Ｈ２８換算前 の参照列Ｔ列⇒Ｕ列に訂正

Sheet データコピー
B1: 他ファイルからデーターのコピー方法 | R1: =MATCH(E20,S1:S8,0) -> 5 | S1: 29(2017)
S2: 30(2018)
S3: 31/1(2019)
B4: 本ファイルは、下のボタンをクリックすることで、これまで作成した他の「エコアップ認証用CO₂排出量換算シート」＊ | S4: 2(2020)
B5: から、データを一括でコピー貼付ができます。 | S5: 3(2021)
S6: 4(2022)
B7: ＜ ＊････ 別名：燃料等使用量の単位換算（建物系）・算定報告様式（建物系）、燃料等使用量の単位換算（工場・現場）・ 算定報告様式（工場・現場)、自動車燃料に関するCO2排出量（自動車燃料チェック）ファイル ＞ | S7: 5(2023)
S8: 6(2024)
B9: 《使用方法》
B10: １．本ファイルを開いた後、すでにデータが入力してあるコピー元の上記対象ファイルを開きます。
B11: ２．データをコピーしたい最終年度を下の黄色枠セルのプルダウンから選択します。
B12: ３．下の色のついた対象シートのボタンをクリックすると、確認ウィンドウが現れ、”はい”をクリックすると、データのコピーが開始されます。
B13: ※コピー対象は「エコアップ認証用CO₂排出量換算シート」ファイル（Excel)の＃１～＃５シートまでの入力データとなります。
B14: ４．このファイルを保存する際、拡張子を.xlsmのままで保存しない場合は、次回からマクロ機能は利用できなくなります。
B16: 【注！】 この機能を利用するには、本ファイルを開く際、《コンテンツの有効化》をクリックし、マクロを有効にしておく必要があります。
B17: 本ファイルのシート名は絶対に変更しないでください。変更するとマクロの使用に支障をきたします。
D20: コピーをする最終年度 | E20: 3(2021)
B34: ★変更履歴
B35: ・ver1.01 | C35: 2016-04-01 | D35: CO₂排出量換算シート発布
B36: ・ver2.01 | C36: 2019-04-01 | D36: 他ファイルからのデータコピーマクロ追加。記入年度の拡大（H31⇒R6)
B37: ・ver2.02 | C37: 2020-05-18 | D37: ＃６シートでの計算式空白欄を修正
B38: ・ver3.01 | C38: 2021-04-06 | D38: 低炭素電力算定シート追加。＃７シートA実績表の入力方法及び計算式変更
B39: ・ver3.02 | C39: 2022-07-11 | D39: ＃２、＃５シートのデータコピーVBAのIF文修正。太陽光インセンティブ排出係数変更(R４年度実績から反映）

Sheet １．燃料単位換算(建物系)
B2: １．燃料等使用量の単位換算(建物系）
B3: ア 都市ガスの圧力及び標準状態換算 | AC3: エコアップ認証換算用
G5: 使用量（換算前） | AD5: 換算単位 | AG5: 使用量（換算後） | BF5: =データコピー!$R$1 -> 5
F6: 単位 | G6: 14年度(2002) | H6: 15年度(2003) | I6: 16年度(2004) | J6: 17年度(2005) | K6: 18年度(2006) | L6: 19年度(2007) | M6: 20年度(2008) | N6: 21年度(2009) | O6: 22年度(2010) | P6: 23年度(2011) | Q6: 24年度(2012) | R6: 25年度(2013) | S6: 26年度(2014) | T6: 27年度(2015) | U6: 28年度(2016) | V6: 29年度(2017) | W6: 30年度(2018) | X6: 31/1年度(2019) | Y6: 2年度(2020) | Z6: 3年度(2021) | AA6: 4年度(2022) | AB6: 5年度(2023) | AC6: 6年度(2024) | AD6: 単位 | AE6: 圧力補正 | AF6: 単位補正 | AG6: 14年度(2002) | AH6: 15年度(2003) | AI6: 16年度(2004) | AJ6: 17年度(2005) | AK6: 18年度(2006) | AL6: 19年度(2007) | AM6: 20年度(2008) | AN6: 21年度(2009) | AO6: 22年度(2010) | AP6: 23年度(2011) | AQ6: 24年度(2012) | AR6: 25年度(2013) | AS6: 26年度(2014) | AT6: 27年度(2015) | AU6: 28年度(2016) | AV6: 29年度(2017) | AW6: 30年度(2018) | AX6: 1年度(2019) | AY6: 2年度(2020) | AZ6: 3年度(2021) | BA6: 4年度(2022) | BB6: 5年度(2023) | BC6: 6年度(2024) | BE6: 有効数字
C7: 都市ガス | D7: 13A:45MJ/m3 | E7: 低圧用 | F7: m3 | AD7: 千Nm3 | AE7: =IF(COUNTIF(F7,"*Nm3")>0,1,VLOOKUP(E7,$BA$71:$BB$72,2,FALSE)) -> 0.966655 | AF7: =VLOOKUP($F7,$BA$60:$BB$63,2,FALSE)/VLOOKUP($AD7,$BA$60:$BB$63,2,FALSE) -> 1000 | AG7: =ROUND(圧力補正*H14_換算前/単位補正係数,0) -> 0 | AH7: =ROUND(圧力補正*H15_換算前/単位補正係数,0) -> 0 | AI7: =ROUND(圧力補正*H16_換算前/単位補正係数,0) -> 0 | AJ7: =ROUND(圧力補正*H17_換算前/単位補正係数,0) -> 0 | AK7: =ROUND(圧力補正*H18_換算前/単位補正係数,0) -> 0 | AL7: =ROUND(圧力補正*H19_換算前/単位補正係数,0) -> 0 | AM7: =ROUND(圧力補正*H20_換算前/単位補正係数,0) -> 0 | AN7: =ROUND(圧力補正*H21_換算前/単位補正係数,0) -> 0 | AO7: =ROUND(圧力補正*H22_換算前/単位補正係数,0) -> 0 | AP7: =ROUND(圧力補正*H23_換算前/単位補正係数,0) -> 0 | AQ7: =ROUND(圧力補正*H24_換算前/単位補正係数,0) -> 0 | AR7: =ROUND(圧力補正*H25_換算前/単位補正係数,0) -> 0 | AS7: =ROUND(圧力補正*H26_換算前/単位補正係数,0) -> 0 | AT7: =ROUND(圧力補正*H27_換算前/単位補正係数,0) -> 0 | AU7: =ROUND(圧力補正*H28_換算前/単位補正係数,0) -> 0 | AV7: =ROUND(圧力補正*H29_換算前/単位補正係数,0) -> 0 | AW7: =ROUND(圧力補正*H30_換算前/単位補正係数,0) -> 0 | AX7: =ROUND(圧力補正*H30_換算前/単位補正係数,0) -> 0 | AY7: =ROUND(圧力補正*Y7/単位補正係数,0) -> 0 | AZ7: 0 | BA7: 0 | BB7: 0 | BC7: 0
E8: 中間圧以上用 | F8: Nm3 | AD8: 千Nm3 | AE8: =IF(COUNTIF(F8,"*Nm3")>0,1,VLOOKUP(E8,$BA$71:$BB$72,2,FALSE)) -> 1 | AF8: =VLOOKUP($F8,$BA$60:$BB$63,2,FALSE)/VLOOKUP($AD8,$BA$60:$BB$63,2,FALSE) -> 1000 | AG8: =ROUND(圧力補正*H14_換算前/単位補正係数,0) -> 0 | AH8: =ROUND(圧力補正*H15_換算前/単位補正係数,0) -> 0 | AI8: =ROUND(圧力補正*H16_換算前/単位補正係数,0) -> 0 | AJ8: =ROUND(圧力補正*H17_換算前/単位補正係数,0) -> 0 | AK8: =ROUND(圧力補正*H18_換算前/単位補正係数,0) -> 0 | AL8: =ROUND(圧力補正*H19_換算前/単位補正係数,0) -> 0 | AM8: =ROUND(圧力補正*H20_換算前/単位補正係数,0) -> 0 | AN8: =ROUND(圧力補正*H21_換算前/単位補正係数,0) -> 0 | AO8: =ROUND(圧力補正*H22_換算前/単位補正係数,0) -> 0 | AP8: =ROUND(圧力補正*H23_換算前/単位補正係数,0) -> 0 | AQ8: =ROUND(圧力補正*H24_換算前/単位補正係数,0) -> 0 | AR8: =ROUND(圧力補正*H25_換算前/単位補正係数,0) -> 0 | AS8: =ROUND(圧力補正*H26_換算前/単位補正係数,0) -> 0 | AT8: =ROUND(圧力補正*H27_換算前/単位補正係数,0) -> 0 | AU8: =ROUND(圧力補正*H28_換算前/単位補正係数,0) -> 0 | AV8: =ROUND(圧力補正*H29_換算前/単位補正係数,0) -> 0 | AW8: =ROUND(圧力補正*H30_換算前/単位補正係数,0) -> 0 | AX8: =ROUND(圧力補正*H31_換算前/単位補正係数,0) -> 0 | AY8: 0 | AZ8: 0 | BA8: 0 | BB8: 0 | BC8: 0
AG9: =SUM(AG7:AG8) -> 0 | AH9: =SUM(AH7:AH8) -> 0 | AI9: 0 | AJ9: 0 | AK9: 0 | AL9: 0 | AM9: 0 | AN9: 0 | AO9: 0 | AP9: =SUM(AP7:AP8) -> 0 | AQ9: 0 | AR9: 0 | AS9: 0 | AT9: 0 | AU9: 0 | AV9: 0 | AW9: 0 | AX9: 0 | AY9: =SUM(AY7:AY8) -> 0 | AZ9: =SUM(AZ7:AZ8) -> 0 | BA9: 0 | BB9: 0 | BC9: 0
D10: 13A:43.12MJ/m3 | E10: 低圧用 | F10: Nm3 | AD10: 千Nm3 | AE10: =IF(COUNTIF(F10,"*Nm3")>0,1,VLOOKUP(E10,$BA$71:$BB$72,2,FALSE)) -> 1 | AF10: =VLOOKUP($F10,$BA$60:$BB$63,2,FALSE)/VLOOKUP($AD10,$BA$60:$BB$63,2,FALSE) -> 1000 | AG10: =ROUND(圧力補正*H14_換算前/単位補正係数,0) -> 0 | AH10: =ROUND(圧力補正*H15_換算前/単位補正係数,0) -> 0 | AI10: =ROUND(圧力補正*H16_換算前/単位補正係数,0) -> 0 | AJ10: =ROUND(圧力補正*H17_換算前/単位補正係数,0) -> 0 | AK10: =ROUND(圧力補正*H18_換算前/単位補正係数,0) -> 0 | AL10: =ROUND(圧力補正*H19_換算前/単位補正係数,0) -> 0 | AM10: =ROUND(圧力補正*H20_換算前/単位補正係数,0) -> 0 | AN10: =ROUND(圧力補正*H21_換算前/単位補正係数,0) -> 0 | AO10: =ROUND(圧力補正*H22_換算前/単位補正係数,0) -> 0 | AP10: =ROUND(圧力補正*H23_換算前/単位補正係数,0) -> 0 | AQ10: =ROUND(圧力補正*H24_換算前/単位補正係数,0) -> 0 | AR10: =ROUND(圧力補正*H25_換算前/単位補正係数,0) -> 0 | AS10: =ROUND(圧力補正*H26_換算前/単位補正係数,0) -> 0 | AT10: =ROUND(圧力補正*H27_換算前/単位補正係数,0) -> 0 | AU10: =ROUND(圧力補正*H28_換算前/単位補正係数,0) -> 0 | AV10: =ROUND(圧力補正*H29_換算前/単位補正係数,0) -> 0 | AW10: =ROUND(圧力補正*H30_換算前/単位補正係数,0) -> 0 | AX10: =ROUND(圧力補正*H31_換算前/単位補正係数,0) -> 0 | AY10: =ROUND(圧力補正*Y10/単位補正係数,0) -> 0 | AZ10: 0 | BA10: 0 | BB10: 0 | BC10: 0
E11: 中間圧以上用 | F11: Nm3 | AD11: 千Nm3 | AE11: =IF(COUNTIF(F11,"*Nm3")>0,1,VLOOKUP(E11,$BA$71:$BB$72,2,FALSE)) -> 1 | AF11: =VLOOKUP($F11,$BA$60:$BB$63,2,FALSE)/VLOOKUP($AD11,$BA$60:$BB$63,2,FALSE) -> 1000 | AG11: =ROUND(圧力補正*H14_換算前/単位補正係数,0) -> 0 | AH11: =ROUND(圧力補正*H15_換算前/単位補正係数,0) -> 0 | AI11: =ROUND(圧力補正*H16_換算前/単位補正係数,0) -> 0 | AJ11: =ROUND(圧力補正*H17_換算前/単位補正係数,0) -> 0 | AK11: =ROUND(圧力補正*H18_換算前/単位補正係数,0) -> 0 | AL11: =ROUND(圧力補正*H19_換算前/単位補正係数,0) -> 0 | AM11: =ROUND(圧力補正*H20_換算前/単位補正係数,0) -> 0 | AN11: =ROUND(圧力補正*H21_換算前/単位補正係数,0) -> 0 | AO11: =ROUND(圧力補正*H22_換算前/単位補正係数,0) -> 0 | AP11: =ROUND(圧力補正*H23_換算前/単位補正係数,0) -> 0 | AQ11: =ROUND(圧力補正*H24_換算前/単位補正係数,0) -> 0 | AR11: =ROUND(圧力補正*H25_換算前/単位補正係数,0) -> 0 | AS11: =ROUND(圧力補正*H26_換算前/単位補正係数,0) -> 0 | AT11: =ROUND(圧力補正*H27_換算前/単位補正係数,0) -> 0 | AU11: =ROUND(圧力補正*H28_換算前/単位補正係数,0) -> 0 | AV11: =ROUND(圧力補正*H29_換算前/単位補正係数,0) -> 0 | AW11: =ROUND(圧力補正*H30_換算前/単位補正係数,0) -> 0 | AX11: =ROUND(圧力補正*H31_換算前/単位補正係数,0) -> 0 | AY11: 0 | AZ11: 0 | BA11: 0 | BB11: 0 | BC11: 0
AG12: =SUM(AG10:AG11) -> 0 | AH12: =SUM(AH10:AH11) -> 0 | AI12: 0 | AJ12: 0 | AK12: 0 | AL12: 0 | AM12: 0 | AN12: 0 | AO12: =SUM(AO10:AO11) -> 0 | AP12: 0 | AQ12: 0 | AR12: 0 | AS12: 0 | AT12: 0 | AU12: 0 | AV12: 0 | AW12: 0 | AX12: 0 | AY12: =SUM(AY10:AY11) -> 0 | AZ12: =SUM(AZ10:AZ11) -> 0 | BA12: 0 | BB12: 0 | BC12: 0
D13: 13A:46.04MJ/m3 | E13: 低圧用 | F13: Nm3 | AD13: 千Nm3 | AE13: =IF(COUNTIF(F13,"*Nm3")>0,1,VLOOKUP(E13,$BA$71:$BB$72,2,FALSE)) -> 1 | AF13: =VLOOKUP($F13,$BA$60:$BB$63,2,FALSE)/VLOOKUP($AD13,$BA$60:$BB$63,2,FALSE) -> 1000 | AG13: =ROUND(圧力補正*H14_換算前/単位補正係数,0) -> 0 | AH13: =ROUND(圧力補正*H15_換算前/単位補正係数,0) -> 0 | AI13: =ROUND(圧力補正*H16_換算前/単位補正係数,0) -> 0 | AJ13: =ROUND(圧力補正*H17_換算前/単位補正係数,0) -> 0 | AK13: =ROUND(圧力補正*H18_換算前/単位補正係数,0) -> 0 | AL13: =ROUND(圧力補正*H19_換算前/単位補正係数,0) -> 0 | AM13: =ROUND(圧力補正*H20_換算前/単位補正係数,0) -> 0 | AN13: =ROUND(圧力補正*H21_換算前/単位補正係数,0) -> 0 | AO13: =ROUND(圧力補正*H22_換算前/単位補正係数,0) -> 0 | AP13: =ROUND(圧力補正*H23_換算前/単位補正係数,0) -> 0 | AQ13: =ROUND(圧力補正*H24_換算前/単位補正係数,0) -> 0 | AR13: =ROUND(圧力補正*H25_換算前/単位補正係数,0) -> 0 | AS13: =ROUND(圧力補正*H26_換算前/単位補正係数,0) -> 0 | AT13: =ROUND(圧力補正*H27_換算前/単位補正係数,0) -> 0 | AU13: =ROUND(圧力補正*H28_換算前/単位補正係数,0) -> 0 | AV13: =ROUND(圧力補正*H29_換算前/単位補正係数,0) -> 0 | AW13: =ROUND(圧力補正*H30_換算前/単位補正係数,0) -> 0 | AX13: =ROUND(圧力補正*H31_換算前/単位補正係数,0) -> 0 | AY13: =ROUND(圧力補正*Y13/単位補正係数,0) -> 0 | AZ13: 0 | BA13: 0 | BB13: 0 | BC13: 0
E14: 中間圧以上用 | F14: Nm3 | AD14: 千Nm3 | AE14: =IF(COUNTIF(F14,"*Nm3")>0,1,VLOOKUP(E14,$BA$71:$BB$72,2,FALSE)) -> 1 | AF14: =VLOOKUP($F14,$BA$60:$BB$63,2,FALSE)/VLOOKUP($AD14,$BA$60:$BB$63,2,FALSE) -> 1000 | AG14: =ROUND(圧力補正*H14_換算前/単位補正係数,0) -> 0 | AH14: =ROUND(圧力補正*H15_換算前/単位補正係数,0) -> 0 | AI14: =ROUND(圧力補正*H16_換算前/単位補正係数,0) -> 0 | AJ14: =ROUND(圧力補正*H17_換算前/単位補正係数,0) -> 0 | AK14: =ROUND(圧力補正*H18_換算前/単位補正係数,0) -> 0 | AL14: =ROUND(圧力補正*H19_換算前/単位補正係数,0) -> 0 | AM14: =ROUND(圧力補正*H20_換算前/単位補正係数,0) -> 0 | AN14: =ROUND(圧力補正*H21_換算前/単位補正係数,0) -> 0 | AO14: =ROUND(圧力補正*H22_換算前/単位補正係数,0) -> 0 | AP14: =ROUND(圧力補正*H23_換算前/単位補正係数,0) -> 0 | AQ14: =ROUND(圧力補正*H24_換算前/単位補正係数,0) -> 0 | AR14: =ROUND(圧力補正*H25_換算前/単位補正係数,0) -> 0 | AS14: =ROUND(圧力補正*H26_換算前/単位補正係数,0) -> 0 | AT14: =ROUND(圧力補正*H27_換算前/単位補正係数,0) -> 0 | AU14: =ROUND(圧力補正*H28_換算前/単位補正係数,0) -> 0 | AV14: =ROUND(圧力補正*H29_換算前/単位補正係数,0) -> 0 | AW14: =ROUND(圧力補正*H30_換算前/単位補正係数,0) -> 0 | AX14: =ROUND(圧力補正*H31_換算前/単位補正係数,0) -> 0 | AY14: 0 | AZ14: 0 | BA14: 0 | BB14: 0 | BC14: 0
AG15: =SUM(AG13:AG14) -> 0 | AH15: =SUM(AH13:AH14) -> 0 | AI15: 0 | AJ15: 0 | AK15: 0 | AL15: 0 | AM15: 0 | AN15: 0 | AO15: =SUM(AO13:AO14) -> 0 | AP15: 0 | AQ15: 0 | AR15: 0 | AS15: 0 | AT15: 0 | AU15: 0 | AV15: 0 | AW15: 0 | AX15: 0 | AY15: =SUM(AY13:AY14) -> 0 | AZ15: =SUM(AZ13:AZ14) -> 0 | BA15: 0 | BB15: 0 | BC15: 0
D16: 12A:41.86MJ/m3 | E16: 低圧用 | F16: Nm3 | AD16: 千Nm3 | AE16: =IF(COUNTIF(F16,"*Nm3")>0,1,VLOOKUP(E16,$BA$71:$BB$72,2,FALSE)) -> 1 | AF16: =VLOOKUP($F16,$BA$60:$BB$63,2,FALSE)/VLOOKUP($AD16,$BA$60:$BB$63,2,FALSE) -> 1000 | AG16: =ROUND(圧力補正*H14_換算前/単位補正係数,0) -> 0 | AH16: =ROUND(圧力補正*H15_換算前/単位補正係数,0) -> 0 | AI16: =ROUND(圧力補正*H16_換算前/単位補正係数,0) -> 0 | AJ16: =ROUND(圧力補正*H17_換算前/単位補正係数,0) -> 0 | AK16: =ROUND(圧力補正*H18_換算前/単位補正係数,0) -> 0 | AL16: =ROUND(圧力補正*H19_換算前/単位補正係数,0) -> 0 | AM16: =ROUND(圧力補正*H20_換算前/単位補正係数,0) -> 0 | AN16: =ROUND(圧力補正*H21_換算前/単位補正係数,0) -> 0 | AO16: =ROUND(圧力補正*H22_換算前/単位補正係数,0) -> 0 | AP16: =ROUND(圧力補正*H23_換算前/単位補正係数,0) -> 0 | AQ16: =ROUND(圧力補正*H24_換算前/単位補正係数,0) -> 0 | AR16: =ROUND(圧力補正*H25_換算前/単位補正係数,0) -> 0 | AS16: =ROUND(圧力補正*H26_換算前/単位補正係数,0) -> 0 | AT16: =ROUND(圧力補正*H27_換算前/単位補正係数,0) -> 0 | AU16: =ROUND(圧力補正*H28_換算前/単位補正係数,0) -> 0 | AV16: =ROUND(圧力補正*H29_換算前/単位補正係数,0) -> 0 | AW16: =ROUND(圧力補正*H30_換算前/単位補正係数,0) -> 0 | AX16: =ROUND(圧力補正*H31_換算前/単位補正係数,0) -> 0 | AY16: =ROUND(圧力補正*Y16/単位補正係数,0) -> 0 | AZ16: 0 | BA16: 0 | BB16: 0 | BC16: 0
E17: 中間圧以上用 | F17: Nm3 | AD17: 千Nm3 | AE17: =IF(COUNTIF(F17,"*Nm3")>0,1,VLOOKUP(E17,$BA$71:$BB$72,2,FALSE)) -> 1 | AF17: =VLOOKUP($F17,$BA$60:$BB$63,2,FALSE)/VLOOKUP($AD17,$BA$60:$BB$63,2,FALSE) -> 1000 | AG17: =ROUND(圧力補正*H14_換算前/単位補正係数,0) -> 0 | AH17: =ROUND(圧力補正*H15_換算前/単位補正係数,0) -> 0 | AI17: =ROUND(圧力補正*H16_換算前/単位補正係数,0) -> 0 | AJ17: =ROUND(圧力補正*H17_換算前/単位補正係数,0) -> 0 | AK17: =ROUND(圧力補正*H18_換算前/単位補正係数,0) -> 0 | AL17: =ROUND(圧力補正*H19_換算前/単位補正係数,0) -> 0 | AM17: =ROUND(圧力補正*H20_換算前/単位補正係数,0) -> 0 | AN17: =ROUND(圧力補正*H21_換算前/単位補正係数,0) -> 0 | AO17: =ROUND(圧力補正*H22_換算前/単位補正係数,0) -> 0 | AP17: =ROUND(圧力補正*H23_換算前/単位補正係数,0) -> 0 | AQ17: =ROUND(圧力補正*H24_換算前/単位補正係数,0) -> 0 | AR17: =ROUND(圧力補正*H25_換算前/単位補正係数,0) -> 0 | AS17: =ROUND(圧力補正*H26_換算前/単位補正係数,0) -> 0 | AT17: =ROUND(圧力補正*H27_換算前/単位補正係数,0) -> 0 | AU17: =ROUND(圧力補正*H28_換算前/単位補正係数,0) -> 0 | AV17: =ROUND(圧力補正*H29_換算前/単位補正係数,0) -> 0 | AW17: =ROUND(圧力補正*H30_換算前/単位補正係数,0) -> 0 | AX17: =ROUND(圧力補正*H31_換算前/単位補正係数,0) -> 0 | AY17: 0 | AZ17: 0 | BA17: 0 | BB17: 0 | BC17: 0
AG18: =SUM(AG16:AG17) -> 0 | AH18: =SUM(AH16:AH17) -> 0 | AI18: 0 | AJ18: 0 | AK18: 0 | AL18: 0 | AM18: 0 | AN18: 0 | AO18: =SUM(AO16:AO17) -> 0 | AP18: 0 | AQ18: 0 | AR18: 0 | AS18: 0 | AT18: 0 | AU18: 0 | AV18: 0 | AW18: 0 | AX18: 0 | AY18: =SUM(AY16:AY17) -> 0 | AZ18: =SUM(AZ16:AZ17) -> 0 | BA18: 0 | BB18: 0 | BC18: 0
D19: 6A:29.30MJ/m3 | E19: 低圧用 | F19: Nm3 | AD19: 千Nm3 | AE19: =IF(COUNTIF(F19,"*Nm3")>0,1,VLOOKUP(E19,$BA$71:$BB$72,2,FALSE)) -> 1 | AF19: =VLOOKUP($F19,$BA$60:$BB$63,2,FALSE)/VLOOKUP($AD19,$BA$60:$BB$63,2,FALSE) -> 1000 | AG19: =ROUND(圧力補正*H14_換算前/単位補正係数,0) -> 0 | AH19: =ROUND(圧力補正*H15_換算前/単位補正係数,0) -> 0 | AI19: =ROUND(圧力補正*H16_換算前/単位補正係数,0) -> 0 | AJ19: =ROUND(圧力補正*H17_換算前/単位補正係数,0) -> 0 | AK19: =ROUND(圧力補正*H18_換算前/単位補正係数,0) -> 0 | AL19: =ROUND(圧力補正*H19_換算前/単位補正係数,0) -> 0 | AM19: =ROUND(圧力補正*H20_換算前/単位補正係数,0) -> 0 | AN19: =ROUND(圧力補正*H21_換算前/単位補正係数,0) -> 0 | AO19: =ROUND(圧力補正*H22_換算前/単位補正係数,0) -> 0 | AP19: =ROUND(圧力補正*H23_換算前/単位補正係数,0) -> 0 | AQ19: =ROUND(圧力補正*H24_換算前/単位補正係数,0) -> 0 | AR19: =ROUND(圧力補正*H25_換算前/単位補正係数,0) -> 0 | AS19: =ROUND(圧力補正*H26_換算前/単位補正係数,0) -> 0 | AT19: =ROUND(圧力補正*H27_換算前/単位補正係数,0) -> 0 | AU19: =ROUND(圧力補正*H28_換算前/単位補正係数,0) -> 0 | AV19: =ROUND(圧力補正*H29_換算前/単位補正係数,0) -> 0 | AW19: =ROUND(圧力補正*H30_換算前/単位補正係数,0) -> 0 | AX19: =ROUND(圧力補正*H31_換算前/単位補正係数,0) -> 0 | AY19: =ROUND(圧力補正*Y19/単位補正係数,0) -> 0 | AZ19: 0 | BA19: 0 | BB19: 0 | BC19: 0
E20: 中間圧以上用 | F20: Nm3 | AD20: 千Nm3 | AE20: =IF(COUNTIF(F20,"*Nm3")>0,1,VLOOKUP(E20,$BA$71:$BB$72,2,FALSE)) -> 1 | AF20: =VLOOKUP($F20,$BA$60:$BB$63,2,FALSE)/VLOOKUP($AD20,$BA$60:$BB$63,2,FALSE) -> 1000 | AG20: =ROUND(圧力補正*H14_換算前/単位補正係数,0) -> 0 | AH20: =ROUND(圧力補正*H15_換算前/単位補正係数,0) -> 0 | AI20: =ROUND(圧力補正*H16_換算前/単位補正係数,0) -> 0 | AJ20: =ROUND(圧力補正*H17_換算前/単位補正係数,0) -> 0 | AK20: =ROUND(圧力補正*H18_換算前/単位補正係数,0) -> 0 | AL20: =ROUND(圧力補正*H19_換算前/単位補正係数,0) -> 0 | AM20: =ROUND(圧力補正*H20_換算前/単位補正係数,0) -> 0 | AN20: =ROUND(圧力補正*H21_換算前/単位補正係数,0) -> 0 | AO20: =ROUND(圧力補正*H22_換算前/単位補正係数,0) -> 0 | AP20: =ROUND(圧力補正*H23_換算前/単位補正係数,0) -> 0 | AQ20: =ROUND(圧力補正*H24_換算前/単位補正係数,0) -> 0 | AR20: =ROUND(圧力補正*H25_換算前/単位補正係数,0) -> 0 | AS20: =ROUND(圧力補正*H26_換算前/単位補正係数,0) -> 0 | AT20: =ROUND(圧力補正*H27_換算前/単位補正係数,0) -> 0 | AU20: =ROUND(圧力補正*H28_換算前/単位補正係数,0) -> 0 | AV20: =ROUND(圧力補正*H29_換算前/単位補正係数,0) -> 0 | AW20: =ROUND(圧力補正*H30_換算前/単位補正係数,0) -> 0 | AX20: =ROUND(圧力補正*H31_換算前/単位補正係数,0) -> 0 | AY20: 0 | AZ20: 0 | BA20: 0 | BB20: 0 | BC20: 0
AG21: =SUM(AG19:AG20) -> 0 | AH21: =SUM(AH19:AH20) -> 0 | AI21: 0 | AJ21: 0 | AK21: 0 | AL21: 0 | AM21: 0 | AN21: 0 | AO21: =SUM(AO19:AO20) -> 0 | AP21: 0 | AQ21: 0 | AR21: 0 | AS21: 0 | AT21: 0 | AU21: 0 | AV21: 0 | AW21: 0 | AX21: 0 | AY21: =SUM(AY19:AY20) -> 0 | AZ21: =SUM(AZ19:AZ20) -> 0 | BA21: 0 | BB21: 0 | BC21: 0
B23: イ 液化石油ガス（ＬＰＧ）
G25: 使用量（換算前） | AD25: 換算後 | AG25: 使用量（換算後）
C26: 種別 | E26: 気化率 m3/kg | F26: 単位 | G26: 14年度(2002) | H26: 15年度(2003) | I26: 16年度(2004) | J26: 17年度(2005) | K26: 18年度(2006) | L26: 19年度(2007) | M26: 20年度(2008) | N26: 21年度(2009) | O26: 22年度(2010) | P26: 23年度(2011) | Q26: 24年度(2012) | R26: 25年度(2013) | S26: 26年度(2014) | T26: 27年度(2015) | U26: 28年度(2016) | V26: 29年度(2017) | W26: 30年度(2018) | X26: 31/1年度(2019) | Y26: 2年度(2020) | Z26: 3年度(2021) | AA26: 4年度(2022) | AB26: 5年度(2023) | AC26: 6年度(2024) | AD26: 単位 | AE26: 単位換算 | AF26: 桁補正 | AG26: 14年度(2002) | AH26: 15年度(2003) | AI26: 16年度(2004) | AJ26: 17年度(2005) | AK26: 18年度(2006) | AL26: 19年度(2007) | AM26: 20年度(2008) | AN26: 21年度(2009) | AO26: 22年度(2010) | AP26: 23年度(2011) | AQ26: 24年度(2012) | AR26: 25年度(2013) | AS26: 26年度(2014) | AT26: 27年度(2015) | AU26: 28年度(2016) | AV26: 29年度(2017) | AW26: 30年度(2018) | AX26: 31/1年度(2019) | AY26: 2年度(2020) | AZ26: 3年度(2021) | BA26: 4年度(2022) | BB26: 5年度(2023) | BC26: 6年度(2024)
C27: プロパン・ブタン混合ガス （LPガス） | E27: 0.458 | F27: ｔ | AD27: t | AE27: =IF(OR(F27="kg",F27="ｔ"),1,E27) -> 1 | AF27: =VLOOKUP(F27,$BA$58:$BB$61,2,FALSE) -> 1 | AG27: =ROUND(H14_LPG使用量/単位換算/LPG単位補正,0) -> 0 | AH27: =ROUND(H15_LPG使用量/単位換算/LPG単位補正,0) -> 0 | AI27: =ROUND(H16_LPG使用量/単位換算/LPG単位補正,0) -> 0 | AJ27: =ROUND(H17_LPG使用量/単位換算/LPG単位補正,0) -> 0 | AK27: =ROUND(H18_LPG使用量/単位換算/LPG単位補正,0) -> 0 | AL27: =ROUND(H19_LPG使用量/単位換算/LPG単位補正,0) -> 0 | AM27: =ROUND(H20_LPG使用量/単位換算/LPG単位補正,0) -> 0 | AN27: =ROUND(H21_LPG使用量/単位換算/LPG単位補正,0) -> 0 | AO27: =ROUND(H22_LPG使用量/単位換算/LPG単位補正,0) -> 0 | AP27: =ROUND(H23_LPG使用量/単位換算/LPG単位補正,0) -> 0 | AQ27: =ROUND(H24_LPG使用量/単位換算/LPG単位補正,0) -> 0 | AR27: =ROUND(H25_LPG使用量/単位換算/LPG単位補正,0) -> 0 | AS27: =ROUND(H26_LPG使用量/単位換算/LPG単位補正,0) -> 0 | AT27: =ROUND(H27_LPG使用量/単位換算/LPG単位補正,0) -> 0 | AU27: =ROUND(H28_LPG使用量/単位換算/LPG単位補正,0) -> 0 | AV27: =ROUND(H29_LPG使用量/単位換算/LPG単位補正,0) -> 0 | AW27: =ROUND(H30_LPG使用量/単位換算/LPG単位補正,0) -> 0 | AX27: =ROUND(H31_LPG使用量/単位換算/LPG単位補正,0) -> 0 | AY27: =ROUND(Y27/単位換算/LPG単位補正,0) -> 0 | AZ27: 0 | BA27: 0 | BB27: 0 | BC27: 0
C28: プロパン | E28: 0.502 | F28: ｔ | AD28: t | AE28: =IF(OR(F28="kg",F28="ｔ"),1,E28) -> 1 | AF28: =VLOOKUP(F28,$BA$58:$BB$61,2,FALSE) -> 1 | AG28: =ROUND(H14_LPG使用量/単位換算/LPG単位補正,0) -> 0 | AH28: =ROUND(H15_LPG使用量/単位換算/LPG単位補正,0) -> 0 | AI28: =ROUND(H16_LPG使用量/単位換算/LPG単位補正,0) -> 0 | AJ28: =ROUND(H17_LPG使用量/単位換算/LPG単位補正,0) -> 0 | AK28: =ROUND(H18_LPG使用量/単位換算/LPG単位補正,0) -> 0 | AL28: =ROUND(H19_LPG使用量/単位換算/LPG単位補正,0) -> 0 | AM28: =ROUND(H20_LPG使用量/単位換算/LPG単位補正,0) -> 0 | AN28: =ROUND(H21_LPG使用量/単位換算/LPG単位補正,0) -> 0 | AO28: =ROUND(H22_LPG使用量/単位換算/LPG単位補正,0) -> 0 | AP28: =ROUND(H23_LPG使用量/単位換算/LPG単位補正,0) -> 0 | AQ28: =ROUND(H24_LPG使用量/単位換算/LPG単位補正,0) -> 0 | AR28: =ROUND(H25_LPG使用量/単位換算/LPG単位補正,0) -> 0 | AS28: =ROUND(H26_LPG使用量/単位換算/LPG単位補正,0) -> 0 | AT28: =ROUND(H27_LPG使用量/単位換算/LPG単位補正,0) -> 0 | AU28: =ROUND(H28_LPG使用量/単位換算/LPG単位補正,0) -> 0 | AV28: =ROUND(H29_LPG使用量/単位換算/LPG単位補正,0) -> 0 | AW28: =ROUND(H30_LPG使用量/単位換算/LPG単位補正,0) -> 0 | AX28: =ROUND(H31_LPG使用量/単位換算/LPG単位補正,0) -> 0 | AY28: 0 | AZ28: 0 | BA28: 0 | BB28: 0 | BC28: 0
C29: ブタン | E29: 0.355 | F29: ｔ | AD29: t | AE29: =IF(OR(F29="kg",F29="ｔ"),1,E29) -> 1 | AF29: =VLOOKUP(F29,$BA$58:$BB$61,2,FALSE) -> 1 | AG29: =ROUND(H14_LPG使用量/単位換算/LPG単位補正,0) -> 0 | AH29: =ROUND(H15_LPG使用量/単位換算/LPG単位補正,0) -> 0 | AI29: =ROUND(H16_LPG使用量/単位換算/LPG単位補正,0) -> 0 | AJ29: =ROUND(H17_LPG使用量/単位換算/LPG単位補正,0) -> 0 | AK29: =ROUND(H18_LPG使用量/単位換算/LPG単位補正,0) -> 0 | AL29: =ROUND(H19_LPG使用量/単位換算/LPG単位補正,0) -> 0 | AM29: =ROUND(H20_LPG使用量/単位換算/LPG単位補正,0) -> 0 | AN29: =ROUND(H21_LPG使用量/単位換算/LPG単位補正,0) -> 0 | AO29: =ROUND(H22_LPG使用量/単位換算/LPG単位補正,0) -> 0 | AP29: =ROUND(H23_LPG使用量/単位換算/LPG単位補正,0) -> 0 | AQ29: =ROUND(H24_LPG使用量/単位換算/LPG単位補正,0) -> 0 | AR29: =ROUND(H25_LPG使用量/単位換算/LPG単位補正,0) -> 0 | AS29: =ROUND(H26_LPG使用量/単位換算/LPG単位補正,0) -> 0 | AT29: =ROUND(H27_LPG使用量/単位換算/LPG単位補正,0) -> 0 | AU29: =ROUND(H28_LPG使用量/単位換算/LPG単位補正,0) -> 0 | AV29: =ROUND(H29_LPG使用量/単位換算/LPG単位補正,0) -> 0 | AW29: =ROUND(H30_LPG使用量/単位換算/LPG単位補正,0) -> 0 | AX29: =ROUND(H31_LPG使用量/単位換算/LPG単位補正,0) -> 0 | AY29: 0 | AZ29: 0 | BA29: 0 | BB29: 0 | BC29: 0
C30: その他 | E30: 0.482 | F30: ｔ | AD30: t | AE30: =IF(OR(F30="kg",F30="ｔ"),1,E30) -> 1 | AF30: =VLOOKUP(F30,$BA$58:$BB$61,2,FALSE) -> 1 | AG30: =ROUND(H14_LPG使用量/単位換算/LPG単位補正,0) -> 0 | AH30: =ROUND(H15_LPG使用量/単位換算/LPG単位補正,0) -> 0 | AI30: =ROUND(H16_LPG使用量/単位換算/LPG単位補正,0) -> 0 | AJ30: =ROUND(H17_LPG使用量/単位換算/LPG単位補正,0) -> 0 | AK30: =ROUND(H18_LPG使用量/単位換算/LPG単位補正,0) -> 0 | AL30: =ROUND(H19_LPG使用量/単位換算/LPG単位補正,0) -> 0 | AM30: =ROUND(H20_LPG使用量/単位換算/LPG単位補正,0) -> 0 | AN30: =ROUND(H21_LPG使用量/単位換算/LPG単位補正,0) -> 0 | AO30: =ROUND(H22_LPG使用量/単位換算/LPG単位補正,0) -> 0 | AP30: =ROUND(H23_LPG使用量/単位換算/LPG単位補正,0) -> 0 | AQ30: =ROUND(H24_LPG使用量/単位換算/LPG単位補正,0) -> 0 | AR30: =ROUND(H25_LPG使用量/単位換算/LPG単位補正,0) -> 0 | AS30: =ROUND(H26_LPG使用量/単位換算/LPG単位補正,0) -> 0 | AT30: =ROUND(H27_LPG使用量/単位換算/LPG単位補正,0) -> 0 | AU30: =ROUND(H28_LPG使用量/単位換算/LPG単位補正,0) -> 0 | AV30: =ROUND(H29_LPG使用量/単位換算/LPG単位補正,0) -> 0 | AW30: =ROUND(H30_LPG使用量/単位換算/LPG単位補正,0) -> 0 | AX30: =ROUND(H31_LPG使用量/単位換算/LPG単位補正,0) -> 0 | AY30: 0 | AZ30: 0 | BA30: 0 | BB30: 0 | BC30: 0
AG31: =SUM(AG27:AG30) -> 0 | AH31: 0 | AI31: 0 | AJ31: 0 | AK31: 0 | AL31: 0 | AM31: 0 | AN31: 0 | AO31: 0 | AP31: 0 | AQ31: 0 | AR31: 0 | AS31: 0 | AT31: 0 | AU31: 0 | AV31: 0 | AW31: 0 | AX31: 0 | AY31: =SUM(AY27:AY30) -> 0 | AZ31: 0 | BA31: 0 | BB31: 0 | BC31: 0
B33: ウ 都市ガス・LPG以外の気体燃料
G35: 使用量（換算前） | AD35: 換算単位 | AG35: 使用量（換算後）
F36: 単位 | G36: 14年度(2002) | H36: 15年度(2003) | I36: 16年度(2004) | J36: 17年度(2005) | K36: 18年度(2006) | L36: 19年度(2007) | M36: 20年度(2008) | N36: 21年度(2009) | O36: 22年度(2010) | P36: 23年度(2011) | Q36: 24年度(2012) | R36: 25年度(2013) | S36: 26年度(2014) | T36: 27年度(2015) | U36: 28年度(2016) | V36: 29年度(2017) | W36: 30年度(2018) | X36: 31/1年度(2019) | Y36: 2年度(2020) | Z36: 3年度(2021) | AA36: 4年度(2022) | AB36: 5年度(2023) | AC36: 6年度(2024) | AD36: 単位 | AG36: 14年度(2002) | AH36: 15年度(2003) | AI36: 16年度(2004) | AJ36: 17年度(2005) | AK36: 18年度(2006) | AL36: 19年度(2007) | AM36: 20年度(2008) | AN36: 21年度(2009) | AO36: 22年度(2010) | AP36: 23年度(2011) | AQ36: 24年度(2012) | AR36: 25年度(2013) | AS36: 26年度(2014) | AT36: 27年度(2015) | AU36: 28年度(2016) | AV36: 29年度(2017) | AW36: 30年度(2018) | AX36: 31/1年度(2019) | AY36: 2年度(2020) | AZ36: 3年度(2021) | BA36: 4年度(2022) | BB36: 5年度(2023) | BC36: 6年度(2024)
C37: その他可燃性 天然ガス | E37: 気体燃料 圧力 | F37: kPa | AE37: 圧力補正 | AG37: =IF(COUNTIF(F39,"*Nm3")>0,1,G37/101.325*273.15/(273.15+G38)) -> 0 | AH37: =IF(COUNTIF(F39,"*Nm3")>0,1,H37/101.325*273.15/(273.15+H38)) -> 0 | AI37: =IF(COUNTIF(F39,"*Nm3")>0,1,I37/101.325*273.15/(273.15+I38)) -> 0 | AJ37: =IF(COUNTIF(F39,"*Nm3")>0,1,J37/101.325*273.15/(273.15+J38)) -> 0 | AK37: =IF(COUNTIF(F39,"*Nm3")>0,1,K37/101.325*273.15/(273.15+K38)) -> 0 | AL37: =IF(COUNTIF(F39,"*Nm3")>0,1,L37/101.325*273.15/(273.15+L38)) -> 0 | AM37: =IF(COUNTIF(F39,"*Nm3")>0,1,M37/101.325*273.15/(273.15+M38)) -> 0 | AN37: =IF(COUNTIF(F39,"*Nm3")>0,1,N37/101.325*273.15/(273.15+N38)) -> 0 | AO37: =IF(COUNTIF(F39,"*Nm3")>0,1,O37/101.325*273.15/(273.15+O38)) -> 0 | AP37: =IF(COUNTIF(F39,"*Nm3")>0,1,P37/101.325*273.15/(273.15+P38)) -> 0 | AQ37: =IF(COUNTIF(F39,"*Nm3")>0,1,Q37/101.325*273.15/(273.15+Q38)) -> 0 | AR37: =IF(COUNTIF(F39,"*Nm3")>0,1,R37/101.325*273.15/(273.15+R38)) -> 0 | AS37: =IF(COUNTIF(F39,"*Nm3")>0,1,S37/101.325*273.15/(273.15+S38)) -> 0 | AT37: 0 | AU37: 0 | AV37: 0 | AW37: 0 | AX37: 0 | AY37: =IF(COUNTIF(L39,"*Nm3")>0,1,Y37/101.325*273.15/(273.15+Y38)) -> 0 | AZ37: 0 | BA37: 0 | BB37: 0 | BC37: 0
E38: 気体燃料 温度 | F38: ℃
E39: 使用量 | F39: m3 | AD39: 千Nm3 | AE39: 単位補正 | AF39: =VLOOKUP($F39,$BA$60:$BB$63,2,FALSE)/VLOOKUP($AD39,$BA$60:$BB$63,2,FALSE) -> 1000 | AG39: =ROUND(H14_その他ガス*$AG37/$AF39,0) -> 0 | AH39: =ROUND(H15_その他ガス*$AH37/$AF39,0) -> 0 | AI39: =ROUND(H16_その他ガス*$AI37/$AF39,0) -> 0 | AJ39: =ROUND(H17_その他ガス*$AJ37/$AF39,0) -> 0 | AK39: =ROUND(H18_その他ガス*$AK37/$AF39,0) -> 0 | AL39: =ROUND(H19_その他ガス*$AL37/$AF39,0) -> 0 | AM39: =ROUND(H20_その他ガス*$AM37/$AF39,0) -> 0 | AN39: =ROUND(H21_その他ガス*$AN37/$AF39,0) -> 0 | AO39: =ROUND(H22_その他ガス*$AO37/$AF39,0) -> 0 | AP39: =ROUND(H23_その他ガス*$AP37/$AF39,0) -> 0 | AQ39: =ROUND(H24_その他ガス*$AQ37/$AF39,0) -> 0 | AR39: =ROUND(H25_その他ガス*$AR37/$AF39,0) -> 0 | AS39: =ROUND(H26_その他ガス*$AS37/$AF39,0) -> 0 | AT39: =ROUND(H27_その他ガス*$AS37/$AF39,0) -> 0 | AU39: =ROUND(H28_その他ガス*$AS37/$AF39,0) -> 0 | AV39: =ROUND(H29_その他ガス*$AS37/$AF39,0) -> 0 | AW39: =ROUND(H30_その他ガス*$AS37/$AF39,0) -> 0 | AX39: =ROUND(H31_その他ガス*$AS37/$AF39,0) -> 0 | AY39: =ROUND(Y39*$AS37/$AF39,0) -> 0 | AZ39: =ROUND(Z39*$AS37/$AF39,0) -> 0 | BA39: 0 | BB39: 0 | BC39: 0
C40: コークス炉ガス | E40: 気体燃料 圧力 | F40: kPa | AE40: 圧力補正 | AG40: =IF(COUNTIF(F42,"*Nm3")>0,1,G40/101.325*273.15/(273.15+G41)) -> 0 | AH40: =IF(COUNTIF(F42,"*Nm3")>0,1,H40/101.325*273.15/(273.15+H41)) -> 0 | AI40: =IF(COUNTIF(F42,"*Nm3")>0,1,I40/101.325*273.15/(273.15+I41)) -> 0 | AJ40: =IF(COUNTIF(F42,"*Nm3")>0,1,J40/101.325*273.15/(273.15+J41)) -> 0 | AK40: =IF(COUNTIF(F42,"*Nm3")>0,1,K40/101.325*273.15/(273.15+K41)) -> 0 | AL40: =IF(COUNTIF(F42,"*Nm3")>0,1,L40/101.325*273.15/(273.15+L41)) -> 0 | AM40: =IF(COUNTIF(F42,"*Nm3")>0,1,M40/101.325*273.15/(273.15+M41)) -> 0 | AN40: =IF(COUNTIF(F42,"*Nm3")>0,1,N40/101.325*273.15/(273.15+N41)) -> 0 | AO40: =IF(COUNTIF(F42,"*Nm3")>0,1,O40/101.325*273.15/(273.15+O41)) -> 0 | AP40: =IF(COUNTIF(F42,"*Nm3")>0,1,P40/101.325*273.15/(273.15+P41)) -> 0 | AQ40: =IF(COUNTIF(F42,"*Nm3")>0,1,Q40/101.325*273.15/(273.15+Q41)) -> 0 | AR40: =IF(COUNTIF(F42,"*Nm3")>0,1,R40/101.325*273.15/(273.15+R41)) -> 0 | AS40: =IF(COUNTIF(F42,"*Nm3")>0,1,S40/101.325*273.15/(273.15+S41)) -> 0 | AT40: 0 | AU40: 0 | AV40: 0 | AW40: 0 | AX40: 0 | AY40: =IF(COUNTIF(L42,"*Nm3")>0,1,Y40/101.325*273.15/(273.15+Y41)) -> 0 | AZ40: 0 | BA40: 0 | BB40: 0 | BC40: 0
E41: 気体燃料 温度 | F41: ℃
E42: 使用量 | F42: m3 | AD42: 千Nm3 | AE42: 単位補正 | AF42: =VLOOKUP($F42,$BA$60:$BB$63,2,FALSE) -> 1000 | AG42: =ROUND(H14_その他ガス*$AG40/$AF42,0) -> 0 | AH42: =ROUND(H15_その他ガス*$AH40/$AF42,0) -> 0 | AI42: =ROUND(H16_その他ガス*$AI40/$AF42,0) -> 0 | AJ42: =ROUND(H17_その他ガス*$AJ40/$AF42,0) -> 0 | AK42: =ROUND(H18_その他ガス*$AK40/$AF42,0) -> 0 | AL42: =ROUND(H19_その他ガス*$AL40/$AF42,0) -> 0 | AM42: =ROUND(H20_その他ガス*$AM40/$AF42,0) -> 0 | AN42: =ROUND(H21_その他ガス*$AN40/$AF42,0) -> 0 | AO42: =ROUND(H22_その他ガス*$AO40/$AF42,0) -> 0 | AP42: =ROUND(H23_その他ガス*$AP40/$AF42,0) -> 0 | AQ42: =ROUND(H24_その他ガス*$AQ40/$AF42,0) -> 0 | AR42: =ROUND(H25_その他ガス*$AR40/$AF42,0) -> 0 | AS42: =ROUND(H26_その他ガス*$AS40/$AF42,0) -> 0 | AT42: =ROUND(H27_その他ガス*$AS40/$AF42,0) -> 0 | AU42: =ROUND(H28_その他ガス*$AS40/$AF42,0) -> 0 | AV42: =ROUND(H29_その他ガス*$AS40/$AF42,0) -> 0 | AW42: =ROUND(H30_その他ガス*$AS40/$AF42,0) -> 0 | AX42: =ROUND(H31_その他ガス*$AS40/$AF42,0) -> 0 | AY42: =ROUND(Y42*$AS40/$AF42,0) -> 0 | AZ42: =ROUND(Z42*$AS40/$AF42,0) -> 0 | BA42: 0 | BB42: 0 | BC42: 0
C43: 高炉ガス | E43: 気体燃料 圧力 | F43: kPa | AE43: 圧力補正 | AG43: =IF(COUNTIF(F45,"*Nm3")>0,1,G43/101.325*273.15/(273.15+G44)) -> 0 | AH43: =IF(COUNTIF(F45,"*Nm3")>0,1,H43/101.325*273.15/(273.15+H44)) -> 0 | AI43: =IF(COUNTIF(F45,"*Nm3")>0,1,I43/101.325*273.15/(273.15+I44)) -> 0 | AJ43: =IF(COUNTIF(F45,"*Nm3")>0,1,J43/101.325*273.15/(273.15+J44)) -> 0 | AK43: =IF(COUNTIF(F45,"*Nm3")>0,1,K43/101.325*273.15/(273.15+K44)) -> 0 | AL43: =IF(COUNTIF(F45,"*Nm3")>0,1,L43/101.325*273.15/(273.15+L44)) -> 0 | AM43: =IF(COUNTIF(F45,"*Nm3")>0,1,M43/101.325*273.15/(273.15+M44)) -> 0 | AN43: =IF(COUNTIF(F45,"*Nm3")>0,1,N43/101.325*273.15/(273.15+N44)) -> 0 | AO43: =IF(COUNTIF(F45,"*Nm3")>0,1,O43/101.325*273.15/(273.15+O44)) -> 0 | AP43: =IF(COUNTIF(F45,"*Nm3")>0,1,P43/101.325*273.15/(273.15+P44)) -> 0 | AQ43: =IF(COUNTIF(F45,"*Nm3")>0,1,Q43/101.325*273.15/(273.15+Q44)) -> 0 | AR43: =IF(COUNTIF(F45,"*Nm3")>0,1,R43/101.325*273.15/(273.15+R44)) -> 0 | AS43: =IF(COUNTIF(F45,"*Nm3")>0,1,S43/101.325*273.15/(273.15+S44)) -> 0 | AT43: 0 | AU43: 0 | AV43: 0 | AW43: 0 | AX43: 0 | AY43: =IF(COUNTIF(L45,"*Nm3")>0,1,Y43/101.325*273.15/(273.15+Y44)) -> 0 | AZ43: 0 | BA43: 0 | BB43: 0 | BC43: 0
E44: 気体燃料 温度 | F44: ℃
E45: 使用量 | F45: m3 | AD45: 千Nm3 | AE45: 単位補正 | AF45: =VLOOKUP($F45,$BA$60:$BB$63,2,FALSE) -> 1000 | AG45: =ROUND(H14_その他ガス*$AG43/$AF45,0) -> 0 | AH45: =ROUND(H15_その他ガス*$AH43/$AF45,0) -> 0 | AI45: =ROUND(H16_その他ガス*$AI43/$AF45,0) -> 0 | AJ45: =ROUND(H17_その他ガス*$AJ43/$AF45,0) -> 0 | AK45: =ROUND(H18_その他ガス*$AK43/$AF45,0) -> 0 | AL45: =ROUND(H19_その他ガス*$AL43/$AF45,0) -> 0 | AM45: =ROUND(H20_その他ガス*$AM43/$AF45,0) -> 0 | AN45: =ROUND(H21_その他ガス*$AN43/$AF45,0) -> 0 | AO45: =ROUND(H22_その他ガス*$AO43/$AF45,0) -> 0 | AP45: =ROUND(H23_その他ガス*$AP43/$AF45,0) -> 0 | AQ45: =ROUND(H24_その他ガス*$AQ43/$AF45,0) -> 0 | AR45: =ROUND(H25_その他ガス*$AR43/$AF45,0) -> 0 | AS45: =ROUND(H26_その他ガス*$AS43/$AF45,0) -> 0 | AT45: =ROUND(H27_その他ガス*$AS43/$AF45,0) -> 0 | AU45: =ROUND(H28_その他ガス*$AS43/$AF45,0) -> 0 | AV45: =ROUND(H29_その他ガス*$AS43/$AF45,0) -> 0 | AW45: =ROUND(H30_その他ガス*$AS43/$AF45,0) -> 0 | AX45: =ROUND(H31_その他ガス*$AS43/$AF45,0) -> 0 | AY45: =ROUND(Y45*$AS43/$AF45,0) -> 0 | AZ45: =ROUND(Z45*$AS43/$AF45,0) -> 0 | BA45: 0 | BB45: 0 | BC45: 0
C46: 転炉ガス | E46: 気体燃料 圧力 | F46: kPa | AE46: 圧力補正 | AG46: =IF(COUNTIF(F48,"*Nm3")>0,1,G46/101.325*273.15/(273.15+G47)) -> 0 | AH46: =IF(COUNTIF(F48,"*Nm3")>0,1,H46/101.325*273.15/(273.15+H47)) -> 0 | AI46: =IF(COUNTIF(F48,"*Nm3")>0,1,I46/101.325*273.15/(273.15+I47)) -> 0 | AJ46: =IF(COUNTIF(F48,"*Nm3")>0,1,J46/101.325*273.15/(273.15+J47)) -> 0 | AK46: =IF(COUNTIF(F48,"*Nm3")>0,1,K46/101.325*273.15/(273.15+K47)) -> 0 | AL46: =IF(COUNTIF(F48,"*Nm3")>0,1,L46/101.325*273.15/(273.15+L47)) -> 0 | AM46: =IF(COUNTIF(F48,"*Nm3")>0,1,M46/101.325*273.15/(273.15+M47)) -> 0 | AN46: =IF(COUNTIF(F48,"*Nm3")>0,1,N46/101.325*273.15/(273.15+N47)) -> 0 | AO46: =IF(COUNTIF(F48,"*Nm3")>0,1,O46/101.325*273.15/(273.15+O47)) -> 0 | AP46: =IF(COUNTIF(F48,"*Nm3")>0,1,P46/101.325*273.15/(273.15+P47)) -> 0 | AQ46: =IF(COUNTIF(F48,"*Nm3")>0,1,Q46/101.325*273.15/(273.15+Q47)) -> 0 | AR46: =IF(COUNTIF(F48,"*Nm3")>0,1,R46/101.325*273.15/(273.15+R47)) -> 0 | AS46: =IF(COUNTIF(F48,"*Nm3")>0,1,S46/101.325*273.15/(273.15+S47)) -> 0 | AT46: 0 | AU46: 0 | AV46: 0 | AW46: 0 | AX46: 0 | AY46: =IF(COUNTIF(L48,"*Nm3")>0,1,Y46/101.325*273.15/(273.15+Y47)) -> 0 | AZ46: 0 | BA46: 0 | BB46: 0 | BC46: 0
E47: 気体燃料 温度 | F47: ℃
E48: 使用量 | F48: m3 | AD48: 千Nm3 | AE48: 単位補正 | AF48: =VLOOKUP($F48,$BA$60:$BB$63,2,FALSE) -> 1000 | AG48: =ROUND(H14_その他ガス*$AG46/$AF48,0) -> 0 | AH48: =ROUND(H15_その他ガス*$AH46/$AF48,0) -> 0 | AI48: =ROUND(H16_その他ガス*$AI46/$AF48,0) -> 0 | AJ48: =ROUND(H17_その他ガス*$AJ46/$AF48,0) -> 0 | AK48: =ROUND(H18_その他ガス*$AK46/$AF48,0) -> 0 | AL48: =ROUND(H19_その他ガス*$AL46/$AF48,0) -> 0 | AM48: =ROUND(H20_その他ガス*$AM46/$AF48,0) -> 0 | AN48: =ROUND(H21_その他ガス*$AN46/$AF48,0) -> 0 | AO48: =ROUND(H22_その他ガス*$AO46/$AF48,0) -> 0 | AP48: =ROUND(H23_その他ガス*$AP46/$AF48,0) -> 0 | AQ48: =ROUND(H24_その他ガス*$AQ46/$AF48,0) -> 0 | AR48: =ROUND(H25_その他ガス*$AR46/$AF48,0) -> 0 | AS48: =ROUND(H26_その他ガス*$AS46/$AF48,0) -> 0 | AT48: =ROUND(H27_その他ガス*$AS46/$AF48,0) -> 0 | AU48: =ROUND(H28_その他ガス*$AS46/$AF48,0) -> 0 | AV48: =ROUND(H29_その他ガス*$AS46/$AF48,0) -> 0 | AW48: =ROUND(H30_その他ガス*$AS46/$AF48,0) -> 0 | AX48: =ROUND(H31_その他ガス*$AS46/$AF48,0) -> 0 | AY48: =ROUND(Y48*$AS46/$AF48,0) -> 0 | AZ48: =ROUND(Z48*$AS46/$AF48,0) -> 0 | BA48: 0 | BB48: 0 | BC48: 0
B50: エ 電気または熱の事業所外への供給
G52: 使用量（換算前） | AD52: 換算単位 | AG52: 使用量（換算後）
F53: 単位 | G53: 14年度(2002) | H53: 15年度(2003) | I53: 16年度(2004) | J53: 17年度(2005) | K53: 18年度(2006) | L53: 19年度(2007) | M53: 20年度(2008) | N53: 21年度(2009) | O53: 22年度(2010) | P53: 23年度(2011) | Q53: 24年度(2012) | R53: 25年度(2013) | S53: 26年度(2014) | T53: 27年度(2015) | U53: 28年度(2016) | V53: 29年度(2017) | W53: 30年度(2018) | X53: 31/1年度(2019) | Y53: 2年度(2020) | Z53: 3年度(2021) | AA53: 4年度(2022) | AB53: 5年度(2023) | AC53: 6年度(2024) | AD53: 単位 | AF53: 単位補正 | AG53: 14年度(2002) | AH53: 15年度(2003) | AI53: 16年度(2004) | AJ53: 17年度(2005) | AK53: 18年度(2006) | AL53: 19年度(2007) | AM53: 20年度(2008) | AN53: 21年度(2009) | AO53: 22年度(2010) | AP53: 23年度(2011) | AQ53: 24年度(2012) | AR53: 25年度(2013) | AS53: 26年度(2014) | AT53: 27年度(2015) | AU53: 28年度(2016) | AV53: 29年度(2017) | AW53: 30年度(2018) | AX53: 31/1年度(2019) | AY53: 2年度(2020) | AZ53: 3年度(2021) | BA53: 4年度(2022) | BB53: 5年度(2023) | BC53: 6年度(2024)
C54: 事業所外供給 | D54: 電気 | E54: 電気供給量 | F54: kWh | AD54: 千kWh | AE54: 単位補正 | AF54: =VLOOKUP($F54,$BA$64:$BB$65,2,FALSE)/VLOOKUP($AD54,$BA$64:$BB$65,2,FALSE) -> 1000 | AG54: =ROUND(G54/$AF54,0) -> 0 | AH54: 0 | AI54: 0 | AJ54: 0 | AK54: 0 | AL54: 0 | AM54: 0 | AN54: 0 | AO54: 0 | AP54: 0 | AQ54: 0 | AR54: 0 | AS54: 0 | AT54: 0 | AU54: 0 | AV54: 0 | AW54: 0 | AX54: 0 | AY54: =ROUND(Y54/$AF54,0) -> 0 | AZ54: 0 | BA54: 0 | BB54: 0 | BC54: 0
E55: 排出係数 | F55: t-CO2/千kWh | AE55: 供給量 | AG55: =AG54*G55 -> 0 | AH55: 0 | AI55: 0 | AJ55: 0 | AK55: 0 | AL55: 0 | AM55: 0 | AN55: 0 | AO55: 0 | AP55: 0 | AQ55: 0 | AR55: 0 | AS55: 0 | AT55: 0 | AU55: 0 | AV55: 0 | AW55: 0 | AX55: 0 | AY55: =AY54*Y55 -> 0 | AZ55: 0 | BA55: 0 | BB55: 0 | BC55: 0
D56: 熱 | E56: 熱供給量 | F56: MJ | AD56: GJ | AE56: 単位補正 | AF56: =VLOOKUP($F56,$BA$66:$BB$67,2,FALSE)/VLOOKUP($AD56,$BA$66:$BB$67,2,FALSE) -> 1000 | AG56: =ROUND(G56/$AF56,0) -> 0 | AH56: 0 | AI56: 0 | AJ56: 0 | AK56: 0 | AL56: 0 | AM56: 0 | AN56: 0 | AO56: 0 | AP56: 0 | AQ56: 0 | AR56: 0 | AS56: 0 | AT56: 0 | AU56: 0 | AV56: 0 | AW56: 0 | AX56: 0 | AY56: =ROUND(Y56/$AF56,0) -> 0 | AZ56: 0 | BA56: 0 | BB56: 0 | BC56: 0
E57: 排出係数 | F57: t-ＣＯ₂/GJ | AE57: 供給量 | AG57: =AG56*G57 -> 0 | AH57: 0 | AI57: 0 | AJ57: 0 | AK57: 0 | AL57: 0 | AM57: 0 | AN57: 0 | AO57: 0 | AP57: 0 | AQ57: 0 | AR57: 0 | AS57: 0 | AT57: 0 | AU57: 0 | AV57: 0 | AW57: 0 | AX57: 0 | AY57: =AY56*Y57 -> 0 | AZ57: 0 | BA57: 0 | BB57: 0 | BC57: 0
BA58: kg | BB58: 1000
BA59: ｔ | BB59: 1
BA60: m3 | BB60: 1000
BA61: 千m3 | BB61: 1
BA62: Nm3 | BB62: 1000
BA63: 千Nm3 | BB63: 1
BA64: kWh | BB64: 1000
BA65: 千kWh | BB65: 1
BA66: MJ | BB66: 1000
BA67: GJ | BB67: 1
BA70: 都市ガス圧力補正
BA71: 低圧用 | BB71: =ROUND((101.325+2)/101.325*273.15/(273.15+15),6) -> 0.966655
BA72: 中間圧以上用 | BB72: =ROUND((101.325+0.981)/101.325*273.15/(273.15+15),6) -> 0.957122
BA74: 種類 | BB74: 気化率
BA75: プロパン・ブタン混合ガス（LPガス） | BB75: 0.458
BA76: プロパン | BB76: 0.502
BA77: ブタン | BB77: 0.355
BA78: ＬＰガス | BB78: 0.482
BA79: 自動車用 | BB79: 0.458
BA80: その他

Sheet ２．算定報告様式(建物系)
C1: ２．算定報告様式（建物系）
C3: 排出活動 | D3: 区分 | G3: 単位 | H3: 使 用 量 | FW3: 単位当たり発熱量 | FY3: 排出係数
H4: 事業所内使用量 | AI4: 算定対象外使用量 | BJ4: 控除後使用量 | CG4: 単位補正 | CH4: 控除後使用量 単位補正後 | DF4: エネルギー発熱量（GJ) | EC4: 原油換算使用量（ｋL) | EZ4: CO₂換算使用量 （t-CO₂）
H5: 燃料等 監視点 | I5: 計量器の種類 | J5: 検定等の有無 | K5: 入力方法 | L5: 14年度(2002) | M5: 15年度(2003) | N5: 16年度(2004) | O5: 17年度(2005) | P5: 18年度(2006) | Q5: 19年度(2007) | R5: 20年度(2008) | S5: 21年度(2009) | T5: 22年度(2010) | U5: 23年度(2011) | V5: 24年度(2012) | W5: 25年度(2013) | X5: 26年度(2014) | Y5: 27年度(2015) | Z5: 28年度(2016) | AA5: 29年度(2017) | AB5: 30年度(2018) | AC5: 31/1年度 (2019) | AD5: 2年度 (2020) | AE5: 3年度 (2021) | AF5: 4年度 (2022) | AG5: 5年度 (2023) | AH5: 6年度 (2024) | AI5: 燃料等 監視点 | AJ5: 計量器の種類 | AK5: 検定等の有無 | AL5: 入力方法 | AM5: 14年度(2002) | AN5: 15年度(2003) | AO5: 16年度(2004) | AP5: 17年度(2005) | AQ5: 18年度(2006) | AR5: 19年度(2007) | AS5: 20年度(2008) | AT5: 21年度(2009) | AU5: 22年度(2010) | AV5: 23年度(2011) | AW5: 24年度(2012) | AX5: 25年度(2013) | AY5: 26年度(2014) | AZ5: 27年度(2015) | BA5: 28年度(2016) | BB5: 29年度(2017) | BC5: 30年度(2018) | BD5: 31/1年度 (2019) | BE5: 2年度 (2020) | BF5: 3年度 (2021) | BG5: 4年度 (2022) | BH5: 5年度 (2023) | BI5: 6年度 (2024) | BJ5: 14年度(2002) | BK5: 15年度(2003) | BL5: 16年度(2004) | BM5: 17年度(2005) | BN5: 18年度(2006) | BO5: 19年度(2007) | BP5: 20年度(2008) | BQ5: 21年度(2009) | BR5: 22年度(2010) | BS5: 23年度(2011) | BT5: 24年度(2012) | BU5: 25年度(2013) | BV5: 26年度(2014) | BW5: 27年度(2015) | BX5: 28年度(2016) | BY5: 29年度(2017) | BZ5: 30年度(2018) | CA5: 31/1年度 (2019) | CB5: 2年度 (2020) | CC5: 3年度 (2021) | CD5: 4年度 (2022) | CE5: 5年度 (2023) | CF5: 6年度 (2024) | CH5: 単位 | CI5: 14年度(2002) | CJ5: 15年度(2003) | CK5: 16年度(2004) | CL5: 17年度(2005) | CM5: 18年度(2006) | CN5: 19年度(2007) | CO5: 20年度(2008) | CP5: 21年度(2009) | CQ5: 22年度(2010) | CR5: 23年度(2011) | CS5: 24年度(2012) | CT5: 25年度(2013) | CU5: 26年度(2014) | CV5: 27年度(2015) | CW5: 28年度(2016) | CX5: 29年度(2017) | CY5: 30年度(2018) | CZ5: 31/1年度 (2019) | DA5: 2年度 (2020) | DB5: 3年度 (2021) | DC5: 4年度 (2022) | DD5: 5年度 (2023) | DE5: 6年度 (2024) | DF5: 14年度(2002) | DG5: 15年度(2003) | DH5: 16年度(2004) | DI5: 17年度(2005) | DJ5: 18年度(2006) | DK5: 19年度(2007) | DL5: 20年度(2008) | DM5: 21年度(2009) | DN5: 22年度(2010) | DO5: 23年度(2011) | DP5: 24年度(2012) | DQ5: 25年度(2013) | DR5: 26年度(2014) | DS5: 27年度(2015) | DT5: 28年度(2016) | DU5: 29年度(2017) | DV5: 30年度(2018) | DW5: 31/1年度 (2019) | DX5: 2年度 (2020) | DY5: 3年度 (2021) | DZ5: 4年度 (2022) | EA5: 5年度 (2023) | EB5: 6年度 (2024) | EC5: 14年度(2002) | ED5: 15年度(2003) | EE5: 16年度(2004) | EF5: 17年度(2005) | EG5: 18年度(2006) | EH5: 19年度(2007) | EI5: 20年度(2008) | EJ5: 21年度(2009) | EK5: 22年度(2010) | EL5: 23年度(2011) | EM5: 24年度(2012) | EN5: 25年度(2013) | EO5: 26年度(2014) | EP5: 27年度(2015) | EQ5: 28年度(2016) | ER5: 29年度(2017) | ES5: 30年度(2018) | ET5: 31/1年度 (2019) | EU5: 2年度 (2020) | EV5: 3年度 (2021) | EW5: 4年度 (2022) | EX5: 5年度 (2023) | EY5: 6年度 (2024) | EZ5: 14年度(2002) | FA5: 15年度(2003) | FB5: 16年度(2004) | FC5: 17年度(2005) | FD5: 18年度(2006) | FE5: 19年度(2007) | FF5: 20年度(2008) | FG5: 21年度(2009) | FH5: 22年度(2010) | FI5: 23年度(2011) | FJ5: 24年度(2012) | FK5: 25年度(2013) | FL5: 26年度(2014) | FM5: 27年度(2015) | FN5: 28年度(2016) | FO5: 29年度(2017) | FP5: 30年度(2018) | FQ5: 31/1年度 (2019) | FR5: 2年度 (2020) | FS5: 3年度 (2021) | FT5: 4年度 (2022) | FU5: 5年度 (2023) | FV5: 6年度 (2024)
C6: 燃料 | D6: 原油（コンデンセートを除く） | G6: L | BJ6: =H14_事業所内使用量-H14_算定外使用量 -> 0 | BK6: =H15_事業所内使用量-H15_算定外使用量 -> 0 | BL6: =H16_事業所内使用量-H16_算定外使用量 -> 0 | BM6: =H17_事業所内使用量-H17_算定外使用量 -> 0 | BN6: =H18_事業所内使用量-H18_算定外使用量 -> 0 | BO6: =H19_事業所内使用量-H19_算定外使用量 -> 0 | BP6: =H20_事業所内使用量-H20_算定外使用量 -> 0 | BQ6: =H21_事業所内使用量-H21_算定外使用量 -> 0 | BR6: =H22_事業所内使用量-H22_算定外使用量 -> 0 | BS6: =H23_事業所内使用量-H23_算定外使用量 -> 0 | BT6: =H24_事業所内使用量-H24_算定外使用量 -> 0 | BU6: =H25_事業所内使用量-H25_算定外使用量 -> 0 | BV6: =H26_事業所内使用量-H26_算定外使用量 -> 0 | BW6: =H27_事業所内使用量-H27_算定外使用量 -> 0 | BX6: =H28_事業所内使用量-H28_算定外使用量 -> 0 | BY6: =H29_事業所内使用量-H29_算定外使用量 -> 0 | BZ6: =H30_事業所内使用量-H30_算定外使用量 -> 0 | CA6: =AC6-BD6 -> 0 | CB6: =AD6-BE6 -> 0 | CC6: 0 | CD6: 0 | CE6: 0 | CF6: 0 | CG6: =VLOOKUP($G6,$GB$6:$GC$15,2,FALSE) -> 1000 | CH6: ｋL | CI6: =ROUND(H14_控除後使用量/単位補正２,0) -> 0 | CJ6: =ROUND(H15_控除後使用量/単位補正２,0) -> 0 | CK6: =ROUND(H16_控除後使用量/単位補正２,0) -> 0 | CL6: =ROUND(H17_控除後使用量/単位補正２,0) -> 0 | CM6: =ROUND(H18_控除後使用量/単位補正２,0) -> 0 | CN6: =ROUND(H19_控除後使用量/単位補正２,0) -> 0 | CO6: =ROUND(H20_控除後使用量/単位補正２,0) -> 0 | CP6: =ROUND(H21_控除後使用量/単位補正２,0) -> 0 | CQ6: =ROUND(H22_控除後使用量/単位補正２,0) -> 0 | CR6: =ROUND(H23_控除後使用量/単位補正２,0) -> 0 | CS6: =ROUND(H24_控除後使用量/単位補正２,0) -> 0 | CT6: =ROUND(H25_控除後使用量/単位補正２,0) -> 0 | CU6: =ROUND(H26_控除後使用量/単位補正２,0) -> 0 | CV6: =ROUND(H27_控除後使用量/単位補正２,0) -> 0 | CW6: =ROUND(H28_控除後使用量/単位補正２,0) -> 0 | CX6: =ROUND(H29_控除後使用量/単位補正２,0) -> 0 | CY6: =ROUND(H30_控除後使用量/単位補正２,0) -> 0 | CZ6: =ROUND(CA6/単位補正２,0) -> 0 | DA6: =ROUND(CB6/単位補正２,0) -> 0 | DB6: =ROUND(CC6/単位補正２,0) -> 0 | DC6: =ROUND(CD6/単位補正２,0) -> 0 | DD6: =ROUND(CE6/単位補正２,0) -> 0 | DE6: =ROUND(CF6/単位補正２,0) -> 0 | DF6: =CI6*$FW6 -> 0 | DG6: =CJ6*$FW6 -> 0 | DH6: =CK6*$FW6 -> 0 | DI6: =CL6*$FW6 -> 0 | DJ6: =CM6*$FW6 -> 0 | DK6: =CN6*$FW6 -> 0 | DL6: =CO6*$FW6 -> 0 | DM6: =CP6*$FW6 -> 0 | DN6: =CQ6*$FW6 -> 0 | DO6: =CR6*$FW6 -> 0 | DP6: =CS6*$FW6 -> 0 | DQ6: =CT6*$FW6 -> 0 | DR6: =CU6*$FW6 -> 0 | DS6: =CV6*$FW6 -> 0 | DT6: =CW6*$FW6 -> 0 | DU6: =CX6*$FW6 -> 0 | DV6: =CY6*$FW6 -> 0 | DW6: =CZ6*$FW6 -> 0 | DX6: =DA6*$FW6 -> 0 | DY6: =DB6*$FW6 -> 0 | DZ6: =DC6*$FW6 -> 0 | EA6: =DD6*$FW6 -> 0 | EB6: =DE6*$FW6 -> 0 | EC6: =DF6*$GC$19 -> 0 | ED6: =DG6*$GC$19 -> 0 | EE6: =DH6*$GC$19 -> 0 | EF6: =DI6*$GC$19 -> 0 | EG6: =DJ6*$GC$19 -> 0 | EH6: =DK6*$GC$19 -> 0 | EI6: =DL6*$GC$19 -> 0 | EJ6: =DM6*$GC$19 -> 0 | EK6: =DN6*$GC$19 -> 0 | EL6: =DO6*$GC$19 -> 0 | EM6: =DP6*$GC$19 -> 0 | EN6: =DQ6*$GC$19 -> 0 | EO6: =DR6*$GC$19 -> 0 | EP6: =DS6*$GC$19 -> 0 | EQ6: =DT6*$GC$19 -> 0 | ER6: =DU6*$GC$19 -> 0 | ES6: =DV6*$GC$19 -> 0 | ET6: =DW6*$GC$19 -> 0 | EU6: =DX6*$GC$19 -> 0 | EV6: 0 | EW6: 0 | EX6: 0 | EY6: 0 | EZ6: =DF6*$FY6*44/12 -> 0 | FA6: =DG6*$FY6*44/12 -> 0 | FB6: =DH6*$FY6*44/12 -> 0 | FC6: =DI6*$FY6*44/12 -> 0 | FD6: =DJ6*$FY6*44/12 -> 0 | FE6: =DK6*$FY6*44/12 -> 0 | FF6: =DL6*$FY6*44/12 -> 0 | FG6: =DM6*$FY6*44/12 -> 0 | FH6: =DN6*$FY6*44/12 -> 0 | FI6: =DO6*$FY6*44/12 -> 0 | FJ6: =DP6*$FY6*44/12 -> 0 | FK6: =DQ6*$FY6*44/12 -> 0 | FL6: =DR6*$FY6*44/12 -> 0 | FM6: =DS6*$FY6*44/12 -> 0 | FN6: =DT6*$FY6*44/12 -> 0 | FO6: =DU6*$FY6*44/12 -> 0 | FP6: =DV6*$FY6*44/12 -> 0 | FQ6: =DW6*$FY6*44/12 -> 0 | FR6: =DX6*$FY6*44/12 -> 0 | FS6: 0 | FT6: 0 | FU6: 0 | FV6: 0 | FW6: 38.2 | FX6: GJ/kL | FY6: 0.0187 | FZ6: t-C/GJ | GB6: L | GC6: 1000
D7: 原油のうちコンデンセート（ＮＧＬ） | G7: L | BJ7: 0 | BK7: 0 | BL7: 0 | BM7: 0 | BN7: 0 | BO7: 0 | BP7: 0 | BQ7: 0 | BR7: 0 | BS7: 0 | BT7: 0 | BU7: 0 | BV7: 0 | BW7: 0 | BX7: 0 | BY7: 0 | BZ7: 0 | CA7: =AC7-BD7 -> 0 | CB7: 0 | CC7: 0 | CD7: 0 | CE7: 0 | CF7: 0 | CG7: 1000 | CH7: ｋL | CI7: 0 | CJ7: 0 | CK7: 0 | CL7: 0 | CM7: 0 | CN7: 0 | CO7: 0 | CP7: 0 | CQ7: 0 | CR7: 0 | CS7: 0 | CT7: 0 | CU7: 0 | CV7: 0 | CW7: 0 | CX7: 0 | CY7: 0 | CZ7: 0 | DA7: 0 | DB7: 0 | DC7: 0 | DD7: 0 | DE7: 0 | DF7: 0 | DG7: 0 | DH7: 0 | DI7: 0 | DJ7: 0 | DK7: 0 | DL7: 0 | DM7: 0 | DN7: 0 | DO7: 0 | DP7: 0 | DQ7: 0 | DR7: 0 | DS7: 0 | DT7: 0 | DU7: 0 | DV7: 0 | DW7: 0 | DX7: 0 | DY7: 0 | DZ7: 0 | EA7: 0 | EB7: 0 | EC7: 0 | ED7: 0 | EE7: 0 | EF7: 0 | EG7: 0 | EH7: 0 | EI7: 0 | EJ7: 0 | EK7: 0 | EL7: 0 | EM7: 0 | EN7: 0 | EO7: 0 | EP7: 0 | EQ7: 0 | ER7: 0 | ES7: 0 | ET7: 0 | EU7: 0 | EV7: 0 | EW7: 0 | EX7: 0 | EY7: 0 | EZ7: 0 | FA7: 0 | FB7: 0 | FC7: 0 | FD7: 0 | FE7: 0 | FF7: 0 | FG7: 0 | FH7: 0 | FI7: 0 | FJ7: 0 | FK7: 0 | FL7: 0 | FM7: 0 | FN7: 0 | FO7: 0 | FP7: 0 | FQ7: 0 | FR7: 0 | FS7: 0 | FT7: 0 | FU7: 0 | FV7: 0 | FW7: 35.3 | FX7: GJ/kL | FY7: 0.0184 | FZ7: t-C/GJ | GB7: kL | GC7: 1
D8: 揮発油（ガソリン） | G8: kL | BJ8: 0 | BK8: 0 | BL8: 0 | BM8: 0 | BN8: 0 | BO8: 0 | BP8: 0 | BQ8: 0 | BR8: 0 | BS8: 0 | BT8: 0 | BU8: 0 | BV8: 0 | BW8: 0 | BX8: 0 | BY8: 0 | BZ8: 0 | CA8: 0 | CB8: 0 | CC8: 0 | CD8: 0 | CE8: 0 | CF8: 0 | CG8: 1 | CH8: ｋL | CI8: 0 | CJ8: 0 | CK8: 0 | CL8: 0 | CM8: 0 | CN8: 0 | CO8: 0 | CP8: 0 | CQ8: 0 | CR8: 0 | CS8: 0 | CT8: 0 | CU8: 0 | CV8: 0 | CW8: 0 | CX8: 0 | CY8: 0 | CZ8: 0 | DA8: 0 | DB8: 0 | DC8: 0 | DD8: 0 | DE8: 0 | DF8: 0 | DG8: 0 | DH8: 0 | DI8: 0 | DJ8: 0 | DK8: 0 | DL8: 0 | DM8: 0 | DN8: 0 | DO8: 0 | DP8: 0 | DQ8: 0 | DR8: 0 | DS8: 0 | DT8: 0 | DU8: 0 | DV8: 0 | DW8: 0 | DX8: 0 | DY8: 0 | DZ8: 0 | EA8: 0 | EB8: 0 | EC8: 0 | ED8: 0 | EE8: 0 | EF8: 0 | EG8: 0 | EH8: 0 | EI8: 0 | EJ8: 0 | EK8: 0 | EL8: 0 | EM8: 0 | EN8: 0 | EO8: 0 | EP8: 0 | EQ8: 0 | ER8: 0 | ES8: 0 | ET8: 0 | EU8: 0 | EV8: 0 | EW8: 0 | EX8: 0 | EY8: 0 | EZ8: 0 | FA8: 0 | FB8: 0 | FC8: 0 | FD8: 0 | FE8: 0 | FF8: 0 | FG8: 0 | FH8: 0 | FI8: 0 | FJ8: 0 | FK8: 0 | FL8: 0 | FM8: 0 | FN8: 0 | FO8: 0 | FP8: 0 | FQ8: 0 | FR8: 0 | FS8: 0 | FT8: 0 | FU8: 0 | FV8: 0 | FW8: 34.6 | FX8: GJ/kL | FY8: 0.0183 | FZ8: t-C/GJ | GB8: kg | GC8: 1000
D9: ナフサ | G9: L | BJ9: 0 | BK9: 0 | BL9: 0 | BM9: 0 | BN9: 0 | BO9: 0 | BP9: 0 | BQ9: 0 | BR9: 0 | BS9: 0 | BT9: 0 | BU9: 0 | BV9: 0 | BW9: 0 | BX9: 0 | BY9: 0 | BZ9: 0 | CA9: 0 | CB9: 0 | CC9: 0 | CD9: 0 | CE9: 0 | CF9: 0 | CG9: 1000 | CH9: ｋL | CI9: 0 | CJ9: 0 | CK9: 0 | CL9: 0 | CM9: 0 | CN9: 0 | CO9: 0 | CP9: 0 | CQ9: 0 | CR9: 0 | CS9: 0 | CT9: 0 | CU9: 0 | CV9: 0 | CW9: 0 | CX9: 0 | CY9: 0 | CZ9: 0 | DA9: 0 | DB9: 0 | DC9: 0 | DD9: 0 | DE9: 0 | DF9: 0 | DG9: 0 | DH9: 0 | DI9: 0 | DJ9: 0 | DK9: 0 | DL9: 0 | DM9: 0 | DN9: 0 | DO9: 0 | DP9: 0 | DQ9: 0 | DR9: 0 | DS9: 0 | DT9: 0 | DU9: 0 | DV9: 0 | DW9: 0 | DX9: 0 | DY9: 0 | DZ9: 0 | EA9: 0 | EB9: 0 | EC9: 0 | ED9: 0 | EE9: 0 | EF9: 0 | EG9: 0 | EH9: 0 | EI9: 0 | EJ9: 0 | EK9: 0 | EL9: 0 | EM9: 0 | EN9: 0 | EO9: 0 | EP9: 0 | EQ9: 0 | ER9: 0 | ES9: 0 | ET9: 0 | EU9: 0 | EV9: 0 | EW9: 0 | EX9: 0 | EY9: 0 | EZ9: 0 | FA9: 0 | FB9: 0 | FC9: 0 | FD9: 0 | FE9: 0 | FF9: 0 | FG9: 0 | FH9: 0 | FI9: 0 | FJ9: 0 | FK9: 0 | FL9: 0 | FM9: 0 | FN9: 0 | FO9: 0 | FP9: 0 | FQ9: 0 | FR9: 0 | FS9: 0 | FT9: 0 | FU9: 0 | FV9: 0 | FW9: 33.6 | FX9: GJ/kL | FY9: 0.0182 | FZ9: t-C/GJ | GB9: t | GC9: 1
D10: 灯油 | G10: L | BJ10: 0 | BK10: 0 | BL10: 0 | BM10: 0 | BN10: 0 | BO10: 0 | BP10: 0 | BQ10: 0 | BR10: 0 | BS10: 0 | BT10: 0 | BU10: 0 | BV10: 0 | BW10: 0 | BX10: 0 | BY10: 0 | BZ10: 0 | CA10: 0 | CB10: 0 | CC10: 0 | CD10: 0 | CE10: 0 | CF10: 0 | CG10: 1000 | CH10: ｋL | CI10: 0 | CJ10: 0 | CK10: 0 | CL10: 0 | CM10: 0 | CN10: 0 | CO10: 0 | CP10: 0 | CQ10: 0 | CR10: 0 | CS10: 0 | CT10: 0 | CU10: 0 | CV10: 0 | CW10: 0 | CX10: 0 | CY10: 0 | CZ10: 0 | DA10: 0 | DB10: 0 | DC10: 0 | DD10: 0 | DE10: 0 | DF10: 0 | DG10: 0 | DH10: 0 | DI10: 0 | DJ10: 0 | DK10: 0 | DL10: 0 | DM10: 0 | DN10: 0 | DO10: 0 | DP10: 0 | DQ10: 0 | DR10: 0 | DS10: 0 | DT10: 0 | DU10: 0 | DV10: 0 | DW10: 0 | DX10: 0 | DY10: 0 | DZ10: 0 | EA10: 0 | EB10: 0 | EC10: 0 | ED10: 0 | EE10: 0 | EF10: 0 | EG10: 0 | EH10: 0 | EI10: 0 | EJ10: 0 | EK10: 0 | EL10: 0 | EM10: 0 | EN10: 0 | EO10: 0 | EP10: 0 | EQ10: 0 | ER10: 0 | ES10: 0 | ET10: 0 | EU10: 0 | EV10: 0 | EW10: 0 | EX10: 0 | EY10: 0 | EZ10: 0 | FA10: 0 | FB10: 0 | FC10: 0 | FD10: 0 | FE10: 0 | FF10: 0 | FG10: 0 | FH10: 0 | FI10: 0 | FJ10: 0 | FK10: 0 | FL10: 0 | FM10: 0 | FN10: 0 | FO10: 0 | FP10: 0 | FQ10: 0 | FR10: 0 | FS10: 0 | FT10: 0 | FU10: 0 | FV10: 0 | FW10: 36.7 | FX10: GJ/kL | FY10: 0.0185 | FZ10: t-C/GJ | GB10: Nm3 | GC10: 1000
D11: 軽油 | G11: L | BJ11: 0 | BK11: 0 | BL11: 0 | BM11: 0 | BN11: 0 | BO11: 0 | BP11: 0 | BQ11: 0 | BR11: 0 | BS11: 0 | BT11: 0 | BU11: 0 | BV11: 0 | BW11: 0 | BX11: 0 | BY11: 0 | BZ11: 0 | CA11: 0 | CB11: 0 | CC11: 0 | CD11: 0 | CE11: 0 | CF11: 0 | CG11: 1000 | CH11: ｋL | CI11: 0 | CJ11: 0 | CK11: 0 | CL11: 0 | CM11: 0 | CN11: 0 | CO11: 0 | CP11: 0 | CQ11: 0 | CR11: 0 | CS11: 0 | CT11: 0 | CU11: 0 | CV11: 0 | CW11: 0 | CX11: 0 | CY11: 0 | CZ11: 0 | DA11: 0 | DB11: 0 | DC11: 0 | DD11: 0 | DE11: 0 | DF11: 0 | DG11: 0 | DH11: 0 | DI11: 0 | DJ11: 0 | DK11: 0 | DL11: 0 | DM11: 0 | DN11: 0 | DO11: 0 | DP11: 0 | DQ11: 0 | DR11: 0 | DS11: 0 | DT11: 0 | DU11: 0 | DV11: 0 | DW11: 0 | DX11: 0 | DY11: 0 | DZ11: 0 | EA11: 0 | EB11: 0 | EC11: 0 | ED11: 0 | EE11: 0 | EF11: 0 | EG11: 0 | EH11: 0 | EI11: 0 | EJ11: 0 | EK11: 0 | EL11: 0 | EM11: 0 | EN11: 0 | EO11: 0 | EP11: 0 | EQ11: 0 | ER11: 0 | ES11: 0 | ET11: 0 | EU11: 0 | EV11: 0 | EW11: 0 | EX11: 0 | EY11: 0 | EZ11: 0 | FA11: 0 | FB11: 0 | FC11: 0 | FD11: 0 | FE11: 0 | FF11: 0 | FG11: 0 | FH11: 0 | FI11: 0 | FJ11: 0 | FK11: 0 | FL11: 0 | FM11: 0 | FN11: 0 | FO11: 0 | FP11: 0 | FQ11: 0 | FR11: 0 | FS11: 0 | FT11: 0 | FU11: 0 | FV11: 0 | FW11: 37.7 | FX11: GJ/kL | FY11: 0.0187 | FZ11: t-C/GJ | GB11: 千Nｍ3 | GC11: 1
D12: Ａ重油 | G12: L | BJ12: 0 | BK12: 0 | BL12: 0 | BM12: 0 | BN12: 0 | BO12: 0 | BP12: 0 | BQ12: 0 | BR12: 0 | BS12: =H23_事業所内使用量-H23_算定外使用量 -> 0 | BT12: =H24_事業所内使用量-H24_算定外使用量 -> 0 | BU12: =H25_事業所内使用量-H25_算定外使用量 -> 0 | BV12: 0 | BW12: 0 | BX12: 0 | BY12: 0 | BZ12: 0 | CA12: 0 | CB12: 0 | CC12: 0 | CD12: 0 | CE12: 0 | CF12: 0 | CG12: 1000 | CH12: ｋL | CI12: =ROUND(H14_控除後使用量/単位補正２,0) -> 0 | CJ12: =ROUND(H15_控除後使用量/単位補正２,0) -> 0 | CK12: =ROUND(H16_控除後使用量/単位補正２,0) -> 0 | CL12: =ROUND(H17_控除後使用量/単位補正２,0) -> 0 | CM12: =ROUND(H18_控除後使用量/単位補正２,0) -> 0 | CN12: =ROUND(H19_控除後使用量/単位補正２,0) -> 0 | CO12: =ROUND(H20_控除後使用量/単位補正２,0) -> 0 | CP12: =ROUND(H21_控除後使用量/単位補正２,0) -> 0 | CQ12: =ROUND(H22_控除後使用量/単位補正２,0) -> 0 | CR12: =ROUND(H23_控除後使用量/単位補正２,0) -> 0 | CS12: =ROUND(H24_控除後使用量/単位補正２,0) -> 0 | CT12: =ROUND(H25_控除後使用量/単位補正２,0) -> 0 | CU12: 0 | CV12: 0 | CW12: 0 | CX12: 0 | CY12: 0 | CZ12: 0 | DA12: 0 | DB12: 0 | DC12: 0 | DD12: 0 | DE12: 0 | DF12: 0 | DG12: 0 | DH12: 0 | DI12: 0 | DJ12: 0 | DK12: 0 | DL12: 0 | DM12: 0 | DN12: 0 | DO12: 0 | DP12: 0 | DQ12: 0 | DR12: 0 | DS12: 0 | DT12: 0 | DU12: 0 | DV12: 0 | DW12: 0 | DX12: 0 | DY12: 0 | DZ12: 0 | EA12: 0 | EB12: 0 | EC12: 0 | ED12: 0 | EE12: 0 | EF12: 0 | EG12: 0 | EH12: 0 | EI12: 0 | EJ12: 0 | EK12: 0 | EL12: 0 | EM12: 0 | EN12: 0 | EO12: 0 | EP12: 0 | EQ12: 0 | ER12: 0 | ES12: 0 | ET12: 0 | EU12: 0 | EV12: 0 | EW12: 0 | EX12: 0 | EY12: 0 | EZ12: 0 | FA12: 0 | FB12: 0 | FC12: 0 | FD12: 0 | FE12: 0 | FF12: 0 | FG12: 0 | FH12: 0 | FI12: 0 | FJ12: 0 | FK12: 0 | FL12: 0 | FM12: 0 | FN12: 0 | FO12: 0 | FP12: 0 | FQ12: 0 | FR12: 0 | FS12: 0 | FT12: 0 | FU12: 0 | FV12: 0 | FW12: 39.1 | FX12: GJ/kL | FY12: 0.0189 | FZ12: t-C/GJ | GB12: MJ | GC12: 1000
D13: Ｂ・Ｃ重油 | G13: L | BJ13: 0 | BK13: 0 | BL13: 0 | BM13: 0 | BN13: 0 | BO13: 0 | BP13: 0 | BQ13: 0 | BR13: 0 | BS13: 0 | BT13: 0 | BU13: 0 | BV13: 0 | BW13: 0 | BX13: 0 | BY13: 0 | BZ13: 0 | CA13: 0 | CB13: 0 | CC13: 0 | CD13: 0 | CE13: 0 | CF13: 0 | CG13: 1000 | CH13: ｋL | CI13: 0 | CJ13: 0 | CK13: 0 | CL13: 0 | CM13: 0 | CN13: 0 | CO13: 0 | CP13: 0 | CQ13: 0 | CR13: 0 | CS13: 0 | CT13: 0 | CU13: 0 | CV13: 0 | CW13: 0 | CX13: 0 | CY13: 0 | CZ13: 0 | DA13: 0 | DB13: 0 | DC13: 0 | DD13: 0 | DE13: 0 | DF13: 0 | DG13: 0 | DH13: 0 | DI13: 0 | DJ13: 0 | DK13: 0 | DL13: 0 | DM13: 0 | DN13: 0 | DO13: 0 | DP13: 0 | DQ13: 0 | DR13: 0 | DS13: 0 | DT13: 0 | DU13: 0 | DV13: 0 | DW13: 0 | DX13: 0 | DY13: 0 | DZ13: 0 | EA13: 0 | EB13: 0 | EC13: 0 | ED13: 0 | EE13: 0 | EF13: 0 | EG13: 0 | EH13: 0 | EI13: 0 | EJ13: 0 | EK13: 0 | EL13: 0 | EM13: 0 | EN13: 0 | EO13: 0 | EP13: 0 | EQ13: 0 | ER13: 0 | ES13: 0 | ET13: 0 | EU13: 0 | EV13: 0 | EW13: 0 | EX13: 0 | EY13: 0 | EZ13: 0 | FA13: 0 | FB13: 0 | FC13: 0 | FD13: 0 | FE13: 0 | FF13: 0 | FG13: 0 | FH13: 0 | FI13: 0 | FJ13: 0 | FK13: 0 | FL13: 0 | FM13: 0 | FN13: 0 | FO13: 0 | FP13: 0 | FQ13: 0 | FR13: 0 | FS13: 0 | FT13: 0 | FU13: 0 | FV13: 0 | FW13: 41.9 | FX13: GJ/kL | FY13: 0.0195 | FZ13: t-C/GJ | GB13: GJ | GC13: 1
D14: 石油アスファルト | G14: kg | BJ14: 0 | BK14: 0 | BL14: 0 | BM14: 0 | BN14: 0 | BO14: 0 | BP14: 0 | BQ14: 0 | BR14: 0 | BS14: 0 | BT14: 0 | BU14: 0 | BV14: 0 | BW14: 0 | BX14: 0 | BY14: 0 | BZ14: 0 | CA14: 0 | CB14: 0 | CC14: 0 | CD14: 0 | CE14: 0 | CF14: 0 | CG14: 1000 | CH14: ｔ | CI14: 0 | CJ14: 0 | CK14: 0 | CL14: 0 | CM14: 0 | CN14: 0 | CO14: 0 | CP14: 0 | CQ14: 0 | CR14: 0 | CS14: =ROUND(H24_控除後使用量/単位補正２,0) -> 0 | CT14: 0 | CU14: 0 | CV14: 0 | CW14: 0 | CX14: 0 | CY14: 0 | CZ14: 0 | DA14: 0 | DB14: 0 | DC14: 0 | DD14: 0 | DE14: 0 | DF14: 0 | DG14: 0 | DH14: 0 | DI14: 0 | DJ14: 0 | DK14: 0 | DL14: 0 | DM14: 0 | DN14: 0 | DO14: 0 | DP14: 0 | DQ14: 0 | DR14: 0 | DS14: 0 | DT14: 0 | DU14: 0 | DV14: 0 | DW14: 0 | DX14: 0 | DY14: 0 | DZ14: 0 | EA14: 0 | EB14: 0 | EC14: 0 | ED14: 0 | EE14: 0 | EF14: 0 | EG14: 0 | EH14: 0 | EI14: 0 | EJ14: 0 | EK14: 0 | EL14: 0 | EM14: 0 | EN14: 0 | EO14: 0 | EP14: 0 | EQ14: 0 | ER14: 0 | ES14: 0 | ET14: 0 | EU14: 0 | EV14: 0 | EW14: 0 | EX14: 0 | EY14: 0 | EZ14: 0 | FA14: 0 | FB14: 0 | FC14: 0 | FD14: 0 | FE14: 0 | FF14: 0 | FG14: 0 | FH14: 0 | FI14: 0 | FJ14: 0 | FK14: 0 | FL14: 0 | FM14: 0 | FN14: 0 | FO14: 0 | FP14: 0 | FQ14: 0 | FR14: 0 | FS14: 0 | FT14: 0 | FU14: 0 | FV14: 0 | FW14: 40.9 | FX14: GJ/t | FY14: 0.0208 | FZ14: t-C/GJ | GB14: m3 | GC14: 1000
D15: 石油コークス | G15: kg | BJ15: 0 | BK15: 0 | BL15: 0 | BM15: 0 | BN15: 0 | BO15: 0 | BP15: 0 | BQ15: 0 | BR15: 0 | BS15: 0 | BT15: 0 | BU15: 0 | BV15: 0 | BW15: 0 | BX15: 0 | BY15: 0 | BZ15: 0 | CA15: 0 | CB15: 0 | CC15: 0 | CD15: 0 | CE15: 0 | CF15: 0 | CG15: 1000 | CH15: ｔ | CI15: 0 | CJ15: 0 | CK15: 0 | CL15: 0 | CM15: 0 | CN15: 0 | CO15: 0 | CP15: 0 | CQ15: 0 | CR15: 0 | CS15: 0 | CT15: 0 | CU15: 0 | CV15: 0 | CW15: 0 | CX15: 0 | CY15: 0 | CZ15: 0 | DA15: 0 | DB15: 0 | DC15: 0 | DD15: 0 | DE15: 0 | DF15: 0 | DG15: 0 | DH15: 0 | DI15: 0 | DJ15: 0 | DK15: 0 | DL15: 0 | DM15: 0 | DN15: 0 | DO15: 0 | DP15: 0 | DQ15: 0 | DR15: 0 | DS15: 0 | DT15: 0 | DU15: 0 | DV15: 0 | DW15: 0 | DX15: 0 | DY15: 0 | DZ15: 0 | EA15: 0 | EB15: 0 | EC15: 0 | ED15: 0 | EE15: 0 | EF15: 0 | EG15: 0 | EH15: 0 | EI15: 0 | EJ15: 0 | EK15: 0 | EL15: 0 | EM15: 0 | EN15: 0 | EO15: 0 | EP15: 0 | EQ15: 0 | ER15: 0 | ES15: 0 | ET15: 0 | EU15: 0 | EV15: 0 | EW15: 0 | EX15: 0 | EY15: 0 | EZ15: 0 | FA15: 0 | FB15: 0 | FC15: 0 | FD15: 0 | FE15: 0 | FF15: 0 | FG15: 0 | FH15: 0 | FI15: 0 | FJ15: 0 | FK15: 0 | FL15: 0 | FM15: 0 | FN15: 0 | FO15: 0 | FP15: 0 | FQ15: 0 | FR15: 0 | FS15: 0 | FT15: 0 | FU15: 0 | FV15: 0 | FW15: 29.9 | FX15: GJ/t | FY15: 0.0254 | FZ15: t-C/GJ | GB15: 千m3 | GC15: 1
D16: 石油ガス | E16: 液化石油ガス（ＬＰＧ） | G16: t | L16: ='１．燃料単位換算(建物系)'!AG31 -> 0 | M16: ='１．燃料単位換算(建物系)'!AH31 -> 0 | N16: ='１．燃料単位換算(建物系)'!AI31 -> 0 | O16: ='１．燃料単位換算(建物系)'!AJ31 -> 0 | P16: ='１．燃料単位換算(建物系)'!AK31 -> 0 | Q16: ='１．燃料単位換算(建物系)'!AL31 -> 0 | R16: ='１．燃料単位換算(建物系)'!AM31 -> 0 | S16: ='１．燃料単位換算(建物系)'!AN31 -> 0 | T16: ='１．燃料単位換算(建物系)'!AO31 -> 0 | U16: ='１．燃料単位換算(建物系)'!AP31 -> 0 | V16: ='１．燃料単位換算(建物系)'!AQ31 -> 0 | W16: ='１．燃料単位換算(建物系)'!AR31 -> 0 | X16: ='１．燃料単位換算(建物系)'!AS31 -> 0 | Y16: ='１．燃料単位換算(建物系)'!AT31 -> 0 | Z16: ='１．燃料単位換算(建物系)'!AU31 -> 0 | AA16: ='１．燃料単位換算(建物系)'!AV31 -> 0 | AB16: ='１．燃料単位換算(建物系)'!AW31 -> 0 | AC16: ='１．燃料単位換算(建物系)'!AX31 -> 0 | AD16: ='１．燃料単位換算(建物系)'!AY31 -> 0 | AE16: ='１．燃料単位換算(建物系)'!AZ31 -> 0 | AF16: ='１．燃料単位換算(建物系)'!BA31 -> 0 | AG16: ='１．燃料単位換算(建物系)'!BB31 -> 0 | AH16: ='１．燃料単位換算(建物系)'!BC31 -> 0 | BJ16: 0 | BK16: 0 | BL16: 0 | BM16: 0 | BN16: 0 | BO16: 0 | BP16: 0 | BQ16: 0 | BR16: 0 | BS16: 0 | BT16: 0 | BU16: 0 | BV16: 0 | BW16: 0 | BX16: 0 | BY16: 0 | BZ16: 0 | CA16: 0 | CB16: 0 | CC16: 0 | CD16: 0 | CE16: 0 | CF16: 0 | CG16: 1 | CH16: ｔ | CI16: 0 | CJ16: 0 | CK16: 0 | CL16: 0 | CM16: 0 | CN16: 0 | CO16: 0 | CP16: 0 | CQ16: 0 | CR16: 0 | CS16: 0 | CT16: 0 | CU16: 0 | CV16: 0 | CW16: 0 | CX16: 0 | CY16: 0 | CZ16: 0 | DA16: 0 | DB16: 0 | DC16: 0 | DD16: 0 | DE16: 0 | DF16: 0 | DG16: 0 | DH16: 0 | DI16: 0 | DJ16: 0 | DK16: 0 | DL16: 0 | DM16: 0 | DN16: 0 | DO16: 0 | DP16: 0 | DQ16: 0 | DR16: 0 | DS16: 0 | DT16: 0 | DU16: 0 | DV16: 0 | DW16: 0 | DX16: 0 | DY16: 0 | DZ16: 0 | EA16: 0 | EB16: 0 | EC16: 0 | ED16: 0 | EE16: 0 | EF16: 0 | EG16: 0 | EH16: 0 | EI16: 0 | EJ16: 0 | EK16: 0 | EL16: 0 | EM16: 0 | EN16: 0 | EO16: 0 | EP16: 0 | EQ16: 0 | ER16: 0 | ES16: 0 | ET16: 0 | EU16: 0 | EV16: 0 | EW16: 0 | EX16: 0 | EY16: 0 | EZ16: 0 | FA16: 0 | FB16: 0 | FC16: 0 | FD16: 0 | FE16: 0 | FF16: 0 | FG16: 0 | FH16: 0 | FI16: 0 | FJ16: 0 | FK16: 0 | FL16: 0 | FM16: 0 | FN16: 0 | FO16: 0 | FP16: 0 | FQ16: 0 | FR16: 0 | FS16: 0 | FT16: 0 | FU16: 0 | FV16: 0 | FW16: 50.8 | FX16: GJ/t | FY16: 0.0161 | FZ16: t-C/GJ | GB16: kWh | GC16: 1000
E17: 石油系炭化水素ガス | G17: Nm3 | BJ17: 0 | BK17: 0 | BL17: 0 | BM17: 0 | BN17: 0 | BO17: 0 | BP17: 0 | BQ17: 0 | BR17: 0 | BS17: 0 | BT17: 0 | BU17: 0 | BV17: 0 | BW17: 0 | BX17: 0 | BY17: 0 | BZ17: 0 | CA17: 0 | CB17: 0 | CC17: 0 | CD17: 0 | CE17: 0 | CF17: 0 | CG17: 1000 | CH17: 千N㎥ | CI17: 0 | CJ17: 0 | CK17: 0 | CL17: 0 | CM17: =ROUND(H18_控除後使用量/単位補正２,0) -> 0 | CN17: 0 | CO17: 0 | CP17: 0 | CQ17: 0 | CR17: 0 | CS17: 0 | CT17: 0 | CU17: 0 | CV17: 0 | CW17: 0 | CX17: 0 | CY17: 0 | CZ17: 0 | DA17: 0 | DB17: 0 | DC17: 0 | DD17: 0 | DE17: 0 | DF17: 0 | DG17: 0 | DH17: 0 | DI17: 0 | DJ17: 0 | DK17: 0 | DL17: 0 | DM17: 0 | DN17: 0 | DO17: 0 | DP17: 0 | DQ17: 0 | DR17: 0 | DS17: 0 | DT17: 0 | DU17: 0 | DV17: 0 | DW17: 0 | DX17: 0 | DY17: 0 | DZ17: 0 | EA17: 0 | EB17: 0 | EC17: 0 | ED17: 0 | EE17: 0 | EF17: 0 | EG17: 0 | EH17: 0 | EI17: 0 | EJ17: 0 | EK17: 0 | EL17: 0 | EM17: 0 | EN17: 0 | EO17: 0 | EP17: 0 | EQ17: 0 | ER17: 0 | ES17: 0 | ET17: 0 | EU17: 0 | EV17: 0 | EW17: 0 | EX17: 0 | EY17: 0 | EZ17: 0 | FA17: 0 | FB17: 0 | FC17: 0 | FD17: 0 | FE17: 0 | FF17: 0 | FG17: 0 | FH17: 0 | FI17: 0 | FJ17: 0 | FK17: 0 | FL17: 0 | FM17: 0 | FN17: 0 | FO17: 0 | FP17: 0 | FQ17: 0 | FR17: 0 | FS17: 0 | FT17: 0 | FU17: 0 | FV17: 0 | FW17: 44.9 | FX17: GJ /千Nｍ3 | FY17: 0.0142 | FZ17: t-C/GJ | GB17: 千kWh | GC17: 1
D18: 可燃性 天然ガス | E18: 液化天然ガス（LNG) | G18: kg | BJ18: 0 | BK18: 0 | BL18: 0 | BM18: 0 | BN18: 0 | BO18: 0 | BP18: 0 | BQ18: 0 | BR18: 0 | BS18: 0 | BT18: 0 | BU18: 0 | BV18: 0 | BW18: 0 | BX18: 0 | BY18: 0 | BZ18: 0 | CA18: 0 | CB18: 0 | CC18: 0 | CD18: 0 | CE18: 0 | CF18: 0 | CG18: 1000 | CH18: ｔ | CI18: 0 | CJ18: 0 | CK18: 0 | CL18: 0 | CM18: 0 | CN18: 0 | CO18: 0 | CP18: 0 | CQ18: 0 | CR18: 0 | CS18: 0 | CT18: 0 | CU18: 0 | CV18: 0 | CW18: 0 | CX18: 0 | CY18: 0 | CZ18: 0 | DA18: 0 | DB18: 0 | DC18: 0 | DD18: 0 | DE18: 0 | DF18: 0 | DG18: 0 | DH18: 0 | DI18: 0 | DJ18: 0 | DK18: 0 | DL18: 0 | DM18: 0 | DN18: 0 | DO18: 0 | DP18: 0 | DQ18: 0 | DR18: 0 | DS18: 0 | DT18: 0 | DU18: 0 | DV18: 0 | DW18: 0 | DX18: 0 | DY18: 0 | DZ18: 0 | EA18: 0 | EB18: 0 | EC18: 0 | ED18: 0 | EE18: 0 | EF18: 0 | EG18: 0 | EH18: 0 | EI18: 0 | EJ18: 0 | EK18: 0 | EL18: 0 | EM18: 0 | EN18: 0 | EO18: 0 | EP18: 0 | EQ18: 0 | ER18: 0 | ES18: 0 | ET18: 0 | EU18: 0 | EV18: 0 | EW18: 0 | EX18: 0 | EY18: 0 | EZ18: 0 | FA18: 0 | FB18: 0 | FC18: 0 | FD18: 0 | FE18: 0 | FF18: 0 | FG18: 0 | FH18: 0 | FI18: 0 | FJ18: 0 | FK18: 0 | FL18: 0 | FM18: 0 | FN18: 0 | FO18: 0 | FP18: 0 | FQ18: 0 | FR18: 0 | FS18: 0 | FT18: 0 | FU18: 0 | FV18: 0 | FW18: 54.6 | FX18: GJ/t | FY18: 0.0135 | FZ18: t-C/GJ
E19: その他可燃性天然ガス | G19: t | L19: ='１．燃料単位換算(建物系)'!AG39 -> 0 | M19: ='１．燃料単位換算(建物系)'!AH39 -> 0 | N19: ='１．燃料単位換算(建物系)'!AI39 -> 0 | O19: ='１．燃料単位換算(建物系)'!AJ39 -> 0 | P19: ='１．燃料単位換算(建物系)'!AK39 -> 0 | Q19: ='１．燃料単位換算(建物系)'!AL39 -> 0 | R19: ='１．燃料単位換算(建物系)'!AM39 -> 0 | S19: ='１．燃料単位換算(建物系)'!AN39 -> 0 | T19: ='１．燃料単位換算(建物系)'!AO39 -> 0 | U19: ='１．燃料単位換算(建物系)'!AP39 -> 0 | V19: ='１．燃料単位換算(建物系)'!AQ39 -> 0 | W19: ='１．燃料単位換算(建物系)'!AR39 -> 0 | X19: ='１．燃料単位換算(建物系)'!AS39 -> 0 | Y19: ='１．燃料単位換算(建物系)'!AT39 -> 0 | Z19: ='１．燃料単位換算(建物系)'!AU39 -> 0 | AA19: ='１．燃料単位換算(建物系)'!AV39 -> 0 | AB19: ='１．燃料単位換算(建物系)'!AW39 -> 0 | AC19: ='１．燃料単位換算(建物系)'!AX39 -> 0 | AD19: ='１．燃料単位換算(建物系)'!AY39 -> 0 | AE19: ='１．燃料単位換算(建物系)'!AZ39 -> 0 | AF19: ='１．燃料単位換算(建物系)'!BA39 -> 0 | AG19: ='１．燃料単位換算(建物系)'!BB39 -> 0 | AH19: ='１．燃料単位換算(建物系)'!BC39 -> 0 | BJ19: 0 | BK19: 0 | BL19: 0 | BM19: 0 | BN19: 0 | BO19: 0 | BP19: 0 | BQ19: 0 | BR19: 0 | BS19: 0 | BT19: 0 | BU19: 0 | BV19: 0 | BW19: 0 | BX19: 0 | BY19: 0 | BZ19: 0 | CA19: 0 | CB19: 0 | CC19: 0 | CD19: 0 | CE19: 0 | CF19: 0 | CG19: 1 | CH19: 千N㎥ | CI19: 0 | CJ19: 0 | CK19: 0 | CL19: 0 | CM19: 0 | CN19: 0 | CO19: 0 | CP19: 0 | CQ19: 0 | CR19: 0 | CS19: 0 | CT19: 0 | CU19: 0 | CV19: 0 | CW19: 0 | CX19: 0 | CY19: 0 | CZ19: 0 | DA19: 0 | DB19: 0 | DC19: 0 | DD19: 0 | DE19: 0 | DF19: 0 | DG19: 0 | DH19: 0 | DI19: 0 | DJ19: 0 | DK19: 0 | DL19: 0 | DM19: 0 | DN19: 0 | DO19: 0 | DP19: 0 | DQ19: 0 | DR19: 0 | DS19: 0 | DT19: 0 | DU19: 0 | DV19: 0 | DW19: 0 | DX19: 0 | DY19: 0 | DZ19: 0 | EA19: 0 | EB19: 0 | EC19: 0 | ED19: 0 | EE19: 0 | EF19: 0 | EG19: 0 | EH19: 0 | EI19: 0 | EJ19: 0 | EK19: 0 | EL19: 0 | EM19: 0 | EN19: 0 | EO19: 0 | EP19: 0 | EQ19: 0 | ER19: 0 | ES19: 0 | ET19: 0 | EU19: 0 | EV19: 0 | EW19: 0 | EX19: 0 | EY19: 0 | EZ19: 0 | FA19: 0 | FB19: 0 | FC19: 0 | FD19: 0 | FE19: 0 | FF19: 0 | FG19: 0 | FH19: 0 | FI19: 0 | FJ19: 0 | FK19: 0 | FL19: 0 | FM19: 0 | FN19: 0 | FO19: 0 | FP19: 0 | FQ19: 0 | FR19: 0 | FS19: 0 | FT19: 0 | FU19: 0 | FV19: 0 | FW19: 43.5 | FX19: GJ /千Nｍ3 | FY19: 0.0139 | FZ19: t-C/GJ | GC19: 0.0258 | GD19: ｋL/GJ
D20: 石炭 | E20: 原料炭 | G20: kg | BJ20: 0 | BK20: 0 | BL20: 0 | BM20: 0 | BN20: 0 | BO20: 0 | BP20: 0 | BQ20: 0 | BR20: 0 | BS20: 0 | BT20: 0 | BU20: 0 | BV20: 0 | BW20: 0 | BX20: 0 | BY20: 0 | BZ20: 0 | CA20: 0 | CB20: 0 | CC20: 0 | CD20: 0 | CE20: 0 | CF20: 0 | CG20: 1000 | CH20: ｔ | CI20: 0 | CJ20: 0 | CK20: 0 | CL20: 0 | CM20: 0 | CN20: 0 | CO20: 0 | CP20: 0 | CQ20: 0 | CR20: 0 | CS20: 0 | CT20: 0 | CU20: 0 | CV20: 0 | CW20: 0 | CX20: 0 | CY20: 0 | CZ20: 0 | DA20: 0 | DB20: 0 | DC20: 0 | DD20: 0 | DE20: 0 | DF20: 0 | DG20: 0 | DH20: 0 | DI20: 0 | DJ20: 0 | DK20: 0 | DL20: 0 | DM20: 0 | DN20: 0 | DO20: 0 | DP20: 0 | DQ20: 0 | DR20: 0 | DS20: 0 | DT20: 0 | DU20: 0 | DV20: 0 | DW20: 0 | DX20: 0 | DY20: 0 | DZ20: 0 | EA20: 0 | EB20: 0 | EC20: 0 | ED20: 0 | EE20: 0 | EF20: 0 | EG20: 0 | EH20: 0 | EI20: 0 | EJ20: 0 | EK20: 0 | EL20: 0 | EM20: 0 | EN20: 0 | EO20: 0 | EP20: 0 | EQ20: 0 | ER20: 0 | ES20: 0 | ET20: 0 | EU20: 0 | EV20: 0 | EW20: 0 | EX20: 0 | EY20: 0 | EZ20: 0 | FA20: 0 | FB20: 0 | FC20: 0 | FD20: 0 | FE20: 0 | FF20: 0 | FG20: 0 | FH20: 0 | FI20: 0 | FJ20: 0 | FK20: 0 | FL20: 0 | FM20: 0 | FN20: 0 | FO20: 0 | FP20: 0 | FQ20: 0 | FR20: 0 | FS20: 0 | FT20: 0 | FU20: 0 | FV20: 0 | FW20: 29 | FX20: GJ/t | FY20: 0.0245 | FZ20: t-C/GJ
E21: 一般炭 | G21: kg | BJ21: 0 | BK21: 0 | BL21: 0 | BM21: 0 | BN21: 0 | BO21: 0 | BP21: 0 | BQ21: 0 | BR21: 0 | BS21: 0 | BT21: 0 | BU21: 0 | BV21: 0 | BW21: 0 | BX21: 0 | BY21: 0 | BZ21: 0 | CA21: 0 | CB21: 0 | CC21: 0 | CD21: 0 | CE21: 0 | CF21: 0 | CG21: 1000 | CH21: ｔ | CI21: 0 | CJ21: 0 | CK21: 0 | CL21: 0 | CM21: 0 | CN21: 0 | CO21: 0 | CP21: 0 | CQ21: 0 | CR21: 0 | CS21: 0 | CT21: 0 | CU21: 0 | CV21: 0 | CW21: 0 | CX21: 0 | CY21: 0 | CZ21: 0 | DA21: 0 | DB21: 0 | DC21: 0 | DD21: 0 | DE21: 0 | DF21: 0 | DG21: 0 | DH21: 0 | DI21: 0 | DJ21: 0 | DK21: 0 | DL21: 0 | DM21: 0 | DN21: 0 | DO21: 0 | DP21: 0 | DQ21: 0 | DR21: 0 | DS21: 0 | DT21: 0 | DU21: 0 | DV21: 0 | DW21: 0 | DX21: 0 | DY21: 0 | DZ21: 0 | EA21: 0 | EB21: 0 | EC21: 0 | ED21: 0 | EE21: 0 | EF21: 0 | EG21: 0 | EH21: 0 | EI21: 0 | EJ21: 0 | EK21: 0 | EL21: 0 | EM21: 0 | EN21: 0 | EO21: 0 | EP21: 0 | EQ21: 0 | ER21: 0 | ES21: 0 | ET21: 0 | EU21: 0 | EV21: 0 | EW21: 0 | EX21: 0 | EY21: 0 | EZ21: 0 | FA21: 0 | FB21: 0 | FC21: 0 | FD21: 0 | FE21: 0 | FF21: 0 | FG21: 0 | FH21: 0 | FI21: 0 | FJ21: 0 | FK21: 0 | FL21: 0 | FM21: 0 | FN21: 0 | FO21: 0 | FP21: 0 | FQ21: 0 | FR21: 0 | FS21: 0 | FT21: 0 | FU21: 0 | FV21: 0 | FW21: 25.7 | FX21: GJ/t | FY21: 0.0247 | FZ21: t-C/GJ
E22: 無煙炭 | G22: kg | BJ22: 0 | BK22: 0 | BL22: 0 | BM22: 0 | BN22: 0 | BO22: 0 | BP22: 0 | BQ22: 0 | BR22: 0 | BS22: 0 | BT22: 0 | BU22: 0 | BV22: 0 | BW22: 0 | BX22: 0 | BY22: 0 | BZ22: 0 | CA22: 0 | CB22: =AD22-BE22 -> 0 | CC22: =AE22-BF22 -> 0 | CD22: =AF22-BG22 -> 0 | CE22: =AG22-BH22 -> 0 | CF22: =AH22-BI22 -> 0 | CG22: 1000 | CH22: ｔ | CI22: 0 | CJ22: 0 | CK22: 0 | CL22: 0 | CM22: 0 | CN22: 0 | CO22: 0 | CP22: 0 | CQ22: 0 | CR22: 0 | CS22: 0 | CT22: 0 | CU22: 0 | CV22: 0 | CW22: 0 | CX22: 0 | CY22: 0 | CZ22: 0 | DA22: 0 | DB22: 0 | DC22: 0 | DD22: 0 | DE22: 0 | DF22: 0 | DG22: 0 | DH22: 0 | DI22: 0 | DJ22: 0 | DK22: 0 | DL22: 0 | DM22: 0 | DN22: 0 | DO22: 0 | DP22: 0 | DQ22: 0 | DR22: 0 | DS22: 0 | DT22: 0 | DU22: 0 | DV22: 0 | DW22: 0 | DX22: 0 | DY22: 0 | DZ22: 0 | EA22: 0 | EB22: 0 | EC22: 0 | ED22: 0 | EE22: 0 | EF22: 0 | EG22: 0 | EH22: 0 | EI22: 0 | EJ22: 0 | EK22: 0 | EL22: 0 | EM22: 0 | EN22: 0 | EO22: 0 | EP22: 0 | EQ22: 0 | ER22: 0 | ES22: 0 | ET22: 0 | EU22: =DX22*$GC$19 -> 0 | EV22: 0 | EW22: 0 | EX22: 0 | EY22: 0 | EZ22: 0 | FA22: 0 | FB22: 0 | FC22: 0 | FD22: 0 | FE22: 0 | FF22: 0 | FG22: 0 | FH22: 0 | FI22: 0 | FJ22: 0 | FK22: 0 | FL22: 0 | FM22: 0 | FN22: 0 | FO22: 0 | FP22: 0 | FQ22: 0 | FR22: =DX22*$FY22*44/12 -> 0 | FS22: 0 | FT22: 0 | FU22: 0 | FV22: 0 | FW22: 26.9 | FX22: GJ/t | FY22: 0.0255 | FZ22: t-C/GJ
D23: 石炭コークス | G23: kg | BJ23: 0 | BK23: 0 | BL23: 0 | BM23: 0 | BN23: 0 | BO23: 0 | BP23: 0 | BQ23: 0 | BR23: 0 | BS23: 0 | BT23: 0 | BU23: 0 | BV23: 0 | BW23: 0 | BX23: 0 | BY23: 0 | BZ23: 0 | CA23: 0 | CB23: 0 | CC23: 0 | CD23: 0 | CE23: 0 | CF23: 0 | CG23: 1000 | CH23: ｔ | CI23: 0 | CJ23: 0 | CK23: 0 | CL23: 0 | CM23: 0 | CN23: 0 | CO23: 0 | CP23: 0 | CQ23: 0 | CR23: 0 | CS23: 0 | CT23: 0 | CU23: 0 | CV23: 0 | CW23: 0 | CX23: 0 | CY23: 0 | CZ23: 0 | DA23: 0 | DB23: 0 | DC23: 0 | DD23: 0 | DE23: 0 | DF23: 0 | DG23: 0 | DH23: 0 | DI23: 0 | DJ23: 0 | DK23: 0 | DL23: 0 | DM23: 0 | DN23: 0 | DO23: 0 | DP23: 0 | DQ23: 0 | DR23: 0 | DS23: 0 | DT23: 0 | DU23: 0 | DV23: 0 | DW23: 0 | DX23: 0 | DY23: 0 | DZ23: 0 | EA23: 0 | EB23: 0 | EC23: 0 | ED23: 0 | EE23: 0 | EF23: 0 | EG23: 0 | EH23: 0 | EI23: 0 | EJ23: 0 | EK23: 0 | EL23: 0 | EM23: 0 | EN23: 0 | EO23: 0 | EP23: 0 | EQ23: 0 | ER23: 0 | ES23: 0 | ET23: 0 | EU23: 0 | EV23: 0 | EW23: 0 | EX23: 0 | EY23: 0 | EZ23: 0 | FA23: 0 | FB23: 0 | FC23: 0 | FD23: 0 | FE23: 0 | FF23: 0 | FG23: 0 | FH23: 0 | FI23: 0 | FJ23: 0 | FK23: 0 | FL23: 0 | FM23: 0 | FN23: 0 | FO23: 0 | FP23: 0 | FQ23: 0 | FR23: 0 | FS23: 0 | FT23: 0 | FU23: 0 | FV23: 0 | FW23: 29.4 | FX23: GJ/t | FY23: 0.0294 | FZ23: t-C/GJ
D24: コールタール | G24: kg | BJ24: 0 | BK24: 0 | BL24: 0 | BM24: 0 | BN24: 0 | BO24: 0 | BP24: 0 | BQ24: 0 | BR24: 0 | BS24: 0 | BT24: 0 | BU24: 0 | BV24: 0 | BW24: 0 | BX24: 0 | BY24: 0 | BZ24: 0 | CA24: 0 | CB24: 0 | CC24: 0 | CD24: 0 | CE24: 0 | CF24: 0 | CG24: 1000 | CH24: ｔ | CI24: 0 | CJ24: 0 | CK24: 0 | CL24: 0 | CM24: 0 | CN24: 0 | CO24: 0 | CP24: 0 | CQ24: 0 | CR24: 0 | CS24: 0 | CT24: 0 | CU24: 0 | CV24: 0 | CW24: 0 | CX24: 0 | CY24: 0 | CZ24: 0 | DA24: 0 | DB24: 0 | DC24: 0 | DD24: 0 | DE24: 0 | DF24: 0 | DG24: 0 | DH24: 0 | DI24: 0 | DJ24: 0 | DK24: 0 | DL24: 0 | DM24: 0 | DN24: 0 | DO24: 0 | DP24: 0 | DQ24: 0 | DR24: 0 | DS24: 0 | DT24: 0 | DU24: 0 | DV24: 0 | DW24: 0 | DX24: 0 | DY24: 0 | DZ24: 0 | EA24: 0 | EB24: 0 | EC24: 0 | ED24: 0 | EE24: 0 | EF24: 0 | EG24: 0 | EH24: 0 | EI24: 0 | EJ24: 0 | EK24: 0 | EL24: 0 | EM24: 0 | EN24: 0 | EO24: 0 | EP24: 0 | EQ24: 0 | ER24: 0 | ES24: 0 | ET24: 0 | EU24: 0 | EV24: 0 | EW24: 0 | EX24: 0 | EY24: 0 | EZ24: 0 | FA24: 0 | FB24: 0 | FC24: 0 | FD24: 0 | FE24: 0 | FF24: 0 | FG24: 0 | FH24: 0 | FI24: 0 | FJ24: 0 | FK24: 0 | FL24: 0 | FM24: 0 | FN24: 0 | FO24: 0 | FP24: 0 | FQ24: 0 | FR24: 0 | FS24: 0 | FT24: 0 | FU24: 0 | FV24: 0 | FW24: 37.3 | FX24: GJ/t | FY24: 0.0209 | FZ24: t-C/GJ
D25: コークス炉ガス | G25: 千Nｍ3 | L25: ='１．燃料単位換算(建物系)'!AG42 -> 0 | M25: ='１．燃料単位換算(建物系)'!AH42 -> 0 | N25: ='１．燃料単位換算(建物系)'!AI42 -> 0 | O25: ='１．燃料単位換算(建物系)'!AJ42 -> 0 | P25: ='１．燃料単位換算(建物系)'!AK42 -> 0 | Q25: ='１．燃料単位換算(建物系)'!AL42 -> 0 | R25: ='１．燃料単位換算(建物系)'!AM42 -> 0 | S25: ='１．燃料単位換算(建物系)'!AN42 -> 0 | T25: ='１．燃料単位換算(建物系)'!AO42 -> 0 | U25: ='１．燃料単位換算(建物系)'!AP42 -> 0 | V25: ='１．燃料単位換算(建物系)'!AQ42 -> 0 | W25: ='１．燃料単位換算(建物系)'!AR42 -> 0 | X25: ='１．燃料単位換算(建物系)'!AS42 -> 0 | Y25: ='１．燃料単位換算(建物系)'!AT42 -> 0 | Z25: ='１．燃料単位換算(建物系)'!AU42 -> 0 | AA25: ='１．燃料単位換算(建物系)'!AV42 -> 0 | AB25: ='１．燃料単位換算(建物系)'!AW42 -> 0 | AC25: ='１．燃料単位換算(建物系)'!AX42 -> 0 | AD25: ='１．燃料単位換算(建物系)'!AY42 -> 0 | AE25: ='１．燃料単位換算(建物系)'!AZ42 -> 0 | AF25: ='１．燃料単位換算(建物系)'!BA42 -> 0 | AG25: ='１．燃料単位換算(建物系)'!BB42 -> 0 | AH25: ='１．燃料単位換算(建物系)'!BC42 -> 0 | BJ25: 0 | BK25: 0 | BL25: 0 | BM25: 0 | BN25: 0 | BO25: 0 | BP25: 0 | BQ25: 0 | BR25: 0 | BS25: 0 | BT25: 0 | BU25: 0 | BV25: 0 | BW25: 0 | BX25: 0 | BY25: 0 | BZ25: 0 | CA25: 0 | CB25: 0 | CC25: 0 | CD25: 0 | CE25: 0 | CF25: 0 | CG25: 1 | CH25: 千N㎥ | CI25: 0 | CJ25: 0 | CK25: 0 | CL25: 0 | CM25: 0 | CN25: 0 | CO25: 0 | CP25: 0 | CQ25: 0 | CR25: 0 | CS25: 0 | CT25: 0 | CU25: 0 | CV25: 0 | CW25: 0 | CX25: 0 | CY25: 0 | CZ25: 0 | DA25: 0 | DB25: 0 | DC25: 0 | DD25: 0 | DE25: 0 | DF25: 0 | DG25: 0 | DH25: 0 | DI25: 0 | DJ25: 0 | DK25: 0 | DL25: 0 | DM25: 0 | DN25: 0 | DO25: 0 | DP25: 0 | DQ25: 0 | DR25: 0 | DS25: 0 | DT25: 0 | DU25: 0 | DV25: 0 | DW25: 0 | DX25: 0 | DY25: 0 | DZ25: 0 | EA25: 0 | EB25: 0 | EC25: 0 | ED25: 0 | EE25: 0 | EF25: 0 | EG25: 0 | EH25: 0 | EI25: 0 | EJ25: 0 | EK25: 0 | EL25: 0 | EM25: 0 | EN25: 0 | EO25: 0 | EP25: 0 | EQ25: 0 | ER25: 0 | ES25: 0 | ET25: 0 | EU25: 0 | EV25: 0 | EW25: 0 | EX25: 0 | EY25: 0 | EZ25: 0 | FA25: 0 | FB25: 0 | FC25: 0 | FD25: 0 | FE25: 0 | FF25: 0 | FG25: 0 | FH25: 0 | FI25: 0 | FJ25: 0 | FK25: 0 | FL25: 0 | FM25: 0 | FN25: 0 | FO25: 0 | FP25: 0 | FQ25: 0 | FR25: 0 | FS25: 0 | FT25: 0 | FU25: 0 | FV25: 0 | FW25: 21.1 | FX25: GJ /千Nｍ3 | FY25: 0.011 | FZ25: t-C/GJ
D26: 高炉ガス | G26: 千Nｍ3 | L26: ='１．燃料単位換算(建物系)'!AG45 -> 0 | M26: ='１．燃料単位換算(建物系)'!AH45 -> 0 | N26: ='１．燃料単位換算(建物系)'!AI45 -> 0 | O26: ='１．燃料単位換算(建物系)'!AJ45 -> 0 | P26: ='１．燃料単位換算(建物系)'!AK45 -> 0 | Q26: ='１．燃料単位換算(建物系)'!AL45 -> 0 | R26: ='１．燃料単位換算(建物系)'!AM45 -> 0 | S26: ='１．燃料単位換算(建物系)'!AN45 -> 0 | T26: ='１．燃料単位換算(建物系)'!AO45 -> 0 | U26: ='１．燃料単位換算(建物系)'!AP45 -> 0 | V26: ='１．燃料単位換算(建物系)'!AQ45 -> 0 | W26: ='１．燃料単位換算(建物系)'!AR45 -> 0 | X26: ='１．燃料単位換算(建物系)'!AS45 -> 0 | Y26: ='１．燃料単位換算(建物系)'!AT45 -> 0 | Z26: ='１．燃料単位換算(建物系)'!AU45 -> 0 | AA26: ='１．燃料単位換算(建物系)'!AV45 -> 0 | AB26: ='１．燃料単位換算(建物系)'!AW45 -> 0 | AC26: ='１．燃料単位換算(建物系)'!AX45 -> 0 | AD26: ='１．燃料単位換算(建物系)'!AY45 -> 0 | AE26: ='１．燃料単位換算(建物系)'!AZ45 -> 0 | AF26: ='１．燃料単位換算(建物系)'!BA45 -> 0 | AG26: ='１．燃料単位換算(建物系)'!BB45 -> 0 | AH26: ='１．燃料単位換算(建物系)'!BC45 -> 0 | BJ26: 0 | BK26: 0 | BL26: 0 | BM26: 0 | BN26: 0 | BO26: 0 | BP26: 0 | BQ26: 0 | BR26: 0 | BS26: 0 | BT26: 0 | BU26: 0 | BV26: 0 | BW26: 0 | BX26: 0 | BY26: 0 | BZ26: 0 | CA26: 0 | CB26: 0 | CC26: 0 | CD26: 0 | CE26: 0 | CF26: 0 | CG26: 1 | CH26: 千N㎥ | CI26: 0 | CJ26: 0 | CK26: 0 | CL26: 0 | CM26: 0 | CN26: 0 | CO26: 0 | CP26: 0 | CQ26: 0 | CR26: 0 | CS26: 0 | CT26: 0 | CU26: 0 | CV26: 0 | CW26: 0 | CX26: 0 | CY26: 0 | CZ26: 0 | DA26: 0 | DB26: 0 | DC26: 0 | DD26: 0 | DE26: 0 | DF26: 0 | DG26: 0 | DH26: 0 | DI26: 0 | DJ26: 0 | DK26: 0 | DL26: 0 | DM26: 0 | DN26: 0 | DO26: 0 | DP26: 0 | DQ26: 0 | DR26: 0 | DS26: 0 | DT26: 0 | DU26: 0 | DV26: 0 | DW26: 0 | DX26: 0 | DY26: 0 | DZ26: 0 | EA26: 0 | EB26: 0 | EC26: 0 | ED26: 0 | EE26: 0 | EF26: 0 | EG26: 0 | EH26: 0 | EI26: 0 | EJ26: 0 | EK26: 0 | EL26: 0 | EM26: 0 | EN26: 0 | EO26: 0 | EP26: 0 | EQ26: 0 | ER26: 0 | ES26: 0 | ET26: 0 | EU26: 0 | EV26: 0 | EW26: 0 | EX26: 0 | EY26: 0 | EZ26: 0 | FA26: 0 | FB26: 0 | FC26: 0 | FD26: 0 | FE26: 0 | FF26: 0 | FG26: 0 | FH26: 0 | FI26: 0 | FJ26: 0 | FK26: 0 | FL26: 0 | FM26: 0 | FN26: 0 | FO26: 0 | FP26: 0 | FQ26: 0 | FR26: 0 | FS26: 0 | FT26: 0 | FU26: 0 | FV26: 0 | FW26: 3.41 | FX26: GJ /千Nｍ3 | FY26: 0.0263 | FZ26: t-C/GJ
D27: 転炉ガス | G27: 千Nｍ3 | L27: ='１．燃料単位換算(建物系)'!AG48 -> 0 | M27: ='１．燃料単位換算(建物系)'!AH48 -> 0 | N27: ='１．燃料単位換算(建物系)'!AI48 -> 0 | O27: ='１．燃料単位換算(建物系)'!AJ48 -> 0 | P27: ='１．燃料単位換算(建物系)'!AK48 -> 0 | Q27: ='１．燃料単位換算(建物系)'!AL48 -> 0 | R27: ='１．燃料単位換算(建物系)'!AM48 -> 0 | S27: ='１．燃料単位換算(建物系)'!AN48 -> 0 | T27: ='１．燃料単位換算(建物系)'!AO48 -> 0 | U27: ='１．燃料単位換算(建物系)'!AP48 -> 0 | V27: ='１．燃料単位換算(建物系)'!AQ48 -> 0 | W27: ='１．燃料単位換算(建物系)'!AR48 -> 0 | X27: ='１．燃料単位換算(建物系)'!AS48 -> 0 | Y27: ='１．燃料単位換算(建物系)'!AT48 -> 0 | Z27: ='１．燃料単位換算(建物系)'!AU48 -> 0 | AA27: ='１．燃料単位換算(建物系)'!AV48 -> 0 | AB27: ='１．燃料単位換算(建物系)'!AW48 -> 0 | AC27: ='１．燃料単位換算(建物系)'!AX48 -> 0 | AD27: ='１．燃料単位換算(建物系)'!AY48 -> 0 | AE27: ='１．燃料単位換算(建物系)'!AZ48 -> 0 | AF27: ='１．燃料単位換算(建物系)'!BA48 -> 0 | AG27: ='１．燃料単位換算(建物系)'!BB48 -> 0 | AH27: ='１．燃料単位換算(建物系)'!BC48 -> 0 | BJ27: 0 | BK27: 0 | BL27: 0 | BM27: 0 | BN27: 0 | BO27: 0 | BP27: 0 | BQ27: 0 | BR27: 0 | BS27: 0 | BT27: 0 | BU27: 0 | BV27: 0 | BW27: 0 | BX27: 0 | BY27: 0 | BZ27: 0 | CA27: 0 | CB27: 0 | CC27: 0 | CD27: 0 | CE27: 0 | CF27: 0 | CG27: 1 | CH27: 千N㎥ | CI27: 0 | CJ27: 0 | CK27: 0 | CL27: 0 | CM27: 0 | CN27: 0 | CO27: 0 | CP27: 0 | CQ27: 0 | CR27: 0 | CS27: 0 | CT27: 0 | CU27: 0 | CV27: 0 | CW27: 0 | CX27: 0 | CY27: 0 | CZ27: 0 | DA27: 0 | DB27: 0 | DC27: 0 | DD27: 0 | DE27: 0 | DF27: 0 | DG27: 0 | DH27: 0 | DI27: 0 | DJ27: 0 | DK27: 0 | DL27: 0 | DM27: 0 | DN27: 0 | DO27: 0 | DP27: 0 | DQ27: 0 | DR27: 0 | DS27: 0 | DT27: 0 | DU27: 0 | DV27: 0 | DW27: 0 | DX27: 0 | DY27: 0 | DZ27: 0 | EA27: 0 | EB27: 0 | EC27: 0 | ED27: 0 | EE27: 0 | EF27: 0 | EG27: 0 | EH27: 0 | EI27: 0 | EJ27: 0 | EK27: 0 | EL27: 0 | EM27: 0 | EN27: 0 | EO27: 0 | EP27: 0 | EQ27: 0 | ER27: 0 | ES27: 0 | ET27: 0 | EU27: 0 | EV27: 0 | EW27: 0 | EX27: 0 | EY27: 0 | EZ27: 0 | FA27: 0 | FB27: 0 | FC27: 0 | FD27: 0 | FE27: 0 | FF27: 0 | FG27: 0 | FH27: 0 | FI27: 0 | FJ27: 0 | FK27: 0 | FL27: 0 | FM27: 0 | FN27: 0 | FO27: 0 | FP27: 0 | FQ27: 0 | FR27: 0 | FS27: 0 | FT27: 0 | FU27: 0 | FV27: 0 | FW27: 8.41 | FX27: GJ /千Nｍ3 | FY27: 0.0384 | FZ27: t-C/GJ
D28: その他燃料 | E28: 都市ガス（※） | F28: 13A:45MJ/m3 | G28: 千Nｍ3 | O28: ='１．燃料単位換算(建物系)'!AJ9 -> 0 | P28: ='１．燃料単位換算(建物系)'!AK9 -> 0 | Q28: ='１．燃料単位換算(建物系)'!AL9 -> 0 | R28: ='１．燃料単位換算(建物系)'!AM9 -> 0 | S28: ='１．燃料単位換算(建物系)'!AN9 -> 0 | T28: ='１．燃料単位換算(建物系)'!AO9 -> 0 | U28: ='１．燃料単位換算(建物系)'!AP9 -> 0 | V28: ='１．燃料単位換算(建物系)'!AQ9 -> 0 | W28: ='１．燃料単位換算(建物系)'!AR9 -> 0 | X28: ='１．燃料単位換算(建物系)'!AS9 -> 0 | Y28: ='１．燃料単位換算(建物系)'!AT9 -> 0 | Z28: ='１．燃料単位換算(建物系)'!AU9 -> 0 | AA28: ='１．燃料単位換算(建物系)'!AV9 -> 0 | AB28: ='１．燃料単位換算(建物系)'!AW9 -> 0 | AC28: ='１．燃料単位換算(建物系)'!AX9 -> 0 | AD28: ='１．燃料単位換算(建物系)'!AY9 -> 0 | AE28: ='１．燃料単位換算(建物系)'!AZ9 -> 0 | AF28: ='１．燃料単位換算(建物系)'!BA9 -> 0 | AG28: ='１．燃料単位換算(建物系)'!BB9 -> 0 | AH28: ='１．燃料単位換算(建物系)'!BC9 -> 0 | BJ28: 0 | BK28: 0 | BL28: 0 | BM28: 0 | BN28: 0 | BO28: 0 | BP28: 0 | BQ28: 0 | BR28: 0 | BS28: 0 | BT28: 0 | BU28: 0 | BV28: 0 | BW28: 0 | BX28: 0 | BY28: 0 | BZ28: 0 | CA28: 0 | CB28: 0 | CC28: 0 | CD28: 0 | CE28: 0 | CF28: 0 | CG28: 1 | CH28: 千N㎥ | CI28: 0 | CJ28: 0 | CK28: 0 | CL28: 0 | CM28: 0 | CN28: 0 | CO28: 0 | CP28: 0 | CQ28: 0 | CR28: 0 | CS28: 0 | CT28: 0 | CU28: 0 | CV28: 0 | CW28: 0 | CX28: 0 | CY28: 0 | CZ28: 0 | DA28: 0 | DB28: 0 | DC28: 0 | DD28: 0 | DE28: 0 | DF28: 0 | DG28: 0 | DH28: 0 | DI28: 0 | DJ28: 0 | DK28: 0 | DL28: 0 | DM28: 0 | DN28: 0 | DO28: 0 | DP28: 0 | DQ28: 0 | DR28: 0 | DS28: 0 | DT28: 0 | DU28: 0 | DV28: 0 | DW28: 0 | DX28: 0 | DY28: 0 | DZ28: 0 | EA28: 0 | EB28: 0 | EC28: 0 | ED28: 0 | EE28: 0 | EF28: 0 | EG28: 0 | EH28: 0 | EI28: 0 | EJ28: 0 | EK28: 0 | EL28: 0 | EM28: 0 | EN28: 0 | EO28: 0 | EP28: 0 | EQ28: 0 | ER28: 0 | ES28: 0 | ET28: 0 | EU28: 0 | EV28: 0 | EW28: 0 | EX28: 0 | EY28: 0 | EZ28: 0 | FA28: 0 | FB28: 0 | FC28: 0 | FD28: 0 | FE28: 0 | FF28: 0 | FG28: 0 | FH28: 0 | FI28: 0 | FJ28: 0 | FK28: 0 | FL28: 0 | FM28: 0 | FN28: 0 | FO28: 0 | FP28: 0 | FQ28: 0 | FR28: 0 | FS28: 0 | FT28: 0 | FU28: 0 | FV28: 0 | FW28: 45 | FX28: GJ /千Nｍ3 | FY28: 0.0136 | FZ28: t-C/GJ
F29: 13A:43.12MJ/m3 | G29: 千Nｍ3 | L29: ='１．燃料単位換算(建物系)'!AG12 -> 0 | M29: ='１．燃料単位換算(建物系)'!AH12 -> 0 | N29: ='１．燃料単位換算(建物系)'!AI12 -> 0 | O29: ='１．燃料単位換算(建物系)'!AJ12 -> 0 | P29: ='１．燃料単位換算(建物系)'!AK12 -> 0 | Q29: ='１．燃料単位換算(建物系)'!AL12 -> 0 | R29: ='１．燃料単位換算(建物系)'!AM12 -> 0 | S29: ='１．燃料単位換算(建物系)'!AN12 -> 0 | T29: ='１．燃料単位換算(建物系)'!AO12 -> 0 | U29: ='１．燃料単位換算(建物系)'!AP12 -> 0 | V29: ='１．燃料単位換算(建物系)'!AQ12 -> 0 | W29: ='１．燃料単位換算(建物系)'!AR12 -> 0 | X29: ='１．燃料単位換算(建物系)'!AS12 -> 0 | Y29: ='１．燃料単位換算(建物系)'!AT12 -> 0 | Z29: ='１．燃料単位換算(建物系)'!AU12 -> 0 | AA29: ='１．燃料単位換算(建物系)'!AV12 -> 0 | AB29: ='１．燃料単位換算(建物系)'!AW12 -> 0 | AC29: ='１．燃料単位換算(建物系)'!AX12 -> 0 | AD29: ='１．燃料単位換算(建物系)'!AY12 -> 0 | AE29: ='１．燃料単位換算(建物系)'!AZ12 -> 0 | AF29: ='１．燃料単位換算(建物系)'!BA12 -> 0 | AG29: ='１．燃料単位換算(建物系)'!BB12 -> 0 | AH29: ='１．燃料単位換算(建物系)'!BC12 -> 0 | BJ29: 0 | BK29: 0 | BL29: 0 | BM29: 0 | BN29: 0 | BO29: 0 | BP29: 0 | BQ29: 0 | BR29: 0 | BS29: 0 | BT29: 0 | BU29: 0 | BV29: 0 | BW29: 0 | BX29: 0 | BY29: 0 | BZ29: 0 | CA29: 0 | CB29: 0 | CC29: 0 | CD29: 0 | CE29: 0 | CF29: 0 | CG29: 1 | CH29: 千N㎥ | CI29: 0 | CJ29: 0 | CK29: 0 | CL29: 0 | CM29: 0 | CN29: 0 | CO29: 0 | CP29: 0 | CQ29: 0 | CR29: 0 | CS29: 0 | CT29: 0 | CU29: 0 | CV29: 0 | CW29: 0 | CX29: 0 | CY29: 0 | CZ29: 0 | DA29: 0 | DB29: 0 | DC29: 0 | DD29: 0 | DE29: 0 | DF29: 0 | DG29: 0 | DH29: 0 | DI29: 0 | DJ29: 0 | DK29: 0 | DL29: 0 | DM29: 0 | DN29: 0 | DO29: 0 | DP29: 0 | DQ29: 0 | DR29: 0 | DS29: 0 | DT29: 0 | DU29: 0 | DV29: 0 | DW29: 0 | DX29: 0 | DY29: 0 | DZ29: 0 | EA29: 0 | EB29: 0 | EC29: 0 | ED29: 0 | EE29: 0 | EF29: 0 | EG29: 0 | EH29: 0 | EI29: 0 | EJ29: 0 | EK29: 0 | EL29: 0 | EM29: 0 | EN29: 0 | EO29: 0 | EP29: 0 | EQ29: 0 | ER29: 0 | ES29: 0 | ET29: 0 | EU29: 0 | EV29: 0 | EW29: 0 | EX29: 0 | EY29: 0 | EZ29: 0 | FA29: 0 | FB29: 0 | FC29: 0 | FD29: 0 | FE29: 0 | FF29: 0 | FG29: 0 | FH29: 0 | FI29: 0 | FJ29: 0 | FK29: 0 | FL29: 0 | FM29: 0 | FN29: 0 | FO29: 0 | FP29: 0 | FQ29: 0 | FR29: 0 | FS29: 0 | FT29: 0 | FU29: 0 | FV29: 0 | FW29: 43.12 | FX29: GJ /千Nｍ3 | FY29: 0.0136 | FZ29: t-C/GJ
F30: 13A:46.04MJ/m3 | G30: 千Nｍ3 | L30: ='１．燃料単位換算(建物系)'!AG15 -> 0 | M30: ='１．燃料単位換算(建物系)'!AH15 -> 0 | N30: ='１．燃料単位換算(建物系)'!AI15 -> 0 | O30: ='１．燃料単位換算(建物系)'!AJ15 -> 0 | P30: ='１．燃料単位換算(建物系)'!AK15 -> 0 | Q30: ='１．燃料単位換算(建物系)'!AL15 -> 0 | R30: ='１．燃料単位換算(建物系)'!AM15 -> 0 | S30: ='１．燃料単位換算(建物系)'!AN15 -> 0 | T30: ='１．燃料単位換算(建物系)'!AO15 -> 0 | U30: ='１．燃料単位換算(建物系)'!AP15 -> 0 | V30: ='１．燃料単位換算(建物系)'!AQ15 -> 0 | W30: ='１．燃料単位換算(建物系)'!AR15 -> 0 | X30: ='１．燃料単位換算(建物系)'!AS15 -> 0 | Y30: ='１．燃料単位換算(建物系)'!AT15 -> 0 | Z30: ='１．燃料単位換算(建物系)'!AU15 -> 0 | AA30: ='１．燃料単位換算(建物系)'!AV15 -> 0 | AB30: ='１．燃料単位換算(建物系)'!AW15 -> 0 | AC30: ='１．燃料単位換算(建物系)'!AX15 -> 0 | AD30: ='１．燃料単位換算(建物系)'!AY15 -> 0 | AE30: ='１．燃料単位換算(建物系)'!AZ15 -> 0 | AF30: ='１．燃料単位換算(建物系)'!BA15 -> 0 | AG30: ='１．燃料単位換算(建物系)'!BB15 -> 0 | AH30: ='１．燃料単位換算(建物系)'!BC15 -> 0 | BJ30: 0 | BK30: 0 | BL30: 0 | BM30: 0 | BN30: 0 | BO30: 0 | BP30: 0 | BQ30: 0 | BR30: 0 | BS30: 0 | BT30: 0 | BU30: 0 | BV30: 0 | BW30: 0 | BX30: 0 | BY30: 0 | BZ30: 0 | CA30: 0 | CB30: 0 | CC30: 0 | CD30: 0 | CE30: 0 | CF30: 0 | CG30: 1 | CH30: 千N㎥ | CI30: 0 | CJ30: 0 | CK30: 0 | CL30: 0 | CM30: 0 | CN30: 0 | CO30: 0 | CP30: 0 | CQ30: 0 | CR30: 0 | CS30: 0 | CT30: 0 | CU30: 0 | CV30: 0 | CW30: 0 | CX30: 0 | CY30: 0 | CZ30: 0 | DA30: 0 | DB30: 0 | DC30: 0 | DD30: 0 | DE30: 0 | DF30: 0 | DG30: 0 | DH30: 0 | DI30: 0 | DJ30: 0 | DK30: 0 | DL30: 0 | DM30: 0 | DN30: 0 | DO30: 0 | DP30: 0 | DQ30: 0 | DR30: 0 | DS30: 0 | DT30: 0 | DU30: 0 | DV30: 0 | DW30: 0 | DX30: 0 | DY30: 0 | DZ30: 0 | EA30: 0 | EB30: 0 | EC30: 0 | ED30: 0 | EE30: 0 | EF30: 0 | EG30: 0 | EH30: 0 | EI30: 0 | EJ30: 0 | EK30: 0 | EL30: 0 | EM30: 0 | EN30: 0 | EO30: 0 | EP30: 0 | EQ30: 0 | ER30: 0 | ES30: 0 | ET30: 0 | EU30: 0 | EV30: 0 | EW30: 0 | EX30: 0 | EY30: 0 | EZ30: 0 | FA30: 0 | FB30: 0 | FC30: 0 | FD30: 0 | FE30: 0 | FF30: 0 | FG30: 0 | FH30: 0 | FI30: 0 | FJ30: 0 | FK30: 0 | FL30: 0 | FM30: 0 | FN30: 0 | FO30: 0 | FP30: 0 | FQ30: 0 | FR30: 0 | FS30: 0 | FT30: 0 | FU30: 0 | FV30: 0 | FW30: 46.04 | FX30: GJ /千Nｍ3 | FY30: 0.0136 | FZ30: t-C/GJ
F31: 12A:41.86MJ/m3 | G31: 千Nｍ3 | L31: ='１．燃料単位換算(建物系)'!AG18 -> 0 | M31: ='１．燃料単位換算(建物系)'!AH18 -> 0 | N31: ='１．燃料単位換算(建物系)'!AI18 -> 0 | O31: ='１．燃料単位換算(建物系)'!AJ18 -> 0 | P31: ='１．燃料単位換算(建物系)'!AK18 -> 0 | Q31: ='１．燃料単位換算(建物系)'!AL18 -> 0 | R31: ='１．燃料単位換算(建物系)'!AM18 -> 0 | S31: ='１．燃料単位換算(建物系)'!AN18 -> 0 | T31: ='１．燃料単位換算(建物系)'!AO18 -> 0 | U31: ='１．燃料単位換算(建物系)'!AP18 -> 0 | V31: ='１．燃料単位換算(建物系)'!AQ18 -> 0 | W31: ='１．燃料単位換算(建物系)'!AR18 -> 0 | X31: ='１．燃料単位換算(建物系)'!AS18 -> 0 | Y31: ='１．燃料単位換算(建物系)'!AT18 -> 0 | Z31: ='１．燃料単位換算(建物系)'!AU18 -> 0 | AA31: ='１．燃料単位換算(建物系)'!AV18 -> 0 | AB31: ='１．燃料単位換算(建物系)'!AW18 -> 0 | AC31: ='１．燃料単位換算(建物系)'!AX18 -> 0 | AD31: ='１．燃料単位換算(建物系)'!AY18 -> 0 | AE31: ='１．燃料単位換算(建物系)'!AZ18 -> 0 | AF31: ='１．燃料単位換算(建物系)'!BA18 -> 0 | AG31: ='１．燃料単位換算(建物系)'!BB18 -> 0 | AH31: ='１．燃料単位換算(建物系)'!BC18 -> 0 | BJ31: 0 | BK31: 0 | BL31: 0 | BM31: 0 | BN31: 0 | BO31: 0 | BP31: 0 | BQ31: 0 | BR31: 0 | BS31: 0 | BT31: 0 | BU31: 0 | BV31: 0 | BW31: 0 | BX31: 0 | BY31: 0 | BZ31: 0 | CA31: 0 | CB31: 0 | CC31: 0 | CD31: 0 | CE31: 0 | CF31: 0 | CG31: 1 | CH31: 千N㎥ | CI31: 0 | CJ31: 0 | CK31: 0 | CL31: 0 | CM31: 0 | CN31: 0 | CO31: 0 | CP31: 0 | CQ31: 0 | CR31: 0 | CS31: 0 | CT31: 0 | CU31: 0 | CV31: 0 | CW31: 0 | CX31: 0 | CY31: 0 | CZ31: 0 | DA31: 0 | DB31: 0 | DC31: 0 | DD31: 0 | DE31: 0 | DF31: 0 | DG31: 0 | DH31: 0 | DI31: 0 | DJ31: 0 | DK31: 0 | DL31: 0 | DM31: 0 | DN31: 0 | DO31: 0 | DP31: 0 | DQ31: 0 | DR31: 0 | DS31: 0 | DT31: 0 | DU31: 0 | DV31: 0 | DW31: 0 | DX31: 0 | DY31: 0 | DZ31: 0 | EA31: 0 | EB31: 0 | EC31: 0 | ED31: 0 | EE31: 0 | EF31: 0 | EG31: 0 | EH31: 0 | EI31: 0 | EJ31: 0 | EK31: 0 | EL31: 0 | EM31: 0 | EN31: 0 | EO31: 0 | EP31: 0 | EQ31: 0 | ER31: 0 | ES31: 0 | ET31: 0 | EU31: 0 | EV31: 0 | EW31: 0 | EX31: 0 | EY31: 0 | EZ31: 0 | FA31: 0 | FB31: 0 | FC31: 0 | FD31: 0 | FE31: 0 | FF31: 0 | FG31: 0 | FH31: 0 | FI31: 0 | FJ31: 0 | FK31: 0 | FL31: 0 | FM31: 0 | FN31: 0 | FO31: 0 | FP31: 0 | FQ31: 0 | FR31: 0 | FS31: 0 | FT31: 0 | FU31: 0 | FV31: 0 | FW31: 41.86 | FX31: GJ /千Nｍ3 | FY31: 0.0136 | FZ31: t-C/GJ
F32: 6A:29.30MJ/m3 | G32: 千Nｍ3 | L32: ='１．燃料単位換算(建物系)'!AG21 -> 0 | M32: ='１．燃料単位換算(建物系)'!AH21 -> 0 | N32: ='１．燃料単位換算(建物系)'!AI21 -> 0 | O32: ='１．燃料単位換算(建物系)'!AJ21 -> 0 | P32: ='１．燃料単位換算(建物系)'!AK21 -> 0 | Q32: ='１．燃料単位換算(建物系)'!AL21 -> 0 | R32: ='１．燃料単位換算(建物系)'!AM21 -> 0 | S32: ='１．燃料単位換算(建物系)'!AN21 -> 0 | T32: ='１．燃料単位換算(建物系)'!AO21 -> 0 | U32: ='１．燃料単位換算(建物系)'!AP21 -> 0 | V32: ='１．燃料単位換算(建物系)'!AQ21 -> 0 | W32: ='１．燃料単位換算(建物系)'!AR21 -> 0 | X32: ='１．燃料単位換算(建物系)'!AS21 -> 0 | Y32: ='１．燃料単位換算(建物系)'!AT21 -> 0 | Z32: ='１．燃料単位換算(建物系)'!AU21 -> 0 | AA32: ='１．燃料単位換算(建物系)'!AV21 -> 0 | AB32: ='１．燃料単位換算(建物系)'!AW21 -> 0 | AC32: ='１．燃料単位換算(建物系)'!AX21 -> 0 | AD32: ='１．燃料単位換算(建物系)'!AY21 -> 0 | AE32: ='１．燃料単位換算(建物系)'!AZ21 -> 0 | AF32: ='１．燃料単位換算(建物系)'!BA21 -> 0 | AG32: ='１．燃料単位換算(建物系)'!BB21 -> 0 | AH32: ='１．燃料単位換算(建物系)'!BC21 -> 0 | BJ32: 0 | BK32: 0 | BL32: 0 | BM32: 0 | BN32: 0 | BO32: 0 | BP32: 0 | BQ32: 0 | BR32: 0 | BS32: 0 | BT32: 0 | BU32: 0 | BV32: 0 | BW32: 0 | BX32: 0 | BY32: 0 | BZ32: 0 | CA32: 0 | CB32: 0 | CC32: 0 | CD32: 0 | CE32: 0 | CF32: 0 | CG32: 1 | CH32: 千N㎥ | CI32: 0 | CJ32: 0 | CK32: 0 | CL32: 0 | CM32: 0 | CN32: 0 | CO32: 0 | CP32: 0 | CQ32: 0 | CR32: 0 | CS32: 0 | CT32: 0 | CU32: 0 | CV32: 0 | CW32: 0 | CX32: 0 | CY32: 0 | CZ32: 0 | DA32: 0 | DB32: 0 | DC32: 0 | DD32: 0 | DE32: 0 | DF32: 0 | DG32: 0 | DH32: 0 | DI32: 0 | DJ32: 0 | DK32: 0 | DL32: 0 | DM32: 0 | DN32: 0 | DO32: 0 | DP32: 0 | DQ32: 0 | DR32: 0 | DS32: 0 | DT32: 0 | DU32: 0 | DV32: 0 | DW32: 0 | DX32: 0 | DY32: 0 | DZ32: 0 | EA32: 0 | EB32: 0 | EC32: 0 | ED32: 0 | EE32: 0 | EF32: 0 | EG32: 0 | EH32: 0 | EI32: 0 | EJ32: 0 | EK32: 0 | EL32: 0 | EM32: 0 | EN32: 0 | EO32: 0 | EP32: 0 | EQ32: 0 | ER32: 0 | ES32: 0 | ET32: 0 | EU32: 0 | EV32: 0 | EW32: 0 | EX32: 0 | EY32: 0 | EZ32: 0 | FA32: 0 | FB32: 0 | FC32: 0 | FD32: 0 | FE32: 0 | FF32: 0 | FG32: 0 | FH32: 0 | FI32: 0 | FJ32: 0 | FK32: 0 | FL32: 0 | FM32: 0 | FN32: 0 | FO32: 0 | FP32: 0 | FQ32: 0 | FR32: 0 | FS32: 0 | FT32: 0 | FU32: 0 | FV32: 0 | FW32: 29.3 | FX32: GJ /千Nｍ3 | FY32: 0.0136 | FZ32: t-C/GJ
BJ33: 0 | BK33: 0 | BL33: 0 | BM33: 0 | BN33: 0 | BO33: 0 | BP33: 0 | BQ33: 0 | BR33: 0 | BS33: 0 | BT33: 0 | BU33: 0 | BV33: 0 | BW33: 0 | BX33: 0 | BY33: 0 | BZ33: 0 | CA33: 0 | CB33: 0 | CC33: 0 | CD33: 0 | CE33: 0 | CF33: 0 | CG33: =IF(G33="","-",VLOOKUP($G33,$GB$6:$GC$15,2,FALSE)) -> - | CI33: =ROUND(IF($E$33="",0,IF($G$33="",0,H14_控除後使用量/単位補正２)),0) -> 0 | CJ33: =ROUND(IF($E$33="",0,IF($G$33="",0,H15_控除後使用量/単位補正２)),0) -> 0 | CK33: =ROUND(IF($E$33="",0,IF($G$33="",0,H16_控除後使用量/単位補正２)),0) -> 0 | CL33: =ROUND(IF($E$33="",0,IF($G$33="",0,H17_控除後使用量/単位補正２)),0) -> 0 | CM33: =ROUND(IF($E$33="",0,IF($G$33="",0,H18_控除後使用量/単位補正２)),0) -> 0 | CN33: =ROUND(IF($E$33="",0,IF($G$33="",0,H19_控除後使用量/単位補正２)),0) -> 0 | CO33: =ROUND(IF($E$33="",0,IF($G$33="",0,H20_控除後使用量/単位補正２)),0) -> 0 | CP33: =ROUND(IF($E$33="",0,IF($G$33="",0,H21_控除後使用量/単位補正２)),0) -> 0 | CQ33: =ROUND(IF($E$33="",0,IF($G$33="",0,H22_控除後使用量/単位補正２)),0) -> 0 | CR33: =ROUND(IF($E$33="",0,IF($G$33="",0,H23_控除後使用量/単位補正２)),0) -> 0 | CS33: =ROUND(IF($E$33="",0,IF($G$33="",0,H24_控除後使用量/単位補正２)),0) -> 0 | CT33: =ROUND(IF($E$33="",0,IF($G$33="",0,H25_控除後使用量/単位補正２)),0) -> 0 | CU33: =ROUND(IF($E$33="",0,IF($G$33="",0,H26_控除後使用量/単位補正２)),0) -> 0 | CV33: =ROUND(IF($E$33="",0,IF($G$33="",0,H27_控除後使用量/単位補正２)),0) -> 0 | CW33: =ROUND(IF($E$33="",0,IF($G$33="",0,H28_控除後使用量/単位補正２)),0) -> 0 | CX33: =ROUND(IF($E$33="",0,IF($G$33="",0,H29_控除後使用量/単位補正２)),0) -> 0 | CY33: =ROUND(IF($E$33="",0,IF($G$33="",0,H30_控除後使用量/単位補正２)),0) -> 0 | CZ33: =ROUND(IF($E$33="",0,IF($G$33="",0,CA33/単位補正２)),0) -> 0 | DA33: 0 | DB33: 0 | DC33: 0 | DD33: 0 | DE33: 0 | DF33: 0 | DG33: 0 | DH33: 0 | DI33: 0 | DJ33: 0 | DK33: 0 | DL33: 0 | DM33: 0 | DN33: 0 | DO33: 0 | DP33: 0 | DQ33: 0 | DR33: 0 | DS33: 0 | DT33: 0 | DU33: 0 | DV33: 0 | DW33: 0 | DX33: 0 | DY33: 0 | DZ33: 0 | EA33: 0 | EB33: 0 | EC33: 0 | ED33: 0 | EE33: 0 | EF33: 0 | EG33: 0 | EH33: 0 | EI33: 0 | EJ33: 0 | EK33: 0 | EL33: 0 | EM33: 0 | EN33: 0 | EO33: 0 | EP33: 0 | EQ33: 0 | ER33: 0 | ES33: 0 | ET33: 0 | EU33: 0 | EV33: 0 | EW33: 0 | EX33: 0 | EY33: 0 | EZ33: 0 | FA33: 0 | FB33: 0 | FC33: 0 | FD33: 0 | FE33: 0 | FF33: 0 | FG33: 0 | FH33: 0 | FI33: 0 | FJ33: 0 | FK33: 0 | FL33: 0 | FM33: 0 | FN33: 0 | FO33: 0 | FP33: 0 | FQ33: 0 | FR33: 0 | FS33: 0 | FT33: 0 | FU33: 0 | FV33: 0 | FX33: =CONCATENATE("GJ/",GB33) -> GJ/ | FZ33: t-C/GJ | GB33: =IF(G33="","",IF(G33=$GB$6,$GB$7,IF(G33=$GB$8,$GB$9,IF(G33=$GB$10,$GB$11,IF(G33=$GB$12,$GB$13,G33))))) -> 
BJ34: 0 | BK34: 0 | BL34: 0 | BM34: 0 | BN34: 0 | BO34: 0 | BP34: 0 | BQ34: 0 | BR34: 0 | BS34: 0 | BT34: 0 | BU34: 0 | BV34: 0 | BW34: 0 | BX34: 0 | BY34: 0 | BZ34: 0 | CA34: 0 | CB34: 0 | CC34: 0 | CD34: 0 | CE34: 0 | CF34: 0 | CG34: =IF(G34="","-",VLOOKUP($G34,$GB$6:$GC$15,2,FALSE)) -> - | CI34: =ROUND(IF($E$34="",0,IF($G$34="",0,H14_控除後使用量/単位補正２)),0) -> 0 | CJ34: =ROUND(IF($E$34="",0,IF($G$34="",0,H15_控除後使用量/単位補正２)),0) -> 0 | CK34: =ROUND(IF($E$34="",0,IF($G$34="",0,H16_控除後使用量/単位補正２)),0) -> 0 | CL34: =ROUND(IF($E$34="",0,IF($G$34="",0,H17_控除後使用量/単位補正２)),0) -> 0 | CM34: =ROUND(IF($E$34="",0,IF($G$34="",0,H18_控除後使用量/単位補正２)),0) -> 0 | CN34: =ROUND(IF($E$34="",0,IF($G$34="",0,H19_控除後使用量/単位補正２)),0) -> 0 | CO34: =ROUND(IF($E$34="",0,IF($G$34="",0,H20_控除後使用量/単位補正２)),0) -> 0 | CP34: =ROUND(IF($E$34="",0,IF($G$34="",0,H21_控除後使用量/単位補正２)),0) -> 0 | CQ34: =ROUND(IF($E$34="",0,IF($G$34="",0,H22_控除後使用量/単位補正２)),0) -> 0 | CR34: =ROUND(IF($E$34="",0,IF($G$34="",0,H23_控除後使用量/単位補正２)),0) -> 0 | CS34: =ROUND(IF($E$34="",0,IF($G$34="",0,H24_控除後使用量/単位補正２)),0) -> 0 | CT34: =ROUND(IF($E$34="",0,IF($G$34="",0,H25_控除後使用量/単位補正２)),0) -> 0 | CU34: =ROUND(IF($E$34="",0,IF($G$34="",0,H26_控除後使用量/単位補正２)),0) -> 0 | CV34: =ROUND(IF($E$33="",0,IF($G$33="",0,H27_控除後使用量/単位補正２)),0) -> 0 | CW34: =ROUND(IF($E$33="",0,IF($G$33="",0,H28_控除後使用量/単位補正２)),0) -> 0 | CX34: =ROUND(IF($E$33="",0,IF($G$33="",0,H29_控除後使用量/単位補正２)),0) -> 0 | CY34: =ROUND(IF($E$33="",0,IF($G$33="",0,H30_控除後使用量/単位補正２)),0) -> 0 | CZ34: 0 | DA34: 0 | DB34: 0 | DC34: 0 | DD34: 0 | DE34: 0 | DF34: 0 | DG34: 0 | DH34: 0 | DI34: 0 | DJ34: 0 | DK34: 0 | DL34: 0 | DM34: 0 | DN34: 0 | DO34: 0 | DP34: 0 | DQ34: 0 | DR34: 0 | DS34: 0 | DT34: 0 | DU34: 0 | DV34: 0 | DW34: 0 | DX34: 0 | DY34: 0 | DZ34: 0 | EA34: 0 | EB34: 0 | EC34: 0 | ED34: 0 | EE34: 0 | EF34: 0 | EG34: 0 | EH34: 0 | EI34: 0 | EJ34: 0 | EK34: 0 | EL34: 0 | EM34: 0 | EN34: 0 | EO34: 0 | EP34: 0 | EQ34: 0 | ER34: 0 | ES34: 0 | ET34: 0 | EU34: 0 | EV34: 0 | EW34: 0 | EX34: 0 | EY34: 0 | EZ34: 0 | FA34: 0 | FB34: 0 | FC34: 0 | FD34: 0 | FE34: 0 | FF34: 0 | FG34: 0 | FH34: 0 | FI34: 0 | FJ34: 0 | FK34: 0 | FL34: 0 | FM34: 0 | FN34: 0 | FO34: 0 | FP34: 0 | FQ34: 0 | FR34: 0 | FS34: 0 | FT34: 0 | FU34: 0 | FV34: 0 | FX34: =CONCATENATE("GJ/",GB34) -> GJ/ | FZ34: t-C/GJ | GB34: =IF(G34="","",IF(G34=$GB$6,$GB$7,IF(G34=$GB$8,$GB$9,IF(G34=$GB$10,$GB$11,IF(G34=$GB$12,$GB$13,G34))))) -> 
D35: 小 計 | DF35: =SUBTOTAL(9,DF6:DF34) -> 0 | DG35: 0 | DH35: 0 | DI35: 0 | DJ35: 0 | DK35: 0 | DL35: 0 | DM35: 0 | DN35: 0 | DO35: 0 | DP35: 0 | DQ35: 0 | DR35: 0 | DS35: 0 | DT35: 0 | DU35: 0 | DV35: 0 | EC35: =SUBTOTAL(9,EC6:EC34) -> 0 | ED35: 0 | EE35: 0 | EF35: 0 | EG35: 0 | EH35: 0 | EI35: 0 | EJ35: 0 | EK35: 0 | EL35: 0 | EM35: 0 | EN35: 0 | EO35: 0 | EP35: 0 | EQ35: 0 | ER35: 0 | ES35: 0 | EZ35: =SUBTOTAL(9,EZ6:EZ34) -> 0 | FA35: =SUBTOTAL(9,FA6:FA34) -> 0 | FB35: 0 | FC35: 0 | FD35: 0 | FE35: 0 | FF35: 0 | FG35: 0 | FH35: 0 | FI35: 0 | FJ35: 0 | FK35: 0 | FL35: 0 | FM35: 0 | FN35: 0 | FO35: 0 | FP35: 0 | FQ35: 0 | FR35: =SUBTOTAL(9,FR6:FR34) -> 0 | FS35: 0 | FT35: 0 | FU35: 0 | FV35: 0
C36: 熱 | D36: 産業用蒸気 | G36: MJ | BJ36: 0 | BK36: 0 | BL36: 0 | BM36: 0 | BN36: 0 | BO36: 0 | BP36: 0 | BQ36: 0 | BR36: 0 | BS36: 0 | BT36: 0 | BU36: 0 | BV36: 0 | BW36: 0 | BX36: 0 | BY36: 0 | BZ36: 0 | CA36: 0 | CB36: =AD36-BE36 -> 0 | CC36: =AE36-BF36 -> 0 | CD36: =AF36-BG36 -> 0 | CE36: =AG36-BH36 -> 0 | CF36: =AH36-BI36 -> 0 | CG36: =VLOOKUP($G36,$GB$6:$GC$15,2,FALSE) -> 1000 | CH36: GJ | CI36: =ROUND(H14_控除後使用量/単位補正２,0) -> 0 | CJ36: =ROUND(H15_控除後使用量/単位補正２,0) -> 0 | CK36: =ROUND(H16_控除後使用量/単位補正２,0) -> 0 | CL36: =ROUND(H17_控除後使用量/単位補正２,0) -> 0 | CM36: =ROUND(H18_控除後使用量/単位補正２,0) -> 0 | CN36: =ROUND(H19_控除後使用量/単位補正２,0) -> 0 | CO36: =ROUND(H20_控除後使用量/単位補正２,0) -> 0 | CP36: =ROUND(H21_控除後使用量/単位補正２,0) -> 0 | CQ36: =ROUND(H22_控除後使用量/単位補正２,0) -> 0 | CR36: =ROUND(H23_控除後使用量/単位補正２,0) -> 0 | CS36: =ROUND(H24_控除後使用量/単位補正２,0) -> 0 | CT36: =ROUND(H25_控除後使用量/単位補正２,0) -> 0 | CU36: =ROUND(H26_控除後使用量/単位補正２,0) -> 0 | CV36: =ROUND(H27_控除後使用量/単位補正２,0) -> 0 | CW36: =ROUND(H28_控除後使用量/単位補正２,0) -> 0 | CX36: =ROUND(H29_控除後使用量/単位補正２,0) -> 0 | CY36: =ROUND(H30_控除後使用量/単位補正２,0) -> 0 | CZ36: =ROUND(CA36/単位補正２,0) -> 0 | DA36: 0 | DB36: 0 | DC36: 0 | DD36: 0 | DE36: 0 | DF36: =CI36*$FW36 -> 0 | DG36: 0 | DH36: 0 | DI36: 0 | DJ36: 0 | DK36: 0 | DL36: 0 | DM36: 0 | DN36: 0 | DO36: 0 | DP36: =CS36*$FW36 -> 0 | DQ36: 0 | DR36: 0 | DS36: 0 | DT36: 0 | DU36: 0 | DV36: 0 | DW36: 0 | DX36: 0 | DY36: 0 | DZ36: =DC36*$FW36 -> 0 | EA36: 0 | EB36: 0 | EC36: =DF36*$GC$19 -> 0 | ED36: 0 | EE36: 0 | EF36: 0 | EG36: 0 | EH36: 0 | EI36: 0 | EJ36: 0 | EK36: 0 | EL36: 0 | EM36: =DP36*$GC$19 -> 0 | EN36: 0 | EO36: 0 | EP36: 0 | EQ36: 0 | ER36: 0 | ES36: 0 | ET36: 0 | EU36: =DX36*$GC$19 -> 0 | EV36: 0 | EW36: 0 | EX36: 0 | EY36: 0 | EZ36: =CI36*$FY36 -> 0 | FA36: 0 | FB36: 0 | FC36: 0 | FD36: 0 | FE36: 0 | FF36: 0 | FG36: 0 | FH36: 0 | FI36: 0 | FJ36: =CS36*$FY36 -> 0 | FK36: 0 | FL36: 0 | FM36: 0 | FN36: 0 | FO36: 0 | FP36: 0 | FQ36: 0 | FR36: =DA36*$FY36 -> 0 | FS36: 0 | FT36: 0 | FU36: 0 | FV36: 0 | FW36: 1.02 | FX36: GJ/GJ | FY36: 0.06 | FZ36: t-CO2 /GJ
D37: 産業用以外の蒸気 | G37: MJ | BJ37: 0 | BK37: 0 | BL37: 0 | BM37: 0 | BN37: 0 | BO37: 0 | BP37: 0 | BQ37: 0 | BR37: 0 | BS37: 0 | BT37: 0 | BU37: 0 | BV37: 0 | BW37: 0 | BX37: 0 | BY37: 0 | BZ37: 0 | CA37: 0 | CB37: 0 | CC37: 0 | CD37: 0 | CE37: 0 | CF37: 0 | CG37: =VLOOKUP($G37,$GB$6:$GC$15,2,FALSE) -> 1000 | CH37: GJ | CI37: 0 | CJ37: 0 | CK37: 0 | CL37: 0 | CM37: 0 | CN37: 0 | CO37: 0 | CP37: 0 | CQ37: 0 | CR37: 0 | CS37: 0 | CT37: 0 | CU37: 0 | CV37: 0 | CW37: 0 | CX37: 0 | CY37: 0 | CZ37: 0 | DA37: 0 | DB37: 0 | DC37: 0 | DD37: 0 | DE37: 0 | DF37: 0 | DG37: 0 | DH37: 0 | DI37: 0 | DJ37: 0 | DK37: 0 | DL37: 0 | DM37: 0 | DN37: 0 | DO37: 0 | DP37: 0 | DQ37: 0 | DR37: 0 | DS37: 0 | DT37: 0 | DU37: 0 | DV37: 0 | DW37: 0 | DX37: 0 | DY37: 0 | DZ37: 0 | EA37: 0 | EB37: 0 | EC37: 0 | ED37: 0 | EE37: 0 | EF37: 0 | EG37: 0 | EH37: 0 | EI37: 0 | EJ37: 0 | EK37: 0 | EL37: 0 | EM37: 0 | EN37: 0 | EO37: 0 | EP37: 0 | EQ37: 0 | ER37: 0 | ES37: 0 | ET37: 0 | EU37: 0 | EV37: 0 | EW37: 0 | EX37: 0 | EY37: 0 | EZ37: 0 | FA37: 0 | FB37: 0 | FC37: 0 | FD37: 0 | FE37: 0 | FF37: 0 | FG37: 0 | FH37: 0 | FI37: 0 | FJ37: 0 | FK37: 0 | FL37: 0 | FM37: 0 | FN37: 0 | FO37: 0 | FP37: 0 | FQ37: 0 | FR37: 0 | FS37: 0 | FT37: 0 | FU37: 0 | FV37: 0 | FW37: 1.36 | FX37: GJ/GJ | FY37: 0.057 | FZ37: t-CO2 /GJ
D38: 温水 | G38: MJ | BJ38: 0 | BK38: 0 | BL38: 0 | BM38: 0 | BN38: 0 | BO38: 0 | BP38: 0 | BQ38: 0 | BR38: 0 | BS38: 0 | BT38: 0 | BU38: 0 | BV38: 0 | BW38: 0 | BX38: 0 | BY38: 0 | BZ38: 0 | CA38: 0 | CB38: 0 | CC38: 0 | CD38: 0 | CE38: 0 | CF38: 0 | CG38: =VLOOKUP($G38,$GB$6:$GC$15,2,FALSE) -> 1000 | CH38: GJ | CI38: 0 | CJ38: 0 | CK38: 0 | CL38: 0 | CM38: 0 | CN38: 0 | CO38: 0 | CP38: 0 | CQ38: 0 | CR38: 0 | CS38: 0 | CT38: 0 | CU38: 0 | CV38: 0 | CW38: 0 | CX38: 0 | CY38: 0 | CZ38: 0 | DA38: 0 | DB38: 0 | DC38: 0 | DD38: 0 | DE38: 0 | DF38: 0 | DG38: 0 | DH38: 0 | DI38: 0 | DJ38: 0 | DK38: 0 | DL38: 0 | DM38: 0 | DN38: 0 | DO38: 0 | DP38: 0 | DQ38: 0 | DR38: 0 | DS38: 0 | DT38: 0 | DU38: 0 | DV38: 0 | DW38: 0 | DX38: 0 | DY38: 0 | DZ38: 0 | EA38: 0 | EB38: 0 | EC38: 0 | ED38: 0 | EE38: 0 | EF38: 0 | EG38: 0 | EH38: 0 | EI38: 0 | EJ38: 0 | EK38: 0 | EL38: 0 | EM38: 0 | EN38: 0 | EO38: 0 | EP38: 0 | EQ38: 0 | ER38: 0 | ES38: 0 | ET38: 0 | EU38: 0 | EV38: 0 | EW38: 0 | EX38: 0 | EY38: 0 | EZ38: 0 | FA38: 0 | FB38: 0 | FC38: 0 | FD38: 0 | FE38: 0 | FF38: 0 | FG38: 0 | FH38: 0 | FI38: 0 | FJ38: 0 | FK38: 0 | FL38: 0 | FM38: 0 | FN38: 0 | FO38: 0 | FP38: 0 | FQ38: 0 | FR38: 0 | FS38: 0 | FT38: 0 | FU38: 0 | FV38: 0 | FW38: 1.36 | FX38: GJ/GJ | FY38: 0.057 | FZ38: t-CO2 /GJ
D39: 冷水 | G39: MJ | BJ39: 0 | BK39: 0 | BL39: 0 | BM39: 0 | BN39: 0 | BO39: 0 | BP39: 0 | BQ39: 0 | BR39: 0 | BS39: 0 | BT39: 0 | BU39: 0 | BV39: 0 | BW39: 0 | BX39: 0 | BY39: 0 | BZ39: 0 | CA39: 0 | CB39: 0 | CC39: 0 | CD39: 0 | CE39: 0 | CF39: 0 | CG39: =VLOOKUP($G39,$GB$6:$GC$15,2,FALSE) -> 1000 | CH39: GJ | CI39: 0 | CJ39: 0 | CK39: 0 | CL39: 0 | CM39: 0 | CN39: 0 | CO39: 0 | CP39: 0 | CQ39: 0 | CR39: 0 | CS39: 0 | CT39: 0 | CU39: 0 | CV39: 0 | CW39: 0 | CX39: 0 | CY39: 0 | CZ39: 0 | DA39: 0 | DB39: 0 | DC39: 0 | DD39: 0 | DE39: 0 | DF39: 0 | DG39: 0 | DH39: 0 | DI39: 0 | DJ39: 0 | DK39: 0 | DL39: 0 | DM39: 0 | DN39: 0 | DO39: 0 | DP39: 0 | DQ39: 0 | DR39: 0 | DS39: 0 | DT39: 0 | DU39: 0 | DV39: 0 | DW39: 0 | DX39: 0 | DY39: 0 | DZ39: 0 | EA39: 0 | EB39: 0 | EC39: 0 | ED39: 0 | EE39: 0 | EF39: 0 | EG39: 0 | EH39: 0 | EI39: 0 | EJ39: 0 | EK39: 0 | EL39: 0 | EM39: 0 | EN39: 0 | EO39: 0 | EP39: 0 | EQ39: 0 | ER39: 0 | ES39: 0 | ET39: 0 | EU39: 0 | EV39: 0 | EW39: 0 | EX39: 0 | EY39: 0 | EZ39: 0 | FA39: 0 | FB39: 0 | FC39: 0 | FD39: 0 | FE39: 0 | FF39: 0 | FG39: 0 | FH39: 0 | FI39: 0 | FJ39: 0 | FK39: 0 | FL39: 0 | FM39: 0 | FN39: 0 | FO39: 0 | FP39: 0 | FQ39: 0 | FR39: 0 | FS39: 0 | FT39: 0 | FU39: 0 | FV39: 0 | FW39: 1.36 | FX39: GJ/GJ | FY39: 0.057 | FZ39: t-CO2 /GJ
D40: 再生可能エネルギーの環境価値を移転した熱 | G40: MJ | BJ40: 0 | BK40: 0 | BL40: 0 | BM40: 0 | BN40: 0 | BO40: 0 | BP40: 0 | BQ40: 0 | BR40: 0 | BS40: 0 | BT40: 0 | BU40: 0 | BV40: 0 | BW40: 0 | BX40: 0 | BY40: 0 | BZ40: 0 | CA40: 0 | CB40: 0 | CC40: 0 | CD40: 0 | CE40: 0 | CF40: 0 | CG40: =VLOOKUP($G40,$GB$6:$GC$15,2,FALSE) -> 1000 | CH40: GJ | CI40: 0 | CJ40: 0 | CK40: 0 | CL40: 0 | CM40: 0 | CN40: 0 | CO40: 0 | CP40: 0 | CQ40: 0 | CR40: 0 | CS40: 0 | CT40: 0 | CU40: 0 | CV40: 0 | CW40: 0 | CX40: 0 | CY40: 0 | CZ40: 0 | DA40: 0 | DB40: 0 | DC40: 0 | DD40: 0 | DE40: 0 | DF40: =CI40 -> 0 | DG40: 0 | DH40: 0 | DI40: 0 | DJ40: 0 | DK40: 0 | DL40: 0 | DM40: 0 | DN40: 0 | DO40: 0 | DP40: 0 | DQ40: 0 | DR40: 0 | DS40: 0 | DT40: 0 | DU40: 0 | DV40: 0 | DW40: 0 | DX40: =DA40 -> 0 | DY40: 0 | DZ40: 0 | EA40: 0 | EB40: 0 | EZ40: 0 | FA40: 0 | FB40: 0 | FC40: 0 | FD40: 0 | FE40: 0 | FF40: 0 | FG40: 0 | FH40: 0 | FI40: 0 | FJ40: 0 | FK40: 0 | FL40: 0 | FM40: 0 | FN40: 0 | FO40: 0 | FP40: 0 | FQ40: 0 | FR40: 0 | FS40: 0 | FT40: 0 | FU40: 0 | FV40: 0 | FY40: 0.057 | FZ40: t-CO2 /GJ
D41: 小 計 | DF41: =SUBTOTAL(9,DF36:DF40) -> 0 | DG41: 0 | DH41: 0 | DI41: 0 | DJ41: 0 | DK41: 0 | DL41: 0 | DM41: 0 | DN41: 0 | DO41: 0 | DP41: 0 | DQ41: 0 | DR41: 0 | DS41: 0 | DT41: 0 | DU41: 0 | DV41: 0 | DW41: =SUBTOTAL(9,DW36:DW40) -> 0 | DX41: =SUBTOTAL(9,DX36:DX40) -> 0 | DY41: 0 | DZ41: 0 | EA41: 0 | EB41: 0 | EC41: =SUBTOTAL(9,EC36:EC40) -> 0 | ED41: 0 | EE41: 0 | EF41: 0 | EG41: 0 | EH41: 0 | EI41: 0 | EJ41: 0 | EK41: 0 | EL41: 0 | EM41: 0 | EN41: 0 | EO41: 0 | EP41: 0 | EQ41: 0 | ER41: 0 | ES41: 0 | ET41: =SUBTOTAL(9,ET36:ET40) -> 0 | EU41: =SUBTOTAL(9,EU36:EU40) -> 0 | EV41: 0 | EW41: 0 | EX41: 0 | EY41: 0 | EZ41: =SUBTOTAL(9,EZ36:EZ40) -> 0 | FA41: 0 | FB41: 0 | FC41: 0 | FD41: 0 | FE41: 0 | FF41: 0 | FG41: 0 | FH41: 0 | FI41: 0 | FJ41: 0 | FK41: 0 | FL41: 0 | FM41: 0 | FN41: 0 | FO41: 0 | FP41: 0 | FQ41: =SUBTOTAL(9,FQ36:FQ40) -> 0 | FR41: =SUBTOTAL(9,FR36:FR40) -> 0 | FS41: 0 | FT41: 0 | FU41: 0 | FV41: 0
C42: 電気 | D42: 一般電気 事業者 | E42: 昼間（8時～22時） | G42: kWh | BJ42: 0 | BK42: 0 | BL42: 0 | BM42: 0 | BN42: 0 | BO42: 0 | BP42: 0 | BQ42: 0 | BR42: 0 | BS42: 0 | BT42: 0 | BU42: 0 | BV42: 0 | BW42: 0 | BX42: 0 | BY42: 0 | BZ42: 0 | CA42: 0 | CB42: =AD42-BE42 -> 0 | CC42: =AE42-BF42 -> 0 | CD42: =AF42-BG42 -> 0 | CE42: =AG42-BH42 -> 0 | CF42: =AH42-BI42 -> 0 | CG42: =VLOOKUP($G42,$GB$6:$GC$17,2,FALSE) -> 1000 | CH42: 千kWh | CI42: 0 | CJ42: 0 | CK42: 0 | CL42: 0 | CM42: 0 | CN42: 0 | CO42: 0 | CP42: 0 | CQ42: 0 | CR42: 0 | CS42: 0 | CT42: 0 | CU42: 0 | CV42: 0 | CW42: 0 | CX42: 0 | CY42: 0 | CZ42: =ROUND(CA42/単位補正２,0) -> 0 | DA42: 0 | DB42: 0 | DC42: 0 | DD42: 0 | DE42: 0 | DF42: =CI42*$FW42 -> 0 | DG42: 0 | DH42: 0 | DI42: 0 | DJ42: 0 | DK42: 0 | DL42: 0 | DM42: 0 | DN42: 0 | DO42: 0 | DP42: =CS42*$FW42 -> 0 | DQ42: 0 | DR42: 0 | DS42: 0 | DT42: 0 | DU42: 0 | DV42: 0 | DW42: 0 | DX42: 0 | DY42: 0 | DZ42: =DC42*$FW42 -> 0 | EA42: 0 | EB42: 0 | EC42: =DF42*$GC$19 -> 0 | ED42: 0 | EE42: 0 | EF42: 0 | EG42: 0 | EH42: 0 | EI42: 0 | EJ42: 0 | EK42: 0 | EL42: 0 | EM42: =DP42*$GC$19 -> 0 | EN42: 0 | EO42: 0 | EP42: 0 | EQ42: 0 | ER42: 0 | ES42: 0 | ET42: 0 | EU42: =DX42*$GC$19 -> 0 | EV42: 0 | EW42: 0 | EX42: 0 | EY42: 0 | EZ42: =CI42*$FY42 -> 0 | FA42: 0 | FB42: 0 | FC42: 0 | FD42: 0 | FE42: 0 | FF42: 0 | FG42: 0 | FH42: 0 | FI42: 0 | FJ42: =CS42*$FY42 -> 0 | FK42: 0 | FL42: 0 | FM42: 0 | FN42: 0 | FO42: 0 | FP42: 0 | FQ42: 0 | FR42: =DA42*$FY42 -> 0 | FS42: 0 | FT42: 0 | FU42: 0 | FV42: 0 | FW42: 9.97 | FX42: GJ /千kWh | FY42: 0.495 | FZ42: t-CO2 /千kWh
E43: 夜間（22時～翌8時） | G43: kWh | BJ43: 0 | BK43: 0 | BL43: 0 | BM43: 0 | BN43: 0 | BO43: 0 | BP43: 0 | BQ43: 0 | BR43: 0 | BS43: 0 | BT43: 0 | BU43: 0 | BV43: 0 | BW43: 0 | BX43: 0 | BY43: 0 | BZ43: 0 | CA43: 0 | CB43: 0 | CC43: 0 | CD43: 0 | CE43: 0 | CF43: 0 | CG43: =VLOOKUP($G43,$GB$6:$GC$17,2,FALSE) -> 1000 | CH43: 千kWh | CI43: 0 | CJ43: 0 | CK43: 0 | CL43: 0 | CM43: 0 | CN43: 0 | CO43: 0 | CP43: 0 | CQ43: 0 | CR43: 0 | CS43: 0 | CT43: 0 | CU43: 0 | CV43: 0 | CW43: 0 | CX43: 0 | CY43: 0 | CZ43: 0 | DA43: 0 | DB43: 0 | DC43: 0 | DD43: 0 | DE43: 0 | DF43: 0 | DG43: 0 | DH43: 0 | DI43: 0 | DJ43: 0 | DK43: 0 | DL43: 0 | DM43: 0 | DN43: 0 | DO43: 0 | DP43: 0 | DQ43: 0 | DR43: 0 | DS43: 0 | DT43: 0 | DU43: 0 | DV43: 0 | DW43: 0 | DX43: 0 | DY43: 0 | DZ43: 0 | EA43: 0 | EB43: 0 | EC43: 0 | ED43: 0 | EE43: 0 | EF43: 0 | EG43: 0 | EH43: 0 | EI43: 0 | EJ43: 0 | EK43: 0 | EL43: 0 | EM43: 0 | EN43: 0 | EO43: 0 | EP43: 0 | EQ43: 0 | ER43: 0 | ES43: 0 | ET43: 0 | EU43: 0 | EV43: 0 | EW43: 0 | EX43: 0 | EY43: 0 | EZ43: 0 | FA43: 0 | FB43: 0 | FC43: 0 | FD43: 0 | FE43: 0 | FF43: 0 | FG43: 0 | FH43: 0 | FI43: 0 | FJ43: 0 | FK43: 0 | FL43: 0 | FM43: 0 | FN43: 0 | FO43: 0 | FP43: 0 | FQ43: 0 | FR43: 0 | FS43: 0 | FT43: 0 | FU43: 0 | FV43: 0 | FW43: 9.28 | FX43: GJ /千kWh | FY43: 0.495 | FZ43: t-CO2 /千kWh
D44: その他の買電 | G44: kWh | BJ44: 0 | BK44: 0 | BL44: 0 | BM44: 0 | BN44: 0 | BO44: 0 | BP44: 0 | BQ44: 0 | BR44: 0 | BS44: 0 | BT44: 0 | BU44: 0 | BV44: 0 | BW44: 0 | BX44: 0 | BY44: 0 | BZ44: 0 | CA44: 0 | CB44: 0 | CC44: 0 | CD44: 0 | CE44: 0 | CF44: 0 | CG44: =VLOOKUP($G44,$GB$6:$GC$17,2,FALSE) -> 1000 | CH44: 千kWh | CI44: 0 | CJ44: 0 | CK44: 0 | CL44: 0 | CM44: 0 | CN44: 0 | CO44: 0 | CP44: 0 | CQ44: 0 | CR44: 0 | CS44: 0 | CT44: 0 | CU44: 0 | CV44: 0 | CW44: 0 | CX44: 0 | CY44: 0 | CZ44: 0 | DA44: 0 | DB44: 0 | DC44: 0 | DD44: 0 | DE44: 0 | DF44: 0 | DG44: 0 | DH44: 0 | DI44: 0 | DJ44: 0 | DK44: 0 | DL44: 0 | DM44: 0 | DN44: 0 | DO44: 0 | DP44: 0 | DQ44: 0 | DR44: 0 | DS44: 0 | DT44: 0 | DU44: 0 | DV44: 0 | DW44: 0 | DX44: 0 | DY44: 0 | DZ44: 0 | EA44: 0 | EB44: 0 | EC44: 0 | ED44: 0 | EE44: 0 | EF44: 0 | EG44: 0 | EH44: 0 | EI44: 0 | EJ44: 0 | EK44: 0 | EL44: 0 | EM44: 0 | EN44: 0 | EO44: 0 | EP44: 0 | EQ44: 0 | ER44: 0 | ES44: 0 | ET44: 0 | EU44: 0 | EV44: 0 | EW44: 0 | EX44: 0 | EY44: 0 | EZ44: 0 | FA44: 0 | FB44: 0 | FC44: 0 | FD44: 0 | FE44: 0 | FF44: 0 | FG44: 0 | FH44: 0 | FI44: 0 | FJ44: 0 | FK44: 0 | FL44: 0 | FM44: 0 | FN44: 0 | FO44: 0 | FP44: 0 | FQ44: 0 | FR44: 0 | FS44: 0 | FT44: 0 | FU44: 0 | FV44: 0 | FW44: 9.76 | FX44: GJ /千kWh | FY44: 0.495 | FZ44: t-CO2 /千kWh
D45: 再生可能エネルギーの環境価値を移転した電気 | G45: kWh | BJ45: 0 | BK45: 0 | BL45: 0 | BM45: 0 | BN45: 0 | BO45: 0 | BP45: 0 | BQ45: 0 | BR45: 0 | BS45: 0 | BT45: 0 | BU45: 0 | BV45: 0 | BW45: 0 | BX45: 0 | BY45: 0 | BZ45: 0 | CA45: 0 | CB45: 0 | CC45: 0 | CD45: 0 | CE45: 0 | CF45: 0 | CG45: =VLOOKUP($G45,$GB$6:$GC$17,2,FALSE) -> 1000 | CH45: 千kWh | CI45: 0 | CJ45: 0 | CK45: 0 | CL45: 0 | CM45: 0 | CN45: 0 | CO45: 0 | CP45: 0 | CQ45: 0 | CR45: 0 | CS45: 0 | CT45: 0 | CU45: 0 | CV45: 0 | CW45: 0 | CX45: 0 | CY45: 0 | CZ45: 0 | DA45: 0 | DB45: 0 | DC45: 0 | DD45: 0 | DE45: 0 | EZ45: 0 | FA45: 0 | FB45: 0 | FC45: 0 | FD45: 0 | FE45: 0 | FF45: 0 | FG45: 0 | FH45: 0 | FI45: 0 | FJ45: 0 | FK45: 0 | FL45: 0 | FM45: 0 | FN45: 0 | FO45: 0 | FP45: 0 | FQ45: 0 | FR45: 0 | FS45: 0 | FT45: 0 | FU45: 0 | FV45: 0 | FY45: 0.495 | FZ45: t-CO2 /千kWh
D46: 再生可能エネルギーを自家消費した 電気 | G46: kWh | BJ46: 0 | BK46: 0 | BL46: 0 | BM46: 0 | BN46: 0 | BO46: 0 | BP46: 0 | BQ46: 0 | BR46: 0 | BS46: 0 | BT46: 0 | BU46: 0 | BV46: 0 | BW46: 0 | BX46: 0 | BY46: 0 | BZ46: 0 | CA46: 0 | CB46: 0 | CC46: 0 | CD46: 0 | CE46: 0 | CF46: 0 | CG46: =VLOOKUP($G46,$GB$6:$GC$17,2,FALSE) -> 1000 | CH46: 千kWh | CI46: 0 | CJ46: 0 | CK46: 0 | CL46: 0 | CM46: 0 | CN46: 0 | CO46: 0 | CP46: 0 | CQ46: 0 | CR46: 0 | CS46: 0 | CT46: 0 | CU46: 0 | CV46: 0 | CW46: 0 | CX46: 0 | CY46: 0 | CZ46: 0 | DA46: 0 | DB46: 0 | DC46: 0 | DD46: 0 | DE46: 0 | EZ46: =-ABS(CI46*$GA46) -> 0 | FA46: 0 | FB46: 0 | FC46: 0 | FD46: 0 | FE46: 0 | FF46: 0 | FG46: 0 | FH46: 0 | FI46: 0 | FJ46: 0 | FK46: 0 | FL46: 0 | FM46: 0 | FN46: 0 | FO46: 0 | FP46: 0 | FQ46: 0 | FR46: 0 | FS46: 0 | FT46: =-ABS(DC46*$FY46) -> 0 | FU46: =-ABS(DD46*$FY46) -> 0 | FV46: 0 | FY46: -0.2445 | FZ46: t-CO2 /千kWh | GA46: -0.193
D47: 小 計 | DF47: =SUBTOTAL(9,DF42:DF46) -> 0 | DG47: 0 | DH47: 0 | DI47: 0 | DJ47: 0 | DK47: 0 | DL47: 0 | DM47: 0 | DN47: 0 | DO47: 0 | DP47: 0 | DQ47: 0 | DR47: 0 | DS47: 0 | DT47: 0 | DU47: 0 | DV47: 0 | DW47: =SUBTOTAL(9,DW42:DW46) -> 0 | DX47: =SUBTOTAL(9,DX42:DX46) -> 0 | DY47: 0 | DZ47: 0 | EA47: 0 | EB47: 0 | EC47: =SUBTOTAL(9,EC42:EC46) -> 0 | ED47: 0 | EE47: 0 | EF47: 0 | EG47: 0 | EH47: 0 | EI47: 0 | EJ47: 0 | EK47: 0 | EL47: 0 | EM47: 0 | EN47: 0 | EO47: 0 | EP47: 0 | EQ47: 0 | ER47: 0 | ES47: 0 | ET47: =SUBTOTAL(9,ET42:ET46) -> 0 | EU47: =SUBTOTAL(9,EU42:EU46) -> 0 | EV47: 0 | EW47: 0 | EX47: 0 | EY47: 0 | EZ47: =SUBTOTAL(9,EZ42:EZ46) -> 0 | FA47: 0 | FB47: 0 | FC47: 0 | FD47: 0 | FE47: 0 | FF47: 0 | FG47: 0 | FH47: 0 | FI47: 0 | FJ47: 0 | FK47: 0 | FL47: 0 | FM47: 0 | FN47: 0 | FO47: 0 | FP47: 0 | FQ47: =SUBTOTAL(9,FQ42:FQ46) -> 0 | FR47: =SUBTOTAL(9,FR42:FR46) -> 0 | FS47: 0 | FT47: 0 | FU47: 0 | FV47: 0
C48: 外部供給 | D48: 自ら生成した熱の供給 | G48: GJ | AM48: ='１．燃料単位換算(建物系)'!AG56 -> 0 | AN48: ='１．燃料単位換算(建物系)'!AH56 -> 0 | AO48: ='１．燃料単位換算(建物系)'!AI56 -> 0 | AP48: ='１．燃料単位換算(建物系)'!AJ56 -> 0 | AQ48: ='１．燃料単位換算(建物系)'!AK56 -> 0 | AR48: ='１．燃料単位換算(建物系)'!AL56 -> 0 | AS48: ='１．燃料単位換算(建物系)'!AM56 -> 0 | AT48: ='１．燃料単位換算(建物系)'!AN56 -> 0 | AU48: ='１．燃料単位換算(建物系)'!AO56 -> 0 | AV48: ='１．燃料単位換算(建物系)'!AP56 -> 0 | AW48: ='１．燃料単位換算(建物系)'!AQ56 -> 0 | AX48: ='１．燃料単位換算(建物系)'!AR56 -> 0 | AY48: ='１．燃料単位換算(建物系)'!AS56 -> 0 | AZ48: ='１．燃料単位換算(建物系)'!AT56 -> 0 | BA48: ='１．燃料単位換算(建物系)'!AU56 -> 0 | BB48: ='１．燃料単位換算(建物系)'!AV56 -> 0 | BC48: ='１．燃料単位換算(建物系)'!AW56 -> 0 | BD48: ='１．燃料単位換算(建物系)'!AX56 -> 0 | BE48: ='１．燃料単位換算(建物系)'!AY56 -> 0 | BF48: ='１．燃料単位換算(建物系)'!AZ56 -> 0 | BG48: ='１．燃料単位換算(建物系)'!BA56 -> 0 | BH48: ='１．燃料単位換算(建物系)'!BB56 -> 0 | BI48: ='１．燃料単位換算(建物系)'!BC56 -> 0 | BJ48: =AM48 -> 0 | BK48: 0 | BL48: 0 | BM48: 0 | BN48: 0 | BO48: 0 | BP48: 0 | BQ48: 0 | BR48: 0 | BS48: 0 | BT48: =AW48 -> 0 | BU48: 0 | BV48: 0 | BW48: 0 | BX48: 0 | BY48: 0 | BZ48: 0 | CA48: 0 | CB48: =BE48 -> 0 | CC48: 0 | CD48: 0 | CE48: 0 | CF48: 0 | CG48: =VLOOKUP($G48,$GB$6:$GC$15,2,FALSE) -> 1 | CH48: GJ | CI48: 0 | CJ48: 0 | CK48: 0 | CL48: 0 | CM48: 0 | CN48: 0 | CO48: 0 | CP48: 0 | CQ48: 0 | CR48: 0 | CS48: 0 | CT48: 0 | CU48: 0 | CV48: 0 | CW48: 0 | CX48: 0 | CY48: 0 | CZ48: =ROUND(CA48/単位補正２,0) -> 0 | DA48: 0 | DB48: 0 | DC48: 0 | DD48: 0 | DE48: 0 | DF48: =CI48 -> 0 | DG48: 0 | DH48: 0 | DI48: 0 | DJ48: 0 | DK48: 0 | DL48: 0 | DM48: 0 | DN48: 0 | DO48: 0 | DP48: 0 | DQ48: 0 | DR48: 0 | DS48: 0 | DT48: 0 | DU48: 0 | DV48: 0 | DW48: 0 | DX48: =DA48 -> 0 | DY48: 0 | DZ48: 0 | EA48: 0 | EB48: 0 | EZ48: =IF(ISERROR(-ABS(CI48*$FY48)),"",(-ABS(CI48*$FY48))) -> 0 | FA48: 0 | FB48: 0 | FC48: 0 | FD48: 0 | FE48: 0 | FF48: 0 | FG48: 0 | FH48: 0 | FI48: 0 | FJ48: =IF(ISERROR(-ABS(CS48*$FY48)),"",(-ABS(CS48*$FY48))) -> 0 | FK48: 0 | FL48: 0 | FM48: 0 | FN48: 0 | FO48: 0 | FP48: 0 | FQ48: 0 | FR48: =IF(ISERROR(-ABS(DA48*$FY48)),"",(-ABS(DA48*$FY48))) -> 0 | FS48: 0 | FT48: 0 | FU48: 0 | FV48: 0
D49: 自ら生成した電力の供給 | G49: 千kWh | AM49: ='１．燃料単位換算(建物系)'!AG54 -> 0 | AN49: ='１．燃料単位換算(建物系)'!AH54 -> 0 | AO49: ='１．燃料単位換算(建物系)'!AI54 -> 0 | AP49: ='１．燃料単位換算(建物系)'!AJ54 -> 0 | AQ49: ='１．燃料単位換算(建物系)'!AK54 -> 0 | AR49: ='１．燃料単位換算(建物系)'!AL54 -> 0 | AS49: ='１．燃料単位換算(建物系)'!AM54 -> 0 | AT49: ='１．燃料単位換算(建物系)'!AN54 -> 0 | AU49: ='１．燃料単位換算(建物系)'!AO54 -> 0 | AV49: ='１．燃料単位換算(建物系)'!AP54 -> 0 | AW49: ='１．燃料単位換算(建物系)'!AQ54 -> 0 | AX49: ='１．燃料単位換算(建物系)'!AR54 -> 0 | AY49: ='１．燃料単位換算(建物系)'!AS54 -> 0 | AZ49: ='１．燃料単位換算(建物系)'!AT54 -> 0 | BA49: ='１．燃料単位換算(建物系)'!AU54 -> 0 | BB49: ='１．燃料単位換算(建物系)'!AV54 -> 0 | BC49: ='１．燃料単位換算(建物系)'!AW54 -> 0 | BD49: ='１．燃料単位換算(建物系)'!AX54 -> 0 | BE49: ='１．燃料単位換算(建物系)'!AY54 -> 0 | BF49: ='１．燃料単位換算(建物系)'!AZ54 -> 0 | BG49: ='１．燃料単位換算(建物系)'!BA54 -> 0 | BH49: ='１．燃料単位換算(建物系)'!BB54 -> 0 | BI49: ='１．燃料単位換算(建物系)'!BC54 -> 0 | BJ49: 0 | BK49: 0 | BL49: 0 | BM49: 0 | BN49: 0 | BO49: 0 | BP49: 0 | BQ49: 0 | BR49: 0 | BS49: 0 | BT49: 0 | BU49: 0 | BV49: 0 | BW49: 0 | BX49: 0 | BY49: 0 | BZ49: 0 | CA49: 0 | CB49: 0 | CC49: 0 | CD49: 0 | CE49: 0 | CF49: 0 | CG49: =VLOOKUP($G49,$GB$6:$GC$17,2,FALSE) -> 1 | CH49: 千kWh | CI49: 0 | CJ49: 0 | CK49: 0 | CL49: 0 | CM49: 0 | CN49: 0 | CO49: 0 | CP49: 0 | CQ49: 0 | CR49: 0 | CS49: 0 | CT49: 0 | CU49: 0 | CV49: 0 | CW49: 0 | CX49: 0 | CY49: 0 | CZ49: 0 | DA49: 0 | DB49: 0 | DC49: 0 | DD49: 0 | DE49: 0 | EZ49: 0 | FA49: 0 | FB49: 0 | FC49: 0 | FD49: 0 | FE49: 0 | FF49: 0 | FG49: 0 | FH49: 0 | FI49: 0 | FJ49: 0 | FK49: 0 | FL49: 0 | FM49: 0 | FN49: 0 | FO49: 0 | FP49: 0 | FQ49: 0 | FR49: 0 | FS49: 0 | FT49: 0 | FU49: 0 | FV49: 0
D50: 小 計 | EZ50: =SUBTOTAL(9,EZ48:EZ49) -> 0 | FA50: =SUBTOTAL(9,FA48:FA49) -> 0 | FB50: 0 | FC50: 0 | FD50: 0 | FE50: 0 | FF50: 0 | FG50: 0 | FH50: 0 | FI50: 0 | FJ50: 0 | FK50: 0 | FL50: 0 | FM50: 0 | FN50: 0 | FO50: 0 | FP50: 0 | FQ50: 0 | FR50: =SUBTOTAL(9,FR48:FR49) -> 0 | FS50: 0 | FT50: 0 | FU50: 0 | FV50: 0
D51: コージェネレーションＣＯ₂削減量 | G51: t-CO2 | CG51: 1 | CH51: t-CO2 | CI51: =H14_控除後使用量/単位補正２ -> 0 | CJ51: =H15_控除後使用量/単位補正２ -> 0 | CK51: =H16_控除後使用量/単位補正２ -> 0 | CL51: =H17_控除後使用量/単位補正２ -> 0 | CM51: =H18_控除後使用量/単位補正２ -> 0 | CN51: =H19_控除後使用量/単位補正２ -> 0 | CO51: =H20_控除後使用量/単位補正２ -> 0 | CP51: =H21_控除後使用量/単位補正２ -> 0 | CQ51: =H22_控除後使用量/単位補正２ -> 0 | CR51: =H23_控除後使用量/単位補正２ -> 0 | CS51: =H24_控除後使用量/単位補正２ -> 0 | CT51: =H25_控除後使用量/単位補正２ -> 0 | CU51: =H26_控除後使用量/単位補正２ -> 0 | CV51: =H27_控除後使用量/単位補正２ -> 0 | CW51: =H28_控除後使用量/単位補正２ -> 0 | CX51: =H29_控除後使用量/単位補正２ -> 0 | CY51: =H30_控除後使用量/単位補正２ -> 0 | CZ51: =ROUND(CA51/単位補正２,0) -> 0 | DA51: =ROUND(CB51/単位補正２,0) -> 0 | DB51: =ROUND(CC51/単位補正２,0) -> 0 | DC51: =ROUND(CD51/単位補正２,0) -> 0 | DD51: =ROUND(CE51/単位補正２,0) -> 0 | DE51: =ROUND(CF51/単位補正２,0) -> 0 | EZ51: =-ABS(L51) -> 0 | FA51: =-ABS(M51) -> 0 | FB51: =-ABS(N51) -> 0 | FC51: =-ABS(O51) -> 0 | FD51: =-ABS(P51) -> 0 | FE51: =-ABS(Q51) -> 0 | FF51: =-ABS(R51) -> 0 | FG51: =-ABS(S51) -> 0 | FH51: =-ABS(T51) -> 0 | FI51: =-ABS(U51) -> 0 | FJ51: =-ABS(V51) -> 0 | FK51: =-ABS(W51) -> 0 | FL51: =-ABS(X51) -> 0 | FM51: =-ABS(Y51) -> 0 | FN51: =-ABS(Z51) -> 0 | FO51: =-ABS(AA51) -> 0 | FP51: =-ABS(AB51) -> 0 | FQ51: =-ABS(AC51) -> 0 | FR51: =-ABS(AD51) -> 0 | FS51: =-ABS(AE51) -> 0 | FT51: =-ABS(AF51) -> 0 | FU51: =-ABS(AG51) -> 0 | FV51: =-ABS(AH51) -> 0
D52: 低炭素電力ＣＯ₂削減量 | G52: t-CO2 | CG52: 1 | CH52: t-CO2 | CI52: =H14_控除後使用量/単位補正２ -> 0 | CJ52: =H15_控除後使用量/単位補正２ -> 0 | CK52: =H16_控除後使用量/単位補正２ -> 0 | CL52: =H17_控除後使用量/単位補正２ -> 0 | CM52: =H18_控除後使用量/単位補正２ -> 0 | CN52: =H19_控除後使用量/単位補正２ -> 0 | CO52: =H20_控除後使用量/単位補正２ -> 0 | CP52: =H21_控除後使用量/単位補正２ -> 0 | CQ52: =H22_控除後使用量/単位補正２ -> 0 | CR52: =H23_控除後使用量/単位補正２ -> 0 | CS52: =H24_控除後使用量/単位補正２ -> 0 | CT52: =H25_控除後使用量/単位補正２ -> 0 | CU52: =H26_控除後使用量/単位補正２ -> 0 | CV52: =H27_控除後使用量/単位補正２ -> 0 | CW52: =H28_控除後使用量/単位補正２ -> 0 | CX52: =H29_控除後使用量/単位補正２ -> 0 | CY52: =H30_控除後使用量/単位補正２ -> 0 | CZ52: =ROUND(CA52/単位補正２,0) -> 0 | DA52: 0 | DB52: 0 | DC52: 0 | DD52: 0 | DE52: 0 | EZ52: =-ABS(L52) -> 0 | FA52: 0 | FB52: 0 | FC52: 0 | FD52: 0 | FE52: 0 | FF52: 0 | FG52: 0 | FH52: 0 | FI52: 0 | FJ52: 0 | FK52: 0 | FL52: 0 | FM52: 0 | FN52: 0 | FO52: 0 | FP52: 0 | FQ52: 0 | FR52: =-ABS(AD52) -> 0 | FS52: 0 | FT52: 0 | FU52: 0 | FV52: 0
D53: 合 計 | L53: =L35+L41+L47+L50 -> 0 | M53: 0 | N53: 0 | O53: 0 | P53: 0 | Q53: 0 | R53: 0 | S53: 0 | T53: 0 | U53: 0 | V53: 0 | W53: 0 | X53: 0 | Y53: 0 | Z53: 0 | AA53: 0 | AB53: 0 | AC53: 0 | AD53: 0 | AE53: 0 | AF53: 0 | AG53: 0 | AH53: 0 | AI53: 0 | AJ53: 0 | AK53: 0 | AL53: 0 | AM53: 0 | AN53: 0 | AO53: 0 | AP53: 0 | AQ53: 0 | AR53: =AR35+AR41+AR47+AR50 -> 0 | AS53: 0 | AT53: 0 | AU53: 0 | AV53: 0 | AW53: 0 | AX53: 0 | AY53: 0 | AZ53: 0 | BA53: 0 | BB53: 0 | BC53: 0 | BD53: 0 | BE53: 0 | BF53: 0 | BG53: 0 | BH53: 0 | BI53: 0 | DF53: =DF35+DF41+DF47 -> 0 | DG53: 0 | DH53: 0 | DI53: 0 | DJ53: 0 | DK53: 0 | DL53: 0 | DM53: 0 | DN53: 0 | DO53: 0 | DP53: 0 | DQ53: 0 | DR53: 0 | DS53: 0 | DT53: 0 | DU53: 0 | DV53: 0 | DW53: 0 | DX53: 0 | DY53: 0 | DZ53: 0 | EA53: 0 | EB53: 0 | EC53: =DF53*$GC$19 -> 0 | ED53: 0 | EE53: 0 | EF53: 0 | EG53: 0 | EH53: 0 | EI53: 0 | EJ53: 0 | EK53: 0 | EL53: 0 | EM53: 0 | EN53: 0 | EO53: 0 | EP53: 0 | EQ53: 0 | ER53: 0 | ES53: 0 | ET53: 0 | EU53: =DX53*$GC$19 -> 0 | EV53: 0 | EW53: 0 | EX53: 0 | EY53: 0 | EZ53: =ROUND((IF(EZ35+EZ41+EZ47+EZ50+EZ52<0,0,EZ35+EZ41+EZ47+EZ50+EZ51+EZ52)),0) -> 0 | FA53: =ROUND((IF(FA35+FA41+FA47+FA50+FA52<0,0,FA35+FA41+FA47+FA50+FA51+FA52)),0) -> 0 | FB53: 0 | FC53: 0 | FD53: 0 | FE53: 0 | FF53: 0 | FG53: 0 | FH53: 0 | FI53: 0 | FJ53: 0 | FK53: 0 | FL53: 0 | FM53: 0 | FN53: 0 | FO53: 0 | FP53: 0 | FQ53: 0 | FR53: 0 | FS53: 0 | FT53: 0 | FU53: 0 | FV53: 0

Sheet ３．自動車燃料チェック
A1: ３．自動車燃料に関するCO2排出量（自動車燃料チェックシート） | V1: 0
A2: （エコアップ認証自動車履歴ＣＯ₂排出量計算用）
A3: 事業所名
A4: ■ 燃料実績 | B4: （２）燃料実績 | C4: （３）燃料実績
D5: 燃料使用量 | V5: 単位当たり発熱量 | X5: 熱量 | Y5: 原油換算 | Z5: 原油換算係数 | AA5: 原油換算使用量 | AB5: 排出係数 | AE5: 二酸化炭素換算係数 | AF5: 二酸化炭素排出量 (t-CO2) | AW5: 引用する排出係数等 | BF5: =データコピー!$R$1 -> 5
E6: ① | I6: ① | V6: ② | X6: ③=①×② | Y6: ④ | AA6: ⑤=①×②×④ | AB6: ⑥ | AD6: ⑦ | AF6: ⑦=①×②×⑥ ×44/12 | AJ6: ⑦=①×②×⑥ ×44/12
D7: 単位 | E7: H20 | F7: H21 | G7: H22 | H7: H23 | I7: H24 | J7: H25 | K7: H26 | L7: H27 | M7: H28 | N7: H29 | O7: H30 | P7: H31/R1 | Q7: R2 | R7: R3 | S7: R4 | T7: R5 | U7: R6 | W7: 単位 | X7: GJ | Y7: kL/GJ | AA7: kL | AC7: 単位 | AE7: t-CO2/使用量 | AF7: H20 | AG7: H21 | AH7: H22 | AI7: H23 | AJ7: H24 | AK7: H25 | AL7: H26 | AM7: H27 | AN7: H28 | AO7: H29 | AP7: H30 | AQ7: H31/R1 | AR7: R2 | AS7: R3 | AT7: R4 | AU7: R5 | AV7: R6 | AW7: 換算 係数 | AX7: 単位
A8: 原油（コンデンセートを除く） | D8: kL | V8: 38.2 | W8: GJ/kL | X8: =E8*V8 -> 0 | Y8: 0.0258 | Z8: =ROUNDDOWN(V8*Y$8,5-INT(LOG(ABS(V8*Y$8)))) -> 0.98556 | AA8: =E8*V8*Y$8 -> 0 | AB8: 0.0187 | AC8: t-C/GJ | AD8: 44/12 | AE8: =ROUNDDOWN(V8*AB8*44/12,2-INT(LOG(ABS(V8*Y$8*AB8*44/12)))) -> 2.6192 | AF8: =E8*V8*AB8*44/12 -> 0 | AJ8: =I8*Z8*AF8*44/12 -> 0
A9: 原油のうちコンデンセート（ＮＧＬ） | D9: kL | V9: 35.3 | W9: GJ/kL | X9: =E9*V9 -> 0 | Z9: 0.91074 | AA9: =E9*V9*Y$8 -> 0 | AB9: 0.0184 | AC9: t-C/GJ | AD9: 44/12 | AE9: 2.3815 | AF9: =E9*V9*AB9*44/12 -> 0 | AJ9: =I9*Z9*AF9*44/12 -> 0
A10: ガソリン | D10: kL | V10: 34.6 | W10: GJ/kL | X10: =E10*V10/1000 -> 0 | Z10: 0.89268 | AA10: =E10*V10*Y$8/1000 -> 0 | AB10: 0.0183 | AC10: t-C/GJ | AD10: 44/12 | AE10: 2.3216 | AF10: =ROUND(E10*$V10*$AB10*44/12,2) -> 0 | AG10: 0 | AH10: 0 | AI10: 0 | AJ10: 0 | AK10: 0 | AL10: 0 | AM10: 0 | AN10: 0 | AO10: 0 | AP10: 0 | AQ10: 0 | AR10: 0 | AS10: 0 | AT10: 0 | AU10: 0 | AV10: 0
A11: ナフサ | D11: kL | V11: 33.6 | W11: GJ/kL | X11: =E11*V11 -> 0 | Z11: 0.86688 | AA11: =E11*V11*Y$8 -> 0 | AB11: 0.0182 | AC11: t-C/GJ | AD11: 44/12 | AE11: 2.2422 | AF11: =E11*$V11*$AB11*44/12/1000 -> 0 | AG11: 0 | AH11: 0 | AI11: 0 | AJ11: 0 | AK11: 0 | AL11: 0 | AM11: 0 | AN11: 0 | AO11: 0 | AP11: =O11*$V11*$AB11*44/12/1000 -> 0 | AQ11: 0 | AR11: 0 | AS11: 0 | AT11: 0 | AU11: 0 | AV11: 0
A12: 灯油 | D12: kL | V12: 36.7 | W12: GJ/kL | X12: =E12*V12 -> 0 | Z12: 0.94686 | AA12: =E12*V12*Y$8 -> 0 | AB12: 0.0185 | AC12: t-C/GJ | AD12: 44/12 | AE12: 2.4894 | AF12: 0 | AG12: 0 | AH12: 0 | AI12: 0 | AJ12: 0 | AK12: 0 | AL12: 0 | AM12: 0 | AN12: 0 | AO12: 0 | AP12: 0 | AQ12: 0 | AR12: 0 | AS12: 0 | AT12: 0 | AU12: 0 | AV12: 0
A13: 軽油 | D13: kL | V13: 37.7 | W13: GJ/kL | X13: =E13*V13/1000 -> 0 | Z13: 0.97266 | AA13: =E13*V13*Y$8/1000 -> 0 | AB13: 0.0187 | AC13: t-C/GJ | AD13: 44/12 | AE13: 2.5849 | AF13: =ROUND(E13*$V13*$AB13*44/12,2) -> 0 | AG13: 0 | AH13: 0 | AI13: 0 | AJ13: 0 | AK13: 0 | AL13: 0 | AM13: 0 | AN13: 0 | AO13: 0 | AP13: =ROUND(O13*$V13*$AB13*44/12,2) -> 0 | AQ13: 0 | AR13: 0 | AS13: 0 | AT13: 0 | AU13: 0 | AV13: 0
A14: 軽油(建機等）* | D14: kL | V14: 37.7 | W14: GJ/kL | X14: =E14*V14/1000 -> 0 | Z14: =ROUNDDOWN(V14*Y$8,5-INT(LOG(ABS(V14*Y$8)))) -> 0.97266 | AA14: =E14*V14*Y$8/1000 -> 0 | AB14: 0.0187 | AC14: t-C/GJ | AD14: 44/12 | AE14: =ROUNDDOWN(V14*AB14*44/12,2-INT(LOG(ABS(V14*Y$8*AB14*44/12)))) -> 2.5849 | AF14: 0 | AG14: 0 | AH14: 0 | AI14: 0 | AJ14: 0 | AK14: 0 | AL14: 0 | AM14: 0 | AN14: 0 | AO14: 0 | AP14: 0 | AQ14: 0 | AR14: 0 | AS14: 0 | AT14: 0 | AU14: 0 | AV14: 0
A15: Ａ重油 | D15: kL | V15: 39.1 | W15: GJ/kL | X15: =E15*V15 -> 0 | Z15: 1.00878 | AA15: =E15*V15*Y$8 -> 0 | AB15: 0.0189 | AC15: t-C/GJ | AD15: 44/12 | AE15: 2.7096 | AF15: =E15*$V15*$AB15*44/12/1000 -> 0 | AG15: 0 | AH15: 0 | AI15: 0 | AJ15: 0 | AK15: 0 | AL15: 0 | AM15: 0 | AN15: 0 | AO15: 0 | AP15: =O15*$V15*$AB15*44/12/1000 -> 0 | AQ15: 0 | AR15: 0 | AS15: 0 | AT15: 0 | AU15: 0 | AV15: 0
A16: Ｂ・Ｃ重油 | D16: kL | V16: 41.9 | W16: GJ/kL | X16: =E16*V16 -> 0 | Z16: 1.08102 | AA16: =E16*V16*Y$8 -> 0 | AB16: 0.0195 | AC16: t-C/GJ | AD16: 44/12 | AE16: 2.9958 | AF16: 0 | AG16: 0 | AH16: 0 | AI16: 0 | AJ16: 0 | AK16: 0 | AL16: 0 | AM16: 0 | AN16: 0 | AO16: 0 | AP16: 0 | AQ16: 0 | AR16: 0 | AS16: 0 | AT16: 0 | AU16: 0 | AV16: 0
A17: 石油アスファルト | D17: t | V17: 40.9 | W17: GJ/t | X17: =E17*V17 -> 0 | Z17: 1.05522 | AA17: =E17*V17*Y$8 -> 0 | AB17: 0.0208 | AC17: t-C/GJ | AD17: 44/12 | AE17: 3.1193 | AF17: 0 | AG17: 0 | AH17: 0 | AI17: 0 | AJ17: 0 | AK17: 0 | AL17: 0 | AM17: 0 | AN17: 0 | AO17: 0 | AP17: 0 | AQ17: 0 | AR17: 0 | AS17: 0 | AT17: 0 | AU17: 0 | AV17: 0
A18: 石油コークス | D18: t | V18: 29.9 | W18: GJ/t | X18: =E18*V18 -> 0 | Z18: 0.77142 | AA18: =E18*V18*Y$8 -> 0 | AB18: 0.0254 | AC18: t-C/GJ | AD18: 44/12 | AE18: 2.7846 | AF18: 0 | AG18: 0 | AH18: 0 | AI18: 0 | AJ18: 0 | AK18: 0 | AL18: 0 | AM18: 0 | AN18: 0 | AO18: 0 | AP18: 0 | AQ18: 0 | AR18: 0 | AS18: 0 | AT18: 0 | AU18: 0 | AV18: 0
A19: 液化石油ガス （ＬＰＧ） | D19: 千ｍ3 | V19: 50.8 | W19: GJ/t | X19: =E19*V19/1000 -> 0 | Z19: 1.31064 | AA19: =E19*V19*Y$8/1000 -> 0 | AB19: 0.0161 | AC19: t-C/GJ | AD19: 44/12 | AE19: 2.9988 | AF19: =ROUND(E19*$V19*$AB19*44/12/0.458,2) -> 0 | AG19: 0 | AH19: 0 | AI19: 0 | AJ19: 0 | AK19: 0 | AL19: 0 | AM19: 0 | AN19: 0 | AO19: 0 | AP19: 0 | AQ19: 0 | AR19: 0 | AS19: 0 | AT19: 0 | AU19: 0 | AV19: 0
D20: t | V20: 50.8 | W20: GJ/t | X20: =E20*V20/1000 -> 0 | Z20: =ROUNDDOWN(V20*Y$8,5-INT(LOG(ABS(V20*Y$8)))) -> 1.31064 | AA20: =E20*V20*Y$8/1000 -> 0 | AB20: 0.0161 | AC20: t-C/GJ | AD20: 44/12 | AE20: =ROUNDDOWN(V20*AB20*44/12,2-INT(LOG(ABS(V20*Y$8*AB20*44/12)))) -> 2.9988 | AF20: =ROUND(E20*$V20*$AB20*44/12,2) -> 0 | AG20: 0 | AH20: 0 | AI20: 0 | AJ20: 0 | AK20: 0 | AL20: 0 | AM20: 0 | AN20: 0 | AO20: 0 | AP20: 0 | AQ20: 0 | AR20: 0 | AS20: 0 | AT20: 0 | AU20: 0 | AV20: 0
B21: 石油系炭化水素ガス | D21: 千Nｍ3 | V21: 44.9 | W21: GJ/千Nｍ3 | X21: =E21*V21 -> 0 | Z21: 1.15842 | AA21: =E21*V21*Y$8 -> 0 | AB21: 0.0142 | AC21: t-C/GJ | AD21: 44/12 | AE21: 2.3377 | AF21: =E21*$V21*$AB21*44/12/1000 -> 0 | AG21: =F21*$V21*$AB21*44/12/1000 -> 0 | AH21: =G21*$V21*$AB21*44/12/1000 -> 0 | AI21: =H21*$V21*$AB21*44/12/1000 -> 0 | AJ21: =I21*$V21*$AB21*44/12/1000 -> 0 | AK21: =J21*$V21*$AB21*44/12/1000 -> 0 | AL21: =K21*$V21*$AB21*44/12/1000 -> 0 | AM21: =L21*$V21*$AB21*44/12/1000 -> 0 | AN21: =M21*$V21*$AB21*44/12/1000 -> 0 | AO21: =N21*$V21*$AB21*44/12/1000 -> 0 | AP21: =O21*$V21*$AB21*44/12/1000 -> 0 | AQ21: =P21*$V21*$AB21*44/12/1000 -> 0 | AR21: =Q21*$V21*$AB21*44/12/1000 -> 0 | AS21: =R21*$V21*$AB21*44/12/1000 -> 0 | AT21: =S21*$V21*$AB21*44/12/1000 -> 0 | AU21: =T21*$V21*$AB21*44/12/1000 -> 0 | AV21: =U21*$V21*$AB21*44/12/1000 -> 0
A22: 可燃性天然ガス | B22: 液化天然ガス（LNG) | D22: t | V22: 54.6 | W22: GJ/t | X22: 0 | Z22: 1.40868 | AA22: 0 | AB22: 0.0135 | AC22: t-C/GJ | AD22: 44/12 | AE22: 2.7027 | AF22: 0 | AG22: 0 | AH22: 0 | AI22: 0 | AJ22: 0 | AK22: 0 | AL22: 0 | AM22: 0 | AN22: 0 | AO22: 0 | AP22: 0 | AQ22: 0 | AR22: 0 | AS22: 0 | AT22: 0 | AU22: 0 | AV22: 0
B23: その他可燃性天然ガス | D23: 千Nｍ3 | V23: 43.5 | W23: GJ/千Nｍ3 | X23: 0 | Z23: 1.1223 | AA23: 0 | AB23: 0.0139 | AC23: t-C/GJ | AD23: 44/12 | AE23: 2.217 | AF23: 0 | AG23: 0 | AH23: 0 | AI23: 0 | AJ23: 0 | AK23: 0 | AL23: 0 | AM23: 0 | AN23: 0 | AO23: 0 | AP23: 0 | AQ23: 0 | AR23: 0 | AS23: 0 | AT23: 0 | AU23: 0 | AV23: 0
A24: 石炭 | B24: 原料炭 | D24: t | V24: 29 | W24: GJ/t | X24: 0 | Z24: 0.7482 | AA24: 0 | AB24: 0.0245 | AC24: t-C/GJ | AD24: 44/12 | AE24: 2.6051 | AF24: 0 | AG24: 0 | AH24: 0 | AI24: 0 | AJ24: 0 | AK24: 0 | AL24: 0 | AM24: 0 | AN24: 0 | AO24: 0 | AP24: 0 | AQ24: 0 | AR24: 0 | AS24: 0 | AT24: 0 | AU24: 0 | AV24: 0
B25: 一般炭 | D25: t | V25: 25.7 | W25: GJ/t | X25: 0 | Z25: 0.66306 | AA25: 0 | AB25: 0.0247 | AC25: t-C/GJ | AD25: 44/12 | AE25: 2.3275 | AF25: 0 | AG25: 0 | AH25: 0 | AI25: 0 | AJ25: 0 | AK25: 0 | AL25: 0 | AM25: 0 | AN25: 0 | AO25: 0 | AP25: 0 | AQ25: 0 | AR25: 0 | AS25: 0 | AT25: 0 | AU25: 0 | AV25: 0
B26: 無煙炭 | D26: t | V26: 26.9 | W26: GJ/t | X26: 0 | Z26: 0.69402 | AA26: 0 | AB26: 0.0255 | AC26: t-C/GJ | AD26: 44/12 | AE26: 2.5151 | AF26: 0 | AG26: 0 | AH26: 0 | AI26: 0 | AJ26: 0 | AK26: 0 | AL26: 0 | AM26: 0 | AN26: 0 | AO26: 0 | AP26: 0 | AQ26: 0 | AR26: 0 | AS26: 0 | AT26: 0 | AU26: 0 | AV26: 0
A27: 石炭コークス | D27: t | V27: 29.4 | W27: GJ/t | X27: 0 | Z27: 0.75852 | AA27: 0 | AB27: 0.0294 | AC27: t-C/GJ | AD27: 44/12 | AE27: 3.1693 | AF27: 0 | AG27: 0 | AH27: 0 | AI27: 0 | AJ27: 0 | AK27: 0 | AL27: 0 | AM27: 0 | AN27: 0 | AO27: 0 | AP27: 0 | AQ27: 0 | AR27: 0 | AS27: 0 | AT27: 0 | AU27: 0 | AV27: 0
A28: コールタール | D28: t | V28: 37.3 | W28: GJ/t | X28: 0 | Z28: 0.96234 | AA28: 0 | AB28: 0.0209 | AC28: t-C/GJ | AD28: 44/12 | AE28: 2.8584 | AF28: 0 | AG28: 0 | AH28: 0 | AI28: 0 | AJ28: 0 | AK28: 0 | AL28: 0 | AM28: 0 | AN28: 0 | AO28: 0 | AP28: 0 | AQ28: 0 | AR28: 0 | AS28: 0 | AT28: 0 | AU28: 0 | AV28: 0
A29: コークス炉ガス | D29: 千Nｍ3 | V29: 21.1 | W29: GJ/千Nｍ3 | X29: 0 | Z29: 0.54438 | AA29: 0 | AB29: 0.011 | AC29: t-C/GJ | AD29: 44/12 | AE29: 0.851 | AF29: 0 | AG29: 0 | AH29: 0 | AI29: 0 | AJ29: 0 | AK29: 0 | AL29: 0 | AM29: 0 | AN29: 0 | AO29: 0 | AP29: 0 | AQ29: 0 | AR29: 0 | AS29: 0 | AT29: 0 | AU29: 0 | AV29: 0
A30: 高炉ガス | D30: 千Nｍ3 | V30: 3.41 | W30: GJ/千Nｍ3 | X30: 0 | Z30: 0.087978 | AA30: 0 | AB30: 0.0266 | AC30: t-C/GJ | AD30: 44/12 | AE30: 0.33258 | AF30: 0 | AG30: 0 | AH30: 0 | AI30: 0 | AJ30: 0 | AK30: 0 | AL30: 0 | AM30: 0 | AN30: 0 | AO30: 0 | AP30: 0 | AQ30: 0 | AR30: 0 | AS30: 0 | AT30: 0 | AU30: 0 | AV30: 0
A31: 転炉ガス | D31: 千Nｍ3 | V31: 8.41 | W31: GJ/千Nｍ3 | X31: 0 | Z31: 0.216978 | AA31: 0 | AB31: 0.0384 | AC31: t-C/GJ | AD31: 44/12 | AE31: 1.1841 | AF31: 0 | AG31: 0 | AH31: 0 | AI31: 0 | AJ31: 0 | AK31: 0 | AL31: 0 | AM31: 0 | AN31: 0 | AO31: 0 | AP31: 0 | AQ31: 0 | AR31: 0 | AS31: 0 | AT31: 0 | AU31: 0 | AV31: 0
A32: 天然ガス | D32: 千ｍ3 | V32: 45 | W32: GJ/千Nｍ3 | X32: =E32*V32/1000 -> 0 | Z32: 1.161 | AA32: =E32*V32*Y$8/1000 -> 0 | AB32: 0.0136 | AC32: t-C/GJ | AD32: 44/12 | AE32: 2.244 | AF32: =ROUND(E32*$V32*$AB32*44/12,2) -> 0 | AG32: 0 | AH32: 0 | AI32: 0 | AJ32: 0 | AK32: 0 | AL32: 0 | AM32: 0 | AN32: 0 | AO32: 0 | AP32: 0 | AQ32: 0 | AR32: 0 | AS32: 0 | AT32: 0 | AU32: 0 | AV32: 0
C33: 13A:43.12MJ/m3 | D33: 千Nｍ3 | V33: 43.12 | W33: GJ/千Nｍ3 | X33: =E33*V33 -> 0 | Z33: 1.11249 | AA33: =E33*V33*Y$8 -> 0 | AB33: 0.0136 | AC33: t-C/GJ | AD33: 44/12 | AE33: 2.1502 | AF33: =E33*$V33*$AB33*44/12/1000 -> 0 | AG33: =F33*$V33*$AB33*44/12/1000 -> 0 | AH33: =G33*$V33*$AB33*44/12/1000 -> 0 | AI33: =H33*$V33*$AB33*44/12/1000 -> 0 | AJ33: =I33*$V33*$AB33*44/12/1000 -> 0 | AK33: =J33*$V33*$AB33*44/12/1000 -> 0 | AL33: =K33*$V33*$AB33*44/12/1000 -> 0 | AM33: =L33*$V33*$AB33*44/12/1000 -> 0
C34: 13A:46.04MJ/m3 | D34: 千Nｍ3 | V34: 46.04 | W34: GJ/千Nｍ3 | X34: =E34*V34 -> 0 | Z34: 1.18783 | AA34: =E34*V34*Y$8 -> 0 | AB34: 0.0136 | AC34: t-C/GJ | AD34: 44/12 | AE34: 2.2958 | AF34: 0 | AG34: 0 | AH34: 0 | AI34: 0 | AJ34: 0 | AK34: 0 | AL34: 0 | AM34: 0
C35: 12A:41.86MJ/m3 | D35: 千Nｍ3 | V35: 41.86 | W35: GJ/千Nｍ3 | X35: =E35*V35 -> 0 | Z35: 1.07998 | AA35: =E35*V35*Y$8 -> 0 | AB35: 0.0136 | AC35: t-C/GJ | AD35: 44/12 | AE35: 2.0874 | AF35: 0 | AG35: 0 | AH35: 0 | AI35: 0 | AJ35: 0 | AK35: 0 | AL35: 0 | AM35: 0
C36: 6A:29.30MJ/m3 | D36: 千Nｍ3 | V36: 29.3 | W36: GJ/千Nｍ3 | X36: =E36*V36 -> 0 | Z36: 0.75594 | AA36: =E36*V36*Y$8 -> 0 | AB36: 0.0136 | AC36: t-C/GJ | AD36: 44/12 | AE36: 1.461 | AF36: 0 | AG36: 0 | AH36: 0 | AI36: 0 | AJ36: 0 | AK36: 0 | AL36: 0 | AM36: 0
V37: 0 | W37: 0 | X37: =IF(ISERROR(E37*V37),"",E37*V37) -> 0 | AA37: =IF(ISERROR(E37*V37*Y$8),"",E37*V37*Y$8) -> 0 | AB37: 0 | AC37: 0 | AD37: 44/12 | AF37: 0 | AG37: 0 | AH37: 0 | AI37: 0 | AJ37: 0 | AK37: 0 | AL37: 0 | AM37: 0
V38: 0 | W38: 0 | X38: =IF(ISERROR(E38*V38),"",E38*V38) -> 0 | AA38: =IF(ISERROR(E38*V38*Y$8),"",E38*V38*Y$8) -> 0 | AB38: 0 | AC38: 0 | AD38: 44/12 | AF38: 0 | AG38: 0 | AH38: 0 | AI38: 0 | AJ38: 0 | AK38: 0 | AL38: 0 | AM38: 0
V39: 0 | W39: 0 | X39: =IF(ISERROR(E39*V39),"",E39*V39) -> 0 | AA39: =IF(ISERROR(E39*V39*Y$8),"",E39*V39*Y$8) -> 0 | AB39: 0 | AC39: 0 | AD39: 44/12 | AF39: 0 | AG39: 0 | AH39: 0 | AI39: 0 | AJ39: 0 | AK39: 0 | AL39: 0 | AM39: 0
A40: 産業用蒸気 | D40: GJ | V40: 1.02 | W40: GJ/GJ | X40: =E40*V40 -> 0 | Z40: 0.026316 | AA40: =E40*V40*Y$8 -> 0 | AB40: 0.06 | AC40: t-CO2/GJ | AD40: ― | AE40: =ROUNDDOWN(E40*V40*AB40,2-INT(LOG(ABS(E40*V40*AB40)))) ->  | AF40: 0 | AG40: 0 | AH40: 0 | AI40: 0 | AJ40: 0 | AK40: 0 | AL40: 0 | AM40: 0
A41: 産業用以外の蒸気 | D41: GJ | V41: 1.36 | W41: GJ/GJ | X41: =E41*V41 -> 0 | Z41: 0.035088 | AA41: =E41*V41*Y$8 -> 0 | AB41: 0.057 | AC41: t-CO2/GJ | AD41: ― | AE41: =ROUNDDOWN(E41*V41*AB41,2-INT(LOG(ABS(E41*V41*AB41)))) ->  | AF41: 0 | AG41: 0 | AH41: 0 | AI41: 0 | AJ41: 0 | AK41: 0 | AL41: 0 | AM41: 0
A42: 温水 | D42: GJ | V42: 1.36 | W42: GJ/GJ | X42: =E42*V42 -> 0 | Z42: 0.035088 | AA42: =E42*V42*Y$8 -> 0 | AB42: 0.057 | AC42: t-CO2/GJ | AD42: ― | AE42: =ROUNDDOWN(E42*V42*AB42,2-INT(LOG(ABS(E42*V42*AB42)))) ->  | AF42: 0 | AG42: 0 | AH42: 0 | AI42: 0 | AJ42: 0 | AK42: 0 | AL42: 0 | AM42: 0
A43: 冷水 | D43: GJ | V43: 1.36 | W43: GJ/GJ | X43: =E43*V43 -> 0 | Z43: 0.035088 | AA43: =E43*V43*Y$8 -> 0 | AB43: 0.057 | AC43: t-CO2/GJ | AD43: ― | AE43: =ROUNDDOWN(E43*V43*AB43,2-INT(LOG(ABS(E43*V43*AB43)))) ->  | AF43: 0 | AG43: 0 | AH43: 0 | AI43: 0 | AJ43: 0 | AK43: 0 | AL43: 0 | AM43: 0
A44: 小計 | X44: =SUM(X8:X43) -> 0 | AA44: =X44*Y8 -> 0 | AF44: 0 | AG44: 0 | AH44: 0 | AI44: 0 | AJ44: 0 | AK44: 0 | AL44: 0 | AM44: 0
V45: ② | X45: ③=①×② | Y45: ④ | AA45: ⑤=①×②×④ | AB45: ⑥ | AD45: ⑦
A46: 一般電気事業者 | B46: 昼間（8時～22時） | D46: 千kWh | V46: 9.97 | W46: GJ/千kWh | X46: =E46*V46 -> 0 | Y46: 0.0258 | Z46: =ROUNDDOWN(V46*Y$46,5-INT(LOG(ABS(V46*Y$46)))) -> 0.257226 | AA46: =E46*V46*Y$46 -> 0 | AB46: 0.386 | AC46: t-CO2/千kWh | AD46: ― | AE46: ― | AF46: 0 | AG46: 0 | AH46: 0 | AI46: 0 | AJ46: 0 | AK46: 0 | AL46: 0 | AM46: 0
B47: 夜間（22時～翌8時） | D47: 千kWh | V47: 9.28 | W47: GJ/千kWh | X47: =E47*V47 -> 0 | Z47: =ROUNDDOWN(V47*Y$46,5-INT(LOG(ABS(V47*Y$46)))) -> 0.239424 | AA47: =E47*V47*Y$46 -> 0 | AB47: 0.386 | AC47: t-CO2/千kWh | AD47: ― | AE47: ― | AF47: 0 | AG47: 0 | AH47: 0 | AI47: 0 | AJ47: 0 | AK47: 0 | AL47: 0 | AM47: 0
A48: 電気 | D48: kWh | V48: 9.76 | W48: GJ/千kWh | X48: =E48*V48/1000 -> 0 | Z48: =ROUNDDOWN(V48*Y$46,5-INT(LOG(ABS(V48*Y$46)))) -> 0.251808 | AA48: =E48*V48*Y$46/1000 -> 0 | AB48: =AW48 -> 0 | AC48: t-CO2/千kWh | AF48: =ROUND(E48*$AB48*0.001,2) -> 0 | AG48: 0 | AH48: 0 | AI48: 0 | AJ48: 0 | AK48: 0 | AL48: 0 | AM48: 0 | AN48: 0 | AO48: 0 | AP48: 0 | AQ48: 0 | AR48: 0 | AS48: 0 | AT48: 0 | AU48: 0 | AV48: 0 | AX48: t-CO2/千kWh
AF49: =ROUND(E49*$AW49*0.001,2) -> 0 | AG49: =ROUND(F49*$AW49*0.001,2) -> 0 | AH49: =ROUND(G49*$AW49,2) -> 0 | AI49: =ROUND(H49*$AW49,2) -> 0 | AJ49: 0 | AK49: 0 | AL49: 0 | AM49: 0 | AN49: 0 | AO49: 0 | AP49: 0 | AQ49: 0 | AR49: 0 | AS49: 0 | AT49: 0 | AU49: 0 | AV49: 0 | AX49: =IF(D49="","","ｔ-ＣＯ₂/"&D49) -> 
AF50: =ROUND(E50*$AW50*0.001,2) -> 0 | AG50: 0 | AH50: =ROUND(G50*$AW50,2) -> 0 | AI50: 0 | AJ50: 0 | AK50: 0 | AL50: 0 | AM50: 0 | AN50: 0 | AO50: 0 | AP50: 0 | AQ50: 0 | AR50: 0 | AS50: 0 | AT50: 0 | AU50: 0 | AV50: 0 | AX50: =IF(D50="","","ｔ-ＣＯ₂/"&D50) -> 
A51: 小計 | X51: =SUM(X46:X48) -> 0 | AA51: =X51*Y46 -> 0 | AF51: =SUM(AF46:AF48) -> 0 | AG51: 0 | AH51: 0 | AI51: 0 | AJ51: 0 | AK51: 0 | AL51: 0 | AM51: 0 | AN51: =SUM(AN46:AN48) -> 0 | AO51: 0 | AP51: 0 | AQ51: 0 | AR51: =SUM(AR46:AR48) -> 0 | AS51: 0 | AT51: 0 | AU51: 0 | AV51: 0
A52: 自ら生成した熱の供給 | D52: GJ | AB52: 0 | AC52: t-CO2 /GJ | AE52: =ROUNDDOWN(V52*AB52*44/12,2-INT(LOG(ABS(V52*Y$8*AB52*44/12)))) ->  | AF52: =IF(ISERROR(-ABS(E52*AB52)),"",-ABS(E52*AB52)) -> 0 | AH52: 0 | AJ52: 0 | AL52: 0 | AN52: 0 | AP52: =IF(ISERROR(-ABS(O52*AL52)),"",-ABS(O52*AL52)) -> 0 | AR52: 0 | AT52: 0 | AV52: 0
A53: 自ら生成した電力の供給 | D53: 千kWh | AB53: 0 | AC53: t-CO2 /千kWh | AE53: =ROUNDDOWN(V53*AB53*44/12,2-INT(LOG(ABS(V53*Y$8*AB53*44/12)))) ->  | AF53: 0 | AH53: 0 | AJ53: 0 | AL53: 0 | AN53: 0 | AP53: 0 | AR53: 0 | AT53: 0 | AV53: 0
A54: 小計 | AF54: =SUM(AF52:AF53) -> 0 | AG54: 0 | AH54: 0 | AI54: 0 | AJ54: 0 | AK54: 0 | AL54: 0 | AM54: 0 | AN54: =SUM(AN52:AN53) -> 0 | AO54: 0 | AP54: 0 | AQ54: 0 | AR54: =SUM(AR52:AR53) -> 0 | AS54: 0 | AT54: 0 | AU54: 0 | AV54: 0
A56: 合計 | X56: =SUM(X44,X48) -> 0 | Y56: 0.0258 | AA56: =X56*Y56 -> 0 | AF56: =AF10+AF14+AF13+AF19+AF32+AF48+AF49+AF50 -> 0 | AG56: =AG10+AG14+AG13+AG19+AG32+AG48+AG49+AG50 -> 0 | AH56: 0 | AI56: 0 | AJ56: 0 | AK56: 0 | AL56: 0 | AM56: 0 | AN56: 0 | AO56: 0 | AP56: 0 | AQ56: 0 | AR56: 0 | AS56: 0 | AT56: 0 | AU56: 0 | AV56: 0
D57: *軽油を種類別で計算したい場合に使用ください。 | AA57: 日本工業規格Ａ列４番
A58: （２）車両台数内訳・・・・上記の発生源となる車両台数を記入する。
A59: ガソリン | D59: 普通
D60: 軽
D61: エコ

Sheet ４．燃料単位換算(工場現場)
B2: ４．燃料等使用量の単位換算（工場・現場）
B3: ア 都市ガスの圧力及び標準状態換算 | AC3: エコアップ認証換算用
G5: 使用量（換算前） | AD5: 換算単位 | AG5: 使用量（換算後） | BF5: =データコピー!$R$1 -> 5
F6: 単位 | G6: 14年度(2002) | H6: 15年度(2003) | I6: 16年度(2004) | J6: 17年度(2005) | K6: 18年度(2006) | L6: 19年度(2007) | M6: 20年度(2008) | N6: 21年度(2009) | O6: 22年度(2010) | P6: 23年度(2011) | Q6: 24年度(2012) | R6: 25年度(2013) | S6: 26年度(2014) | T6: 27年度(2015) | U6: 28年度(2016) | V6: 29年度(2017) | W6: 30年度(2018) | X6: 31/1年度(2019) | Y6: 2年度(2020) | Z6: 3年度(2021) | AA6: 4年度(2022) | AB6: 5年度(2023) | AC6: 6年度(2024) | AD6: 単位 | AE6: 圧力補正 | AF6: 単位補正 | AG6: 14年度(2002) | AH6: 15年度(2003) | AI6: 16年度(2004) | AJ6: 17年度(2005) | AK6: 18年度(2006) | AL6: 19年度(2007) | AM6: 20年度(2008) | AN6: 21年度(2009) | AO6: 22年度(2010) | AP6: 23年度(2011) | AQ6: 24年度(2012) | AR6: 25年度(2013) | AS6: 26年度(2014) | AT6: 27年度(2015) | AU6: 28年度(2016) | AV6: 29年度(2017) | AW6: 30年度(2018) | AX6: 1年度(2019) | AY6: 2年度(2020) | AZ6: 3年度(2021) | BA6: 4年度(2022) | BB6: 5年度(2023) | BC6: 6年度(2024) | BE6: 有効数字
C7: 都市ガス | D7: 13A:45MJ/m3 | E7: 低圧用 | F7: m3 | AD7: 千Nm3 | AE7: =IF(COUNTIF(F7,"*Nm3")>0,1,VLOOKUP(E7,$BA$71:$BB$72,2,FALSE)) -> 0.966655 | AF7: =VLOOKUP($F7,$BA$60:$BB$63,2,FALSE)/VLOOKUP($AD7,$BA$60:$BB$63,2,FALSE) -> 1000 | AG7: =ROUND($AE7*G7/$AF7,0) -> 0 | AH7: =ROUND($AE7*H7/$AF7,0) -> 0 | AI7: 0 | AJ7: 0 | AK7: 0 | AL7: 0 | AM7: 0 | AN7: 0 | AO7: 0 | AP7: 0 | AQ7: 0 | AR7: 0 | AS7: 0 | AT7: 0 | AU7: 0 | AV7: 0 | AW7: 0 | AX7: 0 | AY7: 0 | AZ7: 0 | BA7: 0 | BB7: 0 | BC7: 0
E8: 中間圧以上用 | F8: m3 | AD8: 千Nm3 | AE8: =IF(COUNTIF(F8,"*Nm3")>0,1,VLOOKUP(E8,$BA$71:$BB$72,2,FALSE)) -> 0.957122 | AF8: =VLOOKUP($F8,$BA$60:$BB$63,2,FALSE)/VLOOKUP($AD8,$BA$60:$BB$63,2,FALSE) -> 1000 | AG8: =ROUND($AE8*G8/$AF8,0) -> 0 | AH8: 0 | AI8: 0 | AJ8: 0 | AK8: 0 | AL8: 0 | AM8: 0 | AN8: 0 | AO8: 0 | AP8: 0 | AQ8: 0 | AR8: 0 | AS8: 0 | AT8: 0 | AU8: 0 | AV8: 0 | AW8: 0 | AX8: 0 | AY8: 0 | AZ8: 0 | BA8: 0 | BB8: 0 | BC8: 0
AG9: =SUM(AG7:AG8) -> 0 | AH9: =SUM(AH7:AH8) -> 0 | AI9: 0 | AJ9: 0 | AK9: 0 | AL9: 0 | AM9: 0 | AN9: 0 | AO9: 0 | AP9: 0 | AQ9: 0 | AR9: 0 | AS9: 0 | AT9: 0 | AU9: 0 | AV9: 0 | AW9: 0 | AX9: 0 | AY9: 0 | AZ9: 0 | BA9: 0 | BB9: 0 | BC9: 0
D10: 13A:43.12MJ/m3 | E10: 低圧用 | F10: m3 | AD10: 千Nm3 | AE10: =IF(COUNTIF(F10,"*Nm3")>0,1,VLOOKUP(E10,$BA$71:$BB$72,2,FALSE)) -> 0.966655 | AF10: =VLOOKUP($F10,$BA$60:$BB$63,2,FALSE)/VLOOKUP($AD10,$BA$60:$BB$63,2,FALSE) -> 1000 | AG10: =ROUND($AE10*G10/$AF10,0) -> 0 | AH10: =ROUND($AE10*H10/$AF10,0) -> 0 | AI10: =ROUND($AE10*I10/$AF10,0) -> 0 | AJ10: =ROUND($AE10*J10/$AF10,0) -> 0 | AK10: =ROUND($AE10*K10/$AF10,0) -> 0 | AL10: =ROUND($AE10*L10/$AF10,0) -> 0 | AM10: =ROUND($AE10*M10/$AF10,0) -> 0 | AN10: =ROUND($AE10*N10/$AF10,0) -> 0 | AO10: =ROUND($AE10*O10/$AF10,0) -> 0 | AP10: =ROUND($AE10*P10/$AF10,0) -> 0 | AQ10: =ROUND($AE10*Q10/$AF10,0) -> 0 | AR10: =ROUND($AE10*R10/$AF10,0) -> 0 | AS10: =ROUND($AE10*S10/$AF10,0) -> 0 | AT10: =ROUND($AE10*T10/$AF10,0) -> 0 | AU10: =ROUND($AE10*U10/$AF10,0) -> 0 | AV10: =ROUND($AE10*V10/$AF10,0) -> 0 | AW10: =ROUND($AE10*W10/$AF10,0) -> 0 | AX10: =ROUND($AE10*X10/$AF10,0) -> 0 | AY10: =ROUND($AE10*Y10/$AF10,0) -> 0 | AZ10: =ROUND($AE10*Z10/$AF10,0) -> 0 | BA10: =ROUND($AE10*AA10/$AF10,0) -> 0 | BB10: =ROUND($AE10*AB10/$AF10,0) -> 0 | BC10: =ROUND($AE10*AC10/$AF10,0) -> 0
E11: 中間圧以上用 | F11: m3 | AD11: 千Nm3 | AE11: =IF(COUNTIF(F11,"*Nm3")>0,1,VLOOKUP(E11,$BA$71:$BB$72,2,FALSE)) -> 0.957122 | AF11: =VLOOKUP($F11,$BA$60:$BB$63,2,FALSE)/VLOOKUP($AD11,$BA$60:$BB$63,2,FALSE) -> 1000 | AG11: =ROUND($AE11*G11/$AF11,0) -> 0 | AH11: 0 | AI11: 0 | AJ11: 0 | AK11: 0 | AL11: 0 | AM11: 0 | AN11: 0 | AO11: 0 | AP11: 0 | AQ11: 0 | AR11: 0 | AS11: 0 | AT11: 0 | AU11: 0 | AV11: 0 | AW11: 0 | AX11: 0 | AY11: 0 | AZ11: 0 | BA11: 0 | BB11: 0 | BC11: 0
AG12: =SUM(AG10:AG11) -> 0 | AH12: =SUM(AH10:AH11) -> 0 | AI12: 0 | AJ12: 0 | AK12: 0 | AL12: 0 | AM12: 0 | AN12: 0 | AO12: 0 | AP12: 0 | AQ12: 0 | AR12: 0 | AS12: 0 | AT12: 0 | AU12: 0 | AV12: 0 | AW12: 0 | AX12: 0 | AY12: 0 | AZ12: 0 | BA12: 0 | BB12: 0 | BC12: 0
D13: 13A:46.04MJ/m3 | E13: 低圧用 | F13: m3 | AD13: 千Nm3 | AE13: =IF(COUNTIF(F13,"*Nm3")>0,1,VLOOKUP(E13,$BA$71:$BB$72,2,FALSE)) -> 0.966655 | AF13: =VLOOKUP($F13,$BA$60:$BB$63,2,FALSE)/VLOOKUP($AD13,$BA$60:$BB$63,2,FALSE) -> 1000 | AG13: =ROUND($AE13*G13/$AF13,0) -> 0 | AH13: =ROUND($AE13*H13/$AF13,0) -> 0 | AI13: =ROUND($AE13*I13/$AF13,0) -> 0 | AJ13: =ROUND($AE13*J13/$AF13,0) -> 0 | AK13: =ROUND($AE13*K13/$AF13,0) -> 0 | AL13: =ROUND($AE13*L13/$AF13,0) -> 0 | AM13: =ROUND($AE13*M13/$AF13,0) -> 0 | AN13: =ROUND($AE13*N13/$AF13,0) -> 0 | AO13: =ROUND($AE13*O13/$AF13,0) -> 0 | AP13: =ROUND($AE13*P13/$AF13,0) -> 0 | AQ13: =ROUND($AE13*Q13/$AF13,0) -> 0 | AR13: =ROUND($AE13*R13/$AF13,0) -> 0 | AS13: =ROUND($AE13*S13/$AF13,0) -> 0 | AT13: =ROUND($AE13*T13/$AF13,0) -> 0 | AU13: =ROUND($AE13*U13/$AF13,0) -> 0 | AV13: =ROUND($AE13*V13/$AF13,0) -> 0 | AW13: =ROUND($AE13*W13/$AF13,0) -> 0 | AX13: =ROUND($AE13*X13/$AF13,0) -> 0 | AY13: =ROUND($AE13*Y13/$AF13,0) -> 0 | AZ13: =ROUND($AE13*Z13/$AF13,0) -> 0 | BA13: =ROUND($AE13*AA13/$AF13,0) -> 0 | BB13: =ROUND($AE13*AB13/$AF13,0) -> 0 | BC13: =ROUND($AE13*AC13/$AF13,0) -> 0
E14: 中間圧以上用 | F14: m3 | AD14: 千Nm3 | AE14: =IF(COUNTIF(F14,"*Nm3")>0,1,VLOOKUP(E14,$BA$71:$BB$72,2,FALSE)) -> 0.957122 | AF14: =VLOOKUP($F14,$BA$60:$BB$63,2,FALSE)/VLOOKUP($AD14,$BA$60:$BB$63,2,FALSE) -> 1000 | AG14: =ROUND($AE14*G14/$AF14,0) -> 0 | AH14: 0 | AI14: 0 | AJ14: 0 | AK14: 0 | AL14: 0 | AM14: 0 | AN14: 0 | AO14: 0 | AP14: 0 | AQ14: 0 | AR14: 0 | AS14: 0 | AT14: 0 | AU14: 0 | AV14: 0 | AW14: 0 | AX14: 0 | AY14: 0 | AZ14: 0 | BA14: 0 | BB14: 0 | BC14: 0
AG15: =SUM(AG13:AG14) -> 0 | AH15: =SUM(AH13:AH14) -> 0 | AI15: 0 | AJ15: 0 | AK15: 0 | AL15: 0 | AM15: 0 | AN15: 0 | AO15: 0 | AP15: 0 | AQ15: 0 | AR15: 0 | AS15: 0 | AT15: 0 | AU15: 0 | AV15: 0 | AW15: 0 | AX15: 0 | AY15: 0 | AZ15: 0 | BA15: 0 | BB15: 0 | BC15: 0
D16: 12A:41.86MJ/m3 | E16: 低圧用 | F16: m3 | AD16: 千Nm3 | AE16: =IF(COUNTIF(F16,"*Nm3")>0,1,VLOOKUP(E16,$BA$71:$BB$72,2,FALSE)) -> 0.966655 | AF16: =VLOOKUP($F16,$BA$60:$BB$63,2,FALSE)/VLOOKUP($AD16,$BA$60:$BB$63,2,FALSE) -> 1000 | AG16: =ROUND($AE16*G16/$AF16,0) -> 0 | AH16: =ROUND($AE16*H16/$AF16,0) -> 0 | AI16: =ROUND($AE16*I16/$AF16,0) -> 0 | AJ16: =ROUND($AE16*J16/$AF16,0) -> 0 | AK16: =ROUND($AE16*K16/$AF16,0) -> 0 | AL16: =ROUND($AE16*L16/$AF16,0) -> 0 | AM16: =ROUND($AE16*M16/$AF16,0) -> 0 | AN16: =ROUND($AE16*N16/$AF16,0) -> 0 | AO16: =ROUND($AE16*O16/$AF16,0) -> 0 | AP16: =ROUND($AE16*P16/$AF16,0) -> 0 | AQ16: =ROUND($AE16*Q16/$AF16,0) -> 0 | AR16: =ROUND($AE16*R16/$AF16,0) -> 0 | AS16: =ROUND($AE16*S16/$AF16,0) -> 0 | AT16: =ROUND($AE16*T16/$AF16,0) -> 0 | AU16: =ROUND($AE16*U16/$AF16,0) -> 0 | AV16: =ROUND($AE16*V16/$AF16,0) -> 0 | AW16: =ROUND($AE16*W16/$AF16,0) -> 0 | AX16: =ROUND($AE16*X16/$AF16,0) -> 0 | AY16: =ROUND($AE16*Y16/$AF16,0) -> 0 | AZ16: =ROUND($AE16*Z16/$AF16,0) -> 0 | BA16: =ROUND($AE16*AA16/$AF16,0) -> 0 | BB16: =ROUND($AE16*AB16/$AF16,0) -> 0 | BC16: =ROUND($AE16*AC16/$AF16,0) -> 0
E17: 中間圧以上用 | F17: m3 | AD17: 千Nm3 | AE17: =IF(COUNTIF(F17,"*Nm3")>0,1,VLOOKUP(E17,$BA$71:$BB$72,2,FALSE)) -> 0.957122 | AF17: =VLOOKUP($F17,$BA$60:$BB$63,2,FALSE)/VLOOKUP($AD17,$BA$60:$BB$63,2,FALSE) -> 1000 | AG17: =ROUND($AE17*G17/$AF17,0) -> 0 | AH17: 0 | AI17: 0 | AJ17: 0 | AK17: 0 | AL17: 0 | AM17: 0 | AN17: 0 | AO17: 0 | AP17: 0 | AQ17: 0 | AR17: 0 | AS17: 0 | AT17: 0 | AU17: 0 | AV17: 0 | AW17: 0 | AX17: 0 | AY17: 0 | AZ17: 0 | BA17: 0 | BB17: 0 | BC17: 0
AG18: =SUM(AG16:AG17) -> 0 | AH18: =SUM(AH16:AH17) -> 0 | AI18: 0 | AJ18: 0 | AK18: 0 | AL18: 0 | AM18: 0 | AN18: 0 | AO18: 0 | AP18: 0 | AQ18: 0 | AR18: 0 | AS18: 0 | AT18: 0 | AU18: 0 | AV18: 0 | AW18: 0 | AX18: 0 | AY18: 0 | AZ18: 0 | BA18: 0 | BB18: 0 | BC18: 0
D19: 6A:29.30MJ/m3 | E19: 低圧用 | F19: m3 | AD19: 千Nm3 | AE19: =IF(COUNTIF(F19,"*Nm3")>0,1,VLOOKUP(E19,$BA$71:$BB$72,2,FALSE)) -> 0.966655 | AF19: =VLOOKUP($F19,$BA$60:$BB$63,2,FALSE)/VLOOKUP($AD19,$BA$60:$BB$63,2,FALSE) -> 1000 | AG19: =ROUND($AE19*G19/$AF19,0) -> 0 | AH19: =ROUND($AE19*H19/$AF19,0) -> 0 | AI19: =ROUND($AE19*I19/$AF19,0) -> 0 | AJ19: =ROUND($AE19*J19/$AF19,0) -> 0 | AK19: =ROUND($AE19*K19/$AF19,0) -> 0 | AL19: =ROUND($AE19*L19/$AF19,0) -> 0 | AM19: =ROUND($AE19*M19/$AF19,0) -> 0 | AN19: =ROUND($AE19*N19/$AF19,0) -> 0 | AO19: =ROUND($AE19*O19/$AF19,0) -> 0 | AP19: =ROUND($AE19*P19/$AF19,0) -> 0 | AQ19: =ROUND($AE19*Q19/$AF19,0) -> 0 | AR19: =ROUND($AE19*R19/$AF19,0) -> 0 | AS19: =ROUND($AE19*S19/$AF19,0) -> 0 | AT19: =ROUND($AE19*T19/$AF19,0) -> 0 | AU19: =ROUND($AE19*U19/$AF19,0) -> 0 | AV19: =ROUND($AE19*V19/$AF19,0) -> 0 | AW19: =ROUND($AE19*W19/$AF19,0) -> 0 | AX19: =ROUND($AE19*X19/$AF19,0) -> 0 | AY19: =ROUND($AE19*Y19/$AF19,0) -> 0 | AZ19: =ROUND($AE19*Z19/$AF19,0) -> 0 | BA19: =ROUND($AE19*AA19/$AF19,0) -> 0 | BB19: =ROUND($AE19*AB19/$AF19,0) -> 0 | BC19: =ROUND($AE19*AC19/$AF19,0) -> 0
E20: 中間圧以上用 | F20: m3 | AD20: 千Nm3 | AE20: =IF(COUNTIF(F20,"*Nm3")>0,1,VLOOKUP(E20,$BA$71:$BB$72,2,FALSE)) -> 0.957122 | AF20: =VLOOKUP($F20,$BA$60:$BB$63,2,FALSE)/VLOOKUP($AD20,$BA$60:$BB$63,2,FALSE) -> 1000 | AG20: =ROUND($AE20*G20/$AF20,0) -> 0 | AH20: 0 | AI20: 0 | AJ20: 0 | AK20: 0 | AL20: 0 | AM20: 0 | AN20: 0 | AO20: 0 | AP20: 0 | AQ20: 0 | AR20: 0 | AS20: 0 | AT20: 0 | AU20: 0 | AV20: 0 | AW20: 0 | AX20: 0 | AY20: 0 | AZ20: 0 | BA20: 0 | BB20: 0 | BC20: 0
AG21: =SUM(AG19:AG20) -> 0 | AH21: =SUM(AH19:AH20) -> 0 | AI21: 0 | AJ21: 0 | AK21: 0 | AL21: 0 | AM21: 0 | AN21: 0 | AO21: 0 | AP21: 0 | AQ21: 0 | AR21: 0 | AS21: 0 | AT21: 0 | AU21: 0 | AV21: 0 | AW21: 0 | AX21: 0 | AY21: 0 | AZ21: 0 | BA21: 0 | BB21: 0 | BC21: 0
B23: イ 液化石油ガス（ＬＰＧ）
G25: 使用量（換算前） | AD25: 換算後 | AG25: 使用量（換算後）
C26: 種別 | E26: 気化率 m3/kg | F26: 単位 | G26: 14年度(2002) | H26: 15年度(2003) | I26: 16年度(2004) | J26: 17年度(2005) | K26: 18年度(2006) | L26: 19年度(2007) | M26: 20年度(2008) | N26: 21年度(2009) | O26: 22年度(2010) | P26: 23年度(2011) | Q26: 24年度(2012) | R26: 25年度(2013) | S26: 26年度(2014) | T26: 27年度(2015) | U26: 28年度(2016) | V26: 29年度(2017) | W26: 30年度(2018) | X26: 31/1年度(2019) | Y26: 2年度(2020) | Z26: 3年度(2021) | AA26: 4年度(2022) | AB26: 5年度(2023) | AC26: 6年度(2024) | AD26: 単位 | AE26: 単位換算 | AF26: 桁補正 | AG26: 14年度(2002) | AH26: 15年度(2003) | AI26: 16年度(2004) | AJ26: 17年度(2005) | AK26: 18年度(2006) | AL26: 19年度(2007) | AM26: 20年度(2008) | AN26: 21年度(2009) | AO26: 22年度(2010) | AP26: 23年度(2011) | AQ26: 24年度(2012) | AR26: 25年度(2013) | AS26: 26年度(2014) | AT26: 27年度(2015) | AU26: 28年度(2016) | AV26: 29年度(2017) | AW26: 30年度(2018) | AX26: 31/1年度(2019) | AY26: 2年度(2020) | AZ26: 3年度(2021) | BA26: 4年度(2022) | BB26: 5年度(2023) | BC26: 6年度(2024)
C27: プロパン・ブタン混合ガス （LPガス） | E27: 0.458 | F27: kg | AD27: t | AE27: =IF(OR(F27="kg",F27="ｔ"),1,E27) -> 1 | AF27: =VLOOKUP(F27,$BA$58:$BB$61,2,FALSE) -> 1000 | AG27: =ROUND(G27/$AE27/$AF27,0) -> 0 | AH27: 0 | AI27: 0 | AJ27: 0 | AK27: 0 | AL27: 0 | AM27: 0 | AN27: 0 | AO27: =ROUND(O27/$AE27/$AF27,0) -> 0 | AP27: =ROUND(P27/$AE27/$AF27,0) -> 0 | AQ27: 0 | AR27: 0 | AS27: 0 | AT27: 0 | AU27: 0 | AV27: 0 | AW27: 0 | AX27: 0 | AY27: 0 | AZ27: 0 | BA27: 0 | BB27: 0 | BC27: 0
C28: プロパン | E28: 0.502 | F28: kg | AD28: t | AE28: =IF(OR(F28="kg",F28="ｔ"),1,E28) -> 1 | AF28: =VLOOKUP(F28,$BA$58:$BB$61,2,FALSE) -> 1000 | AG28: 0 | AH28: 0 | AI28: 0 | AJ28: 0 | AK28: 0 | AL28: 0 | AM28: 0 | AN28: 0 | AO28: =ROUND(O28/$AE28/$AF28,0) -> 0 | AP28: 0 | AQ28: 0 | AR28: 0 | AS28: 0 | AT28: 0 | AU28: 0 | AV28: 0 | AW28: 0 | AX28: 0 | AY28: 0 | AZ28: 0 | BA28: 0 | BB28: 0 | BC28: 0
C29: ブタン | E29: 0.355 | F29: kg | AD29: t | AE29: =IF(OR(F29="kg",F29="ｔ"),1,E29) -> 1 | AF29: =VLOOKUP(F29,$BA$58:$BB$61,2,FALSE) -> 1000 | AG29: 0 | AH29: 0 | AI29: 0 | AJ29: 0 | AK29: 0 | AL29: 0 | AM29: 0 | AN29: 0 | AO29: 0 | AP29: 0 | AQ29: 0 | AR29: 0 | AS29: 0 | AT29: 0 | AU29: 0 | AV29: 0 | AW29: 0 | AX29: 0 | AY29: 0 | AZ29: 0 | BA29: 0 | BB29: 0 | BC29: 0
C30: その他 | E30: 0.482 | F30: kg | AD30: t | AE30: =IF(OR(F30="kg",F30="ｔ"),1,E30) -> 1 | AF30: =VLOOKUP(F30,$BA$58:$BB$61,2,FALSE) -> 1000 | AG30: 0 | AH30: 0 | AI30: 0 | AJ30: 0 | AK30: 0 | AL30: 0 | AM30: 0 | AN30: 0 | AO30: 0 | AP30: 0 | AQ30: 0 | AR30: 0 | AS30: 0 | AT30: 0 | AU30: 0 | AV30: 0 | AW30: 0 | AX30: 0 | AY30: 0 | AZ30: 0 | BA30: 0 | BB30: 0 | BC30: 0
AG31: =SUM(AG27:AG30) -> 0 | AH31: 0 | AI31: 0 | AJ31: 0 | AK31: 0 | AL31: 0 | AM31: 0 | AN31: 0 | AO31: 0 | AP31: 0 | AQ31: 0 | AR31: 0 | AS31: 0 | AT31: 0 | AU31: 0 | AV31: 0 | AW31: 0 | AX31: 0 | AY31: =SUM(AY27:AY30) -> 0 | AZ31: 0 | BA31: 0 | BB31: 0 | BC31: 0
B33: ウ 都市ガス・LPG以外の気体燃料
G35: 使用量（換算前） | AD35: 換算単位 | AG35: 使用量（換算後）
F36: 単位 | G36: 14年度(2002) | H36: 15年度(2003) | I36: 16年度(2004) | J36: 17年度(2005) | K36: 18年度(2006) | L36: 19年度(2007) | M36: 20年度(2008) | N36: 21年度(2009) | O36: 22年度(2010) | P36: 23年度(2011) | Q36: 24年度(2012) | R36: 25年度(2013) | S36: 26年度(2014) | T36: 27年度(2015) | U36: 28年度(2016) | V36: 29年度(2017) | W36: 30年度(2018) | X36: 31/1年度(2019) | Y36: 2年度(2020) | Z36: 3年度(2021) | AA36: 4年度(2022) | AB36: 5年度(2023) | AC36: 6年度(2024) | AD36: 単位 | AG36: 14年度(2002) | AH36: 15年度(2003) | AI36: 16年度(2004) | AJ36: 17年度(2005) | AK36: 18年度(2006) | AL36: 19年度(2007) | AM36: 20年度(2008) | AN36: 21年度(2009) | AO36: 22年度(2010) | AP36: 23年度(2011) | AQ36: 24年度(2012) | AR36: 25年度(2013) | AS36: 26年度(2014) | AT36: 27年度(2015) | AU36: 28年度(2016) | AV36: 29年度(2017) | AW36: 30年度(2018) | AX36: 31/1年度(2019) | AY36: 2年度(2020) | AZ36: 3年度(2021) | BA36: 4年度(2022) | BB36: 5年度(2023) | BC36: 6年度(2024)
C37: その他可燃性 天然ガス | E37: 気体燃料 圧力 | F37: kPa | AE37: 圧力補正 | AG37: =IF(COUNTIF(F39,"*Nm3")>0,1,G37/101.325*273.15/(273.15+G38)) -> 0 | AH37: =IF(COUNTIF(F39,"*Nm3")>0,1,H37/101.325*273.15/(273.15+H38)) -> 0 | AI37: =IF(COUNTIF(F39,"*Nm3")>0,1,I37/101.325*273.15/(273.15+I38)) -> 0 | AJ37: =IF(COUNTIF(F39,"*Nm3")>0,1,J37/101.325*273.15/(273.15+J38)) -> 0 | AK37: =IF(COUNTIF(F39,"*Nm3")>0,1,K37/101.325*273.15/(273.15+K38)) -> 0 | AL37: =IF(COUNTIF(F39,"*Nm3")>0,1,L37/101.325*273.15/(273.15+L38)) -> 0 | AM37: =IF(COUNTIF(F39,"*Nm3")>0,1,M37/101.325*273.15/(273.15+M38)) -> 0 | AN37: =IF(COUNTIF(F39,"*Nm3")>0,1,N37/101.325*273.15/(273.15+N38)) -> 0 | AO37: =IF(COUNTIF(F39,"*Nm3")>0,1,O37/101.325*273.15/(273.15+O38)) -> 0 | AP37: =IF(COUNTIF(F39,"*Nm3")>0,1,P37/101.325*273.15/(273.15+P38)) -> 0 | AQ37: =IF(COUNTIF(F39,"*Nm3")>0,1,Q37/101.325*273.15/(273.15+Q38)) -> 0 | AR37: =IF(COUNTIF(F39,"*Nm3")>0,1,R37/101.325*273.15/(273.15+R38)) -> 0 | AS37: =IF(COUNTIF(F39,"*Nm3")>0,1,S37/101.325*273.15/(273.15+S38)) -> 0 | AT37: 0 | AU37: 0 | AV37: 0 | AW37: 0 | AX37: 0 | AY37: 0 | AZ37: 0 | BA37: 0 | BB37: 0 | BC37: 0
E38: 気体燃料 温度 | F38: ℃
E39: 使用量 | F39: m3 | AD39: 千Nm3 | AE39: 単位補正 | AF39: =VLOOKUP($F39,$BA$60:$BB$63,2,FALSE)/VLOOKUP($AD39,$BA$60:$BB$63,2,FALSE) -> 1000 | AG39: =ROUND(H14_その他ガス*$AG37/$AF39,0) -> 0 | AH39: =ROUND(H15_その他ガス*$AH37/$AF39,0) -> 0 | AI39: =ROUND(H16_その他ガス*$AI37/$AF39,0) -> 0 | AJ39: =ROUND(H17_その他ガス*$AJ37/$AF39,0) -> 0 | AK39: =ROUND(H18_その他ガス*$AK37/$AF39,0) -> 0 | AL39: =ROUND(H19_その他ガス*$AL37/$AF39,0) -> 0 | AM39: =ROUND(H20_その他ガス*$AM37/$AF39,0) -> 0 | AN39: =ROUND(H21_その他ガス*$AN37/$AF39,0) -> 0 | AO39: =ROUND(H22_その他ガス*$AO37/$AF39,0) -> 0 | AP39: =ROUND(H23_その他ガス*$AP37/$AF39,0) -> 0 | AQ39: =ROUND(H24_その他ガス*$AQ37/$AF39,0) -> 0 | AR39: =ROUND(H25_その他ガス*$AR37/$AF39,0) -> 0 | AS39: =ROUND(H26_その他ガス*$AS37/$AF39,0) -> 0 | AT39: =ROUND(H27_その他ガス*$AS37/$AF39,0) -> 0 | AU39: =ROUND(H28_その他ガス*$AS37/$AF39,0) -> 0 | AV39: =ROUND(H29_その他ガス*$AS37/$AF39,0) -> 0 | AW39: =ROUND(H30_その他ガス*$AS37/$AF39,0) -> 0 | AX39: =ROUND(H31_その他ガス*$AS37/$AF39,0) -> 0 | AY39: =ROUND(Y39*$AS37/$AF39,0) -> 0 | AZ39: =ROUND(Z39*$AS37/$AF39,0) -> 0 | BA39: 0 | BB39: 0 | BC39: 0
C40: コークス炉ガス | E40: 気体燃料 圧力 | F40: kPa | AE40: 圧力補正 | AG40: =IF(COUNTIF(F42,"*Nm3")>0,1,G40/101.325*273.15/(273.15+G41)) -> 0 | AH40: =IF(COUNTIF(F42,"*Nm3")>0,1,H40/101.325*273.15/(273.15+H41)) -> 0 | AI40: =IF(COUNTIF(F42,"*Nm3")>0,1,I40/101.325*273.15/(273.15+I41)) -> 0 | AJ40: =IF(COUNTIF(F42,"*Nm3")>0,1,J40/101.325*273.15/(273.15+J41)) -> 0 | AK40: =IF(COUNTIF(F42,"*Nm3")>0,1,K40/101.325*273.15/(273.15+K41)) -> 0 | AL40: =IF(COUNTIF(F42,"*Nm3")>0,1,L40/101.325*273.15/(273.15+L41)) -> 0 | AM40: =IF(COUNTIF(F42,"*Nm3")>0,1,M40/101.325*273.15/(273.15+M41)) -> 0 | AN40: =IF(COUNTIF(F42,"*Nm3")>0,1,N40/101.325*273.15/(273.15+N41)) -> 0 | AO40: =IF(COUNTIF(F42,"*Nm3")>0,1,O40/101.325*273.15/(273.15+O41)) -> 0 | AP40: =IF(COUNTIF(F42,"*Nm3")>0,1,P40/101.325*273.15/(273.15+P41)) -> 0 | AQ40: =IF(COUNTIF(F42,"*Nm3")>0,1,Q40/101.325*273.15/(273.15+Q41)) -> 0 | AR40: =IF(COUNTIF(F42,"*Nm3")>0,1,R40/101.325*273.15/(273.15+R41)) -> 0 | AS40: =IF(COUNTIF(F42,"*Nm3")>0,1,S40/101.325*273.15/(273.15+S41)) -> 0 | AT40: 0 | AU40: 0 | AV40: 0 | AW40: 0 | AX40: 0 | AY40: 0 | AZ40: 0 | BA40: 0 | BB40: 0 | BC40: 0
E41: 気体燃料 温度 | F41: ℃
E42: 使用量 | F42: m3 | AD42: 千Nm3 | AE42: 単位補正 | AF42: =VLOOKUP($F42,$BA$60:$BB$63,2,FALSE) -> 1000 | AG42: =ROUND(H14_その他ガス*$AG40/$AF42,0) -> 0 | AH42: =ROUND(H15_その他ガス*$AH40/$AF42,0) -> 0 | AI42: =ROUND(H16_その他ガス*$AI40/$AF42,0) -> 0 | AJ42: =ROUND(H17_その他ガス*$AJ40/$AF42,0) -> 0 | AK42: =ROUND(H18_その他ガス*$AK40/$AF42,0) -> 0 | AL42: =ROUND(H19_その他ガス*$AL40/$AF42,0) -> 0 | AM42: =ROUND(H20_その他ガス*$AM40/$AF42,0) -> 0 | AN42: =ROUND(H21_その他ガス*$AN40/$AF42,0) -> 0 | AO42: =ROUND(H22_その他ガス*$AO40/$AF42,0) -> 0 | AP42: =ROUND(H23_その他ガス*$AP40/$AF42,0) -> 0 | AQ42: =ROUND(H24_その他ガス*$AQ40/$AF42,0) -> 0 | AR42: =ROUND(H25_その他ガス*$AR40/$AF42,0) -> 0 | AS42: =ROUND(H26_その他ガス*$AS40/$AF42,0) -> 0 | AT42: =ROUND(H27_その他ガス*$AS40/$AF42,0) -> 0 | AU42: =ROUND(H28_その他ガス*$AS40/$AF42,0) -> 0 | AV42: =ROUND(H29_その他ガス*$AS40/$AF42,0) -> 0 | AW42: =ROUND(H30_その他ガス*$AS40/$AF42,0) -> 0 | AX42: =ROUND(H31_その他ガス*$AS40/$AF42,0) -> 0 | AY42: =ROUND(Y42*$AS40/$AF42,0) -> 0 | AZ42: =ROUND(Z42*$AS40/$AF42,0) -> 0 | BA42: 0 | BB42: 0 | BC42: 0
C43: 高炉ガス | E43: 気体燃料 圧力 | F43: kPa | AE43: 圧力補正 | AG43: =IF(COUNTIF(F45,"*Nm3")>0,1,G43/101.325*273.15/(273.15+G44)) -> 0 | AH43: =IF(COUNTIF(F45,"*Nm3")>0,1,H43/101.325*273.15/(273.15+H44)) -> 0 | AI43: =IF(COUNTIF(F45,"*Nm3")>0,1,I43/101.325*273.15/(273.15+I44)) -> 0 | AJ43: =IF(COUNTIF(F45,"*Nm3")>0,1,J43/101.325*273.15/(273.15+J44)) -> 0 | AK43: =IF(COUNTIF(F45,"*Nm3")>0,1,K43/101.325*273.15/(273.15+K44)) -> 0 | AL43: =IF(COUNTIF(F45,"*Nm3")>0,1,L43/101.325*273.15/(273.15+L44)) -> 0 | AM43: =IF(COUNTIF(F45,"*Nm3")>0,1,M43/101.325*273.15/(273.15+M44)) -> 0 | AN43: =IF(COUNTIF(F45,"*Nm3")>0,1,N43/101.325*273.15/(273.15+N44)) -> 0 | AO43: =IF(COUNTIF(F45,"*Nm3")>0,1,O43/101.325*273.15/(273.15+O44)) -> 0 | AP43: =IF(COUNTIF(F45,"*Nm3")>0,1,P43/101.325*273.15/(273.15+P44)) -> 0 | AQ43: =IF(COUNTIF(F45,"*Nm3")>0,1,Q43/101.325*273.15/(273.15+Q44)) -> 0 | AR43: =IF(COUNTIF(F45,"*Nm3")>0,1,R43/101.325*273.15/(273.15+R44)) -> 0 | AS43: =IF(COUNTIF(F45,"*Nm3")>0,1,S43/101.325*273.15/(273.15+S44)) -> 0 | AT43: 0 | AU43: 0 | AV43: 0 | AW43: 0 | AX43: 0 | AY43: 0 | AZ43: 0 | BA43: 0 | BB43: 0 | BC43: 0
E44: 気体燃料 温度 | F44: ℃
E45: 使用量 | F45: m3 | AD45: 千Nm3 | AE45: 単位補正 | AF45: =VLOOKUP($F45,$BA$60:$BB$63,2,FALSE) -> 1000 | AG45: =ROUND(H14_その他ガス*$AG43/$AF45,0) -> 0 | AH45: =ROUND(H15_その他ガス*$AH43/$AF45,0) -> 0 | AI45: =ROUND(H16_その他ガス*$AI43/$AF45,0) -> 0 | AJ45: =ROUND(H17_その他ガス*$AJ43/$AF45,0) -> 0 | AK45: =ROUND(H18_その他ガス*$AK43/$AF45,0) -> 0 | AL45: =ROUND(H19_その他ガス*$AL43/$AF45,0) -> 0 | AM45: =ROUND(H20_その他ガス*$AM43/$AF45,0) -> 0 | AN45: =ROUND(H21_その他ガス*$AN43/$AF45,0) -> 0 | AO45: =ROUND(H22_その他ガス*$AO43/$AF45,0) -> 0 | AP45: =ROUND(H23_その他ガス*$AP43/$AF45,0) -> 0 | AQ45: =ROUND(H24_その他ガス*$AQ43/$AF45,0) -> 0 | AR45: =ROUND(H25_その他ガス*$AR43/$AF45,0) -> 0 | AS45: =ROUND(H26_その他ガス*$AS43/$AF45,0) -> 0 | AT45: =ROUND(H27_その他ガス*$AS43/$AF45,0) -> 0 | AU45: =ROUND(H28_その他ガス*$AS43/$AF45,0) -> 0 | AV45: =ROUND(H29_その他ガス*$AS43/$AF45,0) -> 0 | AW45: =ROUND(H30_その他ガス*$AS43/$AF45,0) -> 0 | AX45: =ROUND(H31_その他ガス*$AS43/$AF45,0) -> 0 | AY45: =ROUND(Y45*$AS43/$AF45,0) -> 0 | AZ45: =ROUND(Z45*$AS43/$AF45,0) -> 0 | BA45: 0 | BB45: 0 | BC45: 0
C46: 転炉ガス | E46: 気体燃料 圧力 | F46: kPa | AE46: 圧力補正 | AG46: =IF(COUNTIF(F48,"*Nm3")>0,1,G46/101.325*273.15/(273.15+G47)) -> 0 | AH46: =IF(COUNTIF(F48,"*Nm3")>0,1,H46/101.325*273.15/(273.15+H47)) -> 0 | AI46: =IF(COUNTIF(F48,"*Nm3")>0,1,I46/101.325*273.15/(273.15+I47)) -> 0 | AJ46: =IF(COUNTIF(F48,"*Nm3")>0,1,J46/101.325*273.15/(273.15+J47)) -> 0 | AK46: =IF(COUNTIF(F48,"*Nm3")>0,1,K46/101.325*273.15/(273.15+K47)) -> 0 | AL46: =IF(COUNTIF(F48,"*Nm3")>0,1,L46/101.325*273.15/(273.15+L47)) -> 0 | AM46: =IF(COUNTIF(F48,"*Nm3")>0,1,M46/101.325*273.15/(273.15+M47)) -> 0 | AN46: =IF(COUNTIF(F48,"*Nm3")>0,1,N46/101.325*273.15/(273.15+N47)) -> 0 | AO46: =IF(COUNTIF(F48,"*Nm3")>0,1,O46/101.325*273.15/(273.15+O47)) -> 0 | AP46: =IF(COUNTIF(F48,"*Nm3")>0,1,P46/101.325*273.15/(273.15+P47)) -> 0 | AQ46: =IF(COUNTIF(F48,"*Nm3")>0,1,Q46/101.325*273.15/(273.15+Q47)) -> 0 | AR46: =IF(COUNTIF(F48,"*Nm3")>0,1,R46/101.325*273.15/(273.15+R47)) -> 0 | AS46: =IF(COUNTIF(F48,"*Nm3")>0,1,S46/101.325*273.15/(273.15+S47)) -> 0 | AT46: 0 | AU46: 0 | AV46: 0 | AW46: 0 | AX46: 0 | AY46: 0 | AZ46: 0 | BA46: 0 | BB46: 0 | BC46: 0
E47: 気体燃料 温度 | F47: ℃
E48: 使用量 | F48: m3 | AD48: 千Nm3 | AE48: 単位補正 | AF48: =VLOOKUP($F48,$BA$60:$BB$63,2,FALSE) -> 1000 | AG48: =ROUND(H14_その他ガス*$AG46/$AF48,0) -> 0 | AH48: =ROUND(H15_その他ガス*$AH46/$AF48,0) -> 0 | AI48: =ROUND(H16_その他ガス*$AI46/$AF48,0) -> 0 | AJ48: =ROUND(H17_その他ガス*$AJ46/$AF48,0) -> 0 | AK48: =ROUND(H18_その他ガス*$AK46/$AF48,0) -> 0 | AL48: =ROUND(H19_その他ガス*$AL46/$AF48,0) -> 0 | AM48: =ROUND(H20_その他ガス*$AM46/$AF48,0) -> 0 | AN48: =ROUND(H21_その他ガス*$AN46/$AF48,0) -> 0 | AO48: =ROUND(H22_その他ガス*$AO46/$AF48,0) -> 0 | AP48: =ROUND(H23_その他ガス*$AP46/$AF48,0) -> 0 | AQ48: =ROUND(H24_その他ガス*$AQ46/$AF48,0) -> 0 | AR48: =ROUND(H25_その他ガス*$AR46/$AF48,0) -> 0 | AS48: =ROUND(H26_その他ガス*$AS46/$AF48,0) -> 0 | AT48: =ROUND(H27_その他ガス*$AS46/$AF48,0) -> 0 | AU48: =ROUND(H28_その他ガス*$AS46/$AF48,0) -> 0 | AV48: =ROUND(H29_その他ガス*$AS46/$AF48,0) -> 0 | AW48: =ROUND(H30_その他ガス*$AS46/$AF48,0) -> 0 | AX48: =ROUND(H31_その他ガス*$AS46/$AF48,0) -> 0 | AY48: =ROUND(Y48*$AS46/$AF48,0) -> 0 | AZ48: =ROUND(Z48*$AS46/$AF48,0) -> 0 | BA48: 0 | BB48: 0 | BC48: 0
B50: エ 電気または熱の事業所外への供給
G52: 使用量（換算前） | AD52: 換算単位 | AG52: 使用量（換算後）
F53: 単位 | G53: 14年度(2002) | H53: 15年度(2003) | I53: 16年度(2004) | J53: 17年度(2005) | K53: 18年度(2006) | L53: 19年度(2007) | M53: 20年度(2008) | N53: 21年度(2009) | O53: 22年度(2010) | P53: 23年度(2011) | Q53: 24年度(2012) | R53: 25年度(2013) | S53: 26年度(2014) | T53: 27年度(2015) | U53: 28年度(2016) | V53: 29年度(2017) | W53: 30年度(2018) | X53: 31/1年度(2019) | Y53: 2年度(2020) | Z53: 3年度(2021) | AA53: 4年度(2022) | AB53: 5年度(2023) | AC53: 6年度(2024) | AD53: 単位 | AF53: 単位補正 | AG53: 14年度(2002) | AH53: 15年度(2003) | AI53: 16年度(2004) | AJ53: 17年度(2005) | AK53: 18年度(2006) | AL53: 19年度(2007) | AM53: 20年度(2008) | AN53: 21年度(2009) | AO53: 22年度(2010) | AP53: 23年度(2011) | AQ53: 24年度(2012) | AR53: 25年度(2013) | AS53: 26年度(2014) | AT53: 27年度(2015) | AU53: 28年度(2016) | AV53: 29年度(2017) | AW53: 30年度(2018) | AX53: 31/1年度(2019) | AY53: 2年度(2020) | AZ53: 3年度(2021) | BA53: 4年度(2022) | BB53: 5年度(2023) | BC53: 6年度(2024)
C54: 事業所外供給 | D54: 電気 | E54: 電気供給量 | F54: kWh | AD54: 千kWh | AE54: 単位補正 | AF54: =VLOOKUP($F54,$BA$64:$BB$65,2,FALSE)/VLOOKUP($AD54,$BA$64:$BB$65,2,FALSE) -> 1000 | AG54: =ROUND(G54/$AF54,0) -> 0 | AH54: 0 | AI54: 0 | AJ54: 0 | AK54: 0 | AL54: 0 | AM54: 0 | AN54: 0 | AO54: 0 | AP54: 0 | AQ54: 0 | AR54: 0 | AS54: 0 | AT54: 0 | AU54: 0 | AV54: 0 | AW54: 0 | AX54: 0 | AY54: 0 | AZ54: 0 | BA54: 0 | BB54: 0 | BC54: 0
E55: 排出係数 | F55: t-CO2/千kWh | AE55: 供給量 | AG55: =AG54*G55 -> 0 | AH55: 0 | AI55: 0 | AJ55: 0 | AK55: 0 | AL55: 0 | AM55: 0 | AN55: 0 | AO55: 0 | AP55: 0 | AQ55: 0 | AR55: 0 | AS55: 0 | AT55: 0 | AU55: 0 | AV55: 0 | AW55: 0 | AX55: 0 | AY55: 0 | AZ55: 0 | BA55: 0 | BB55: 0 | BC55: 0
D56: 熱 | E56: 熱供給量 | F56: MJ | AD56: GJ | AE56: 単位補正 | AF56: =VLOOKUP($F56,$BA$66:$BB$67,2,FALSE)/VLOOKUP($AD56,$BA$66:$BB$67,2,FALSE) -> 1000 | AG56: =ROUND(G56/$AF56,0) -> 0 | AH56: 0 | AI56: 0 | AJ56: 0 | AK56: 0 | AL56: 0 | AM56: 0 | AN56: 0 | AO56: 0 | AP56: 0 | AQ56: 0 | AR56: 0 | AS56: 0 | AT56: 0 | AU56: 0 | AV56: 0 | AW56: 0 | AX56: 0 | AY56: 0 | AZ56: 0 | BA56: 0 | BB56: 0 | BC56: 0
E57: 排出係数 | F57: t-ＣＯ₂/GJ | AE57: 供給量 | AG57: =AG56*G57 -> 0 | AH57: 0 | AI57: 0 | AJ57: 0 | AK57: 0 | AL57: 0 | AM57: 0 | AN57: 0 | AO57: 0 | AP57: 0 | AQ57: 0 | AR57: 0 | AS57: 0 | AT57: 0 | AU57: 0 | AV57: 0 | AW57: 0 | AX57: 0 | AY57: 0 | AZ57: 0 | BA57: 0 | BB57: 0 | BC57: 0
BA58: kg | BB58: 1000
BA59: ｔ | BB59: 1
BA60: m3 | BB60: 1000
BA61: 千m3 | BB61: 1
BA62: Nm3 | BB62: 1000
BA63: 千Nm3 | BB63: 1
BA64: kWh | BB64: 1000
BA65: 千kWh | BB65: 1
BA66: MJ | BB66: 1000
BA67: GJ | BB67: 1
BA70: 都市ガス圧力補正
BA71: 低圧用 | BB71: =ROUND((101.325+2)/101.325*273.15/(273.15+15),6) -> 0.966655
BA72: 中間圧以上用 | BB72: =ROUND((101.325+0.981)/101.325*273.15/(273.15+15),6) -> 0.957122
BA74: 種類 | BB74: 気化率
BA75: プロパン・ブタン混合ガス（LPガス） | BB75: 0.458
BA76: プロパン | BB76: 0.502
BA77: ブタン | BB77: 0.355
BA78: ＬＰガス | BB78: 0.482
BA79: 自動車用 | BB79: 0.458
BA80: その他

Sheet ５．算定報告様式(工場現場)
C1: ５．算定報告様式（工場・現場）
C3: 排出活動 | D3: 区分 | G3: 単位 | H3: 使 用 量 | FW3: 単位当たり発熱量 | FY3: 排出係数
H4: 事業所内使用量 | AI4: 算定対象外使用量 | BJ4: 控除後使用量 | CG4: 単位補正 | CH4: 控除後使用量 単位補正後 | DF4: エネルギー発熱量（GJ) | EC4: 原油換算使用量（ｋL) | EZ4: CO₂換算使用量 （t-CO₂）
H5: 燃料等 監視点 | I5: 計量器の種類 | J5: 検定等の有無 | K5: 入力方法 | L5: 14年度(2002) | M5: 15年度(2003) | N5: 16年度(2004) | O5: 17年度(2005) | P5: 18年度(2006) | Q5: 19年度(2007) | R5: 20年度(2008) | S5: 21年度(2009) | T5: 22年度(2010) | U5: 23年度(2011) | V5: 24年度(2012) | W5: 25年度(2013) | X5: 26年度(2014) | Y5: 27年度(2015) | Z5: 28年度(2016) | AA5: 29年度(2017) | AB5: 30年度(2018) | AC5: 31/1年度 (2019) | AD5: 2年度 (2020) | AE5: 3年度 (2021) | AF5: 4年度 (2022) | AG5: 5年度 (2023) | AH5: 6年度 (2024) | AI5: 燃料等 監視点 | AJ5: 計量器の種類 | AK5: 検定等の有無 | AL5: 入力方法 | AM5: 14年度(2002) | AN5: 15年度(2003) | AO5: 16年度(2004) | AP5: 17年度(2005) | AQ5: 18年度(2006) | AR5: 19年度(2007) | AS5: 20年度(2008) | AT5: 21年度(2009) | AU5: 22年度(2010) | AV5: 23年度(2011) | AW5: 24年度(2012) | AX5: 25年度(2013) | AY5: 26年度(2014) | AZ5: 27年度(2015) | BA5: 28年度(2016) | BB5: 29年度(2017) | BC5: 30年度(2018) | BD5: 31/1年度 (2019) | BE5: 2年度 (2020) | BF5: 3年度 (2021) | BG5: 4年度 (2022) | BH5: 5年度 (2023) | BI5: 6年度 (2024) | BJ5: 14年度(2002) | BK5: 15年度(2003) | BL5: 16年度(2004) | BM5: 17年度(2005) | BN5: 18年度(2006) | BO5: 19年度(2007) | BP5: 20年度(2008) | BQ5: 21年度(2009) | BR5: 22年度(2010) | BS5: 23年度(2011) | BT5: 24年度(2012) | BU5: 25年度(2013) | BV5: 26年度(2014) | BW5: 27年度(2015) | BX5: 28年度(2016) | BY5: 29年度(2017) | BZ5: 30年度(2018) | CA5: 31/1年度 (2019) | CB5: 2年度 (2020) | CC5: 3年度 (2021) | CD5: 4年度 (2022) | CE5: 5年度 (2023) | CF5: 6年度 (2024) | CH5: 単位 | CI5: 14年度(2002) | CJ5: 15年度(2003) | CK5: 16年度(2004) | CL5: 17年度(2005) | CM5: 18年度(2006) | CN5: 19年度(2007) | CO5: 20年度(2008) | CP5: 21年度(2009) | CQ5: 22年度(2010) | CR5: 23年度(2011) | CS5: 24年度(2012) | CT5: 25年度(2013) | CU5: 26年度(2014) | CV5: 27年度(2015) | CW5: 28年度(2016) | CX5: 29年度(2017) | CY5: 30年度(2018) | CZ5: 31/1年度 (2019) | DA5: 2年度 (2020) | DB5: 3年度 (2021) | DC5: 4年度 (2022) | DD5: 5年度 (2023) | DE5: 6年度 (2024) | DF5: 14年度(2002) | DG5: 15年度(2003) | DH5: 16年度(2004) | DI5: 17年度(2005) | DJ5: 18年度(2006) | DK5: 19年度(2007) | DL5: 20年度(2008) | DM5: 21年度(2009) | DN5: 22年度(2010) | DO5: 23年度(2011) | DP5: 24年度(2012) | DQ5: 25年度(2013) | DR5: 26年度(2014) | DS5: 27年度(2015) | DT5: 28年度(2016) | DU5: 29年度(2017) | DV5: 30年度(2018) | DW5: 31/1年度 (2019) | DX5: 2年度 (2020) | DY5: 3年度 (2021) | DZ5: 4年度 (2022) | EA5: 5年度 (2023) | EB5: 6年度 (2024) | EC5: 14年度(2002) | ED5: 15年度(2003) | EE5: 16年度(2004) | EF5: 17年度(2005) | EG5: 18年度(2006) | EH5: 19年度(2007) | EI5: 20年度(2008) | EJ5: 21年度(2009) | EK5: 22年度(2010) | EL5: 23年度(2011) | EM5: 24年度(2012) | EN5: 25年度(2013) | EO5: 26年度(2014) | EP5: 27年度(2015) | EQ5: 28年度(2016) | ER5: 29年度(2017) | ES5: 30年度(2018) | ET5: 31/1年度 (2019) | EU5: 2年度 (2020) | EV5: 3年度 (2021) | EW5: 4年度 (2022) | EX5: 5年度 (2023) | EY5: 6年度 (2024) | EZ5: 14年度(2002) | FA5: 15年度(2003) | FB5: 16年度(2004) | FC5: 17年度(2005) | FD5: 18年度(2006) | FE5: 19年度(2007) | FF5: 20年度(2008) | FG5: 21年度(2009) | FH5: 22年度(2010) | FI5: 23年度(2011) | FJ5: 24年度(2012) | FK5: 25年度(2013) | FL5: 26年度(2014) | FM5: 27年度(2015) | FN5: 28年度(2016) | FO5: 29年度(2017) | FP5: 30年度(2018) | FQ5: 31/1年度 (2019) | FR5: 2年度 (2020) | FS5: 3年度 (2021) | FT5: 4年度 (2022) | FU5: 5年度 (2023) | FV5: 6年度 (2024)
C6: 燃料 | D6: 原油（コンデンセートを除く） | G6: L | BJ6: =L6-AM6 -> 0 | BK6: =M6-AN6 -> 0 | BL6: =N6-AO6 -> 0 | BM6: =O6-AP6 -> 0 | BN6: =P6-AQ6 -> 0 | BO6: =Q6-AR6 -> 0 | BP6: =R6-AS6 -> 0 | BQ6: =S6-AT6 -> 0 | BR6: =T6-AU6 -> 0 | BS6: =U6-AV6 -> 0 | BT6: =V6-AW6 -> 0 | BU6: =W6-AX6 -> 0 | BV6: =X6-AY6 -> 0 | BW6: =Y6-AZ6 -> 0 | BX6: =Z6-BA6 -> 0 | BY6: =AA6-BB6 -> 0 | BZ6: =AB6-BC6 -> 0 | CA6: =AC6-BD6 -> 0 | CB6: =AD6-BE6 -> 0 | CC6: =AE6-BF6 -> 0 | CD6: =AF6-BG6 -> 0 | CE6: =AG6-BH6 -> 0 | CF6: =AH6-BI6 -> 0 | CG6: =VLOOKUP($G6,$GB$6:$GC$15,2,FALSE) -> 1000 | CH6: ｋL | CI6: =ROUND(BJ6/$CG6,0) -> 0 | CJ6: =ROUND(BK6/$CG6,0) -> 0 | CK6: 0 | CL6: 0 | CM6: 0 | CN6: 0 | CO6: 0 | CP6: 0 | CQ6: 0 | CR6: 0 | CS6: 0 | CT6: 0 | CU6: 0 | CV6: 0 | CW6: 0 | CX6: 0 | CY6: 0 | CZ6: 0 | DA6: 0 | DB6: 0 | DC6: 0 | DD6: 0 | DE6: 0 | DF6: =CI6*$FW6 -> 0 | DG6: 0 | DH6: 0 | DI6: 0 | DJ6: 0 | DK6: 0 | DL6: 0 | DM6: 0 | DN6: 0 | DO6: 0 | DP6: 0 | DQ6: 0 | DR6: 0 | DS6: 0 | DT6: 0 | DU6: 0 | DV6: =CY6*$FW6 -> 0 | DW6: 0 | DX6: 0 | DY6: 0 | DZ6: 0 | EA6: 0 | EB6: 0 | EC6: =DF6*$GC$19 -> 0 | ED6: 0 | EE6: 0 | EF6: 0 | EG6: 0 | EH6: 0 | EI6: 0 | EJ6: 0 | EK6: 0 | EL6: 0 | EM6: 0 | EN6: 0 | EO6: 0 | EP6: 0 | EQ6: 0 | ER6: 0 | ES6: =DV6*$GC$19 -> 0 | ET6: 0 | EU6: 0 | EV6: 0 | EW6: 0 | EX6: 0 | EY6: 0 | EZ6: =DF6*$FY6*44/12 -> 0 | FA6: 0 | FB6: 0 | FC6: 0 | FD6: 0 | FE6: 0 | FF6: 0 | FG6: 0 | FH6: 0 | FI6: 0 | FJ6: 0 | FK6: 0 | FL6: 0 | FM6: 0 | FN6: 0 | FO6: 0 | FP6: =DV6*$FY6*44/12 -> 0 | FQ6: 0 | FR6: 0 | FS6: 0 | FT6: 0 | FU6: 0 | FV6: 0 | FW6: 38.2 | FX6: GJ/kL | FY6: 0.0187 | FZ6: t-C/GJ | GB6: L | GC6: 1000
D7: 原油のうちコンデンセート（ＮＧＬ） | G7: L | BJ7: 0 | BK7: 0 | BL7: 0 | BM7: 0 | BN7: 0 | BO7: 0 | BP7: 0 | BQ7: 0 | BR7: 0 | BS7: 0 | BT7: 0 | BU7: 0 | BV7: 0 | BW7: 0 | BX7: 0 | BY7: 0 | BZ7: 0 | CA7: 0 | CB7: 0 | CC7: 0 | CD7: 0 | CE7: 0 | CF7: 0 | CG7: 1000 | CH7: ｋL | CI7: =ROUND(BJ7/$CG7,0) -> 0 | CJ7: 0 | CK7: 0 | CL7: 0 | CM7: 0 | CN7: 0 | CO7: 0 | CP7: 0 | CQ7: 0 | CR7: 0 | CS7: 0 | CT7: 0 | CU7: 0 | CV7: 0 | CW7: 0 | CX7: 0 | CY7: 0 | CZ7: 0 | DA7: 0 | DB7: 0 | DC7: 0 | DD7: 0 | DE7: 0 | DF7: 0 | DG7: 0 | DH7: 0 | DI7: 0 | DJ7: 0 | DK7: 0 | DL7: 0 | DM7: 0 | DN7: 0 | DO7: 0 | DP7: 0 | DQ7: 0 | DR7: 0 | DS7: 0 | DT7: 0 | DU7: 0 | DV7: 0 | DW7: 0 | DX7: 0 | DY7: 0 | DZ7: 0 | EA7: 0 | EB7: 0 | EC7: 0 | ED7: 0 | EE7: 0 | EF7: 0 | EG7: 0 | EH7: 0 | EI7: 0 | EJ7: 0 | EK7: 0 | EL7: 0 | EM7: 0 | EN7: 0 | EO7: 0 | EP7: 0 | EQ7: 0 | ER7: 0 | ES7: 0 | ET7: 0 | EU7: 0 | EV7: 0 | EW7: 0 | EX7: 0 | EY7: 0 | EZ7: 0 | FA7: 0 | FB7: 0 | FC7: 0 | FD7: 0 | FE7: 0 | FF7: 0 | FG7: 0 | FH7: 0 | FI7: 0 | FJ7: 0 | FK7: 0 | FL7: 0 | FM7: 0 | FN7: 0 | FO7: 0 | FP7: 0 | FQ7: 0 | FR7: 0 | FS7: 0 | FT7: 0 | FU7: 0 | FV7: 0 | FW7: 35.3 | FX7: GJ/kL | FY7: 0.0184 | FZ7: t-C/GJ | GB7: kL | GC7: 1
D8: 揮発油（ガソリン） | G8: kL | BJ8: 0 | BK8: 0 | BL8: 0 | BM8: 0 | BN8: 0 | BO8: 0 | BP8: 0 | BQ8: 0 | BR8: 0 | BS8: 0 | BT8: 0 | BU8: 0 | BV8: 0 | BW8: 0 | BX8: 0 | BY8: 0 | BZ8: 0 | CA8: 0 | CB8: 0 | CC8: 0 | CD8: 0 | CE8: 0 | CF8: 0 | CG8: 1 | CH8: ｋL | CI8: 0 | CJ8: 0 | CK8: 0 | CL8: 0 | CM8: 0 | CN8: 0 | CO8: 0 | CP8: 0 | CQ8: 0 | CR8: 0 | CS8: 0 | CT8: 0 | CU8: 0 | CV8: 0 | CW8: 0 | CX8: 0 | CY8: 0 | CZ8: 0 | DA8: 0 | DB8: 0 | DC8: 0 | DD8: 0 | DE8: 0 | DF8: 0 | DG8: 0 | DH8: 0 | DI8: 0 | DJ8: 0 | DK8: 0 | DL8: 0 | DM8: 0 | DN8: 0 | DO8: 0 | DP8: 0 | DQ8: 0 | DR8: 0 | DS8: 0 | DT8: 0 | DU8: 0 | DV8: 0 | DW8: 0 | DX8: 0 | DY8: 0 | DZ8: 0 | EA8: 0 | EB8: 0 | EC8: 0 | ED8: 0 | EE8: 0 | EF8: 0 | EG8: 0 | EH8: 0 | EI8: 0 | EJ8: 0 | EK8: 0 | EL8: 0 | EM8: 0 | EN8: 0 | EO8: 0 | EP8: 0 | EQ8: 0 | ER8: 0 | ES8: 0 | ET8: 0 | EU8: 0 | EV8: 0 | EW8: 0 | EX8: 0 | EY8: 0 | EZ8: 0 | FA8: 0 | FB8: 0 | FC8: 0 | FD8: 0 | FE8: 0 | FF8: 0 | FG8: 0 | FH8: 0 | FI8: 0 | FJ8: 0 | FK8: 0 | FL8: 0 | FM8: 0 | FN8: 0 | FO8: 0 | FP8: 0 | FQ8: 0 | FR8: 0 | FS8: 0 | FT8: 0 | FU8: 0 | FV8: 0 | FW8: 34.6 | FX8: GJ/kL | FY8: 0.0183 | FZ8: t-C/GJ | GB8: kg | GC8: 1000
D9: ナフサ | G9: L | BJ9: 0 | BK9: 0 | BL9: 0 | BM9: 0 | BN9: 0 | BO9: 0 | BP9: 0 | BQ9: 0 | BR9: 0 | BS9: 0 | BT9: 0 | BU9: 0 | BV9: 0 | BW9: 0 | BX9: 0 | BY9: 0 | BZ9: 0 | CA9: 0 | CB9: 0 | CC9: 0 | CD9: 0 | CE9: 0 | CF9: 0 | CG9: 1000 | CH9: ｋL | CI9: 0 | CJ9: 0 | CK9: 0 | CL9: 0 | CM9: 0 | CN9: 0 | CO9: 0 | CP9: 0 | CQ9: 0 | CR9: 0 | CS9: 0 | CT9: 0 | CU9: 0 | CV9: 0 | CW9: 0 | CX9: 0 | CY9: 0 | CZ9: 0 | DA9: 0 | DB9: 0 | DC9: 0 | DD9: 0 | DE9: 0 | DF9: 0 | DG9: 0 | DH9: 0 | DI9: 0 | DJ9: 0 | DK9: 0 | DL9: 0 | DM9: 0 | DN9: 0 | DO9: 0 | DP9: 0 | DQ9: 0 | DR9: 0 | DS9: 0 | DT9: 0 | DU9: 0 | DV9: 0 | DW9: 0 | DX9: 0 | DY9: 0 | DZ9: 0 | EA9: 0 | EB9: 0 | EC9: 0 | ED9: 0 | EE9: 0 | EF9: 0 | EG9: 0 | EH9: 0 | EI9: 0 | EJ9: 0 | EK9: 0 | EL9: 0 | EM9: 0 | EN9: 0 | EO9: 0 | EP9: 0 | EQ9: 0 | ER9: 0 | ES9: 0 | ET9: 0 | EU9: 0 | EV9: 0 | EW9: 0 | EX9: 0 | EY9: 0 | EZ9: 0 | FA9: 0 | FB9: 0 | FC9: 0 | FD9: 0 | FE9: 0 | FF9: 0 | FG9: 0 | FH9: 0 | FI9: 0 | FJ9: 0 | FK9: 0 | FL9: 0 | FM9: 0 | FN9: 0 | FO9: 0 | FP9: 0 | FQ9: 0 | FR9: 0 | FS9: 0 | FT9: 0 | FU9: 0 | FV9: 0 | FW9: 33.6 | FX9: GJ/kL | FY9: 0.0182 | FZ9: t-C/GJ | GB9: t | GC9: 1
D10: 灯油 | G10: L | BJ10: 0 | BK10: 0 | BL10: 0 | BM10: 0 | BN10: 0 | BO10: 0 | BP10: 0 | BQ10: 0 | BR10: 0 | BS10: 0 | BT10: 0 | BU10: 0 | BV10: 0 | BW10: 0 | BX10: 0 | BY10: 0 | BZ10: 0 | CA10: 0 | CB10: 0 | CC10: 0 | CD10: 0 | CE10: 0 | CF10: 0 | CG10: 1000 | CH10: ｋL | CI10: 0 | CJ10: 0 | CK10: 0 | CL10: 0 | CM10: 0 | CN10: 0 | CO10: 0 | CP10: 0 | CQ10: 0 | CR10: 0 | CS10: 0 | CT10: 0 | CU10: 0 | CV10: 0 | CW10: 0 | CX10: 0 | CY10: 0 | CZ10: 0 | DA10: 0 | DB10: 0 | DC10: 0 | DD10: 0 | DE10: 0 | DF10: 0 | DG10: 0 | DH10: 0 | DI10: 0 | DJ10: 0 | DK10: 0 | DL10: 0 | DM10: 0 | DN10: 0 | DO10: 0 | DP10: 0 | DQ10: 0 | DR10: 0 | DS10: 0 | DT10: 0 | DU10: 0 | DV10: 0 | DW10: 0 | DX10: 0 | DY10: 0 | DZ10: 0 | EA10: 0 | EB10: 0 | EC10: 0 | ED10: 0 | EE10: 0 | EF10: 0 | EG10: 0 | EH10: 0 | EI10: 0 | EJ10: 0 | EK10: 0 | EL10: 0 | EM10: 0 | EN10: 0 | EO10: 0 | EP10: 0 | EQ10: 0 | ER10: 0 | ES10: 0 | ET10: 0 | EU10: 0 | EV10: 0 | EW10: 0 | EX10: 0 | EY10: 0 | EZ10: 0 | FA10: 0 | FB10: 0 | FC10: 0 | FD10: 0 | FE10: 0 | FF10: 0 | FG10: 0 | FH10: 0 | FI10: 0 | FJ10: 0 | FK10: 0 | FL10: 0 | FM10: 0 | FN10: 0 | FO10: 0 | FP10: 0 | FQ10: 0 | FR10: 0 | FS10: 0 | FT10: 0 | FU10: 0 | FV10: 0 | FW10: 36.7 | FX10: GJ/kL | FY10: 0.0185 | FZ10: t-C/GJ | GB10: Nm3 | GC10: 1000
D11: 軽油 | G11: L | BJ11: 0 | BK11: 0 | BL11: 0 | BM11: 0 | BN11: 0 | BO11: 0 | BP11: 0 | BQ11: 0 | BR11: 0 | BS11: 0 | BT11: 0 | BU11: 0 | BV11: 0 | BW11: 0 | BX11: 0 | BY11: 0 | BZ11: 0 | CA11: 0 | CB11: 0 | CC11: 0 | CD11: 0 | CE11: 0 | CF11: 0 | CG11: 1000 | CH11: ｋL | CI11: 0 | CJ11: 0 | CK11: 0 | CL11: 0 | CM11: 0 | CN11: 0 | CO11: 0 | CP11: 0 | CQ11: 0 | CR11: 0 | CS11: 0 | CT11: 0 | CU11: 0 | CV11: 0 | CW11: 0 | CX11: 0 | CY11: 0 | CZ11: 0 | DA11: 0 | DB11: 0 | DC11: 0 | DD11: 0 | DE11: 0 | DF11: 0 | DG11: 0 | DH11: 0 | DI11: 0 | DJ11: 0 | DK11: 0 | DL11: 0 | DM11: 0 | DN11: 0 | DO11: 0 | DP11: 0 | DQ11: 0 | DR11: 0 | DS11: 0 | DT11: 0 | DU11: 0 | DV11: 0 | DW11: 0 | DX11: 0 | DY11: 0 | DZ11: 0 | EA11: 0 | EB11: 0 | EC11: 0 | ED11: 0 | EE11: 0 | EF11: 0 | EG11: 0 | EH11: 0 | EI11: 0 | EJ11: 0 | EK11: 0 | EL11: 0 | EM11: 0 | EN11: 0 | EO11: 0 | EP11: 0 | EQ11: 0 | ER11: 0 | ES11: 0 | ET11: 0 | EU11: 0 | EV11: 0 | EW11: 0 | EX11: 0 | EY11: 0 | EZ11: 0 | FA11: 0 | FB11: 0 | FC11: 0 | FD11: 0 | FE11: 0 | FF11: 0 | FG11: 0 | FH11: 0 | FI11: 0 | FJ11: 0 | FK11: 0 | FL11: 0 | FM11: 0 | FN11: 0 | FO11: 0 | FP11: 0 | FQ11: 0 | FR11: 0 | FS11: 0 | FT11: 0 | FU11: 0 | FV11: 0 | FW11: 37.7 | FX11: GJ/kL | FY11: 0.0187 | FZ11: t-C/GJ | GB11: 千Nｍ3 | GC11: 1
D12: Ａ重油 | G12: L | BJ12: 0 | BK12: 0 | BL12: 0 | BM12: 0 | BN12: 0 | BO12: 0 | BP12: 0 | BQ12: 0 | BR12: 0 | BS12: 0 | BT12: 0 | BU12: 0 | BV12: 0 | BW12: 0 | BX12: 0 | BY12: 0 | BZ12: 0 | CA12: 0 | CB12: 0 | CC12: 0 | CD12: 0 | CE12: 0 | CF12: 0 | CG12: 1000 | CH12: ｋL | CI12: 0 | CJ12: 0 | CK12: 0 | CL12: 0 | CM12: 0 | CN12: 0 | CO12: 0 | CP12: 0 | CQ12: 0 | CR12: 0 | CS12: 0 | CT12: 0 | CU12: 0 | CV12: 0 | CW12: 0 | CX12: 0 | CY12: 0 | CZ12: 0 | DA12: 0 | DB12: 0 | DC12: 0 | DD12: 0 | DE12: 0 | DF12: 0 | DG12: 0 | DH12: 0 | DI12: 0 | DJ12: 0 | DK12: 0 | DL12: 0 | DM12: 0 | DN12: 0 | DO12: 0 | DP12: 0 | DQ12: 0 | DR12: 0 | DS12: 0 | DT12: 0 | DU12: 0 | DV12: 0 | DW12: 0 | DX12: 0 | DY12: 0 | DZ12: 0 | EA12: 0 | EB12: 0 | EC12: 0 | ED12: 0 | EE12: 0 | EF12: 0 | EG12: 0 | EH12: 0 | EI12: 0 | EJ12: 0 | EK12: 0 | EL12: 0 | EM12: 0 | EN12: 0 | EO12: 0 | EP12: 0 | EQ12: 0 | ER12: 0 | ES12: 0 | ET12: 0 | EU12: 0 | EV12: 0 | EW12: 0 | EX12: 0 | EY12: 0 | EZ12: 0 | FA12: 0 | FB12: 0 | FC12: 0 | FD12: 0 | FE12: 0 | FF12: 0 | FG12: 0 | FH12: 0 | FI12: 0 | FJ12: 0 | FK12: 0 | FL12: 0 | FM12: 0 | FN12: 0 | FO12: 0 | FP12: 0 | FQ12: 0 | FR12: 0 | FS12: 0 | FT12: 0 | FU12: 0 | FV12: 0 | FW12: 39.1 | FX12: GJ/kL | FY12: 0.0189 | FZ12: t-C/GJ | GB12: MJ | GC12: 1000
D13: Ｂ・Ｃ重油 | G13: L | BJ13: 0 | BK13: 0 | BL13: 0 | BM13: 0 | BN13: 0 | BO13: 0 | BP13: 0 | BQ13: 0 | BR13: 0 | BS13: 0 | BT13: 0 | BU13: 0 | BV13: 0 | BW13: 0 | BX13: 0 | BY13: 0 | BZ13: 0 | CA13: 0 | CB13: 0 | CC13: 0 | CD13: 0 | CE13: 0 | CF13: 0 | CG13: 1000 | CH13: ｋL | CI13: 0 | CJ13: 0 | CK13: 0 | CL13: 0 | CM13: 0 | CN13: 0 | CO13: 0 | CP13: 0 | CQ13: 0 | CR13: 0 | CS13: 0 | CT13: 0 | CU13: 0 | CV13: 0 | CW13: 0 | CX13: 0 | CY13: 0 | CZ13: 0 | DA13: 0 | DB13: 0 | DC13: 0 | DD13: 0 | DE13: 0 | DF13: 0 | DG13: 0 | DH13: 0 | DI13: 0 | DJ13: 0 | DK13: 0 | DL13: 0 | DM13: 0 | DN13: 0 | DO13: 0 | DP13: 0 | DQ13: 0 | DR13: 0 | DS13: 0 | DT13: 0 | DU13: 0 | DV13: 0 | DW13: 0 | DX13: 0 | DY13: 0 | DZ13: 0 | EA13: 0 | EB13: 0 | EC13: 0 | ED13: 0 | EE13: 0 | EF13: 0 | EG13: 0 | EH13: 0 | EI13: 0 | EJ13: 0 | EK13: 0 | EL13: 0 | EM13: 0 | EN13: 0 | EO13: 0 | EP13: 0 | EQ13: 0 | ER13: 0 | ES13: 0 | ET13: 0 | EU13: 0 | EV13: 0 | EW13: 0 | EX13: 0 | EY13: 0 | EZ13: 0 | FA13: 0 | FB13: 0 | FC13: 0 | FD13: 0 | FE13: 0 | FF13: 0 | FG13: 0 | FH13: 0 | FI13: 0 | FJ13: 0 | FK13: 0 | FL13: 0 | FM13: 0 | FN13: 0 | FO13: 0 | FP13: 0 | FQ13: 0 | FR13: 0 | FS13: 0 | FT13: 0 | FU13: 0 | FV13: 0 | FW13: 41.9 | FX13: GJ/kL | FY13: 0.0195 | FZ13: t-C/GJ | GB13: GJ | GC13: 1
D14: 石油アスファルト | G14: kg | BJ14: 0 | BK14: 0 | BL14: 0 | BM14: 0 | BN14: 0 | BO14: 0 | BP14: 0 | BQ14: 0 | BR14: 0 | BS14: 0 | BT14: 0 | BU14: 0 | BV14: 0 | BW14: 0 | BX14: 0 | BY14: 0 | BZ14: 0 | CA14: 0 | CB14: 0 | CC14: 0 | CD14: 0 | CE14: 0 | CF14: 0 | CG14: 1000 | CH14: ｔ | CI14: 0 | CJ14: 0 | CK14: 0 | CL14: 0 | CM14: 0 | CN14: 0 | CO14: 0 | CP14: 0 | CQ14: 0 | CR14: 0 | CS14: 0 | CT14: 0 | CU14: 0 | CV14: 0 | CW14: 0 | CX14: 0 | CY14: 0 | CZ14: 0 | DA14: 0 | DB14: 0 | DC14: 0 | DD14: 0 | DE14: 0 | DF14: 0 | DG14: 0 | DH14: 0 | DI14: 0 | DJ14: 0 | DK14: 0 | DL14: 0 | DM14: 0 | DN14: 0 | DO14: 0 | DP14: 0 | DQ14: 0 | DR14: 0 | DS14: 0 | DT14: 0 | DU14: 0 | DV14: 0 | DW14: 0 | DX14: 0 | DY14: 0 | DZ14: 0 | EA14: 0 | EB14: 0 | EC14: 0 | ED14: 0 | EE14: 0 | EF14: 0 | EG14: 0 | EH14: 0 | EI14: 0 | EJ14: 0 | EK14: 0 | EL14: 0 | EM14: 0 | EN14: 0 | EO14: 0 | EP14: 0 | EQ14: 0 | ER14: 0 | ES14: 0 | ET14: 0 | EU14: 0 | EV14: 0 | EW14: 0 | EX14: 0 | EY14: 0 | EZ14: 0 | FA14: 0 | FB14: 0 | FC14: 0 | FD14: 0 | FE14: 0 | FF14: 0 | FG14: 0 | FH14: 0 | FI14: 0 | FJ14: 0 | FK14: 0 | FL14: 0 | FM14: 0 | FN14: 0 | FO14: 0 | FP14: 0 | FQ14: 0 | FR14: 0 | FS14: 0 | FT14: 0 | FU14: 0 | FV14: 0 | FW14: 40.9 | FX14: GJ/t | FY14: 0.0208 | FZ14: t-C/GJ | GB14: m3 | GC14: 1000
D15: 石油コークス | G15: kg | BJ15: 0 | BK15: 0 | BL15: 0 | BM15: 0 | BN15: 0 | BO15: 0 | BP15: 0 | BQ15: 0 | BR15: 0 | BS15: 0 | BT15: 0 | BU15: 0 | BV15: 0 | BW15: 0 | BX15: 0 | BY15: 0 | BZ15: 0 | CA15: 0 | CB15: 0 | CC15: 0 | CD15: 0 | CE15: 0 | CF15: 0 | CG15: 1000 | CH15: ｔ | CI15: 0 | CJ15: 0 | CK15: 0 | CL15: 0 | CM15: 0 | CN15: 0 | CO15: 0 | CP15: 0 | CQ15: 0 | CR15: 0 | CS15: 0 | CT15: 0 | CU15: 0 | CV15: 0 | CW15: 0 | CX15: 0 | CY15: 0 | CZ15: 0 | DA15: 0 | DB15: 0 | DC15: 0 | DD15: 0 | DE15: 0 | DF15: 0 | DG15: 0 | DH15: 0 | DI15: 0 | DJ15: 0 | DK15: 0 | DL15: 0 | DM15: 0 | DN15: 0 | DO15: 0 | DP15: 0 | DQ15: 0 | DR15: 0 | DS15: 0 | DT15: 0 | DU15: 0 | DV15: 0 | DW15: 0 | DX15: 0 | DY15: 0 | DZ15: 0 | EA15: 0 | EB15: 0 | EC15: 0 | ED15: 0 | EE15: 0 | EF15: 0 | EG15: 0 | EH15: 0 | EI15: 0 | EJ15: 0 | EK15: 0 | EL15: 0 | EM15: 0 | EN15: 0 | EO15: 0 | EP15: 0 | EQ15: 0 | ER15: 0 | ES15: 0 | ET15: 0 | EU15: 0 | EV15: 0 | EW15: 0 | EX15: 0 | EY15: 0 | EZ15: 0 | FA15: 0 | FB15: 0 | FC15: 0 | FD15: 0 | FE15: 0 | FF15: 0 | FG15: 0 | FH15: 0 | FI15: 0 | FJ15: 0 | FK15: 0 | FL15: 0 | FM15: 0 | FN15: 0 | FO15: 0 | FP15: 0 | FQ15: 0 | FR15: 0 | FS15: 0 | FT15: 0 | FU15: 0 | FV15: 0 | FW15: 29.9 | FX15: GJ/t | FY15: 0.0254 | FZ15: t-C/GJ | GB15: 千m3 | GC15: 1
D16: 石油ガス | E16: 液化石油ガス（ＬＰＧ） | G16: t | L16: ='４．燃料単位換算(工場現場)'!AG31 -> 0 | M16: ='４．燃料単位換算(工場現場)'!AH31 -> 0 | N16: ='４．燃料単位換算(工場現場)'!AI31 -> 0 | O16: ='４．燃料単位換算(工場現場)'!AJ31 -> 0 | P16: ='４．燃料単位換算(工場現場)'!AK31 -> 0 | Q16: ='４．燃料単位換算(工場現場)'!AL31 -> 0 | R16: ='４．燃料単位換算(工場現場)'!AM31 -> 0 | S16: ='４．燃料単位換算(工場現場)'!AN31 -> 0 | T16: ='４．燃料単位換算(工場現場)'!AO31 -> 0 | U16: ='４．燃料単位換算(工場現場)'!AP31 -> 0 | V16: ='４．燃料単位換算(工場現場)'!AQ31 -> 0 | W16: ='４．燃料単位換算(工場現場)'!AR31 -> 0 | X16: ='４．燃料単位換算(工場現場)'!AS31 -> 0 | Y16: ='４．燃料単位換算(工場現場)'!AT31 -> 0 | Z16: ='４．燃料単位換算(工場現場)'!AU31 -> 0 | AA16: ='４．燃料単位換算(工場現場)'!AV31 -> 0 | AB16: ='４．燃料単位換算(工場現場)'!AW31 -> 0 | AC16: ='４．燃料単位換算(工場現場)'!AX31 -> 0 | AD16: ='４．燃料単位換算(工場現場)'!AY31 -> 0 | AE16: ='４．燃料単位換算(工場現場)'!AZ31 -> 0 | AF16: ='４．燃料単位換算(工場現場)'!BA31 -> 0 | AG16: ='４．燃料単位換算(工場現場)'!BB31 -> 0 | AH16: ='４．燃料単位換算(工場現場)'!BC31 -> 0 | BJ16: 0 | BK16: 0 | BL16: 0 | BM16: 0 | BN16: 0 | BO16: 0 | BP16: 0 | BQ16: 0 | BR16: 0 | BS16: 0 | BT16: 0 | BU16: 0 | BV16: 0 | BW16: 0 | BX16: 0 | BY16: 0 | BZ16: 0 | CA16: 0 | CB16: 0 | CC16: 0 | CD16: 0 | CE16: 0 | CF16: 0 | CG16: 1 | CH16: ｔ | CI16: 0 | CJ16: 0 | CK16: 0 | CL16: 0 | CM16: 0 | CN16: 0 | CO16: 0 | CP16: 0 | CQ16: 0 | CR16: 0 | CS16: 0 | CT16: 0 | CU16: 0 | CV16: 0 | CW16: 0 | CX16: 0 | CY16: 0 | CZ16: 0 | DA16: 0 | DB16: 0 | DC16: 0 | DD16: 0 | DE16: 0 | DF16: 0 | DG16: 0 | DH16: 0 | DI16: 0 | DJ16: 0 | DK16: 0 | DL16: 0 | DM16: 0 | DN16: 0 | DO16: 0 | DP16: 0 | DQ16: 0 | DR16: 0 | DS16: 0 | DT16: 0 | DU16: 0 | DV16: 0 | DW16: 0 | DX16: 0 | DY16: 0 | DZ16: 0 | EA16: 0 | EB16: 0 | EC16: 0 | ED16: 0 | EE16: 0 | EF16: 0 | EG16: 0 | EH16: 0 | EI16: 0 | EJ16: 0 | EK16: 0 | EL16: 0 | EM16: 0 | EN16: 0 | EO16: 0 | EP16: 0 | EQ16: 0 | ER16: 0 | ES16: 0 | ET16: 0 | EU16: 0 | EV16: 0 | EW16: 0 | EX16: 0 | EY16: 0 | EZ16: 0 | FA16: 0 | FB16: 0 | FC16: 0 | FD16: 0 | FE16: 0 | FF16: 0 | FG16: 0 | FH16: 0 | FI16: 0 | FJ16: 0 | FK16: 0 | FL16: 0 | FM16: 0 | FN16: 0 | FO16: 0 | FP16: 0 | FQ16: 0 | FR16: 0 | FS16: 0 | FT16: 0 | FU16: 0 | FV16: 0 | FW16: 50.8 | FX16: GJ/t | FY16: 0.0161 | FZ16: t-C/GJ | GB16: kWh | GC16: 1000
E17: 石油系炭化水素ガス | G17: Nm3 | BJ17: 0 | BK17: 0 | BL17: 0 | BM17: 0 | BN17: 0 | BO17: 0 | BP17: 0 | BQ17: 0 | BR17: 0 | BS17: 0 | BT17: 0 | BU17: 0 | BV17: 0 | BW17: 0 | BX17: 0 | BY17: 0 | BZ17: 0 | CA17: 0 | CB17: 0 | CC17: 0 | CD17: 0 | CE17: 0 | CF17: 0 | CG17: 1000 | CH17: 千N㎥ | CI17: 0 | CJ17: 0 | CK17: 0 | CL17: 0 | CM17: 0 | CN17: 0 | CO17: 0 | CP17: 0 | CQ17: 0 | CR17: 0 | CS17: 0 | CT17: 0 | CU17: 0 | CV17: 0 | CW17: =ROUND(BX17/$CG17,0) -> 0 | CX17: =ROUND(BY17/$CG17,0) -> 0 | CY17: =ROUND(BZ17/$CG17,0) -> 0 | CZ17: =ROUND(CA17/$CG17,0) -> 0 | DA17: =ROUND(CB17/$CG17,0) -> 0 | DB17: =ROUND(CC17/$CG17,0) -> 0 | DC17: =ROUND(CD17/$CG17,0) -> 0 | DD17: =ROUND(CE17/$CG17,0) -> 0 | DE17: =ROUND(CF17/$CG17,0) -> 0 | DF17: 0 | DG17: 0 | DH17: 0 | DI17: 0 | DJ17: 0 | DK17: 0 | DL17: 0 | DM17: 0 | DN17: 0 | DO17: 0 | DP17: 0 | DQ17: 0 | DR17: 0 | DS17: 0 | DT17: 0 | DU17: 0 | DV17: 0 | DW17: 0 | DX17: 0 | DY17: 0 | DZ17: 0 | EA17: 0 | EB17: 0 | EC17: 0 | ED17: 0 | EE17: 0 | EF17: 0 | EG17: 0 | EH17: 0 | EI17: 0 | EJ17: 0 | EK17: 0 | EL17: 0 | EM17: 0 | EN17: 0 | EO17: 0 | EP17: 0 | EQ17: 0 | ER17: 0 | ES17: 0 | ET17: 0 | EU17: 0 | EV17: 0 | EW17: 0 | EX17: 0 | EY17: 0 | EZ17: 0 | FA17: 0 | FB17: 0 | FC17: 0 | FD17: 0 | FE17: 0 | FF17: 0 | FG17: 0 | FH17: 0 | FI17: 0 | FJ17: 0 | FK17: 0 | FL17: 0 | FM17: 0 | FN17: 0 | FO17: 0 | FP17: 0 | FQ17: 0 | FR17: 0 | FS17: 0 | FT17: 0 | FU17: 0 | FV17: 0 | FW17: 44.9 | FX17: GJ /千Nｍ3 | FY17: 0.0142 | FZ17: t-C/GJ | GB17: 千kWh | GC17: 1
D18: 可燃性 天然ガス | E18: 液化天然ガス（LNG) | G18: kg | BJ18: 0 | BK18: 0 | BL18: 0 | BM18: 0 | BN18: 0 | BO18: 0 | BP18: 0 | BQ18: 0 | BR18: 0 | BS18: 0 | BT18: 0 | BU18: 0 | BV18: 0 | BW18: 0 | BX18: 0 | BY18: 0 | BZ18: 0 | CA18: 0 | CB18: 0 | CC18: 0 | CD18: 0 | CE18: 0 | CF18: 0 | CG18: 1000 | CH18: ｔ | CI18: 0 | CJ18: =ROUND(BK18/$CG18,0) -> 0 | CK18: =ROUND(BL18/$CG18,0) -> 0 | CL18: =ROUND(BM18/$CG18,0) -> 0 | CM18: =ROUND(BN18/$CG18,0) -> 0 | CN18: =ROUND(BO18/$CG18,0) -> 0 | CO18: =ROUND(BP18/$CG18,0) -> 0 | CP18: =ROUND(BQ18/$CG18,0) -> 0 | CQ18: =ROUND(BR18/$CG18,0) -> 0 | CR18: =ROUND(BS18/$CG18,0) -> 0 | CS18: =ROUND(BT18/$CG18,0) -> 0 | CT18: =ROUND(BU18/$CG18,0) -> 0 | CU18: =ROUND(BV18/$CG18,0) -> 0 | CV18: =ROUND(BW18/$CG18,0) -> 0 | CW18: 0 | CX18: 0 | CY18: 0 | CZ18: 0 | DA18: 0 | DB18: 0 | DC18: 0 | DD18: 0 | DE18: 0 | DF18: 0 | DG18: 0 | DH18: 0 | DI18: 0 | DJ18: 0 | DK18: 0 | DL18: 0 | DM18: 0 | DN18: 0 | DO18: 0 | DP18: 0 | DQ18: 0 | DR18: 0 | DS18: 0 | DT18: 0 | DU18: 0 | DV18: 0 | DW18: 0 | DX18: 0 | DY18: 0 | DZ18: 0 | EA18: 0 | EB18: 0 | EC18: 0 | ED18: 0 | EE18: 0 | EF18: 0 | EG18: 0 | EH18: 0 | EI18: 0 | EJ18: 0 | EK18: 0 | EL18: 0 | EM18: 0 | EN18: 0 | EO18: 0 | EP18: 0 | EQ18: 0 | ER18: 0 | ES18: 0 | ET18: 0 | EU18: 0 | EV18: 0 | EW18: 0 | EX18: 0 | EY18: 0 | EZ18: 0 | FA18: 0 | FB18: 0 | FC18: 0 | FD18: 0 | FE18: 0 | FF18: 0 | FG18: 0 | FH18: 0 | FI18: 0 | FJ18: 0 | FK18: 0 | FL18: 0 | FM18: 0 | FN18: 0 | FO18: 0 | FP18: 0 | FQ18: 0 | FR18: 0 | FS18: 0 | FT18: 0 | FU18: 0 | FV18: 0 | FW18: 54.6 | FX18: GJ/t | FY18: 0.0135 | FZ18: t-C/GJ
E19: その他可燃性天然ガス | G19: t | L19: ='４．燃料単位換算(工場現場)'!AG39 -> 0 | M19: ='４．燃料単位換算(工場現場)'!AH39 -> 0 | N19: ='４．燃料単位換算(工場現場)'!AI39 -> 0 | O19: ='４．燃料単位換算(工場現場)'!AJ39 -> 0 | P19: ='４．燃料単位換算(工場現場)'!AK39 -> 0 | Q19: ='４．燃料単位換算(工場現場)'!AL39 -> 0 | R19: ='４．燃料単位換算(工場現場)'!AM39 -> 0 | S19: ='４．燃料単位換算(工場現場)'!AN39 -> 0 | T19: ='４．燃料単位換算(工場現場)'!AO39 -> 0 | U19: ='４．燃料単位換算(工場現場)'!AP39 -> 0 | V19: ='４．燃料単位換算(工場現場)'!AQ39 -> 0 | W19: ='４．燃料単位換算(工場現場)'!AR39 -> 0 | X19: ='４．燃料単位換算(工場現場)'!AS39 -> 0 | Y19: ='４．燃料単位換算(工場現場)'!AT39 -> 0 | Z19: ='４．燃料単位換算(工場現場)'!AU39 -> 0 | AA19: ='４．燃料単位換算(工場現場)'!AV39 -> 0 | AB19: ='４．燃料単位換算(工場現場)'!AW39 -> 0 | AC19: ='４．燃料単位換算(工場現場)'!AX39 -> 0 | AD19: ='４．燃料単位換算(工場現場)'!AY39 -> 0 | AE19: ='４．燃料単位換算(工場現場)'!AZ39 -> 0 | AF19: ='４．燃料単位換算(工場現場)'!BA39 -> 0 | AG19: ='４．燃料単位換算(工場現場)'!BB39 -> 0 | AH19: ='４．燃料単位換算(工場現場)'!BC39 -> 0 | BJ19: 0 | BK19: 0 | BL19: 0 | BM19: 0 | BN19: 0 | BO19: 0 | BP19: 0 | BQ19: 0 | BR19: 0 | BS19: 0 | BT19: 0 | BU19: 0 | BV19: 0 | BW19: 0 | BX19: 0 | BY19: 0 | BZ19: 0 | CA19: 0 | CB19: 0 | CC19: 0 | CD19: 0 | CE19: 0 | CF19: 0 | CG19: 1 | CH19: 千N㎥ | CI19: 0 | CJ19: 0 | CK19: 0 | CL19: 0 | CM19: 0 | CN19: 0 | CO19: 0 | CP19: 0 | CQ19: 0 | CR19: 0 | CS19: 0 | CT19: 0 | CU19: 0 | CV19: 0 | CW19: 0 | CX19: 0 | CY19: 0 | CZ19: 0 | DA19: 0 | DB19: 0 | DC19: 0 | DD19: 0 | DE19: 0 | DF19: 0 | DG19: 0 | DH19: 0 | DI19: 0 | DJ19: 0 | DK19: 0 | DL19: 0 | DM19: 0 | DN19: 0 | DO19: 0 | DP19: 0 | DQ19: 0 | DR19: 0 | DS19: 0 | DT19: 0 | DU19: 0 | DV19: 0 | DW19: 0 | DX19: 0 | DY19: 0 | DZ19: 0 | EA19: 0 | EB19: 0 | EC19: 0 | ED19: 0 | EE19: 0 | EF19: 0 | EG19: 0 | EH19: 0 | EI19: 0 | EJ19: 0 | EK19: 0 | EL19: 0 | EM19: 0 | EN19: 0 | EO19: 0 | EP19: 0 | EQ19: 0 | ER19: 0 | ES19: 0 | ET19: 0 | EU19: 0 | EV19: 0 | EW19: 0 | EX19: 0 | EY19: 0 | EZ19: 0 | FA19: 0 | FB19: 0 | FC19: 0 | FD19: 0 | FE19: 0 | FF19: 0 | FG19: 0 | FH19: 0 | FI19: 0 | FJ19: 0 | FK19: 0 | FL19: 0 | FM19: 0 | FN19: 0 | FO19: 0 | FP19: 0 | FQ19: 0 | FR19: 0 | FS19: 0 | FT19: 0 | FU19: 0 | FV19: 0 | FW19: 43.5 | FX19: GJ /千Nｍ3 | FY19: 0.0139 | FZ19: t-C/GJ | GC19: 0.0258 | GD19: ｋL/GJ
D20: 石炭 | E20: 原料炭 | G20: kg | BJ20: 0 | BK20: 0 | BL20: 0 | BM20: 0 | BN20: 0 | BO20: 0 | BP20: 0 | BQ20: 0 | BR20: 0 | BS20: 0 | BT20: 0 | BU20: 0 | BV20: 0 | BW20: 0 | BX20: 0 | BY20: 0 | BZ20: 0 | CA20: 0 | CB20: 0 | CC20: 0 | CD20: 0 | CE20: 0 | CF20: 0 | CG20: 1000 | CH20: ｔ | CI20: 0 | CJ20: 0 | CK20: 0 | CL20: 0 | CM20: 0 | CN20: 0 | CO20: 0 | CP20: 0 | CQ20: 0 | CR20: 0 | CS20: 0 | CT20: 0 | CU20: 0 | CV20: 0 | CW20: 0 | CX20: 0 | CY20: 0 | CZ20: 0 | DA20: 0 | DB20: 0 | DC20: 0 | DD20: 0 | DE20: 0 | DF20: 0 | DG20: 0 | DH20: 0 | DI20: 0 | DJ20: 0 | DK20: 0 | DL20: 0 | DM20: 0 | DN20: 0 | DO20: 0 | DP20: 0 | DQ20: 0 | DR20: 0 | DS20: 0 | DT20: 0 | DU20: 0 | DV20: 0 | DW20: 0 | DX20: 0 | DY20: 0 | DZ20: 0 | EA20: 0 | EB20: 0 | EC20: 0 | ED20: 0 | EE20: 0 | EF20: 0 | EG20: 0 | EH20: 0 | EI20: 0 | EJ20: 0 | EK20: 0 | EL20: 0 | EM20: 0 | EN20: 0 | EO20: 0 | EP20: 0 | EQ20: 0 | ER20: 0 | ES20: 0 | ET20: 0 | EU20: 0 | EV20: 0 | EW20: 0 | EX20: 0 | EY20: 0 | EZ20: 0 | FA20: 0 | FB20: 0 | FC20: 0 | FD20: 0 | FE20: 0 | FF20: 0 | FG20: 0 | FH20: 0 | FI20: 0 | FJ20: 0 | FK20: 0 | FL20: 0 | FM20: 0 | FN20: 0 | FO20: 0 | FP20: 0 | FQ20: 0 | FR20: 0 | FS20: 0 | FT20: 0 | FU20: 0 | FV20: 0 | FW20: 29 | FX20: GJ/t | FY20: 0.0245 | FZ20: t-C/GJ
E21: 一般炭 | G21: kg | BJ21: 0 | BK21: 0 | BL21: 0 | BM21: 0 | BN21: 0 | BO21: 0 | BP21: 0 | BQ21: 0 | BR21: 0 | BS21: 0 | BT21: 0 | BU21: 0 | BV21: 0 | BW21: 0 | BX21: 0 | BY21: 0 | BZ21: 0 | CA21: 0 | CB21: 0 | CC21: 0 | CD21: 0 | CE21: 0 | CF21: 0 | CG21: 1000 | CH21: ｔ | CI21: 0 | CJ21: 0 | CK21: 0 | CL21: 0 | CM21: 0 | CN21: 0 | CO21: 0 | CP21: 0 | CQ21: 0 | CR21: 0 | CS21: 0 | CT21: 0 | CU21: 0 | CV21: 0 | CW21: 0 | CX21: 0 | CY21: 0 | CZ21: 0 | DA21: 0 | DB21: 0 | DC21: 0 | DD21: 0 | DE21: 0 | DF21: 0 | DG21: 0 | DH21: 0 | DI21: 0 | DJ21: 0 | DK21: 0 | DL21: 0 | DM21: 0 | DN21: 0 | DO21: 0 | DP21: 0 | DQ21: 0 | DR21: 0 | DS21: 0 | DT21: 0 | DU21: =CX21*$FW21 -> 0 | DV21: 0 | DW21: 0 | DX21: 0 | DY21: 0 | DZ21: 0 | EA21: 0 | EB21: 0 | EC21: 0 | ED21: 0 | EE21: 0 | EF21: 0 | EG21: 0 | EH21: 0 | EI21: 0 | EJ21: 0 | EK21: 0 | EL21: 0 | EM21: 0 | EN21: 0 | EO21: 0 | EP21: 0 | EQ21: 0 | ER21: =DU21*$GC$19 -> 0 | ES21: 0 | ET21: 0 | EU21: 0 | EV21: 0 | EW21: 0 | EX21: 0 | EY21: 0 | EZ21: 0 | FA21: 0 | FB21: 0 | FC21: 0 | FD21: 0 | FE21: 0 | FF21: 0 | FG21: 0 | FH21: 0 | FI21: 0 | FJ21: 0 | FK21: 0 | FL21: 0 | FM21: 0 | FN21: 0 | FO21: =DU21*$FY21*44/12 -> 0 | FP21: 0 | FQ21: 0 | FR21: 0 | FS21: 0 | FT21: 0 | FU21: 0 | FV21: 0 | FW21: 25.7 | FX21: GJ/t | FY21: 0.0247 | FZ21: t-C/GJ
E22: 無煙炭 | G22: kg | BJ22: 0 | BK22: 0 | BL22: 0 | BM22: 0 | BN22: 0 | BO22: 0 | BP22: 0 | BQ22: 0 | BR22: 0 | BS22: 0 | BT22: 0 | BU22: 0 | BV22: 0 | BW22: 0 | BX22: 0 | BY22: 0 | BZ22: 0 | CA22: 0 | CB22: 0 | CC22: 0 | CD22: 0 | CE22: 0 | CF22: 0 | CG22: 1000 | CH22: ｔ | CI22: 0 | CJ22: 0 | CK22: 0 | CL22: 0 | CM22: 0 | CN22: 0 | CO22: 0 | CP22: 0 | CQ22: 0 | CR22: 0 | CS22: 0 | CT22: 0 | CU22: 0 | CV22: 0 | CW22: 0 | CX22: 0 | CY22: 0 | CZ22: 0 | DA22: 0 | DB22: 0 | DC22: 0 | DD22: 0 | DE22: 0 | DF22: =CI22*$FW22 -> 0 | DG22: 0 | DH22: 0 | DI22: 0 | DJ22: 0 | DK22: 0 | DL22: 0 | DM22: 0 | DN22: 0 | DO22: 0 | DP22: 0 | DQ22: 0 | DR22: 0 | DS22: 0 | DT22: 0 | DU22: 0 | DV22: 0 | DW22: 0 | DX22: 0 | DY22: 0 | DZ22: 0 | EA22: 0 | EB22: 0 | EC22: =DF22*$GC$19 -> 0 | ED22: 0 | EE22: 0 | EF22: 0 | EG22: 0 | EH22: 0 | EI22: 0 | EJ22: 0 | EK22: 0 | EL22: 0 | EM22: 0 | EN22: 0 | EO22: 0 | EP22: 0 | EQ22: 0 | ER22: 0 | ES22: 0 | ET22: 0 | EU22: 0 | EV22: 0 | EW22: 0 | EX22: 0 | EY22: 0 | EZ22: =DF22*$FY22*44/12 -> 0 | FA22: 0 | FB22: 0 | FC22: 0 | FD22: 0 | FE22: 0 | FF22: 0 | FG22: 0 | FH22: 0 | FI22: 0 | FJ22: 0 | FK22: 0 | FL22: 0 | FM22: 0 | FN22: 0 | FO22: 0 | FP22: 0 | FQ22: 0 | FR22: 0 | FS22: 0 | FT22: 0 | FU22: 0 | FV22: 0 | FW22: 26.9 | FX22: GJ/t | FY22: 0.0255 | FZ22: t-C/GJ
D23: 石炭コークス | G23: kg | BJ23: 0 | BK23: 0 | BL23: 0 | BM23: 0 | BN23: 0 | BO23: 0 | BP23: 0 | BQ23: 0 | BR23: 0 | BS23: 0 | BT23: 0 | BU23: 0 | BV23: 0 | BW23: 0 | BX23: 0 | BY23: 0 | BZ23: 0 | CA23: 0 | CB23: 0 | CC23: 0 | CD23: 0 | CE23: 0 | CF23: 0 | CG23: 1000 | CH23: ｔ | CI23: 0 | CJ23: 0 | CK23: 0 | CL23: 0 | CM23: 0 | CN23: 0 | CO23: 0 | CP23: 0 | CQ23: 0 | CR23: 0 | CS23: 0 | CT23: 0 | CU23: 0 | CV23: 0 | CW23: 0 | CX23: 0 | CY23: 0 | CZ23: 0 | DA23: 0 | DB23: 0 | DC23: 0 | DD23: 0 | DE23: 0 | DF23: 0 | DG23: 0 | DH23: 0 | DI23: 0 | DJ23: 0 | DK23: 0 | DL23: 0 | DM23: 0 | DN23: 0 | DO23: 0 | DP23: 0 | DQ23: 0 | DR23: 0 | DS23: 0 | DT23: 0 | DU23: 0 | DV23: 0 | DW23: 0 | DX23: 0 | DY23: 0 | DZ23: 0 | EA23: 0 | EB23: 0 | EC23: 0 | ED23: 0 | EE23: 0 | EF23: 0 | EG23: 0 | EH23: 0 | EI23: 0 | EJ23: 0 | EK23: 0 | EL23: 0 | EM23: 0 | EN23: 0 | EO23: 0 | EP23: 0 | EQ23: 0 | ER23: 0 | ES23: 0 | ET23: 0 | EU23: 0 | EV23: 0 | EW23: 0 | EX23: 0 | EY23: 0 | EZ23: 0 | FA23: 0 | FB23: 0 | FC23: 0 | FD23: 0 | FE23: 0 | FF23: 0 | FG23: 0 | FH23: 0 | FI23: 0 | FJ23: 0 | FK23: 0 | FL23: 0 | FM23: 0 | FN23: 0 | FO23: 0 | FP23: 0 | FQ23: 0 | FR23: 0 | FS23: 0 | FT23: 0 | FU23: 0 | FV23: 0 | FW23: 29.4 | FX23: GJ/t | FY23: 0.0294 | FZ23: t-C/GJ
D24: コールタール | G24: kg | BJ24: 0 | BK24: 0 | BL24: 0 | BM24: 0 | BN24: 0 | BO24: 0 | BP24: 0 | BQ24: 0 | BR24: 0 | BS24: 0 | BT24: 0 | BU24: 0 | BV24: 0 | BW24: 0 | BX24: 0 | BY24: 0 | BZ24: 0 | CA24: 0 | CB24: 0 | CC24: 0 | CD24: 0 | CE24: 0 | CF24: 0 | CG24: 1000 | CH24: ｔ | CI24: 0 | CJ24: 0 | CK24: 0 | CL24: 0 | CM24: 0 | CN24: 0 | CO24: 0 | CP24: 0 | CQ24: 0 | CR24: 0 | CS24: 0 | CT24: 0 | CU24: 0 | CV24: 0 | CW24: 0 | CX24: 0 | CY24: 0 | CZ24: 0 | DA24: 0 | DB24: 0 | DC24: 0 | DD24: 0 | DE24: 0 | DF24: 0 | DG24: 0 | DH24: 0 | DI24: 0 | DJ24: 0 | DK24: 0 | DL24: 0 | DM24: 0 | DN24: 0 | DO24: 0 | DP24: 0 | DQ24: 0 | DR24: 0 | DS24: 0 | DT24: 0 | DU24: 0 | DV24: 0 | DW24: 0 | DX24: 0 | DY24: 0 | DZ24: 0 | EA24: 0 | EB24: 0 | EC24: 0 | ED24: 0 | EE24: 0 | EF24: 0 | EG24: 0 | EH24: 0 | EI24: 0 | EJ24: 0 | EK24: 0 | EL24: 0 | EM24: 0 | EN24: 0 | EO24: 0 | EP24: 0 | EQ24: 0 | ER24: 0 | ES24: 0 | ET24: 0 | EU24: 0 | EV24: 0 | EW24: 0 | EX24: 0 | EY24: 0 | EZ24: 0 | FA24: 0 | FB24: 0 | FC24: 0 | FD24: 0 | FE24: 0 | FF24: 0 | FG24: 0 | FH24: 0 | FI24: 0 | FJ24: 0 | FK24: 0 | FL24: 0 | FM24: 0 | FN24: 0 | FO24: 0 | FP24: 0 | FQ24: 0 | FR24: 0 | FS24: 0 | FT24: 0 | FU24: 0 | FV24: 0 | FW24: 37.3 | FX24: GJ/t | FY24: 0.0209 | FZ24: t-C/GJ
D25: コークス炉ガス | G25: 千Nｍ3 | L25: ='４．燃料単位換算(工場現場)'!AG42 -> 0 | M25: ='４．燃料単位換算(工場現場)'!AH42 -> 0 | N25: ='４．燃料単位換算(工場現場)'!AI42 -> 0 | O25: ='４．燃料単位換算(工場現場)'!AJ42 -> 0 | P25: ='４．燃料単位換算(工場現場)'!AK42 -> 0 | Q25: ='４．燃料単位換算(工場現場)'!AL42 -> 0 | R25: ='４．燃料単位換算(工場現場)'!AM42 -> 0 | S25: ='４．燃料単位換算(工場現場)'!AN42 -> 0 | T25: ='４．燃料単位換算(工場現場)'!AO42 -> 0 | U25: ='４．燃料単位換算(工場現場)'!AP42 -> 0 | V25: ='４．燃料単位換算(工場現場)'!AQ42 -> 0 | W25: ='４．燃料単位換算(工場現場)'!AR42 -> 0 | X25: ='４．燃料単位換算(工場現場)'!AS42 -> 0 | Y25: ='４．燃料単位換算(工場現場)'!AT42 -> 0 | Z25: ='４．燃料単位換算(工場現場)'!AU42 -> 0 | AA25: ='４．燃料単位換算(工場現場)'!AV42 -> 0 | AB25: ='４．燃料単位換算(工場現場)'!AW42 -> 0 | AC25: ='４．燃料単位換算(工場現場)'!AX42 -> 0 | AD25: ='４．燃料単位換算(工場現場)'!AY42 -> 0 | AE25: ='４．燃料単位換算(工場現場)'!AZ42 -> 0 | AF25: ='４．燃料単位換算(工場現場)'!BA42 -> 0 | AG25: ='４．燃料単位換算(工場現場)'!BB42 -> 0 | AH25: ='４．燃料単位換算(工場現場)'!BC42 -> 0 | BJ25: 0 | BK25: 0 | BL25: 0 | BM25: 0 | BN25: 0 | BO25: 0 | BP25: 0 | BQ25: 0 | BR25: 0 | BS25: 0 | BT25: 0 | BU25: 0 | BV25: 0 | BW25: 0 | BX25: 0 | BY25: 0 | BZ25: 0 | CA25: 0 | CB25: 0 | CC25: 0 | CD25: 0 | CE25: 0 | CF25: 0 | CG25: 1 | CH25: 千N㎥ | CI25: 0 | CJ25: 0 | CK25: 0 | CL25: 0 | CM25: 0 | CN25: 0 | CO25: 0 | CP25: 0 | CQ25: 0 | CR25: 0 | CS25: 0 | CT25: 0 | CU25: 0 | CV25: 0 | CW25: 0 | CX25: 0 | CY25: 0 | CZ25: 0 | DA25: 0 | DB25: 0 | DC25: 0 | DD25: 0 | DE25: 0 | DF25: 0 | DG25: 0 | DH25: 0 | DI25: 0 | DJ25: 0 | DK25: 0 | DL25: 0 | DM25: 0 | DN25: 0 | DO25: 0 | DP25: 0 | DQ25: 0 | DR25: 0 | DS25: 0 | DT25: 0 | DU25: 0 | DV25: 0 | DW25: 0 | DX25: 0 | DY25: 0 | DZ25: 0 | EA25: 0 | EB25: 0 | EC25: 0 | ED25: 0 | EE25: 0 | EF25: 0 | EG25: 0 | EH25: 0 | EI25: 0 | EJ25: 0 | EK25: 0 | EL25: 0 | EM25: 0 | EN25: 0 | EO25: 0 | EP25: 0 | EQ25: 0 | ER25: 0 | ES25: 0 | ET25: 0 | EU25: 0 | EV25: 0 | EW25: 0 | EX25: 0 | EY25: 0 | EZ25: 0 | FA25: 0 | FB25: 0 | FC25: 0 | FD25: 0 | FE25: 0 | FF25: 0 | FG25: 0 | FH25: 0 | FI25: 0 | FJ25: 0 | FK25: 0 | FL25: 0 | FM25: 0 | FN25: 0 | FO25: 0 | FP25: 0 | FQ25: 0 | FR25: 0 | FS25: 0 | FT25: 0 | FU25: 0 | FV25: 0 | FW25: 21.1 | FX25: GJ /千Nｍ3 | FY25: 0.011 | FZ25: t-C/GJ
D26: 高炉ガス | G26: 千Nｍ3 | L26: ='４．燃料単位換算(工場現場)'!AG45 -> 0 | M26: ='４．燃料単位換算(工場現場)'!AH45 -> 0 | N26: ='４．燃料単位換算(工場現場)'!AI45 -> 0 | O26: ='４．燃料単位換算(工場現場)'!AJ45 -> 0 | P26: ='４．燃料単位換算(工場現場)'!AK45 -> 0 | Q26: ='４．燃料単位換算(工場現場)'!AL45 -> 0 | R26: ='４．燃料単位換算(工場現場)'!AM45 -> 0 | S26: ='４．燃料単位換算(工場現場)'!AN45 -> 0 | T26: ='４．燃料単位換算(工場現場)'!AO45 -> 0 | U26: ='４．燃料単位換算(工場現場)'!AP45 -> 0 | V26: ='４．燃料単位換算(工場現場)'!AQ45 -> 0 | W26: ='４．燃料単位換算(工場現場)'!AR45 -> 0 | X26: ='４．燃料単位換算(工場現場)'!AS45 -> 0 | Y26: ='４．燃料単位換算(工場現場)'!AT45 -> 0 | Z26: ='４．燃料単位換算(工場現場)'!AU45 -> 0 | AA26: ='４．燃料単位換算(工場現場)'!AV45 -> 0 | AB26: ='４．燃料単位換算(工場現場)'!AW45 -> 0 | AC26: ='４．燃料単位換算(工場現場)'!AX45 -> 0 | AD26: ='４．燃料単位換算(工場現場)'!AY45 -> 0 | AE26: ='４．燃料単位換算(工場現場)'!AZ45 -> 0 | AF26: ='４．燃料単位換算(工場現場)'!BA45 -> 0 | AG26: ='４．燃料単位換算(工場現場)'!BB45 -> 0 | AH26: ='４．燃料単位換算(工場現場)'!BC45 -> 0 | BJ26: 0 | BK26: 0 | BL26: 0 | BM26: 0 | BN26: 0 | BO26: 0 | BP26: 0 | BQ26: 0 | BR26: 0 | BS26: 0 | BT26: 0 | BU26: 0 | BV26: 0 | BW26: 0 | BX26: 0 | BY26: 0 | BZ26: 0 | CA26: 0 | CB26: 0 | CC26: 0 | CD26: 0 | CE26: 0 | CF26: 0 | CG26: 1 | CH26: 千N㎥ | CI26: 0 | CJ26: 0 | CK26: 0 | CL26: 0 | CM26: 0 | CN26: 0 | CO26: 0 | CP26: 0 | CQ26: 0 | CR26: 0 | CS26: 0 | CT26: 0 | CU26: 0 | CV26: 0 | CW26: 0 | CX26: 0 | CY26: 0 | CZ26: 0 | DA26: 0 | DB26: 0 | DC26: 0 | DD26: 0 | DE26: 0 | DF26: 0 | DG26: 0 | DH26: 0 | DI26: 0 | DJ26: 0 | DK26: 0 | DL26: 0 | DM26: 0 | DN26: 0 | DO26: 0 | DP26: 0 | DQ26: 0 | DR26: 0 | DS26: 0 | DT26: 0 | DU26: 0 | DV26: 0 | DW26: 0 | DX26: 0 | DY26: 0 | DZ26: 0 | EA26: 0 | EB26: 0 | EC26: 0 | ED26: 0 | EE26: 0 | EF26: 0 | EG26: 0 | EH26: 0 | EI26: 0 | EJ26: 0 | EK26: 0 | EL26: 0 | EM26: 0 | EN26: 0 | EO26: 0 | EP26: 0 | EQ26: 0 | ER26: 0 | ES26: 0 | ET26: 0 | EU26: 0 | EV26: 0 | EW26: 0 | EX26: 0 | EY26: 0 | EZ26: 0 | FA26: 0 | FB26: 0 | FC26: 0 | FD26: 0 | FE26: 0 | FF26: 0 | FG26: 0 | FH26: 0 | FI26: 0 | FJ26: 0 | FK26: 0 | FL26: 0 | FM26: 0 | FN26: 0 | FO26: 0 | FP26: 0 | FQ26: 0 | FR26: 0 | FS26: 0 | FT26: 0 | FU26: 0 | FV26: 0 | FW26: 3.41 | FX26: GJ /千Nｍ3 | FY26: 0.0263 | FZ26: t-C/GJ
D27: 転炉ガス | G27: 千Nｍ3 | L27: ='４．燃料単位換算(工場現場)'!AG48 -> 0 | M27: ='４．燃料単位換算(工場現場)'!AH48 -> 0 | N27: ='４．燃料単位換算(工場現場)'!AI48 -> 0 | O27: ='４．燃料単位換算(工場現場)'!AJ48 -> 0 | P27: ='４．燃料単位換算(工場現場)'!AK48 -> 0 | Q27: ='４．燃料単位換算(工場現場)'!AL48 -> 0 | R27: ='４．燃料単位換算(工場現場)'!AM48 -> 0 | S27: ='４．燃料単位換算(工場現場)'!AN48 -> 0 | T27: ='４．燃料単位換算(工場現場)'!AO48 -> 0 | U27: ='４．燃料単位換算(工場現場)'!AP48 -> 0 | V27: ='４．燃料単位換算(工場現場)'!AQ48 -> 0 | W27: ='４．燃料単位換算(工場現場)'!AR48 -> 0 | X27: ='４．燃料単位換算(工場現場)'!AS48 -> 0 | Y27: ='４．燃料単位換算(工場現場)'!AT48 -> 0 | Z27: ='４．燃料単位換算(工場現場)'!AU48 -> 0 | AA27: ='４．燃料単位換算(工場現場)'!AV48 -> 0 | AB27: ='４．燃料単位換算(工場現場)'!AW48 -> 0 | AC27: ='４．燃料単位換算(工場現場)'!AX48 -> 0 | AD27: ='４．燃料単位換算(工場現場)'!AY48 -> 0 | AE27: ='４．燃料単位換算(工場現場)'!AZ48 -> 0 | AF27: ='４．燃料単位換算(工場現場)'!BA48 -> 0 | AG27: ='４．燃料単位換算(工場現場)'!BB48 -> 0 | AH27: ='４．燃料単位換算(工場現場)'!BC48 -> 0 | BJ27: 0 | BK27: 0 | BL27: 0 | BM27: 0 | BN27: 0 | BO27: 0 | BP27: 0 | BQ27: 0 | BR27: 0 | BS27: 0 | BT27: 0 | BU27: 0 | BV27: 0 | BW27: 0 | BX27: 0 | BY27: 0 | BZ27: 0 | CA27: 0 | CB27: 0 | CC27: 0 | CD27: 0 | CE27: 0 | CF27: 0 | CG27: 1 | CH27: 千N㎥ | CI27: 0 | CJ27: 0 | CK27: 0 | CL27: 0 | CM27: 0 | CN27: 0 | CO27: 0 | CP27: 0 | CQ27: 0 | CR27: 0 | CS27: 0 | CT27: 0 | CU27: 0 | CV27: 0 | CW27: 0 | CX27: 0 | CY27: 0 | CZ27: 0 | DA27: 0 | DB27: 0 | DC27: 0 | DD27: 0 | DE27: 0 | DF27: 0 | DG27: 0 | DH27: 0 | DI27: 0 | DJ27: 0 | DK27: 0 | DL27: 0 | DM27: 0 | DN27: 0 | DO27: 0 | DP27: 0 | DQ27: 0 | DR27: 0 | DS27: 0 | DT27: 0 | DU27: 0 | DV27: 0 | DW27: 0 | DX27: 0 | DY27: 0 | DZ27: 0 | EA27: 0 | EB27: 0 | EC27: 0 | ED27: 0 | EE27: 0 | EF27: 0 | EG27: 0 | EH27: 0 | EI27: 0 | EJ27: 0 | EK27: 0 | EL27: 0 | EM27: 0 | EN27: 0 | EO27: 0 | EP27: 0 | EQ27: 0 | ER27: 0 | ES27: 0 | ET27: 0 | EU27: 0 | EV27: 0 | EW27: 0 | EX27: 0 | EY27: 0 | EZ27: 0 | FA27: 0 | FB27: 0 | FC27: 0 | FD27: 0 | FE27: 0 | FF27: 0 | FG27: 0 | FH27: 0 | FI27: 0 | FJ27: 0 | FK27: 0 | FL27: 0 | FM27: 0 | FN27: 0 | FO27: 0 | FP27: 0 | FQ27: 0 | FR27: 0 | FS27: 0 | FT27: 0 | FU27: 0 | FV27: 0 | FW27: 8.41 | FX27: GJ /千Nｍ3 | FY27: 0.0384 | FZ27: t-C/GJ
D28: その他燃料 | E28: 都市ガス（※） | F28: 13A:45MJ/m3 | G28: 千Nｍ3 | O28: ='４．燃料単位換算(工場現場)'!AJ9 -> 0 | P28: ='４．燃料単位換算(工場現場)'!AK9 -> 0 | Q28: ='４．燃料単位換算(工場現場)'!AL9 -> 0 | R28: ='４．燃料単位換算(工場現場)'!AM9 -> 0 | S28: ='４．燃料単位換算(工場現場)'!AN9 -> 0 | T28: ='４．燃料単位換算(工場現場)'!AO9 -> 0 | U28: ='４．燃料単位換算(工場現場)'!AP9 -> 0 | V28: ='４．燃料単位換算(工場現場)'!AQ9 -> 0 | W28: ='４．燃料単位換算(工場現場)'!AR9 -> 0 | X28: ='４．燃料単位換算(工場現場)'!AS9 -> 0 | Y28: ='４．燃料単位換算(工場現場)'!AT9 -> 0 | Z28: ='４．燃料単位換算(工場現場)'!AU9 -> 0 | AA28: ='４．燃料単位換算(工場現場)'!AV9 -> 0 | AB28: ='４．燃料単位換算(工場現場)'!AW9 -> 0 | AC28: ='４．燃料単位換算(工場現場)'!AX9 -> 0 | AD28: ='４．燃料単位換算(工場現場)'!AY9 -> 0 | AE28: ='４．燃料単位換算(工場現場)'!AZ9 -> 0 | AF28: ='４．燃料単位換算(工場現場)'!BA9 -> 0 | AG28: ='４．燃料単位換算(工場現場)'!BB9 -> 0 | AH28: ='４．燃料単位換算(工場現場)'!BC9 -> 0 | BJ28: 0 | BK28: 0 | BL28: 0 | BM28: 0 | BN28: 0 | BO28: 0 | BP28: 0 | BQ28: 0 | BR28: 0 | BS28: 0 | BT28: 0 | BU28: 0 | BV28: 0 | BW28: 0 | BX28: 0 | BY28: 0 | BZ28: 0 | CA28: 0 | CB28: 0 | CC28: 0 | CD28: 0 | CE28: 0 | CF28: 0 | CG28: 1 | CH28: 千N㎥ | CI28: 0 | CJ28: 0 | CK28: 0 | CL28: 0 | CM28: 0 | CN28: 0 | CO28: 0 | CP28: 0 | CQ28: 0 | CR28: 0 | CS28: 0 | CT28: 0 | CU28: 0 | CV28: 0 | CW28: 0 | CX28: 0 | CY28: 0 | CZ28: 0 | DA28: 0 | DB28: 0 | DC28: 0 | DD28: 0 | DE28: 0 | DF28: 0 | DG28: 0 | DH28: 0 | DI28: 0 | DJ28: 0 | DK28: 0 | DL28: 0 | DM28: 0 | DN28: 0 | DO28: 0 | DP28: 0 | DQ28: 0 | DR28: 0 | DS28: 0 | DT28: 0 | DU28: 0 | DV28: 0 | DW28: 0 | DX28: 0 | DY28: 0 | DZ28: 0 | EA28: 0 | EB28: 0 | EC28: 0 | ED28: 0 | EE28: 0 | EF28: 0 | EG28: 0 | EH28: 0 | EI28: 0 | EJ28: 0 | EK28: 0 | EL28: 0 | EM28: 0 | EN28: 0 | EO28: 0 | EP28: 0 | EQ28: 0 | ER28: 0 | ES28: 0 | ET28: 0 | EU28: 0 | EV28: 0 | EW28: 0 | EX28: 0 | EY28: 0 | EZ28: 0 | FA28: 0 | FB28: 0 | FC28: 0 | FD28: 0 | FE28: 0 | FF28: 0 | FG28: 0 | FH28: 0 | FI28: 0 | FJ28: 0 | FK28: 0 | FL28: 0 | FM28: 0 | FN28: 0 | FO28: 0 | FP28: 0 | FQ28: 0 | FR28: 0 | FS28: 0 | FT28: 0 | FU28: 0 | FV28: 0 | FW28: 45 | FX28: GJ /千Nｍ3 | FY28: 0.0136 | FZ28: t-C/GJ
F29: 13A:43.12MJ/m3 | G29: 千Nｍ3 | L29: ='４．燃料単位換算(工場現場)'!AG12 -> 0 | M29: ='４．燃料単位換算(工場現場)'!AH12 -> 0 | N29: ='４．燃料単位換算(工場現場)'!AI12 -> 0 | O29: ='４．燃料単位換算(工場現場)'!AJ12 -> 0 | P29: ='４．燃料単位換算(工場現場)'!AK12 -> 0 | Q29: ='４．燃料単位換算(工場現場)'!AL12 -> 0 | R29: ='４．燃料単位換算(工場現場)'!AM12 -> 0 | S29: ='４．燃料単位換算(工場現場)'!AN12 -> 0 | T29: ='４．燃料単位換算(工場現場)'!AO12 -> 0 | U29: ='４．燃料単位換算(工場現場)'!AP12 -> 0 | V29: ='４．燃料単位換算(工場現場)'!AQ12 -> 0 | W29: ='４．燃料単位換算(工場現場)'!AR12 -> 0 | X29: ='４．燃料単位換算(工場現場)'!AS12 -> 0 | Y29: ='４．燃料単位換算(工場現場)'!AT12 -> 0 | Z29: ='４．燃料単位換算(工場現場)'!AU12 -> 0 | AA29: ='４．燃料単位換算(工場現場)'!AV12 -> 0 | AB29: ='４．燃料単位換算(工場現場)'!AW12 -> 0 | AC29: ='４．燃料単位換算(工場現場)'!AX12 -> 0 | AD29: ='４．燃料単位換算(工場現場)'!AY12 -> 0 | AE29: ='４．燃料単位換算(工場現場)'!AZ12 -> 0 | AF29: ='４．燃料単位換算(工場現場)'!BA12 -> 0 | AG29: ='４．燃料単位換算(工場現場)'!BB12 -> 0 | AH29: ='４．燃料単位換算(工場現場)'!BC12 -> 0 | BJ29: 0 | BK29: 0 | BL29: 0 | BM29: 0 | BN29: 0 | BO29: 0 | BP29: 0 | BQ29: 0 | BR29: 0 | BS29: 0 | BT29: 0 | BU29: 0 | BV29: 0 | BW29: 0 | BX29: 0 | BY29: 0 | BZ29: 0 | CA29: 0 | CB29: 0 | CC29: 0 | CD29: 0 | CE29: 0 | CF29: 0 | CG29: 1 | CH29: 千N㎥ | CI29: 0 | CJ29: 0 | CK29: 0 | CL29: 0 | CM29: 0 | CN29: 0 | CO29: 0 | CP29: 0 | CQ29: 0 | CR29: 0 | CS29: 0 | CT29: 0 | CU29: 0 | CV29: 0 | CW29: 0 | CX29: 0 | CY29: 0 | CZ29: 0 | DA29: 0 | DB29: 0 | DC29: 0 | DD29: 0 | DE29: 0 | DF29: 0 | DG29: 0 | DH29: 0 | DI29: 0 | DJ29: 0 | DK29: 0 | DL29: 0 | DM29: 0 | DN29: 0 | DO29: 0 | DP29: 0 | DQ29: 0 | DR29: 0 | DS29: 0 | DT29: 0 | DU29: 0 | DV29: 0 | DW29: 0 | DX29: 0 | DY29: 0 | DZ29: 0 | EA29: 0 | EB29: 0 | EC29: 0 | ED29: 0 | EE29: 0 | EF29: 0 | EG29: 0 | EH29: 0 | EI29: 0 | EJ29: 0 | EK29: 0 | EL29: 0 | EM29: 0 | EN29: 0 | EO29: 0 | EP29: 0 | EQ29: 0 | ER29: 0 | ES29: 0 | ET29: 0 | EU29: 0 | EV29: 0 | EW29: 0 | EX29: 0 | EY29: 0 | EZ29: 0 | FA29: 0 | FB29: 0 | FC29: 0 | FD29: 0 | FE29: 0 | FF29: 0 | FG29: 0 | FH29: 0 | FI29: 0 | FJ29: 0 | FK29: 0 | FL29: 0 | FM29: 0 | FN29: 0 | FO29: 0 | FP29: 0 | FQ29: 0 | FR29: 0 | FS29: 0 | FT29: 0 | FU29: 0 | FV29: 0 | FW29: 43.12 | FX29: GJ /千Nｍ3 | FY29: 0.0136 | FZ29: t-C/GJ
F30: 13A:46.04MJ/m3 | G30: 千Nｍ3 | L30: ='４．燃料単位換算(工場現場)'!AG15 -> 0 | M30: ='４．燃料単位換算(工場現場)'!AH15 -> 0 | N30: ='４．燃料単位換算(工場現場)'!AI15 -> 0 | O30: ='４．燃料単位換算(工場現場)'!AJ15 -> 0 | P30: ='４．燃料単位換算(工場現場)'!AK15 -> 0 | Q30: ='４．燃料単位換算(工場現場)'!AL15 -> 0 | R30: ='４．燃料単位換算(工場現場)'!AM15 -> 0 | S30: ='４．燃料単位換算(工場現場)'!AN15 -> 0 | T30: ='４．燃料単位換算(工場現場)'!AO15 -> 0 | U30: ='４．燃料単位換算(工場現場)'!AP15 -> 0 | V30: ='４．燃料単位換算(工場現場)'!AQ15 -> 0 | W30: ='４．燃料単位換算(工場現場)'!AR15 -> 0 | X30: ='４．燃料単位換算(工場現場)'!AS15 -> 0 | Y30: ='４．燃料単位換算(工場現場)'!AT15 -> 0 | Z30: ='４．燃料単位換算(工場現場)'!AU15 -> 0 | AA30: ='４．燃料単位換算(工場現場)'!AV15 -> 0 | AB30: ='４．燃料単位換算(工場現場)'!AW15 -> 0 | AC30: ='４．燃料単位換算(工場現場)'!AX15 -> 0 | AD30: ='４．燃料単位換算(工場現場)'!AY15 -> 0 | AE30: ='４．燃料単位換算(工場現場)'!AZ15 -> 0 | AF30: ='４．燃料単位換算(工場現場)'!BA15 -> 0 | AG30: ='４．燃料単位換算(工場現場)'!BB15 -> 0 | AH30: ='４．燃料単位換算(工場現場)'!BC15 -> 0 | BJ30: 0 | BK30: 0 | BL30: 0 | BM30: 0 | BN30: 0 | BO30: 0 | BP30: 0 | BQ30: 0 | BR30: 0 | BS30: 0 | BT30: 0 | BU30: 0 | BV30: 0 | BW30: 0 | BX30: 0 | BY30: 0 | BZ30: 0 | CA30: 0 | CB30: 0 | CC30: 0 | CD30: 0 | CE30: 0 | CF30: 0 | CG30: 1 | CH30: 千N㎥ | CI30: 0 | CJ30: 0 | CK30: 0 | CL30: 0 | CM30: 0 | CN30: 0 | CO30: 0 | CP30: 0 | CQ30: 0 | CR30: 0 | CS30: 0 | CT30: 0 | CU30: 0 | CV30: 0 | CW30: 0 | CX30: 0 | CY30: 0 | CZ30: 0 | DA30: 0 | DB30: 0 | DC30: 0 | DD30: 0 | DE30: 0 | DF30: 0 | DG30: 0 | DH30: 0 | DI30: 0 | DJ30: 0 | DK30: 0 | DL30: 0 | DM30: 0 | DN30: 0 | DO30: 0 | DP30: 0 | DQ30: 0 | DR30: 0 | DS30: 0 | DT30: 0 | DU30: 0 | DV30: 0 | DW30: 0 | DX30: 0 | DY30: 0 | DZ30: 0 | EA30: 0 | EB30: 0 | EC30: 0 | ED30: 0 | EE30: 0 | EF30: 0 | EG30: 0 | EH30: 0 | EI30: 0 | EJ30: 0 | EK30: 0 | EL30: 0 | EM30: 0 | EN30: 0 | EO30: 0 | EP30: 0 | EQ30: 0 | ER30: 0 | ES30: 0 | ET30: 0 | EU30: 0 | EV30: 0 | EW30: 0 | EX30: 0 | EY30: 0 | EZ30: 0 | FA30: 0 | FB30: 0 | FC30: 0 | FD30: 0 | FE30: 0 | FF30: 0 | FG30: 0 | FH30: 0 | FI30: 0 | FJ30: 0 | FK30: 0 | FL30: 0 | FM30: 0 | FN30: 0 | FO30: 0 | FP30: 0 | FQ30: 0 | FR30: 0 | FS30: 0 | FT30: 0 | FU30: 0 | FV30: 0 | FW30: 46.04 | FX30: GJ /千Nｍ3 | FY30: 0.0136 | FZ30: t-C/GJ
F31: 12A:41.86MJ/m3 | G31: 千Nｍ3 | L31: ='４．燃料単位換算(工場現場)'!AG18 -> 0 | M31: ='４．燃料単位換算(工場現場)'!AH18 -> 0 | N31: ='４．燃料単位換算(工場現場)'!AI18 -> 0 | O31: ='４．燃料単位換算(工場現場)'!AJ18 -> 0 | P31: ='４．燃料単位換算(工場現場)'!AK18 -> 0 | Q31: ='４．燃料単位換算(工場現場)'!AL18 -> 0 | R31: ='４．燃料単位換算(工場現場)'!AM18 -> 0 | S31: ='４．燃料単位換算(工場現場)'!AN18 -> 0 | T31: ='４．燃料単位換算(工場現場)'!AO18 -> 0 | U31: ='４．燃料単位換算(工場現場)'!AP18 -> 0 | V31: ='４．燃料単位換算(工場現場)'!AQ18 -> 0 | W31: ='４．燃料単位換算(工場現場)'!AR18 -> 0 | X31: ='４．燃料単位換算(工場現場)'!AS18 -> 0 | Y31: ='４．燃料単位換算(工場現場)'!AT18 -> 0 | Z31: ='４．燃料単位換算(工場現場)'!AU18 -> 0 | AA31: ='４．燃料単位換算(工場現場)'!AV18 -> 0 | AB31: ='４．燃料単位換算(工場現場)'!AW18 -> 0 | AC31: ='４．燃料単位換算(工場現場)'!AX18 -> 0 | AD31: ='４．燃料単位換算(工場現場)'!AY18 -> 0 | AE31: ='４．燃料単位換算(工場現場)'!AZ18 -> 0 | AF31: ='４．燃料単位換算(工場現場)'!BA18 -> 0 | AG31: ='４．燃料単位換算(工場現場)'!BB18 -> 0 | AH31: ='４．燃料単位換算(工場現場)'!BC18 -> 0 | BJ31: 0 | BK31: 0 | BL31: 0 | BM31: 0 | BN31: 0 | BO31: 0 | BP31: 0 | BQ31: 0 | BR31: 0 | BS31: 0 | BT31: 0 | BU31: 0 | BV31: 0 | BW31: 0 | BX31: 0 | BY31: 0 | BZ31: 0 | CA31: 0 | CB31: 0 | CC31: 0 | CD31: 0 | CE31: 0 | CF31: 0 | CG31: 1 | CH31: 千N㎥ | CI31: 0 | CJ31: 0 | CK31: 0 | CL31: 0 | CM31: 0 | CN31: 0 | CO31: 0 | CP31: 0 | CQ31: 0 | CR31: 0 | CS31: 0 | CT31: 0 | CU31: 0 | CV31: 0 | CW31: 0 | CX31: 0 | CY31: 0 | CZ31: 0 | DA31: 0 | DB31: 0 | DC31: 0 | DD31: 0 | DE31: 0 | DF31: 0 | DG31: 0 | DH31: 0 | DI31: 0 | DJ31: 0 | DK31: 0 | DL31: 0 | DM31: 0 | DN31: 0 | DO31: 0 | DP31: 0 | DQ31: 0 | DR31: 0 | DS31: 0 | DT31: 0 | DU31: 0 | DV31: 0 | DW31: 0 | DX31: 0 | DY31: 0 | DZ31: 0 | EA31: 0 | EB31: 0 | EC31: 0 | ED31: 0 | EE31: 0 | EF31: 0 | EG31: 0 | EH31: 0 | EI31: 0 | EJ31: 0 | EK31: 0 | EL31: 0 | EM31: 0 | EN31: 0 | EO31: 0 | EP31: 0 | EQ31: 0 | ER31: 0 | ES31: 0 | ET31: 0 | EU31: 0 | EV31: 0 | EW31: 0 | EX31: 0 | EY31: 0 | EZ31: 0 | FA31: 0 | FB31: 0 | FC31: 0 | FD31: 0 | FE31: 0 | FF31: 0 | FG31: 0 | FH31: 0 | FI31: 0 | FJ31: 0 | FK31: 0 | FL31: 0 | FM31: 0 | FN31: 0 | FO31: 0 | FP31: 0 | FQ31: 0 | FR31: 0 | FS31: 0 | FT31: 0 | FU31: 0 | FV31: 0 | FW31: 41.86 | FX31: GJ /千Nｍ3 | FY31: 0.0136 | FZ31: t-C/GJ
F32: 6A:29.30MJ/m3 | G32: 千Nｍ3 | L32: ='４．燃料単位換算(工場現場)'!AG21 -> 0 | M32: ='４．燃料単位換算(工場現場)'!AH21 -> 0 | N32: ='４．燃料単位換算(工場現場)'!AI21 -> 0 | O32: ='４．燃料単位換算(工場現場)'!AJ21 -> 0 | P32: ='４．燃料単位換算(工場現場)'!AK21 -> 0 | Q32: ='４．燃料単位換算(工場現場)'!AL21 -> 0 | R32: ='４．燃料単位換算(工場現場)'!AM21 -> 0 | S32: ='４．燃料単位換算(工場現場)'!AN21 -> 0 | T32: ='４．燃料単位換算(工場現場)'!AO21 -> 0 | U32: ='４．燃料単位換算(工場現場)'!AP21 -> 0 | V32: ='４．燃料単位換算(工場現場)'!AQ21 -> 0 | W32: ='４．燃料単位換算(工場現場)'!AR21 -> 0 | X32: ='４．燃料単位換算(工場現場)'!AS21 -> 0 | Y32: ='４．燃料単位換算(工場現場)'!AT21 -> 0 | Z32: ='４．燃料単位換算(工場現場)'!AU21 -> 0 | AA32: ='４．燃料単位換算(工場現場)'!AV21 -> 0 | AB32: ='４．燃料単位換算(工場現場)'!AW21 -> 0 | AC32: ='４．燃料単位換算(工場現場)'!AX21 -> 0 | AD32: ='４．燃料単位換算(工場現場)'!AY21 -> 0 | AE32: ='４．燃料単位換算(工場現場)'!AZ21 -> 0 | AF32: ='４．燃料単位換算(工場現場)'!BA21 -> 0 | AG32: ='４．燃料単位換算(工場現場)'!BB21 -> 0 | AH32: ='４．燃料単位換算(工場現場)'!BC21 -> 0 | BJ32: 0 | BK32: 0 | BL32: 0 | BM32: 0 | BN32: 0 | BO32: 0 | BP32: 0 | BQ32: 0 | BR32: 0 | BS32: 0 | BT32: 0 | BU32: 0 | BV32: 0 | BW32: 0 | BX32: 0 | BY32: 0 | BZ32: 0 | CA32: 0 | CB32: 0 | CC32: 0 | CD32: 0 | CE32: 0 | CF32: 0 | CG32: 1 | CH32: 千N㎥ | CI32: 0 | CJ32: 0 | CK32: 0 | CL32: 0 | CM32: 0 | CN32: 0 | CO32: 0 | CP32: 0 | CQ32: 0 | CR32: 0 | CS32: 0 | CT32: 0 | CU32: 0 | CV32: 0 | CW32: 0 | CX32: 0 | CY32: 0 | CZ32: 0 | DA32: 0 | DB32: 0 | DC32: 0 | DD32: 0 | DE32: 0 | DF32: 0 | DG32: 0 | DH32: 0 | DI32: 0 | DJ32: 0 | DK32: 0 | DL32: 0 | DM32: 0 | DN32: 0 | DO32: 0 | DP32: 0 | DQ32: 0 | DR32: 0 | DS32: 0 | DT32: 0 | DU32: 0 | DV32: 0 | DW32: 0 | DX32: 0 | DY32: 0 | DZ32: 0 | EA32: 0 | EB32: 0 | EC32: 0 | ED32: 0 | EE32: 0 | EF32: 0 | EG32: 0 | EH32: 0 | EI32: 0 | EJ32: 0 | EK32: 0 | EL32: 0 | EM32: 0 | EN32: 0 | EO32: 0 | EP32: 0 | EQ32: 0 | ER32: 0 | ES32: 0 | ET32: 0 | EU32: 0 | EV32: 0 | EW32: 0 | EX32: 0 | EY32: 0 | EZ32: 0 | FA32: 0 | FB32: 0 | FC32: 0 | FD32: 0 | FE32: 0 | FF32: 0 | FG32: 0 | FH32: 0 | FI32: 0 | FJ32: 0 | FK32: 0 | FL32: 0 | FM32: 0 | FN32: 0 | FO32: 0 | FP32: 0 | FQ32: 0 | FR32: 0 | FS32: 0 | FT32: 0 | FU32: 0 | FV32: 0 | FW32: 29.3 | FX32: GJ /千Nｍ3 | FY32: 0.0136 | FZ32: t-C/GJ
BJ33: 0 | BK33: 0 | BL33: 0 | BM33: 0 | BN33: 0 | BO33: 0 | BP33: 0 | BQ33: 0 | BR33: 0 | BS33: 0 | BT33: 0 | BU33: 0 | BV33: 0 | BW33: 0 | BX33: 0 | BY33: 0 | BZ33: 0 | CA33: 0 | CB33: 0 | CC33: 0 | CD33: 0 | CE33: 0 | CF33: 0 | CG33: =IF(G33="","-",VLOOKUP($G33,$GB$6:$GC$15,2,FALSE)) -> - | CI33: =ROUND(IF($E$33="",0,IF($G$33="",0,BJ33/単位補正５)),0) -> 0 | CJ33: 0 | CK33: 0 | CL33: 0 | CM33: 0 | CN33: 0 | CO33: 0 | CP33: 0 | CQ33: 0 | CR33: 0 | CS33: =ROUND(IF($E$33="",0,IF($G$33="",0,BT33/単位補正５)),0) -> 0 | CT33: 0 | CU33: 0 | CV33: 0 | CW33: 0 | CX33: 0 | CY33: 0 | CZ33: 0 | DA33: 0 | DB33: 0 | DC33: =ROUND(IF($E$33="",0,IF($G$33="",0,CD33/単位補正５)),0) -> 0 | DD33: 0 | DE33: 0 | DF33: 0 | DG33: 0 | DH33: 0 | DI33: 0 | DJ33: 0 | DK33: 0 | DL33: 0 | DM33: 0 | DN33: 0 | DO33: 0 | DP33: 0 | DQ33: 0 | DR33: 0 | DS33: 0 | DT33: 0 | DU33: 0 | DV33: 0 | DW33: 0 | DX33: 0 | DY33: 0 | DZ33: 0 | EA33: 0 | EB33: 0 | EC33: 0 | ED33: 0 | EE33: 0 | EF33: 0 | EG33: 0 | EH33: 0 | EI33: 0 | EJ33: 0 | EK33: 0 | EL33: 0 | EM33: 0 | EN33: 0 | EO33: 0 | EP33: 0 | EQ33: 0 | ER33: 0 | ES33: 0 | ET33: 0 | EU33: 0 | EV33: 0 | EW33: 0 | EX33: 0 | EY33: 0 | EZ33: 0 | FA33: 0 | FB33: 0 | FC33: 0 | FD33: 0 | FE33: 0 | FF33: 0 | FG33: 0 | FH33: 0 | FI33: 0 | FJ33: 0 | FK33: 0 | FL33: 0 | FM33: 0 | FN33: 0 | FO33: 0 | FP33: 0 | FQ33: 0 | FR33: 0 | FS33: 0 | FT33: 0 | FU33: 0 | FV33: 0 | FX33: =CONCATENATE("GJ/",GB33) -> GJ/ | FZ33: t-C/GJ | GB33: =IF(G33="","",IF(G33=$GB$6,$GB$7,IF(G33=$GB$8,$GB$9,IF(G33=$GB$10,$GB$11,IF(G33=$GB$12,$GB$13,G33))))) -> 
BJ34: 0 | BK34: 0 | BL34: 0 | BM34: 0 | BN34: 0 | BO34: 0 | BP34: 0 | BQ34: 0 | BR34: 0 | BS34: 0 | BT34: 0 | BU34: 0 | BV34: 0 | BW34: 0 | BX34: 0 | BY34: 0 | BZ34: 0 | CA34: 0 | CB34: 0 | CC34: 0 | CD34: 0 | CE34: 0 | CF34: 0 | CG34: =IF(G34="","-",VLOOKUP($G34,$GB$6:$GC$15,2,FALSE)) -> - | CI34: 0 | CJ34: 0 | CK34: 0 | CL34: 0 | CM34: 0 | CN34: 0 | CO34: 0 | CP34: 0 | CQ34: 0 | CR34: 0 | CS34: 0 | CT34: 0 | CU34: 0 | CV34: 0 | CW34: 0 | CX34: 0 | CY34: 0 | CZ34: 0 | DA34: 0 | DB34: 0 | DC34: 0 | DD34: 0 | DE34: 0 | DF34: 0 | DG34: 0 | DH34: 0 | DI34: 0 | DJ34: 0 | DK34: 0 | DL34: 0 | DM34: 0 | DN34: 0 | DO34: 0 | DP34: 0 | DQ34: 0 | DR34: 0 | DS34: 0 | DT34: 0 | DU34: 0 | DV34: 0 | DW34: 0 | DX34: 0 | DY34: 0 | DZ34: 0 | EA34: 0 | EB34: 0 | EC34: 0 | ED34: 0 | EE34: 0 | EF34: 0 | EG34: 0 | EH34: 0 | EI34: 0 | EJ34: 0 | EK34: 0 | EL34: 0 | EM34: 0 | EN34: 0 | EO34: 0 | EP34: 0 | EQ34: 0 | ER34: 0 | ES34: 0 | ET34: 0 | EU34: 0 | EV34: 0 | EW34: 0 | EX34: 0 | EY34: 0 | EZ34: 0 | FA34: 0 | FB34: 0 | FC34: 0 | FD34: 0 | FE34: 0 | FF34: 0 | FG34: 0 | FH34: 0 | FI34: 0 | FJ34: 0 | FK34: 0 | FL34: 0 | FM34: 0 | FN34: 0 | FO34: 0 | FP34: 0 | FQ34: 0 | FR34: 0 | FS34: 0 | FT34: 0 | FU34: 0 | FV34: 0 | FX34: =CONCATENATE("GJ/",GB34) -> GJ/ | FZ34: t-C/GJ | GB34: =IF(G34="","",IF(G34=$GB$6,$GB$7,IF(G34=$GB$8,$GB$9,IF(G34=$GB$10,$GB$11,IF(G34=$GB$12,$GB$13,G34))))) -> 
D35: 小 計 | DF35: =SUBTOTAL(9,DF6:DF34) -> 0 | DG35: 0 | DH35: 0 | DI35: 0 | DJ35: 0 | DK35: 0 | DL35: 0 | DM35: 0 | DN35: 0 | DO35: 0 | DP35: 0 | DQ35: 0 | DR35: 0 | DS35: 0 | DT35: 0 | DU35: 0 | DV35: 0 | DW35: 0 | DX35: 0 | DY35: 0 | DZ35: 0 | EA35: 0 | EB35: 0 | EC35: =SUBTOTAL(9,EC6:EC34) -> 0 | ED35: 0 | EE35: 0 | EF35: 0 | EG35: 0 | EH35: 0 | EI35: 0 | EJ35: 0 | EK35: 0 | EL35: 0 | EM35: 0 | EN35: 0 | EO35: 0 | EP35: 0 | EQ35: 0 | ER35: 0 | ES35: 0 | EZ35: =SUBTOTAL(9,EZ6:EZ34) -> 0 | FA35: =SUBTOTAL(9,FA6:FA34) -> 0 | FB35: 0 | FC35: 0 | FD35: 0 | FE35: 0 | FF35: 0 | FG35: 0 | FH35: 0 | FI35: 0 | FJ35: 0 | FK35: 0 | FL35: 0 | FM35: 0 | FN35: 0 | FO35: 0 | FP35: 0 | FQ35: 0 | FR35: 0 | FS35: 0 | FT35: 0 | FU35: 0 | FV35: 0
C36: 熱 | D36: 産業用蒸気 | G36: MJ | BJ36: 0 | BK36: 0 | BL36: 0 | BM36: 0 | BN36: 0 | BO36: 0 | BP36: 0 | BQ36: 0 | BR36: 0 | BS36: 0 | BT36: 0 | BU36: 0 | BV36: 0 | BW36: 0 | BX36: 0 | BY36: 0 | BZ36: 0 | CA36: 0 | CB36: 0 | CC36: 0 | CD36: 0 | CE36: 0 | CF36: 0 | CG36: =VLOOKUP($G36,$GB$6:$GC$15,2,FALSE) -> 1000 | CH36: GJ | CI36: =ROUND(BJ36/$CG36,0) -> 0 | CJ36: =ROUND(BK36/$CG36,0) -> 0 | CK36: =ROUND(BL36/$CG36,0) -> 0 | CL36: =ROUND(BM36/$CG36,0) -> 0 | CM36: =ROUND(BN36/$CG36,0) -> 0 | CN36: =ROUND(BO36/$CG36,0) -> 0 | CO36: =ROUND(BP36/$CG36,0) -> 0 | CP36: =ROUND(BQ36/$CG36,0) -> 0 | CQ36: =ROUND(BR36/$CG36,0) -> 0 | CR36: =ROUND(BS36/$CG36,0) -> 0 | CS36: =ROUND(BT36/$CG36,0) -> 0 | CT36: =ROUND(BU36/$CG36,0) -> 0 | CU36: =ROUND(BV36/$CG36,0) -> 0 | CV36: =ROUND(BW36/$CG36,0) -> 0 | CW36: =ROUND(BX36/$CG36,0) -> 0 | CX36: =ROUND(BY36/$CG36,0) -> 0 | CY36: =ROUND(BZ36/$CG36,0) -> 0 | CZ36: =ROUND(CA36/$CG36,0) -> 0 | DA36: =ROUND(CB36/$CG36,0) -> 0 | DB36: =ROUND(CC36/$CG36,0) -> 0 | DC36: =ROUND(CD36/$CG36,0) -> 0 | DD36: =ROUND(CE36/$CG36,0) -> 0 | DE36: =ROUND(CF36/$CG36,0) -> 0 | DF36: =CI36*$FW36 -> 0 | DG36: 0 | DH36: 0 | DI36: 0 | DJ36: 0 | DK36: 0 | DL36: 0 | DM36: 0 | DN36: 0 | DO36: 0 | DP36: 0 | DQ36: 0 | DR36: 0 | DS36: 0 | DT36: 0 | DU36: 0 | DV36: =CY36*$FW36 -> 0 | DW36: 0 | DX36: 0 | DY36: 0 | DZ36: 0 | EA36: 0 | EB36: 0 | EC36: =DF36*$GC$19 -> 0 | ED36: 0 | EE36: 0 | EF36: 0 | EG36: 0 | EH36: 0 | EI36: 0 | EJ36: 0 | EK36: 0 | EL36: 0 | EM36: 0 | EN36: 0 | EO36: 0 | EP36: 0 | EQ36: 0 | ER36: 0 | ES36: =DV36*$GC$19 -> 0 | ET36: 0 | EU36: 0 | EV36: 0 | EW36: 0 | EX36: 0 | EY36: 0 | EZ36: =CI36*$FY36 -> 0 | FA36: 0 | FB36: 0 | FC36: 0 | FD36: 0 | FE36: 0 | FF36: 0 | FG36: 0 | FH36: 0 | FI36: 0 | FJ36: 0 | FK36: 0 | FL36: 0 | FM36: 0 | FN36: 0 | FO36: 0 | FP36: =CY36*$FY36 -> 0 | FQ36: 0 | FR36: 0 | FS36: 0 | FT36: 0 | FU36: 0 | FV36: 0 | FW36: 1.02 | FX36: GJ/GJ | FY36: 0.06 | FZ36: t-CO2 /GJ
D37: 産業用以外の蒸気 | G37: MJ | BJ37: 0 | BK37: 0 | BL37: 0 | BM37: 0 | BN37: 0 | BO37: 0 | BP37: 0 | BQ37: 0 | BR37: 0 | BS37: 0 | BT37: 0 | BU37: 0 | BV37: 0 | BW37: 0 | BX37: 0 | BY37: 0 | BZ37: 0 | CA37: 0 | CB37: 0 | CC37: 0 | CD37: 0 | CE37: 0 | CF37: 0 | CG37: =VLOOKUP($G37,$GB$6:$GC$15,2,FALSE) -> 1000 | CH37: GJ | CI37: 0 | CJ37: 0 | CK37: 0 | CL37: 0 | CM37: 0 | CN37: 0 | CO37: 0 | CP37: 0 | CQ37: 0 | CR37: 0 | CS37: 0 | CT37: 0 | CU37: 0 | CV37: 0 | CW37: 0 | CX37: 0 | CY37: 0 | CZ37: 0 | DA37: 0 | DB37: 0 | DC37: 0 | DD37: 0 | DE37: 0 | DF37: 0 | DG37: 0 | DH37: 0 | DI37: 0 | DJ37: 0 | DK37: 0 | DL37: 0 | DM37: 0 | DN37: 0 | DO37: 0 | DP37: 0 | DQ37: 0 | DR37: 0 | DS37: 0 | DT37: 0 | DU37: 0 | DV37: 0 | DW37: 0 | DX37: 0 | DY37: 0 | DZ37: 0 | EA37: 0 | EB37: 0 | EC37: 0 | ED37: 0 | EE37: 0 | EF37: 0 | EG37: 0 | EH37: 0 | EI37: 0 | EJ37: 0 | EK37: 0 | EL37: 0 | EM37: 0 | EN37: 0 | EO37: 0 | EP37: 0 | EQ37: 0 | ER37: 0 | ES37: 0 | ET37: 0 | EU37: 0 | EV37: 0 | EW37: 0 | EX37: 0 | EY37: 0 | EZ37: 0 | FA37: 0 | FB37: 0 | FC37: 0 | FD37: 0 | FE37: 0 | FF37: 0 | FG37: 0 | FH37: 0 | FI37: 0 | FJ37: 0 | FK37: 0 | FL37: 0 | FM37: 0 | FN37: 0 | FO37: 0 | FP37: 0 | FQ37: 0 | FR37: 0 | FS37: 0 | FT37: 0 | FU37: 0 | FV37: 0 | FW37: 1.36 | FX37: GJ/GJ | FY37: 0.057 | FZ37: t-CO2 /GJ
D38: 温水 | G38: MJ | BJ38: 0 | BK38: 0 | BL38: 0 | BM38: 0 | BN38: 0 | BO38: 0 | BP38: 0 | BQ38: 0 | BR38: 0 | BS38: 0 | BT38: 0 | BU38: 0 | BV38: 0 | BW38: 0 | BX38: 0 | BY38: 0 | BZ38: 0 | CA38: 0 | CB38: 0 | CC38: 0 | CD38: 0 | CE38: 0 | CF38: 0 | CG38: =VLOOKUP($G38,$GB$6:$GC$15,2,FALSE) -> 1000 | CH38: GJ | CI38: 0 | CJ38: 0 | CK38: 0 | CL38: 0 | CM38: 0 | CN38: 0 | CO38: 0 | CP38: 0 | CQ38: 0 | CR38: 0 | CS38: 0 | CT38: 0 | CU38: 0 | CV38: 0 | CW38: 0 | CX38: 0 | CY38: 0 | CZ38: 0 | DA38: 0 | DB38: 0 | DC38: 0 | DD38: 0 | DE38: 0 | DF38: 0 | DG38: 0 | DH38: 0 | DI38: 0 | DJ38: 0 | DK38: 0 | DL38: 0 | DM38: 0 | DN38: 0 | DO38: 0 | DP38: 0 | DQ38: 0 | DR38: 0 | DS38: 0 | DT38: 0 | DU38: 0 | DV38: 0 | DW38: 0 | DX38: 0 | DY38: 0 | DZ38: 0 | EA38: 0 | EB38: 0 | EC38: 0 | ED38: 0 | EE38: 0 | EF38: 0 | EG38: 0 | EH38: 0 | EI38: 0 | EJ38: 0 | EK38: 0 | EL38: 0 | EM38: 0 | EN38: 0 | EO38: 0 | EP38: 0 | EQ38: 0 | ER38: 0 | ES38: 0 | ET38: 0 | EU38: 0 | EV38: 0 | EW38: 0 | EX38: 0 | EY38: 0 | EZ38: 0 | FA38: 0 | FB38: 0 | FC38: 0 | FD38: 0 | FE38: 0 | FF38: 0 | FG38: 0 | FH38: 0 | FI38: 0 | FJ38: 0 | FK38: 0 | FL38: 0 | FM38: 0 | FN38: 0 | FO38: 0 | FP38: 0 | FQ38: 0 | FR38: 0 | FS38: 0 | FT38: 0 | FU38: 0 | FV38: 0 | FW38: 1.36 | FX38: GJ/GJ | FY38: 0.057 | FZ38: t-CO2 /GJ
D39: 冷水 | G39: MJ | BJ39: 0 | BK39: 0 | BL39: 0 | BM39: 0 | BN39: 0 | BO39: 0 | BP39: 0 | BQ39: 0 | BR39: 0 | BS39: 0 | BT39: 0 | BU39: 0 | BV39: 0 | BW39: 0 | BX39: 0 | BY39: 0 | BZ39: 0 | CA39: 0 | CB39: 0 | CC39: 0 | CD39: 0 | CE39: 0 | CF39: 0 | CG39: =VLOOKUP($G39,$GB$6:$GC$15,2,FALSE) -> 1000 | CH39: GJ | CI39: 0 | CJ39: 0 | CK39: 0 | CL39: 0 | CM39: 0 | CN39: 0 | CO39: 0 | CP39: 0 | CQ39: 0 | CR39: 0 | CS39: 0 | CT39: 0 | CU39: 0 | CV39: 0 | CW39: 0 | CX39: 0 | CY39: 0 | CZ39: 0 | DA39: 0 | DB39: 0 | DC39: 0 | DD39: 0 | DE39: 0 | DF39: 0 | DG39: 0 | DH39: 0 | DI39: 0 | DJ39: 0 | DK39: 0 | DL39: 0 | DM39: 0 | DN39: 0 | DO39: 0 | DP39: 0 | DQ39: 0 | DR39: 0 | DS39: 0 | DT39: 0 | DU39: 0 | DV39: 0 | DW39: 0 | DX39: 0 | DY39: 0 | DZ39: 0 | EA39: 0 | EB39: 0 | EC39: 0 | ED39: 0 | EE39: 0 | EF39: 0 | EG39: 0 | EH39: 0 | EI39: 0 | EJ39: 0 | EK39: 0 | EL39: 0 | EM39: 0 | EN39: 0 | EO39: 0 | EP39: 0 | EQ39: 0 | ER39: 0 | ES39: 0 | ET39: 0 | EU39: 0 | EV39: 0 | EW39: 0 | EX39: 0 | EY39: 0 | EZ39: 0 | FA39: 0 | FB39: 0 | FC39: 0 | FD39: 0 | FE39: 0 | FF39: 0 | FG39: 0 | FH39: 0 | FI39: 0 | FJ39: 0 | FK39: 0 | FL39: 0 | FM39: 0 | FN39: 0 | FO39: 0 | FP39: 0 | FQ39: 0 | FR39: 0 | FS39: 0 | FT39: 0 | FU39: 0 | FV39: 0 | FW39: 1.36 | FX39: GJ/GJ | FY39: 0.057 | FZ39: t-CO2 /GJ
D40: 再生可能エネルギーの環境価値を移転した熱 | G40: MJ | BJ40: 0 | BK40: 0 | BL40: 0 | BM40: 0 | BN40: 0 | BO40: 0 | BP40: 0 | BQ40: 0 | BR40: 0 | BS40: 0 | BT40: 0 | BU40: 0 | BV40: 0 | BW40: 0 | BX40: 0 | BY40: 0 | BZ40: 0 | CA40: 0 | CB40: 0 | CC40: 0 | CD40: 0 | CE40: 0 | CF40: 0 | CG40: =VLOOKUP($G40,$GB$6:$GC$15,2,FALSE) -> 1000 | CH40: GJ | CI40: 0 | CJ40: 0 | CK40: 0 | CL40: 0 | CM40: 0 | CN40: 0 | CO40: 0 | CP40: 0 | CQ40: 0 | CR40: 0 | CS40: 0 | CT40: 0 | CU40: 0 | CV40: 0 | CW40: 0 | CX40: 0 | CY40: 0 | CZ40: 0 | DA40: 0 | DB40: 0 | DC40: 0 | DD40: 0 | DE40: 0 | DF40: =CI40 -> 0 | DG40: 0 | DH40: 0 | DI40: 0 | DJ40: 0 | DK40: 0 | DL40: 0 | DM40: 0 | DN40: 0 | DO40: 0 | DP40: 0 | DQ40: 0 | DR40: 0 | DS40: 0 | DT40: 0 | DU40: 0 | DV40: 0 | DW40: 0 | DX40: 0 | DY40: 0 | DZ40: 0 | EA40: 0 | EB40: 0 | EZ40: 0 | FA40: 0 | FB40: 0 | FC40: 0 | FD40: 0 | FE40: 0 | FF40: 0 | FG40: 0 | FH40: 0 | FI40: 0 | FJ40: 0 | FK40: 0 | FL40: 0 | FM40: 0 | FN40: 0 | FO40: 0 | FP40: 0 | FQ40: 0 | FR40: 0 | FS40: 0 | FT40: 0 | FU40: 0 | FV40: 0 | FY40: 0.057 | FZ40: t-CO2 /GJ
D41: 小 計 | DF41: =SUBTOTAL(9,DF36:DF40) -> 0 | DG41: 0 | DH41: 0 | DI41: 0 | DJ41: 0 | DK41: 0 | DL41: 0 | DM41: 0 | DN41: 0 | DO41: 0 | DP41: 0 | DQ41: 0 | DR41: 0 | DS41: 0 | DT41: 0 | DU41: 0 | DV41: 0 | DW41: =SUBTOTAL(9,DW36:DW40) -> 0 | DX41: =SUBTOTAL(9,DX36:DX40) -> 0 | DY41: 0 | DZ41: 0 | EA41: 0 | EB41: 0 | EC41: 0 | ED41: 0 | EE41: 0 | EF41: 0 | EG41: 0 | EH41: 0 | EI41: 0 | EJ41: 0 | EK41: 0 | EL41: 0 | EM41: 0 | EN41: 0 | EO41: 0 | EP41: 0 | EQ41: 0 | ER41: 0 | ES41: 0 | ET41: =SUBTOTAL(9,ET36:ET40) -> 0 | EU41: =SUBTOTAL(9,EU36:EU40) -> 0 | EV41: 0 | EW41: 0 | EX41: 0 | EY41: 0 | EZ41: 0 | FA41: 0 | FB41: 0 | FC41: 0 | FD41: 0 | FE41: 0 | FF41: 0 | FG41: 0 | FH41: 0 | FI41: 0 | FJ41: 0 | FK41: 0 | FL41: 0 | FM41: 0 | FN41: 0 | FO41: 0 | FP41: 0 | FQ41: =SUBTOTAL(9,FQ36:FQ40) -> 0 | FR41: =SUBTOTAL(9,FR36:FR40) -> 0 | FS41: 0 | FT41: 0 | FU41: 0 | FV41: 0
C42: 電気 | D42: 一般電気 事業者 | E42: 昼間（8時～22時） | G42: kWh | BJ42: 0 | BK42: 0 | BL42: 0 | BM42: 0 | BN42: 0 | BO42: 0 | BP42: 0 | BQ42: 0 | BR42: 0 | BS42: 0 | BT42: 0 | BU42: 0 | BV42: 0 | BW42: 0 | BX42: 0 | BY42: 0 | BZ42: 0 | CA42: 0 | CB42: 0 | CC42: 0 | CD42: 0 | CE42: 0 | CF42: 0 | CG42: =VLOOKUP($G42,$GB$6:$GC$17,2,FALSE) -> 1000 | CH42: 千kWh | CI42: 0 | CJ42: =ROUND(BK42/$CG42,0) -> 0 | CK42: =ROUND(BL42/$CG42,0) -> 0 | CL42: =ROUND(BM42/$CG42,0) -> 0 | CM42: =ROUND(BN42/$CG42,0) -> 0 | CN42: =ROUND(BO42/$CG42,0) -> 0 | CO42: =ROUND(BP42/$CG42,0) -> 0 | CP42: =ROUND(BQ42/$CG42,0) -> 0 | CQ42: =ROUND(BR42/$CG42,0) -> 0 | CR42: =ROUND(BS42/$CG42,0) -> 0 | CS42: =ROUND(BT42/$CG42,0) -> 0 | CT42: =ROUND(BU42/$CG42,0) -> 0 | CU42: =ROUND(BV42/$CG42,0) -> 0 | CV42: =ROUND(BW42/$CG42,0) -> 0 | CW42: =ROUND(BX42/$CG42,0) -> 0 | CX42: =ROUND(BY42/$CG42,0) -> 0 | CY42: =ROUND(BZ42/$CG42,0) -> 0 | CZ42: =ROUND(CA42/$CG42,0) -> 0 | DA42: =ROUND(CB42/$CG42,0) -> 0 | DB42: =ROUND(CC42/$CG42,0) -> 0 | DC42: =ROUND(CD42/$CG42,0) -> 0 | DD42: =ROUND(CE42/$CG42,0) -> 0 | DE42: =ROUND(CF42/$CG42,0) -> 0 | DF42: =CI42*$FW42 -> 0 | DG42: 0 | DH42: 0 | DI42: 0 | DJ42: 0 | DK42: 0 | DL42: 0 | DM42: 0 | DN42: 0 | DO42: 0 | DP42: 0 | DQ42: 0 | DR42: 0 | DS42: 0 | DT42: 0 | DU42: 0 | DV42: =CY42*$FW42 -> 0 | DW42: 0 | DX42: 0 | DY42: 0 | DZ42: 0 | EA42: 0 | EB42: 0 | EC42: =DF42*$GC$19 -> 0 | ED42: 0 | EE42: 0 | EF42: 0 | EG42: 0 | EH42: 0 | EI42: 0 | EJ42: 0 | EK42: 0 | EL42: 0 | EM42: 0 | EN42: 0 | EO42: 0 | EP42: 0 | EQ42: 0 | ER42: 0 | ES42: =DV42*$GC$19 -> 0 | ET42: 0 | EU42: 0 | EV42: 0 | EW42: 0 | EX42: 0 | EY42: 0 | EZ42: =CI42*$FY42 -> 0 | FA42: 0 | FB42: 0 | FC42: 0 | FD42: 0 | FE42: 0 | FF42: 0 | FG42: 0 | FH42: 0 | FI42: 0 | FJ42: 0 | FK42: 0 | FL42: 0 | FM42: 0 | FN42: 0 | FO42: 0 | FP42: =CY42*$FY42 -> 0 | FQ42: 0 | FR42: 0 | FS42: 0 | FT42: 0 | FU42: 0 | FV42: 0 | FW42: 9.97 | FX42: GJ /千kWh | FY42: 0.495 | FZ42: t-CO2 /千kWh
E43: 夜間（22時～翌8時） | G43: kWh | BJ43: 0 | BK43: 0 | BL43: 0 | BM43: 0 | BN43: 0 | BO43: 0 | BP43: 0 | BQ43: 0 | BR43: 0 | BS43: 0 | BT43: 0 | BU43: 0 | BV43: 0 | BW43: 0 | BX43: 0 | BY43: 0 | BZ43: 0 | CA43: 0 | CB43: 0 | CC43: 0 | CD43: 0 | CE43: 0 | CF43: 0 | CG43: =VLOOKUP($G43,$GB$6:$GC$17,2,FALSE) -> 1000 | CH43: 千kWh | CI43: 0 | CJ43: 0 | CK43: 0 | CL43: 0 | CM43: 0 | CN43: 0 | CO43: 0 | CP43: 0 | CQ43: 0 | CR43: 0 | CS43: 0 | CT43: 0 | CU43: 0 | CV43: 0 | CW43: 0 | CX43: 0 | CY43: 0 | CZ43: 0 | DA43: 0 | DB43: 0 | DC43: 0 | DD43: 0 | DE43: 0 | DF43: 0 | DG43: 0 | DH43: 0 | DI43: 0 | DJ43: 0 | DK43: 0 | DL43: 0 | DM43: 0 | DN43: 0 | DO43: 0 | DP43: 0 | DQ43: 0 | DR43: 0 | DS43: 0 | DT43: 0 | DU43: 0 | DV43: 0 | DW43: 0 | DX43: 0 | DY43: 0 | DZ43: 0 | EA43: 0 | EB43: 0 | EC43: 0 | ED43: 0 | EE43: 0 | EF43: 0 | EG43: 0 | EH43: 0 | EI43: 0 | EJ43: 0 | EK43: 0 | EL43: 0 | EM43: 0 | EN43: 0 | EO43: 0 | EP43: 0 | EQ43: 0 | ER43: 0 | ES43: 0 | ET43: 0 | EU43: 0 | EV43: 0 | EW43: 0 | EX43: 0 | EY43: 0 | EZ43: 0 | FA43: 0 | FB43: 0 | FC43: 0 | FD43: 0 | FE43: 0 | FF43: 0 | FG43: 0 | FH43: 0 | FI43: 0 | FJ43: 0 | FK43: 0 | FL43: 0 | FM43: 0 | FN43: 0 | FO43: 0 | FP43: 0 | FQ43: 0 | FR43: 0 | FS43: 0 | FT43: 0 | FU43: 0 | FV43: 0 | FW43: 9.28 | FX43: GJ /千kWh | FY43: 0.495 | FZ43: t-CO2 /千kWh
D44: その他の買電 | G44: kWh | BJ44: 0 | BK44: 0 | BL44: 0 | BM44: 0 | BN44: 0 | BO44: 0 | BP44: 0 | BQ44: 0 | BR44: 0 | BS44: 0 | BT44: 0 | BU44: 0 | BV44: 0 | BW44: 0 | BX44: 0 | BY44: 0 | BZ44: 0 | CA44: 0 | CB44: 0 | CC44: 0 | CD44: 0 | CE44: 0 | CF44: 0 | CG44: =VLOOKUP($G44,$GB$6:$GC$17,2,FALSE) -> 1000 | CH44: 千kWh | CI44: 0 | CJ44: 0 | CK44: 0 | CL44: 0 | CM44: 0 | CN44: 0 | CO44: 0 | CP44: 0 | CQ44: 0 | CR44: 0 | CS44: 0 | CT44: 0 | CU44: 0 | CV44: 0 | CW44: 0 | CX44: 0 | CY44: 0 | CZ44: 0 | DA44: 0 | DB44: 0 | DC44: 0 | DD44: 0 | DE44: 0 | DF44: 0 | DG44: 0 | DH44: 0 | DI44: 0 | DJ44: 0 | DK44: 0 | DL44: 0 | DM44: 0 | DN44: 0 | DO44: 0 | DP44: 0 | DQ44: 0 | DR44: 0 | DS44: 0 | DT44: 0 | DU44: 0 | DV44: 0 | DW44: 0 | DX44: 0 | DY44: 0 | DZ44: 0 | EA44: 0 | EB44: 0 | EC44: 0 | ED44: 0 | EE44: 0 | EF44: 0 | EG44: 0 | EH44: 0 | EI44: 0 | EJ44: 0 | EK44: 0 | EL44: 0 | EM44: 0 | EN44: 0 | EO44: 0 | EP44: 0 | EQ44: 0 | ER44: 0 | ES44: 0 | ET44: 0 | EU44: 0 | EV44: 0 | EW44: 0 | EX44: 0 | EY44: 0 | EZ44: 0 | FA44: 0 | FB44: 0 | FC44: 0 | FD44: 0 | FE44: 0 | FF44: 0 | FG44: 0 | FH44: 0 | FI44: 0 | FJ44: 0 | FK44: 0 | FL44: 0 | FM44: 0 | FN44: 0 | FO44: 0 | FP44: 0 | FQ44: 0 | FR44: 0 | FS44: 0 | FT44: 0 | FU44: 0 | FV44: 0 | FW44: 9.76 | FX44: GJ /千kWh | FY44: 0.495 | FZ44: t-CO2 /千kWh
D45: 再生可能エネルギーの環境価値を移転した電気 | G45: kWh | BJ45: 0 | BK45: 0 | BL45: 0 | BM45: 0 | BN45: 0 | BO45: 0 | BP45: 0 | BQ45: 0 | BR45: 0 | BS45: 0 | BT45: 0 | BU45: 0 | BV45: 0 | BW45: 0 | BX45: 0 | BY45: 0 | BZ45: 0 | CA45: 0 | CB45: 0 | CC45: 0 | CD45: 0 | CE45: 0 | CF45: 0 | CG45: =VLOOKUP($G45,$GB$6:$GC$17,2,FALSE) -> 1000 | CH45: 千kWh | CI45: 0 | CJ45: 0 | CK45: 0 | CL45: 0 | CM45: 0 | CN45: 0 | CO45: 0 | CP45: 0 | CQ45: 0 | CR45: 0 | CS45: 0 | CT45: 0 | CU45: 0 | CV45: 0 | CW45: 0 | CX45: 0 | CY45: 0 | CZ45: 0 | DA45: 0 | DB45: 0 | DC45: 0 | DD45: 0 | DE45: 0 | EZ45: 0 | FA45: 0 | FB45: 0 | FC45: 0 | FD45: 0 | FE45: 0 | FF45: 0 | FG45: 0 | FH45: 0 | FI45: 0 | FJ45: 0 | FK45: 0 | FL45: 0 | FM45: 0 | FN45: 0 | FO45: 0 | FP45: 0 | FQ45: 0 | FR45: 0 | FS45: 0 | FT45: 0 | FU45: 0 | FV45: 0 | FY45: 0.495 | FZ45: t-CO2 /千kWh
D46: 再生可能エネルギーを自家消費した 電気 | G46: kWh | BJ46: 0 | BK46: 0 | BL46: 0 | BM46: 0 | BN46: 0 | BO46: 0 | BP46: 0 | BQ46: 0 | BR46: 0 | BS46: 0 | BT46: 0 | BU46: 0 | BV46: 0 | BW46: 0 | BX46: 0 | BY46: 0 | BZ46: 0 | CA46: 0 | CB46: 0 | CC46: 0 | CD46: 0 | CE46: 0 | CF46: 0 | CG46: =VLOOKUP($G46,$GB$6:$GC$17,2,FALSE) -> 1000 | CH46: 千kWh | CI46: 0 | CJ46: 0 | CK46: 0 | CL46: 0 | CM46: 0 | CN46: 0 | CO46: 0 | CP46: 0 | CQ46: 0 | CR46: 0 | CS46: 0 | CT46: 0 | CU46: 0 | CV46: 0 | CW46: 0 | CX46: 0 | CY46: 0 | CZ46: 0 | DA46: 0 | DB46: 0 | DC46: 0 | DD46: 0 | DE46: 0 | EZ46: =-ABS(CI46*$GA46) -> 0 | FA46: 0 | FB46: 0 | FC46: 0 | FD46: 0 | FE46: 0 | FF46: 0 | FG46: 0 | FH46: 0 | FI46: 0 | FJ46: 0 | FK46: 0 | FL46: 0 | FM46: 0 | FN46: 0 | FO46: 0 | FP46: 0 | FQ46: 0 | FR46: 0 | FS46: 0 | FT46: =-ABS(DC46*$FY46) -> 0 | FU46: =-ABS(DD46*$FY46) -> 0 | FV46: 0 | FY46: -0.2445 | FZ46: t-CO2 /千kWh | GA46: -0.193
D47: 小 計 | DF47: =SUBTOTAL(9,DF42:DF46) -> 0 | DG47: 0 | DH47: 0 | DI47: 0 | DJ47: 0 | DK47: 0 | DL47: 0 | DM47: 0 | DN47: 0 | DO47: 0 | DP47: 0 | DQ47: 0 | DR47: 0 | DS47: 0 | DT47: 0 | DU47: 0 | DV47: 0 | DW47: =SUBTOTAL(9,DW42:DW46) -> 0 | DX47: =SUBTOTAL(9,DX42:DX46) -> 0 | DY47: 0 | DZ47: 0 | EA47: 0 | EB47: 0 | EC47: 0 | ED47: 0 | EE47: 0 | EF47: 0 | EG47: 0 | EH47: 0 | EI47: 0 | EJ47: 0 | EK47: 0 | EL47: 0 | EM47: 0 | EN47: 0 | EO47: 0 | EP47: 0 | EQ47: 0 | ER47: 0 | ES47: 0 | ET47: =SUBTOTAL(9,ET42:ET46) -> 0 | EU47: =SUBTOTAL(9,EU42:EU46) -> 0 | EV47: 0 | EW47: 0 | EX47: 0 | EY47: 0 | EZ47: 0 | FA47: 0 | FB47: 0 | FC47: 0 | FD47: 0 | FE47: 0 | FF47: 0 | FG47: 0 | FH47: 0 | FI47: 0 | FJ47: 0 | FK47: 0 | FL47: 0 | FM47: 0 | FN47: 0 | FO47: 0 | FP47: 0 | FQ47: =SUBTOTAL(9,FQ42:FQ46) -> 0 | FR47: =SUBTOTAL(9,FR42:FR46) -> 0 | FS47: 0 | FT47: 0 | FU47: 0 | FV47: 0
C48: 外部供給 | D48: 自ら生成した熱の供給 | G48: GJ | AM48: ='４．燃料単位換算(工場現場)'!AG56 -> 0 | AN48: ='４．燃料単位換算(工場現場)'!AH56 -> 0 | AO48: ='４．燃料単位換算(工場現場)'!AI56 -> 0 | AP48: ='４．燃料単位換算(工場現場)'!AJ56 -> 0 | AQ48: ='４．燃料単位換算(工場現場)'!AK56 -> 0 | AR48: ='４．燃料単位換算(工場現場)'!AL56 -> 0 | AS48: ='４．燃料単位換算(工場現場)'!AM56 -> 0 | AT48: ='４．燃料単位換算(工場現場)'!AN56 -> 0 | AU48: ='４．燃料単位換算(工場現場)'!AO56 -> 0 | AV48: ='４．燃料単位換算(工場現場)'!AP56 -> 0 | AW48: ='４．燃料単位換算(工場現場)'!AQ56 -> 0 | AX48: ='４．燃料単位換算(工場現場)'!AR56 -> 0 | AY48: ='４．燃料単位換算(工場現場)'!AS56 -> 0 | AZ48: ='４．燃料単位換算(工場現場)'!AT56 -> 0 | BA48: ='４．燃料単位換算(工場現場)'!AU56 -> 0 | BB48: ='４．燃料単位換算(工場現場)'!AV56 -> 0 | BC48: ='４．燃料単位換算(工場現場)'!AW56 -> 0 | BD48: ='４．燃料単位換算(工場現場)'!AX56 -> 0 | BE48: ='４．燃料単位換算(工場現場)'!AY56 -> 0 | BF48: ='４．燃料単位換算(工場現場)'!AZ56 -> 0 | BG48: ='４．燃料単位換算(工場現場)'!BA56 -> 0 | BH48: ='４．燃料単位換算(工場現場)'!BB56 -> 0 | BI48: ='４．燃料単位換算(工場現場)'!BC56 -> 0 | BJ48: =AM48 -> 0 | BK48: 0 | BL48: 0 | BM48: 0 | BN48: 0 | BO48: 0 | BP48: 0 | BQ48: 0 | BR48: 0 | BS48: 0 | BT48: 0 | BU48: 0 | BV48: 0 | BW48: 0 | BX48: 0 | BY48: 0 | BZ48: =BC48 -> 0 | CA48: 0 | CB48: 0 | CC48: 0 | CD48: 0 | CE48: 0 | CF48: 0 | CG48: =VLOOKUP($G48,$GB$6:$GC$15,2,FALSE) -> 1 | CH48: GJ | CI48: 0 | CJ48: =ROUND(BK48/$CG48,0) -> 0 | CK48: =ROUND(BL48/$CG48,0) -> 0 | CL48: =ROUND(BM48/$CG48,0) -> 0 | CM48: =ROUND(BN48/$CG48,0) -> 0 | CN48: =ROUND(BO48/$CG48,0) -> 0 | CO48: =ROUND(BP48/$CG48,0) -> 0 | CP48: =ROUND(BQ48/$CG48,0) -> 0 | CQ48: =ROUND(BR48/$CG48,0) -> 0 | CR48: =ROUND(BS48/$CG48,0) -> 0 | CS48: =ROUND(BT48/$CG48,0) -> 0 | CT48: =ROUND(BU48/$CG48,0) -> 0 | CU48: =ROUND(BV48/$CG48,0) -> 0 | CV48: =ROUND(BW48/$CG48,0) -> 0 | CW48: =ROUND(BX48/$CG48,0) -> 0 | CX48: =ROUND(BY48/$CG48,0) -> 0 | CY48: =ROUND(BZ48/$CG48,0) -> 0 | CZ48: =ROUND(CA48/$CG48,0) -> 0 | DA48: =ROUND(CB48/$CG48,0) -> 0 | DB48: =ROUND(CC48/$CG48,0) -> 0 | DC48: =ROUND(CD48/$CG48,0) -> 0 | DD48: =ROUND(CE48/$CG48,0) -> 0 | DE48: =ROUND(CF48/$CG48,0) -> 0 | DF48: =CI48 -> 0 | DG48: 0 | DH48: 0 | DI48: 0 | DJ48: 0 | DK48: 0 | DL48: 0 | DM48: 0 | DN48: 0 | DO48: 0 | DP48: 0 | DQ48: 0 | DR48: 0 | DS48: 0 | DT48: 0 | DU48: 0 | DV48: 0 | DW48: 0 | DX48: 0 | DY48: 0 | DZ48: 0 | EA48: 0 | EB48: 0 | EZ48: =IF(ISERROR(-ABS(CI48*$FY48)),"",(-ABS(CI48*$FY48))) -> 0 | FA48: 0 | FB48: 0 | FC48: 0 | FD48: 0 | FE48: 0 | FF48: 0 | FG48: 0 | FH48: 0 | FI48: 0 | FJ48: 0 | FK48: 0 | FL48: 0 | FM48: 0 | FN48: 0 | FO48: 0 | FP48: =IF(ISERROR(-ABS(CY48*$FY48)),"",(-ABS(CY48*$FY48))) -> 0 | FQ48: 0 | FR48: 0 | FS48: 0 | FT48: 0 | FU48: 0 | FV48: 0
D49: 自ら生成した電力の供給 | G49: 千kWh | AM49: ='４．燃料単位換算(工場現場)'!AG54 -> 0 | AN49: ='４．燃料単位換算(工場現場)'!AH54 -> 0 | AO49: ='４．燃料単位換算(工場現場)'!AI54 -> 0 | AP49: ='４．燃料単位換算(工場現場)'!AJ54 -> 0 | AQ49: ='４．燃料単位換算(工場現場)'!AK54 -> 0 | AR49: ='４．燃料単位換算(工場現場)'!AL54 -> 0 | AS49: ='４．燃料単位換算(工場現場)'!AM54 -> 0 | AT49: ='４．燃料単位換算(工場現場)'!AN54 -> 0 | AU49: ='４．燃料単位換算(工場現場)'!AO54 -> 0 | AV49: ='４．燃料単位換算(工場現場)'!AP54 -> 0 | AW49: ='４．燃料単位換算(工場現場)'!AQ54 -> 0 | AX49: ='４．燃料単位換算(工場現場)'!AR54 -> 0 | AY49: ='４．燃料単位換算(工場現場)'!AS54 -> 0 | AZ49: ='４．燃料単位換算(工場現場)'!AT54 -> 0 | BA49: ='４．燃料単位換算(工場現場)'!AU54 -> 0 | BB49: ='４．燃料単位換算(工場現場)'!AV54 -> 0 | BC49: ='４．燃料単位換算(工場現場)'!AW54 -> 0 | BD49: ='４．燃料単位換算(工場現場)'!AX54 -> 0 | BE49: ='４．燃料単位換算(工場現場)'!AY54 -> 0 | BF49: ='４．燃料単位換算(工場現場)'!AZ54 -> 0 | BG49: ='４．燃料単位換算(工場現場)'!BA54 -> 0 | BH49: ='４．燃料単位換算(工場現場)'!BB54 -> 0 | BI49: ='４．燃料単位換算(工場現場)'!BC54 -> 0 | BJ49: 0 | BK49: 0 | BL49: 0 | BM49: 0 | BN49: 0 | BO49: 0 | BP49: 0 | BQ49: 0 | BR49: 0 | BS49: 0 | BT49: 0 | BU49: 0 | BV49: 0 | BW49: 0 | BX49: 0 | BY49: 0 | BZ49: 0 | CA49: 0 | CB49: 0 | CC49: 0 | CD49: 0 | CE49: 0 | CF49: 0 | CG49: =VLOOKUP($G49,$GB$6:$GC$17,2,FALSE) -> 1 | CH49: 千kWh | CI49: 0 | CJ49: 0 | CK49: 0 | CL49: 0 | CM49: 0 | CN49: 0 | CO49: 0 | CP49: 0 | CQ49: 0 | CR49: 0 | CS49: 0 | CT49: 0 | CU49: 0 | CV49: 0 | CW49: 0 | CX49: 0 | CY49: 0 | CZ49: 0 | DA49: 0 | DB49: 0 | DC49: 0 | DD49: 0 | DE49: 0 | EZ49: 0 | FA49: 0 | FB49: 0 | FC49: 0 | FD49: 0 | FE49: 0 | FF49: 0 | FG49: 0 | FH49: 0 | FI49: 0 | FJ49: 0 | FK49: 0 | FL49: 0 | FM49: 0 | FN49: 0 | FO49: 0 | FP49: 0 | FQ49: 0 | FR49: 0 | FS49: 0 | FT49: 0 | FU49: 0 | FV49: 0
D50: 小 計 | EZ50: =SUBTOTAL(9,EZ48:EZ49) -> 0 | FA50: =SUBTOTAL(9,FA48:FA49) -> 0 | FB50: 0 | FC50: 0 | FD50: 0 | FE50: 0 | FF50: 0 | FG50: 0 | FH50: 0 | FI50: 0 | FJ50: 0 | FK50: 0 | FL50: 0 | FM50: 0 | FN50: 0 | FO50: 0 | FP50: 0 | FQ50: 0 | FR50: 0 | FS50: 0 | FT50: 0 | FU50: 0 | FV50: 0
D51: コージェネレーションＣＯ₂削減量 | G51: t-CO2 | CG51: 1 | CH51: t-CO2 | CI51: =ROUND(BJ51/$CG51,0) -> 0 | CJ51: =ROUND(BK51/$CG51,0) -> 0 | CK51: =ROUND(BL51/$CG51,0) -> 0 | CL51: =ROUND(BM51/$CG51,0) -> 0 | CM51: =ROUND(BN51/$CG51,0) -> 0 | CN51: =ROUND(BO51/$CG51,0) -> 0 | CO51: =ROUND(BP51/$CG51,0) -> 0 | CP51: =ROUND(BQ51/$CG51,0) -> 0 | CQ51: =ROUND(BR51/$CG51,0) -> 0 | CR51: =ROUND(BS51/$CG51,0) -> 0 | CS51: =ROUND(BT51/$CG51,0) -> 0 | CT51: =ROUND(BU51/$CG51,0) -> 0 | CU51: =ROUND(BV51/$CG51,0) -> 0 | CV51: =ROUND(BW51/$CG51,0) -> 0 | CW51: =ROUND(BX51/$CG51,0) -> 0 | CX51: =ROUND(BY51/$CG51,0) -> 0 | CY51: =ROUND(BZ51/$CG51,0) -> 0 | CZ51: =ROUND(CA51/$CG51,0) -> 0 | DA51: =ROUND(CB51/$CG51,0) -> 0 | DB51: =ROUND(CC51/$CG51,0) -> 0 | DC51: =ROUND(CD51/$CG51,0) -> 0 | DD51: =ROUND(CE51/$CG51,0) -> 0 | DE51: =ROUND(CF51/$CG51,0) -> 0 | EZ51: =-ABS(L51) -> 0 | FA51: =-ABS(M51) -> 0 | FB51: =-ABS(N51) -> 0 | FC51: =-ABS(O51) -> 0 | FD51: =-ABS(P51) -> 0 | FE51: =-ABS(Q51) -> 0 | FF51: =-ABS(R51) -> 0 | FG51: =-ABS(S51) -> 0 | FH51: =-ABS(T51) -> 0 | FI51: =-ABS(U51) -> 0 | FJ51: =-ABS(V51) -> 0 | FK51: =-ABS(W51) -> 0 | FL51: =-ABS(X51) -> 0 | FM51: =-ABS(Y51) -> 0 | FN51: =-ABS(Z51) -> 0 | FO51: =-ABS(AA51) -> 0 | FP51: =-ABS(AB51) -> 0 | FQ51: =-ABS(AC51) -> 0 | FR51: =-ABS(AD51) -> 0 | FS51: =-ABS(AE51) -> 0 | FT51: =-ABS(AF51) -> 0 | FU51: =-ABS(AG51) -> 0 | FV51: =-ABS(AH51) -> 0
D52: 低炭素電力ＣＯ₂削減量 | G52: t-CO2 | CG52: 1 | CH52: t-CO2 | CI52: 0 | CJ52: =ROUND(BK52/$CG52,0) -> 0 | CK52: =ROUND(BL52/$CG52,0) -> 0 | CL52: =ROUND(BM52/$CG52,0) -> 0 | CM52: =ROUND(BN52/$CG52,0) -> 0 | CN52: =ROUND(BO52/$CG52,0) -> 0 | CO52: =ROUND(BP52/$CG52,0) -> 0 | CP52: =ROUND(BQ52/$CG52,0) -> 0 | CQ52: =ROUND(BR52/$CG52,0) -> 0 | CR52: =ROUND(BS52/$CG52,0) -> 0 | CS52: =ROUND(BT52/$CG52,0) -> 0 | CT52: =ROUND(BU52/$CG52,0) -> 0 | CU52: =ROUND(BV52/$CG52,0) -> 0 | CV52: =ROUND(BW52/$CG52,0) -> 0 | CW52: =ROUND(BX52/$CG52,0) -> 0 | CX52: =ROUND(BY52/$CG52,0) -> 0 | CY52: =ROUND(BZ52/$CG52,0) -> 0 | CZ52: =ROUND(CA52/$CG52,0) -> 0 | DA52: =ROUND(CB52/$CG52,0) -> 0 | DB52: =ROUND(CC52/$CG52,0) -> 0 | DC52: =ROUND(CD52/$CG52,0) -> 0 | DD52: =ROUND(CE52/$CG52,0) -> 0 | DE52: =ROUND(CF52/$CG52,0) -> 0 | EZ52: =-ABS(L52) -> 0 | FA52: 0 | FB52: 0 | FC52: 0 | FD52: 0 | FE52: 0 | FF52: 0 | FG52: 0 | FH52: 0 | FI52: 0 | FJ52: 0 | FK52: 0 | FL52: 0 | FM52: 0 | FN52: 0 | FO52: 0 | FP52: 0 | FQ52: 0 | FR52: 0 | FS52: 0 | FT52: 0 | FU52: 0 | FV52: 0
D53: 合 計 | L53: =L35+L41+L47+L50 -> 0 | M53: =M35+M41+M47+M50 -> 0 | N53: 0 | O53: 0 | P53: 0 | Q53: 0 | R53: 0 | S53: 0 | T53: 0 | U53: 0 | V53: 0 | W53: 0 | X53: 0 | Y53: 0 | Z53: 0 | AA53: 0 | AB53: 0 | AC53: 0 | AD53: 0 | AE53: 0 | AF53: 0 | AG53: 0 | AH53: 0 | AI53: 0 | AJ53: 0 | AK53: 0 | AL53: 0 | AM53: 0 | AN53: 0 | AO53: 0 | AP53: 0 | AQ53: 0 | AR53: 0 | AS53: 0 | AT53: 0 | AU53: 0 | AV53: 0 | AW53: 0 | AX53: 0 | AY53: 0 | AZ53: 0 | BA53: 0 | BB53: 0 | BC53: 0 | BD53: 0 | BE53: 0 | BF53: 0 | BG53: 0 | BH53: 0 | BI53: 0 | DF53: =DF35+DF41+DF47 -> 0 | DG53: =DG35+DG41+DG47 -> 0 | DH53: 0 | DI53: 0 | DJ53: 0 | DK53: 0 | DL53: 0 | DM53: 0 | DN53: 0 | DO53: 0 | DP53: 0 | DQ53: 0 | DR53: 0 | DS53: 0 | DT53: 0 | DU53: 0 | DV53: 0 | DW53: 0 | DX53: 0 | DY53: 0 | DZ53: 0 | EA53: 0 | EB53: 0 | EC53: =DF53*$GC$19 -> 0 | ED53: 0 | EE53: 0 | EF53: 0 | EG53: 0 | EH53: 0 | EI53: 0 | EJ53: 0 | EK53: 0 | EL53: 0 | EM53: 0 | EN53: 0 | EO53: 0 | EP53: 0 | EQ53: 0 | ER53: 0 | ES53: 0 | ET53: 0 | EU53: 0 | EV53: 0 | EW53: 0 | EX53: 0 | EY53: 0 | EZ53: =ROUND((IF(EZ35+EZ41+EZ47+EZ50+EZ52<0,0,EZ35+EZ41+EZ47+EZ50+EZ52)),0) -> 0 | FA53: =ROUND((IF(FA35+FA41+FA47+FA50+FA52<0,0,FA35+FA41+FA47+FA50+FA52)),0) -> 0 | FB53: 0 | FC53: 0 | FD53: 0 | FE53: 0 | FF53: 0 | FG53: 0 | FH53: =ROUND((IF(FH35+FH41+FH47+FH50+FH52<0,0,FH35+FH41+FH47+FH50+FH51+FH52)),0) -> 0 | FI53: =ROUND((IF(FI35+FI41+FI47+FI50+FI52<0,0,FI35+FI41+FI47+FI50+FI51+FI52)),0) -> 0 | FJ53: 0 | FK53: 0 | FL53: 0 | FM53: 0 | FN53: 0 | FO53: 0 | FP53: 0 | FQ53: 0 | FR53: 0 | FS53: 0 | FT53: 0 | FU53: 0 | FV53: 0

Sheet ６．ＣＯ₂排出量計算結果
C2: ６．エコアップ認証CO₂排出量計算結果
C4: （１）ＣＯ₂排出量
AB5: CO2換算（ｔ-CO2）
L6: 20年度 (2008) | M6: 21年度 (2009) | N6: 22年度 (2010) | O6: 23年度 (2011) | P6: 24年度 (2012) | Q6: 25年度 (2013) | R6: 26年度 (2014) | S6: 27年度 (2015) | T6: 28年度 (2016) | U6: 29年度 (2017) | V6: 30年度 (2018) | W6: 31/1年度 (2019) | X6: 2年度 (2020) | Y6: 3年度 (2021) | Z6: 4年度 (2022) | AA6: 5年度 (2023) | AB6: 6年度 (2024)
C7: エコアップ基準年度
C8: ｱ)建物系エネルギーCO2 | K8: =#REF! ->  | L8: =ROUND('２．算定報告様式(建物系)'!FF53,1) -> 0 | M8: =ROUND('２．算定報告様式(建物系)'!FG53,1) -> 0 | N8: =ROUND('２．算定報告様式(建物系)'!FH53,1) -> 0 | O8: =ROUND('２．算定報告様式(建物系)'!FI53,1) -> 0 | P8: =ROUND('２．算定報告様式(建物系)'!FJ53,1) -> 0 | Q8: =ROUND('２．算定報告様式(建物系)'!FK53,1) -> 0 | R8: =ROUND('２．算定報告様式(建物系)'!FL53,1) -> 0 | S8: =ROUND('２．算定報告様式(建物系)'!FM53,1) -> 0 | T8: =ROUND('２．算定報告様式(建物系)'!FN53,1) -> 0 | U8: =ROUND('２．算定報告様式(建物系)'!FO53,1) -> 0 | V8: =ROUND('２．算定報告様式(建物系)'!FP53,1) -> 0 | W8: =ROUND('２．算定報告様式(建物系)'!FQ53,1) -> 0 | X8: =ROUND('２．算定報告様式(建物系)'!FR53,1) -> 0 | Y8: =ROUND('２．算定報告様式(建物系)'!FS53,1) -> 0 | Z8: =ROUND('２．算定報告様式(建物系)'!FT53,1) -> 0 | AA8: =ROUND('２．算定報告様式(建物系)'!FU53,1) -> 0 | AB8: =ROUND('２．算定報告様式(建物系)'!FV53,1) -> 0
C9: ｲ)工場・現場系エネルギーCO2 | K9: =#REF! ->  | L9: =ROUND('５．算定報告様式(工場現場)'!FF53,1) -> 0 | M9: =ROUND('５．算定報告様式(工場現場)'!FG53,1) -> 0 | N9: =ROUND('５．算定報告様式(工場現場)'!FH53,1) -> 0 | O9: =ROUND('５．算定報告様式(工場現場)'!FI53,1) -> 0 | P9: =ROUND('５．算定報告様式(工場現場)'!FJ53,1) -> 0 | Q9: =ROUND('５．算定報告様式(工場現場)'!FK53,1) -> 0 | R9: =ROUND('５．算定報告様式(工場現場)'!FL53,1) -> 0 | S9: =ROUND('５．算定報告様式(工場現場)'!FM53,1) -> 0 | T9: =ROUND('５．算定報告様式(工場現場)'!FN53,1) -> 0 | U9: =ROUND('５．算定報告様式(工場現場)'!FO53,1) -> 0 | V9: =ROUND('５．算定報告様式(工場現場)'!FP53,1) -> 0 | W9: =ROUND('５．算定報告様式(工場現場)'!FQ53,1) -> 0 | X9: =ROUND('５．算定報告様式(工場現場)'!FR53,1) -> 0 | Y9: =ROUND('５．算定報告様式(工場現場)'!FS53,1) -> 0 | Z9: =ROUND('５．算定報告様式(工場現場)'!FT53,1) -> 0 | AA9: =ROUND('５．算定報告様式(工場現場)'!FU53,1) -> 0 | AB9: =ROUND('５．算定報告様式(工場現場)'!FV53,1) -> 0
C10: ｳ ) 自動車燃料系ＣＯ₂ | K10: ='３．自動車燃料チェック'!AF56 -> 0 | L10: =ROUND('３．自動車燃料チェック'!AF56,1) -> 0 | M10: =ROUND('３．自動車燃料チェック'!AG56,1) -> 0 | N10: =ROUND('３．自動車燃料チェック'!AH56,1) -> 0 | O10: =ROUND('３．自動車燃料チェック'!AI56,1) -> 0 | P10: =ROUND('３．自動車燃料チェック'!AJ56,1) -> 0 | Q10: =ROUND('３．自動車燃料チェック'!AK56,1) -> 0 | R10: =ROUND('３．自動車燃料チェック'!AL56,1) -> 0 | S10: =ROUND('３．自動車燃料チェック'!AM56,1) -> 0 | T10: =ROUND('３．自動車燃料チェック'!AN56,1) -> 0 | U10: =ROUND('３．自動車燃料チェック'!AO56,1) -> 0 | V10: =ROUND('３．自動車燃料チェック'!AP56,1) -> 0 | W10: =ROUND('３．自動車燃料チェック'!AQ56,1) -> 0 | X10: =ROUND('３．自動車燃料チェック'!AR56,1) -> 0 | Y10: =ROUND('３．自動車燃料チェック'!AS56,1) -> 0 | Z10: =ROUND('３．自動車燃料チェック'!AT56,1) -> 0 | AA10: =ROUND('３．自動車燃料チェック'!AU56,1) -> 0 | AB10: =ROUND('３．自動車燃料チェック'!AV56,1) -> 0
C11: ＣＯ₂排出量合計(ｱ+ｲ+ｳ) | K11: =K8+K9+K10 ->  | L11: =L8+L9+L10 -> 0 | M11: 0 | N11: 0 | O11: 0 | P11: 0 | Q11: 0 | R11: 0 | S11: =S8+S9+S10 -> 0 | T11: =T8+T9+T10 -> 0 | U11: =U8+U9+U10 -> 0 | V11: =V8+V9+V10 -> 0 | W11: =W8+W9+W10 -> 0 | X11: =X8+X9+X10 -> 0 | Y11: 0 | Z11: 0 | AA11: 0 | AB11: 0
C12: a.エコアップ認証ＣＯ₂基準排出量 | O12: =J53 ->  | Q12: t-CO₂ | R12: =IF(J53="","",IF(J54=3,"OK","")) -> 
C13: ｂ．（旧来の）エコアップ認証ＣＯ₂基準排出量 | N13: t-CO₂
C14: 基準排出量補正率（ａ÷ｂ） | L14: =IFERROR(O12/+L13,"") -> 
C17: （２）ＣＯ₂排出量原単位
AB18: CO2換算（ｔ-CO2／指標）
L19: 20年度 (2008) | M19: 21年度 (2009) | N19: 22年度 (2010) | O19: 23年度 (2011) | P19: 24年度 (2012) | Q19: 25年度 (2013) | R19: 26年度 (2014) | S19: 27年度 (2015) | T19: 28年度 (2016) | U19: 29年度 (2017) | V19: 30年度 (2018) | W19: 31/1年度 (2019) | X19: 2年度 (2020) | Y19: 3年度 (2021) | Z19: 4年度 (2022) | AA19: 5年度 (2023) | AB19: 6年度 (2024)
C20: エコアップ基準年度 | J20: =IF(J7="","",J7) ->  | X20: =IF(X7="","",X7) -> 
C21: （選択した）CO2排出量原単位 | J21: =Q29 -> t-CO₂/台 | K21: =IF(ISERROR(K11/INDEX(K22:K28,$F$22)),"",K11/INDEX(K22:K28,$F$22)) ->  | L21: =IF(ISERROR(ROUND(L11/INDEX(L22:L28,$F$22),4)),"",ROUND(L11/INDEX(L22:L28,$F$22),4)) ->  | M21: =IF(ISERROR(ROUND(M11/INDEX(M22:M28,$F$22),4)),"",ROUND(M11/INDEX(M22:M28,$F$22),4)) ->  | X21: =IF(ISERROR(ROUND(X11/INDEX(X22:X28,$F$22),4)),"",ROUND(X11/INDEX(X22:X28,$F$22),4)) -> 
C22: 活動規模の指標 | D22: 1 | F22: 5 | G22: 生産量 （単位） | I22: t
D23: 2 | G23: 売上額 （単位） | I23: 億円
D24: 3 | G24: 従業員数 （単位） | I24: 人
D25: 4 | G25: 床面積 （単位） | I25: ㎡
D26: 5 | G26: 台数 （単位） | I26: 台
D27: 6 | G27: 時間 （単位） | I27: Ｈ
D28: 7
C29: ｃ．ＣＯ₂基準原単位 | O29: =J59 ->  | Q29: ="t-CO₂"&"/"&F53 -> t-CO₂/台 | R29: =IF(J59="","",IF(J60=3,"OK","")) -> 
C30: ｄ．（旧来の）エコアップ認証ＣＯ₂基準原単位 | N30: t-CO₂／
C31: 基準原単位補正率（ｃ÷ｄ） | L31: =IFERROR(O29/+L30,"") -> 
C35: （３）CO₂排出量、原単位目標値の補正
I37: 基準排出量 基準原単位 | M37: 21年度 (2009) | N37: 22年度 (2010) | O37: 23年度 (2011) | P37: 24年度 (2012) | Q37: 25年度 (2013) | R37: 26年度 (2014) | S37: 27年度 (2015) | T37: 28年度 (2016) | U37: 29年度 (2017) | V37: 30年度 (2018) | W37: 31年度 (2019) | X37: 31年度 (2020) | Y37: 31年度 (2021) | Z37: 31年度 (2022) | AA37: 31年度 (2023) | AB37: 31年度 (2024)
C38: e.これまでのＣＯ₂排出量目標値 | I38: =IF(L13="","",L13) -> 
C39: f.補正後のCO₂排出量目標値 | I39: =IF(O12="","",O12) ->  | M39: =IFERROR(M38*$L$14,"") ->  | N39: =IFERROR(N38*$L$14,"") ->  | X39: =IFERROR(X38*$L$14,"") -> 
C40: g.これまでのCO₂原単位目標値 | I40: =IF(L30="","",L30) -> 
C41: h.補正後のCO₂原単位目標値 | I41: =IF(O29="","",O29) ->  | M41: =IFERROR(M40*$L$31,"") ->  | N41: =IFERROR(N40*$L$31,"") ->  | X41: =IFERROR(X40*$L$31,"") -> 
AB45: 日本工業規格Ａ列４番
N51: =IF(N7="○",1,0) -> 0 | O51: =IF(O7="○",1,0) -> 0 | P51: 0 | Q51: 0 | R51: 0 | S51: 0 | T51: 0 | U51: 0 | V51: 0 | W51: 0 | X51: 0 | Y51: 0 | Z51: 0 | AA51: 0 | AB51: 0
J52: =SUM(N52:AA52) -> 0 | N52: =N51*O51 -> 0 | O52: =O51*P51 -> 0 | P52: =P51*Q51 -> 0 | Q52: =Q51*R51 -> 0 | R52: =R51*S51 -> 0 | S52: =S51*T51 -> 0 | T52: =T51*U51 -> 0 | U52: =U51*V51 -> 0 | V52: =V51*W51 -> 0 | W52: =W51*X51 -> 0 | X52: =X51*Y51 -> 0 | Y52: =Y51*Z51 -> 0 | Z52: =Z51*AA51 -> 0 | AA52: =AA51*AB51 -> 0 | AB52: =AB51*AC51 -> 0
F53: =INDEX(I22:I28,$F$22) -> 台 | I53: 基準排出量試算対象 | J53: =IFERROR(ROUND(IF(SUM(N53:AB53)=0,"",AVERAGE(N53:AB53)),1),"") ->  | L53: =IF(H7="○",L11,"") ->  | M53: =IF(I7="○",M11,"") ->  | N53: =IF(N7="○",N11,"") ->  | O53: =IF(O7="○",O11,"") -> 
J54: =COUNTA(L7:AB7) -> 0
J55: =IF(SUM(N53:AB53)=0,"データ無",AVERAGE(N53:AB53)) -> データ無
N57: =IF(N20="○",1,0) -> 0 | O57: =IF(O20="○",1,0) -> 0 | P57: 0 | Q57: 0 | R57: 0 | S57: 0 | T57: 0 | U57: 0 | V57: 0 | W57: 0 | X57: 0 | Y57: 0 | Z57: 0 | AA57: 0 | AB57: 0
J58: =SUM(N58:AA58) -> 0 | N58: =N57*O57 -> 0 | O58: =O57*P57 -> 0 | P58: =P57*Q57 -> 0 | Q58: =Q57*R57 -> 0 | R58: =R57*S57 -> 0 | S58: =S57*T57 -> 0 | T58: =T57*U57 -> 0 | U58: =U57*V57 -> 0 | V58: =V57*W57 -> 0 | W58: =W57*X57 -> 0 | X58: =X57*Y57 -> 0 | Y58: =Y57*Z57 -> 0 | Z58: =Z57*AA57 -> 0 | AA58: =AA57*AB57 -> 0 | AB58: =AB57*AC57 -> 0
I59: 基準原単位試算対象 | J59: =IFERROR(ROUND(IF(SUM(N59:AB59)=0,"",AVERAGE(N59:AB59)),4),"") ->  | L59: =IF(H7="○",L21,"") ->  | N59: =IF(N7="○",N21,"") ->  | O59: =IF(O7="○",O21,"") -> 
J60: =COUNTIF(L20:AB20,"○") -> 0
J61: =IF(SUM(N59:AB59)=0,"データ無",AVERAGE(N59:AB59)) -> データ無

Sheet ７．ＣＯ₂排出量実績表
A1: ７．ＣＯ₂排出量実績表
B2: ★報告値、或いは申請書等作成の際、排出量実績表作成に利用する
A3: （どちらかにチェッ クを入れる）⇒ | P3: 2
R4: ＣＯ₂排出量補正結果
B5: ア）建物系ＣＯ₂排出量実績 | R5: 年度 | S5: 20 | T5: 21 | U5: 22 | V5: 23 | W5: 24 | X5: 25 | Y5: 26 | Z5: 27 | AA5: 28 | AB5: 29 | AC5: 30 | AD5: 31/1 | AE5: 2 | AF5: 3 | AG5: 4 | AH5: 5 | AI5: 6
B6: 項 目 | D6: 単位指標等 | G6: =IF($F6="","",INDEX($S$5:$AI$5,1,$P$6+1)) ->  | H6: =IF(F6="","",INDEX($S$5:$AI$5,1,$P$6+2)) ->  | I6: =IF(F6="","",INDEX($S$5:$AI$5,1,$P$6+3)) ->  | P6: =MATCH(F6,S5:AI5,0) ->  | R6: 建物系 | S6: =IF($P$3=1,S12+S18,S12) -> 0 | T6: =IF($P$3=1,T12+T18,T12) -> 0 | U6: 0 | V6: 0 | W6: 0 | X6: 0 | Y6: 0 | Z6: 0 | AA6: 0 | AB6: 0 | AC6: 0 | AD6: 0 | AE6: =IF($P$3=1,AE12+AE18,AE12) -> 0 | AF6: 0 | AG6: 0 | AH6: 0 | AI6: 0
F7: 年度 | G7: 年度 | H7: 年度 | I7: 年度 | R7: 工場・現場系 | S7: =IF($P$3=1,S13+S19,S13) -> 0 | T7: =IF($P$3=1,T13+T19,T13) -> 0 | U7: 0 | V7: 0 | W7: 0 | X7: 0 | Y7: 0 | Z7: 0 | AA7: 0 | AB7: 0 | AC7: 0 | AD7: 0 | AE7: =IF($P$3=1,AE13+AE19,AE13) -> 0 | AF7: 0 | AG7: 0 | AH7: 0 | AI7: 0
B8: ＣＯ₂排出量 | D8: ｔ-ＣＯ₂／年 | F8: =IFERROR(HLOOKUP(F6,$S$5:$AI$8,2,FALSE),"") ->  | G8: =IFERROR(HLOOKUP(G6,$S$5:$AI$8,2,FALSE),"") ->  | H8: =IFERROR(HLOOKUP(H6,$S$5:$AI$8,2,FALSE),"") ->  | I8: =IFERROR(HLOOKUP(I6,$S$5:$AI$8,2,FALSE),"") ->  | R8: 自動車系 | S8: =IF($P$3=1,S14+S20,S14) -> 0 | T8: =IF($P$3=1,T14+T20,T14) -> 0 | U8: 0 | V8: 0 | W8: 0 | X8: 0 | Y8: 0 | Z8: 0 | AA8: 0 | AB8: 0 | AC8: 0 | AD8: 0 | AE8: =IF($P$3=1,AE14+AE20,AE14) -> 0 | AF8: 0 | AG8: 0 | AH8: 0 | AI8: 0
B9: 原単位当たり | D9: ｔ-ＣＯ₂／ | E9: =IFERROR(E10,"") ->  | F9: =IFERROR(ROUND(F8/F10,4),"") ->  | G9: =IFERROR(ROUND(G8/G10,4),"") ->  | L9: =MATCH(D10,$N$12:$N$21,0) -> 
B10: 原単位の指標 | E10: =IFERROR(INDEX($O$12:$O$21,L9),"") ->  | N10: ●原単位指標表 | R10: ＣＯ₂排出量補正結果
N11: 当たり | R11: 年度 | S11: 20 | T11: 21 | U11: 22 | V11: 23 | W11: 24 | X11: 25 | Y11: 26 | Z11: 27 | AA11: 28 | AB11: 29 | AC11: 30 | AD11: 31/1 | AE11: 2 | AF11: 3 | AG11: 4 | AH11: 5 | AI11: 6
B12: イ）工場・現場系ＣＯ₂排出量実績 | N12: （床面積） | O12: ㎡ | R12: 建物系 | S12: ='６．ＣＯ₂排出量計算結果'!L8 -> 0 | T12: ='６．ＣＯ₂排出量計算結果'!M8 -> 0 | U12: ='６．ＣＯ₂排出量計算結果'!N8 -> 0 | V12: ='６．ＣＯ₂排出量計算結果'!O8 -> 0 | W12: ='６．ＣＯ₂排出量計算結果'!P8 -> 0 | X12: ='６．ＣＯ₂排出量計算結果'!Q8 -> 0 | Y12: ='６．ＣＯ₂排出量計算結果'!R8 -> 0 | Z12: ='６．ＣＯ₂排出量計算結果'!S8 -> 0 | AA12: ='６．ＣＯ₂排出量計算結果'!T8 -> 0 | AB12: ='６．ＣＯ₂排出量計算結果'!U8 -> 0 | AC12: ='６．ＣＯ₂排出量計算結果'!V8 -> 0 | AD12: ='６．ＣＯ₂排出量計算結果'!W8 -> 0 | AE12: ='６．ＣＯ₂排出量計算結果'!X8 -> 0 | AF12: ='６．ＣＯ₂排出量計算結果'!Y8 -> 0 | AG12: ='６．ＣＯ₂排出量計算結果'!Z8 -> 0 | AH12: ='６．ＣＯ₂排出量計算結果'!AA8 -> 0 | AI12: ='６．ＣＯ₂排出量計算結果'!AB8 -> 0
B13: 項 目 | D13: 単位指標等 | F13: =IF(F6="","",F6) ->  | G13: =G6 ->  | N13: （敷地面積） | O13: ㎡ | R13: 工場・現場系 | S13: ='６．ＣＯ₂排出量計算結果'!L9 -> 0 | T13: ='６．ＣＯ₂排出量計算結果'!M9 -> 0 | U13: ='６．ＣＯ₂排出量計算結果'!N9 -> 0 | V13: ='６．ＣＯ₂排出量計算結果'!O9 -> 0 | W13: ='６．ＣＯ₂排出量計算結果'!P9 -> 0 | X13: ='６．ＣＯ₂排出量計算結果'!Q9 -> 0 | Y13: ='６．ＣＯ₂排出量計算結果'!R9 -> 0 | Z13: ='６．ＣＯ₂排出量計算結果'!S9 -> 0 | AA13: ='６．ＣＯ₂排出量計算結果'!T9 -> 0 | AB13: ='６．ＣＯ₂排出量計算結果'!U9 -> 0 | AC13: ='６．ＣＯ₂排出量計算結果'!V9 -> 0 | AD13: ='６．ＣＯ₂排出量計算結果'!W9 -> 0 | AE13: ='６．ＣＯ₂排出量計算結果'!X9 -> 0 | AF13: ='６．ＣＯ₂排出量計算結果'!Y9 -> 0 | AG13: ='６．ＣＯ₂排出量計算結果'!Z9 -> 0 | AH13: ='６．ＣＯ₂排出量計算結果'!AA9 -> 0 | AI13: ='６．ＣＯ₂排出量計算結果'!AB9 -> 0
F14: 年度 | G14: 年度 | H14: 年度 | I14: 年度 | N14: （売上額） | O14: 億円 | R14: 自動車系 | S14: ='６．ＣＯ₂排出量計算結果'!L10 -> 0 | T14: ='６．ＣＯ₂排出量計算結果'!M10 -> 0 | U14: ='６．ＣＯ₂排出量計算結果'!N10 -> 0 | V14: ='６．ＣＯ₂排出量計算結果'!O10 -> 0 | W14: ='６．ＣＯ₂排出量計算結果'!P10 -> 0 | X14: ='６．ＣＯ₂排出量計算結果'!Q10 -> 0 | Y14: ='６．ＣＯ₂排出量計算結果'!R10 -> 0 | Z14: ='６．ＣＯ₂排出量計算結果'!S10 -> 0 | AA14: ='６．ＣＯ₂排出量計算結果'!T10 -> 0 | AB14: ='６．ＣＯ₂排出量計算結果'!U10 -> 0 | AC14: ='６．ＣＯ₂排出量計算結果'!V10 -> 0 | AD14: ='６．ＣＯ₂排出量計算結果'!W10 -> 0 | AE14: ='６．ＣＯ₂排出量計算結果'!X10 -> 0 | AF14: ='６．ＣＯ₂排出量計算結果'!Y10 -> 0 | AG14: ='６．ＣＯ₂排出量計算結果'!Z10 -> 0 | AH14: ='６．ＣＯ₂排出量計算結果'!AA10 -> 0 | AI14: ='６．ＣＯ₂排出量計算結果'!AB10 -> 0
B15: ＣＯ₂排出量 | D15: ｔ-ＣＯ₂／年 | F15: =IFERROR(HLOOKUP(F13,$S$5:$AI$8,3,FALSE),"") ->  | G15: =IFERROR(HLOOKUP(G13,$S$5:$AI$8,3,FALSE),"") ->  | H15: =IFERROR(HLOOKUP(H13,$S$5:$AI$8,3,FALSE),"") ->  | I15: =IFERROR(HLOOKUP(I13,$S$5:$AI$8,3,FALSE),"") ->  | N15: （受注額） | O15: 億円
B16: 原単位当たり | D16: ｔ-ＣＯ₂／ | E16: =IFERROR(E17,"") ->  | F16: =IFERROR(ROUND(F15/F17,4),"") ->  | G16: =IFERROR(ROUND(G15/G17,4),"") ->  | H16: =IFERROR(ROUND(H15/H17,4),"") ->  | I16: =IFERROR(ROUND(I15/I17,4),"") ->  | L16: =MATCH(D17,$N$12:$N$21,0) ->  | N16: （従業員数） | O16: 人 | R16: その他のＣＯ₂排出量
B17: 原単位の指標 | E17: =IFERROR(INDEX($O$12:$O$21,L16),"") ->  | N17: （台数） | O17: 台 | R17: 年度 | S17: 20 | T17: 21 | U17: 22 | V17: 23 | W17: 24 | X17: 25 | Y17: 26 | Z17: 27 | AA17: 28 | AB17: 29 | AC17: 30 | AD17: 31/1 | AE17: 2 | AF17: 3 | AG17: 4 | AH17: 5 | AI17: 6
N18: （走行距離） | O18: km | R18: 建物系 | S18: ='10．他事業所等のＣＯ₂排出量'!L10 -> 0 | T18: ='10．他事業所等のＣＯ₂排出量'!M10 -> 0 | U18: ='10．他事業所等のＣＯ₂排出量'!N10 -> 0 | V18: ='10．他事業所等のＣＯ₂排出量'!O10 -> 0 | W18: ='10．他事業所等のＣＯ₂排出量'!P10 -> 0 | X18: ='10．他事業所等のＣＯ₂排出量'!Q10 -> 0 | Y18: ='10．他事業所等のＣＯ₂排出量'!R10 -> 0 | Z18: ='10．他事業所等のＣＯ₂排出量'!S10 -> 0 | AA18: ='10．他事業所等のＣＯ₂排出量'!T10 -> 0 | AB18: ='10．他事業所等のＣＯ₂排出量'!U10 -> 0 | AC18: ='10．他事業所等のＣＯ₂排出量'!V10 -> 0 | AD18: ='10．他事業所等のＣＯ₂排出量'!W10 -> 0 | AE18: ='10．他事業所等のＣＯ₂排出量'!X10 -> 0 | AF18: ='10．他事業所等のＣＯ₂排出量'!Y10 -> 0 | AG18: ='10．他事業所等のＣＯ₂排出量'!Z10 -> 0 | AH18: ='10．他事業所等のＣＯ₂排出量'!AA10 -> 0 | AI18: ='10．他事業所等のＣＯ₂排出量'!AB10 -> 0
B19: ウ）自動車系ＣＯ₂排出量実績 | N19: （生産量） | O19: ﾄﾝ | R19: 工場・現場系 | S19: ='10．他事業所等のＣＯ₂排出量'!L11 -> 0 | T19: ='10．他事業所等のＣＯ₂排出量'!M11 -> 0 | U19: ='10．他事業所等のＣＯ₂排出量'!N11 -> 0 | V19: ='10．他事業所等のＣＯ₂排出量'!O11 -> 0 | W19: ='10．他事業所等のＣＯ₂排出量'!P11 -> 0 | X19: ='10．他事業所等のＣＯ₂排出量'!Q11 -> 0 | Y19: ='10．他事業所等のＣＯ₂排出量'!R11 -> 0 | Z19: ='10．他事業所等のＣＯ₂排出量'!S11 -> 0 | AA19: ='10．他事業所等のＣＯ₂排出量'!T11 -> 0 | AB19: ='10．他事業所等のＣＯ₂排出量'!U11 -> 0 | AC19: ='10．他事業所等のＣＯ₂排出量'!V11 -> 0 | AD19: ='10．他事業所等のＣＯ₂排出量'!W11 -> 0 | AE19: ='10．他事業所等のＣＯ₂排出量'!X11 -> 0 | AF19: ='10．他事業所等のＣＯ₂排出量'!Y11 -> 0 | AG19: ='10．他事業所等のＣＯ₂排出量'!Z11 -> 0 | AH19: ='10．他事業所等のＣＯ₂排出量'!AA11 -> 0 | AI19: ='10．他事業所等のＣＯ₂排出量'!AB11 -> 0
B20: 項 目 | D20: 単位指標等 | F20: =IF(F13="","",F13) ->  | G20: =G13 ->  | R20: 自動車系 | S20: ='10．他事業所等のＣＯ₂排出量'!L12 -> 0 | T20: ='10．他事業所等のＣＯ₂排出量'!M12 -> 0 | U20: ='10．他事業所等のＣＯ₂排出量'!N12 -> 0 | V20: ='10．他事業所等のＣＯ₂排出量'!O12 -> 0 | W20: ='10．他事業所等のＣＯ₂排出量'!P12 -> 0 | X20: ='10．他事業所等のＣＯ₂排出量'!Q12 -> 0 | Y20: ='10．他事業所等のＣＯ₂排出量'!R12 -> 0 | Z20: ='10．他事業所等のＣＯ₂排出量'!S12 -> 0 | AA20: ='10．他事業所等のＣＯ₂排出量'!T12 -> 0 | AB20: ='10．他事業所等のＣＯ₂排出量'!U12 -> 0 | AC20: ='10．他事業所等のＣＯ₂排出量'!V12 -> 0 | AD20: ='10．他事業所等のＣＯ₂排出量'!W12 -> 0 | AE20: ='10．他事業所等のＣＯ₂排出量'!X12 -> 0 | AF20: ='10．他事業所等のＣＯ₂排出量'!Y12 -> 0 | AG20: ='10．他事業所等のＣＯ₂排出量'!Z12 -> 0 | AH20: ='10．他事業所等のＣＯ₂排出量'!AA12 -> 0 | AI20: ='10．他事業所等のＣＯ₂排出量'!AB12 -> 0
F21: 年度 | G21: 年度 | H21: 年度 | I21: 年度
B22: ＣＯ₂排出量 | D22: ｔ-ＣＯ₂／年 | F22: =IFERROR(HLOOKUP(F20,$S$5:$AI$8,4,FALSE),"") ->  | G22: =IFERROR(HLOOKUP(G20,$S$5:$AI$8,4,FALSE),"") ->  | H22: =IFERROR(HLOOKUP(H20,$S$5:$AI$8,4,FALSE),"") ->  | I22: =IFERROR(HLOOKUP(I20,$S$5:$AI$8,4,FALSE),"") -> 
B23: 原単位当たり | D23: ｔ-ＣＯ₂／ | E23: =IFERROR(E24,"") ->  | F23: =IFERROR(ROUND(F22/F24,4),"") ->  | G23: =IFERROR(ROUND(G22/G24,4),"") ->  | H23: =IFERROR(ROUND(H22/H24,4),"") ->  | I23: =IFERROR(ROUND(I22/I24,4),"") ->  | L23: =MATCH(D24,$N$12:$N$21,0) -> 
B24: 原単位の指標 | E24: =IFERROR(INDEX($O$12:$O$21,L23),"") -> 
B26: エ）（ア＋イ＋ウ）合計
B27: 項 目 | D27: 単位指標等 | F27: =IF(F20="","",F20) ->  | G27: =G20 ->  | P27: （ | Q27: ）
F28: 年度 | G28: 年度 | H28: 年度 | I28: 年度
B29: ＣＯ₂排出量 | D29: ｔ-ＣＯ₂／年 | F29: =IFERROR(F8+F15+F22,"") ->  | G29: =IFERROR(G8+G15+G22,"") -> 
B30: 原単位当たり | D30: ｔ-ＣＯ₂／ | E30: =IFERROR(E31,"") ->  | F30: =IFERROR(ROUND(F29/F31,4),"") ->  | G30: =IFERROR(ROUND(G29/G31,4),"") ->  | H30: =IFERROR(ROUND(H29/H31,4),"") ->  | I30: =IFERROR(ROUND(I29/I31,4),"") ->  | L30: =MATCH(D31,$N$12:$N$21,0) -> 
B31: 原単位の指標 | E31: =IFERROR(INDEX($O$12:$O$21,L30),"") -> 
B33: A.ＣＯ₂削減実績表 | Q33: 基準値
B34: 年 度 | D34: ＣＯ₂排出量 | F34: 削減量 | G34: 削減率 | H34: ＣＯ₂原単位 | I34: 削減量 | J34: 削減率 | Q34: ２１年度
D35: （ｔ-ＣＯ₂） | F35: （ｔ-ＣＯ₂） | G35: （％） | H35: =D31&N11 -> 当たり | I35: =D31&N11 -> 当たり | J35: （％） | Q35: ２２年度
H36: =P27&D30&E30&Q27 -> （ｔ-ＣＯ₂／） | I36: =P27&D30&E30&Q27 -> （ｔ-ＣＯ₂／） | Q36: ２３年度
B37: 基準値 | Q37: ２４年度
C38: 年度 | D38: =IFERROR((HLOOKUP(B38,F$27:I$31,3,FALSE)),"") ->  | F38: =IF(D38="","",D38-D$37) ->  | G38: =IF(F38="","",F38/D$37*100) ->  | H38: =IFERROR((HLOOKUP(B38,F$27:K$31,4,FALSE)),"") ->  | I38: =IF(H38="","",H38-H$37) ->  | J38: =IF(I38="","",I38/H$37*100) ->  | P38: =MATCH(B38,S5:AI5,0) ->  | Q38: ２５年度
B39: =IF(B38="","",INDEX($S$5:$AI$5,1,$P$38+1)) ->  | C39: 年度 | D39: =IFERROR((HLOOKUP(B39,F$27:I$31,3,FALSE)),"") ->  | F39: =IF(D39="","",D39-D$37) ->  | G39: =IF(F39="","",F39/D$37*100) ->  | H39: =IFERROR((HLOOKUP(B39,F$27:K$31,4,FALSE)),"") ->  | I39: =IF(H39="","",H39-H$37) ->  | J39: =IF(I39="","",I39/H$37*100) ->  | Q39: ２６年度
B40: =IF(B38="","",INDEX($S$5:$AI$5,1,$P$38+2)) ->  | C40: 年度 | F40: =IF(D40="","",D40-D$37) ->  | G40: =IF(F40="","",F40/D$37*100) ->  | H40: =IFERROR((HLOOKUP(B40,F$27:K$31,4,FALSE)),"") ->  | I40: =IF(H40="","",H40-H$37) ->  | J40: =IF(I40="","",I40/H$37*100) ->  | Q40: ２７年度
B41: 平均削減率 | G41: =IF(G38="","",AVERAGE(G38:G40)) ->  | J41: =IF(J38="","",AVERAGE(J38:J40)) ->  | Q41: ２８年度
B43: ★新規希望申出、新規認証申請の場合はこちらを利用
B44: B.ＣＯ₂削減実績表
B45: 年 度 | D45: ＣＯ₂排出量 | F45: 削減量 | G45: 削減率 | H45: ＣＯ₂原単位 | I45: 削減量 | J45: 削減率
D46: （ｔ-ＣＯ₂） | F46: （ｔ-ＣＯ₂） | G46: （％） | H46: =D31&N11 -> 当たり | I46: =D31&N11 -> 当たり | J46: （％） | R46: ★６．ＣＯ₂補正計算結果シートより | U46: 20 | V46: 21 | W46: 22 | X46: 23 | Y46: 24 | Z46: 25 | AA46: 26 | AB46: 27 | AC46: 28 | AD46: 29 | AE46: 30 | AF46: 31
H47: =P27&D30&E30&Q27 -> （ｔ-ＣＯ₂／） | I47: =P27&D30&E30&Q27 -> （ｔ-ＣＯ₂／） | T47: f.補正後のCO₂排出量 | U47: ='６．ＣＯ₂排出量計算結果'!L11 -> 0 | V47: ='６．ＣＯ₂排出量計算結果'!M11 -> 0 | W47: ='６．ＣＯ₂排出量計算結果'!N11 -> 0 | X47: ='６．ＣＯ₂排出量計算結果'!O11 -> 0 | Y47: ='６．ＣＯ₂排出量計算結果'!P11 -> 0 | Z47: ='６．ＣＯ₂排出量計算結果'!Q11 -> 0 | AA47: ='６．ＣＯ₂排出量計算結果'!R11 -> 0 | AB47: ='６．ＣＯ₂排出量計算結果'!S11 -> 0 | AC47: ='６．ＣＯ₂排出量計算結果'!T11 -> 0 | AD47: ='６．ＣＯ₂排出量計算結果'!U11 -> 0 | AE47: ='６．ＣＯ₂排出量計算結果'!V11 -> 0 | AF47: ='６．ＣＯ₂排出量計算結果'!W11 -> 0
B48: =F27 ->  | C48: 年度 | D48: =IFERROR(F29,"") ->  | H48: =IFERROR(F30,"") ->  | T48: h.補正後のCO₂原単位 | U48: ='６．ＣＯ₂排出量計算結果'!L21 ->  | V48: ='６．ＣＯ₂排出量計算結果'!M21 ->  | W48: ='６．ＣＯ₂排出量計算結果'!N21 ->  | X48: ='６．ＣＯ₂排出量計算結果'!O21 ->  | Y48: ='６．ＣＯ₂排出量計算結果'!P21 ->  | Z48: ='６．ＣＯ₂排出量計算結果'!Q21 ->  | AA48: ='６．ＣＯ₂排出量計算結果'!R21 ->  | AB48: ='６．ＣＯ₂排出量計算結果'!S21 ->  | AC48: ='６．ＣＯ₂排出量計算結果'!T21 ->  | AD48: ='６．ＣＯ₂排出量計算結果'!U21 ->  | AE48: ='６．ＣＯ₂排出量計算結果'!V21 ->  | AF48: ='６．ＣＯ₂排出量計算結果'!W21 -> 
B49: =G27 ->  | C49: 年度 | D49: =IFERROR(G29,"") ->  | F49: =IF(D49="","",D49-D48) ->  | G49: =IF(F49="","",F49/D48*100) ->  | H49: =IFERROR(G30,"") ->  | I49: =IF(H49="","",H49-H48) ->  | J49: =IF(I49="","",I49/H48*100) -> 
B50: =H27 ->  | C50: 年度 | D50: =IFERROR(H29,"") ->  | F50: =IF(D50="","",D50-D49) ->  | G50: =IF(F50="","",F50/D49*100) ->  | H50: =IFERROR(H30,"") ->  | I50: =IF(H50="","",H50-H49) ->  | J50: =IF(I50="","",I50/H49*100) -> 
B51: =I27 ->  | C51: 年度 | D51: =IFERROR(I29,"") ->  | H51: =IFERROR(I30,"") -> 
B52: 平均削減率 | G52: =IF(G49="","",AVERAGE(G49:G51)) ->  | J52: =IF(J49="","",AVERAGE(J49:J51)) -> 

Sheet ８．ＣＯ₂排出量目標表
A1: ８．ＣＯ₂排出量目標表 （新規・更新）
B4: ★認証時での目標表を補正する際に利用する。
B5: Ｃ.ＣＯ₂削減目標計画表
B6: 年 度 | D6: 目標排出量 | F6: 削減量 | G6: 削減率 | H6: 目標原単位 | I6: 削減量 | J6: 削減率
D7: （ｔ-ＣＯ₂） | F7: （ｔ-ＣＯ₂） | G7: （％） | J7: （％） | S7: 30 | T7: 31
S8: ='６．ＣＯ₂排出量計算結果'!V39 ->  | T8: ='６．ＣＯ₂排出量計算結果'!W39 -> 
B9: 基準値 | S9: ='６．ＣＯ₂排出量計算結果'!V41 ->  | T9: ='６．ＣＯ₂排出量計算結果'!W41 -> 
C10: 年度 | D10: =IF(B10="","",HLOOKUP(B10,$S$7:$T$9,2,FALSE)) ->  | F10: =IF(D10="","",D10-D$9) ->  | G10: =IF(F10="","",F10/D$9*100) ->  | H10: =IF(B10="","",HLOOKUP(B10,$S$7:$T$9,3,FALSE)) ->  | I10: =IF(H10="","",H10-H$9) ->  | J10: =IF(I10="","",I10/H$9*100) -> 
B11: =IF(B10="","",B10+1) ->  | C11: 年度 | D11: =IF(B11="","",HLOOKUP(B11,$S$7:$T$9,2,FALSE)) ->  | F11: =IF(D11="","",D11-D$9) ->  | G11: =IF(F11="","",F11/D$9*100) ->  | H11: =IF(B11="","",HLOOKUP(B11,$S$7:$T$9,3,FALSE)) ->  | I11: =IF(H11="","",H11-H$9) ->  | J11: =IF(I11="","",I11/H$9*100) -> 
B12: =IF(B11="","",B11+1) ->  | C12: 年度 | D12: =IF(B12="","",HLOOKUP(B12,$S$7:$T$9,2,FALSE)) ->  | G12: =IF(F12="","",F12/D$9*100) ->  | H12: =IF(B12="","",HLOOKUP(B12,$S$7:$T$9,3,FALSE)) ->  | J12: =IF(I12="","",I12/H$9*100) -> 
B13: 平均削減率 | G13: =IF(G10="","",AVERAGE(G10:G12)) ->  | J13: =IF(J10="","",AVERAGE(J10:J12)) -> 
B17: ★新規の目標表を作成、あるいはこれまでの目標値を変更する場合に利用する。
B18: Ｄ.新たなＣＯ₂削減目標計画表
B19: 年 度 | D19: 目標排出量 | F19: 削減量 | G19: 削減率 | H19: 目標原単位 | I19: 削減量 | J19: 削減率
D20: （ｔ-ＣＯ₂） | F20: （ｔ-ＣＯ₂） | G20: （％） | J20: （％）
B22: 基準値
B23: 2 | C23: 年度 | F23: =IF(D23="","",D23-D$22) ->  | G23: =IF(F23="","",F23/D$22*100) ->  | I23: =IF(H23="","",H23-H$22) ->  | J23: =IF(I23="","",I23/H$22*100) ->  | R23: =MATCH(B23,S23:AL23,0) -> 2 | S23: 31/1 | T23: 2 | U23: 3 | V23: 4 | W23: 5 | X23: 6 | Y23: 7 | Z23: 8 | AA23: 9 | AB23: 10 | AC23: 11 | AD23: 12 | AE23: 13 | AF23: 14 | AG23: 15 | AH23: 16 | AI23: 17 | AJ23: 18 | AK23: 19 | AL23: 20
B24: =INDEX(S23:AL23,1,R23+1) -> 3 | C24: 年度 | F24: =IF(D24="","",D24-D$22) ->  | G24: =IF(F24="","",F24/D$22*100) ->  | I24: =IF(H24="","",H24-H$22) ->  | J24: =IF(I24="","",I24/H$22*100) -> 
B25: =INDEX(S23:AL23,1,R23+2) -> 4 | C25: 年度
B26: 平均削減率 | G26: =IF(G23="","",AVERAGE(G23:G25)) ->  | J26: =IF(J23="","",AVERAGE(J23:J25)) -> 

Sheet ９．ＣＯ₂排出量換算 (単独)《参考》
A1: ９．ＣＯ₂排出量換算結果表（単独） 《参考》
B2: ★独自に事業所別実績や原単位、目標値を検討する場合などに利用する。
B5: ア）建物系ＣＯ₂排出量実績
B6: 項 目 | D6: 単位指標等 | P6: =MATCH(F6,S6:AI6,0) ->  | R6: 年度 | S6: 20 | T6: 21 | U6: 22 | V6: 23 | W6: 24 | X6: 25 | Y6: 26 | Z6: 27 | AA6: 28 | AB6: 29 | AC6: 30 | AD6: 31/1 | AE6: 2 | AF6: 3 | AG6: 4 | AH6: 5 | AI6: 6
F7: 年度 | G7: 年度 | H7: 年度 | I7: 年度 | R7: 建物系 | S7: ='６．ＣＯ₂排出量計算結果'!L8 -> 0 | T7: ='６．ＣＯ₂排出量計算結果'!M8 -> 0 | U7: ='６．ＣＯ₂排出量計算結果'!N8 -> 0 | V7: ='６．ＣＯ₂排出量計算結果'!O8 -> 0 | W7: ='６．ＣＯ₂排出量計算結果'!P8 -> 0 | X7: ='６．ＣＯ₂排出量計算結果'!Q8 -> 0 | Y7: ='６．ＣＯ₂排出量計算結果'!R8 -> 0 | Z7: ='６．ＣＯ₂排出量計算結果'!S8 -> 0 | AA7: ='６．ＣＯ₂排出量計算結果'!T8 -> 0 | AB7: ='６．ＣＯ₂排出量計算結果'!U8 -> 0 | AC7: ='６．ＣＯ₂排出量計算結果'!V8 -> 0 | AD7: ='６．ＣＯ₂排出量計算結果'!W8 -> 0 | AE7: ='６．ＣＯ₂排出量計算結果'!X8 -> 0 | AF7: ='６．ＣＯ₂排出量計算結果'!Y8 -> 0 | AG7: ='６．ＣＯ₂排出量計算結果'!Z8 -> 0 | AH7: ='６．ＣＯ₂排出量計算結果'!AA8 -> 0 | AI7: ='６．ＣＯ₂排出量計算結果'!AB8 -> 0
B8: ＣＯ₂排出量 | D8: ｔ-ＣＯ₂／年 | R8: 工場・現場系 | S8: ='６．ＣＯ₂排出量計算結果'!L9 -> 0 | T8: ='６．ＣＯ₂排出量計算結果'!M9 -> 0 | U8: ='６．ＣＯ₂排出量計算結果'!N9 -> 0 | V8: ='６．ＣＯ₂排出量計算結果'!O9 -> 0 | W8: ='６．ＣＯ₂排出量計算結果'!P9 -> 0 | X8: ='６．ＣＯ₂排出量計算結果'!Q9 -> 0 | Y8: ='６．ＣＯ₂排出量計算結果'!R9 -> 0 | Z8: ='６．ＣＯ₂排出量計算結果'!S9 -> 0 | AA8: ='６．ＣＯ₂排出量計算結果'!T9 -> 0 | AB8: ='６．ＣＯ₂排出量計算結果'!U9 -> 0 | AC8: ='６．ＣＯ₂排出量計算結果'!V9 -> 0 | AD8: ='６．ＣＯ₂排出量計算結果'!W9 -> 0 | AE8: ='６．ＣＯ₂排出量計算結果'!X9 -> 0 | AF8: ='６．ＣＯ₂排出量計算結果'!Y9 -> 0 | AG8: ='６．ＣＯ₂排出量計算結果'!Z9 -> 0 | AH8: ='６．ＣＯ₂排出量計算結果'!AA9 -> 0 | AI8: ='６．ＣＯ₂排出量計算結果'!AB9 -> 0
B9: 原単位当たり | D9: ｔ-ＣＯ₂／ | E9: =IFERROR(E10,"") ->  | F9: =IFERROR(ROUND(F8/F10,4),"") ->  | G9: =IFERROR(ROUND(G8/G10,4),"") ->  | R9: 自動車系 | S9: ='６．ＣＯ₂排出量計算結果'!L10 -> 0 | T9: ='６．ＣＯ₂排出量計算結果'!M10 -> 0 | U9: ='６．ＣＯ₂排出量計算結果'!N10 -> 0 | V9: ='６．ＣＯ₂排出量計算結果'!O10 -> 0 | W9: ='６．ＣＯ₂排出量計算結果'!P10 -> 0 | X9: ='６．ＣＯ₂排出量計算結果'!Q10 -> 0 | Y9: ='６．ＣＯ₂排出量計算結果'!R10 -> 0 | Z9: ='６．ＣＯ₂排出量計算結果'!S10 -> 0 | AA9: ='６．ＣＯ₂排出量計算結果'!T10 -> 0 | AB9: ='６．ＣＯ₂排出量計算結果'!U10 -> 0 | AC9: ='６．ＣＯ₂排出量計算結果'!V10 -> 0 | AD9: ='６．ＣＯ₂排出量計算結果'!W10 -> 0 | AE9: ='６．ＣＯ₂排出量計算結果'!X10 -> 0 | AF9: ='６．ＣＯ₂排出量計算結果'!Y10 -> 0 | AG9: ='６．ＣＯ₂排出量計算結果'!Z10 -> 0 | AH9: ='６．ＣＯ₂排出量計算結果'!AA10 -> 0 | AI9: ='６．ＣＯ₂排出量計算結果'!AB10 -> 0
B10: 原単位の指標 | E10: =IFERROR(INDEX($O$13:$O$22,L10),"") ->  | L10: =MATCH(D10,$N$13:$N$22,0) -> 
N11: ●原単位指標表
B12: イ）工場・現場系ＣＯ₂排出量実績 | N12: 当たり
B13: 項 目 | D13: 単位指標等 | F13: =IF(F6="","",F6) ->  | G13: =G6 -> 0 | H13: 0 | I13: 0 | N13: （床面積） | O13: ㎡
F14: 年度 | G14: 年度 | H14: 年度 | I14: 年度 | N14: （敷地面積） | O14: ㎡
B15: ＣＯ₂排出量 | D15: ｔ-ＣＯ₂／年 | N15: （売上額） | O15: 億円
B16: 原単位当たり | D16: ｔ-ＣＯ₂／ | E16: =IFERROR(E17,"") ->  | F16: =IFERROR(ROUND(F15/F17,4),"") ->  | G16: =IFERROR(ROUND(G15/G17,4),"") ->  | H16: =IFERROR(ROUND(H15/H17,4),"") ->  | I16: =IFERROR(ROUND(I15/I17,4),"") ->  | N16: （受注額） | O16: 億円
B17: 原単位の指標 | E17: =IFERROR(INDEX($O$13:$O$22,L17),"") ->  | L17: =MATCH(D17,$N$13:$N$22,0) ->  | N17: （従業員数） | O17: 人
N18: （台数） | O18: 台
B19: ウ）自動車系ＣＯ₂排出量実績 | N19: （走行距離） | O19: km
B20: 項 目 | D20: 単位指標等 | F20: =F13 ->  | G20: =G13 -> 0 | H20: 0 | I20: 0 | N20: （生産量） | O20: ﾄﾝ
F21: 年度 | G21: 年度 | H21: 年度 | I21: 年度
B22: ＣＯ₂排出量 | D22: ｔ-ＣＯ₂／年
B23: 原単位当たり | D23: ｔ-ＣＯ₂／ | E23: =IFERROR(E24,"") ->  | F23: =IFERROR(ROUND(F22/F24,4),"") ->  | G23: =IFERROR(ROUND(G22/G24,4),"") ->  | H23: =IFERROR(ROUND(H22/H24,4),"") ->  | I23: =IFERROR(ROUND(I22/I24,4),"") -> 
B24: 原単位の指標 | E24: =IFERROR(INDEX($O$13:$O$22,L24),"") ->  | L24: =MATCH(D24,$N$13:$N$22,0) -> 
B26: エ）（ア＋イ＋ウ）合計
B27: 項 目 | D27: 単位指標等 | F27: =F20 ->  | G27: =G20 -> 0 | H27: 0 | I27: 0
F28: 年度 | G28: 年度 | H28: 年度 | I28: 年度 | P28: （ | Q28: ）
B29: ＣＯ₂排出量 | D29: ｔ-ＣＯ₂／年 | F29: =IF(F8+F15+F22=0,"",F8+F15+F22) ->  | G29: =IF(G8+G15+G22=0,"",G8+G15+G22) -> 
B30: 原単位当たり | D30: ｔ-ＣＯ₂／ | E30: =IFERROR(E31,"") ->  | F30: =IFERROR(ROUND(F29/F31,4),"") ->  | G30: =IFERROR(ROUND(G29/G31,4),"") ->  | H30: =IFERROR(ROUND(H29/H31,4),"") ->  | I30: =IFERROR(ROUND(I29/I31,4),"") -> 
B31: 原単位の指標 | E31: =IFERROR(INDEX($O$13:$O$22,L31),"") ->  | L31: =MATCH(D31,$N$13:$N$22,0) -> 
B33: A.ＣＯ₂削減実績表 | Q33: 基準値
B34: 年 度 | D34: ＣＯ₂排出量 | F34: 削減量 | G34: 削減率 | H34: 目標原単位 | I34: 削減量 | J34: 削減率 | Q34: ２１年度
D35: （ｔ-ＣＯ₂） | F35: （ｔ-ＣＯ₂） | G35: （％） | H35: =D31&N12 -> 当たり | I35: =D31&N12 -> 当たり | J35: （％） | Q35: ２２年度
H36: =P28&D30&E30&Q28 -> （ｔ-ＣＯ₂／） | I36: =P28&D30&E30&Q28 -> （ｔ-ＣＯ₂／） | Q36: ２３年度
B37: 基準値 | Q37: ２４年度
C38: 年度 | D38: =IF(G29="","",G29) ->  | F38: =IF(D38="","",D38-D$37) ->  | G38: =IF(F38="","",F38/D$37*100) ->  | H38: =IF(G30="","",G30) ->  | I38: =IF(H38="","",H38-H$37) ->  | J38: =IF(I38="","",I38/H$37*100) ->  | P38: =MATCH(B38,S6:AI6,0) ->  | Q38: ２５年度
B39: =IF(B38="","",INDEX($S$5:$AI$5,1,$P$38+1)) ->  | C39: 年度 | D39: =IF(H29="","",H29) ->  | F39: =IF(D39="","",D39-D$37) ->  | G39: =IF(F39="","",F39/D$37*100) ->  | H39: =IF(H30="","",H30) ->  | I39: =IF(H39="","",H39-H$37) ->  | J39: =IF(I39="","",I39/H$37*100) ->  | Q39: ２６年度
B40: =IF(B38="","",INDEX($S$5:$AI$5,1,$P$38+2)) ->  | C40: 年度 | D40: =IF(I29="","",I29) ->  | F40: =IF(D40="","",D40-D$37) ->  | G40: =IF(F40="","",F40/D$37*100) ->  | H40: =IF(I30="","",I30) ->  | I40: =IF(H40="","",H40-H$37) ->  | J40: =IF(I40="","",I40/H$37*100) ->  | Q40: ２７年度
B41: 平均削減率 | G41: =IF(G38="","",AVERAGE(G38:G40)) ->  | J41: =IF(J38="","",AVERAGE(J38:J40)) ->  | Q41: ２８年度
B43: ★新規希望申出、新規認証申請の場合はこちらを利用
B44: B.ＣＯ₂削減実績表 | D44: 目標排出量 | F44: 削減量 | G44: 削減率 | H44: 目標原単位 | I44: 削減量 | J44: 削減率
B45: 年 度 | D45: （ｔ-ＣＯ₂） | F45: （ｔ-ＣＯ₂） | G45: （％） | J45: （％）
U46: 21 | V46: 22 | W46: 23 | X46: 24 | Y46: 25 | Z46: 26 | AA46: 27 | AB46: 28 | AC46: 29 | AD46: 30 | AE46: 31
T47: f.補正後のCO₂排出量目標値 | U47: ='６．ＣＯ₂排出量計算結果'!M39 ->  | V47: ='６．ＣＯ₂排出量計算結果'!N39 ->  | W47: ='６．ＣＯ₂排出量計算結果'!O39 ->  | X47: ='６．ＣＯ₂排出量計算結果'!P39 ->  | Y47: ='６．ＣＯ₂排出量計算結果'!Q39 ->  | Z47: ='６．ＣＯ₂排出量計算結果'!R39 ->  | AA47: ='６．ＣＯ₂排出量計算結果'!S39 ->  | AB47: ='６．ＣＯ₂排出量計算結果'!T39 ->  | AC47: ='６．ＣＯ₂排出量計算結果'!U39 ->  | AD47: ='６．ＣＯ₂排出量計算結果'!V39 ->  | AE47: ='６．ＣＯ₂排出量計算結果'!W39 -> 
B48: =F27 ->  | C48: 年度 | F48: =IF(D48="","",D48-D$47) ->  | G48: =IF(F48="","",F48/D$47*100) ->  | I48: =IF(H48="","",H48-H$47) ->  | J48: =IF(I48="","",I48/H$47*100) ->  | T48: h.補正後のCO₂原単位目標値 | U48: ='６．ＣＯ₂排出量計算結果'!M41 ->  | V48: ='６．ＣＯ₂排出量計算結果'!N41 ->  | W48: ='６．ＣＯ₂排出量計算結果'!O41 ->  | X48: ='６．ＣＯ₂排出量計算結果'!P41 ->  | Y48: ='６．ＣＯ₂排出量計算結果'!Q41 ->  | Z48: ='６．ＣＯ₂排出量計算結果'!R41 ->  | AA48: ='６．ＣＯ₂排出量計算結果'!S41 ->  | AB48: ='６．ＣＯ₂排出量計算結果'!T41 ->  | AC48: ='６．ＣＯ₂排出量計算結果'!U41 ->  | AD48: ='６．ＣＯ₂排出量計算結果'!V41 ->  | AE48: ='６．ＣＯ₂排出量計算結果'!W41 -> 
B49: =G27 -> 0 | C49: 年度 | F49: =IF(D49="","",D49-D$47) ->  | G49: =IF(F49="","",F49/D$47*100) ->  | I49: =IF(H49="","",H49-H$47) ->  | J49: =IF(I49="","",I49/H$47*100) -> 
B50: =H27 -> 0 | C50: 年度 | J50: =IF(I50="","",I50/H$47*100) -> 
B51: =I27 -> 0 | C51: 年度 | G51: =IF(G48="","",AVERAGE(G48:G50)) ->  | J51: =IF(J48="","",AVERAGE(J48:J50)) -> 

Sheet 10．他事業所等のＣＯ₂排出量
C2: １０．他事業所等のCO₂排出量計算
D3: ★建物系や、工場・現場、自動車など、シート計算したものとは別な対象がある場合に利用します。
D4: 入力した数値は自動的に《７．ＣＯ₂排出量換算結果》シートのＣＯ₂実績に加算されます。
C6: （１）ＣＯ₂排出量
AB7: CO2換算（ｔ-CO7）
L8: 20年度 (2008) | M8: 21年度 (2009) | N8: 22年度 (2010) | O8: 23年度 (2011) | P8: 24年度 (2012) | Q8: 25年度 (2013) | R8: 26年度 (2014) | S8: 27年度 (2015) | T8: 28年度 (2016) | U8: 29年度 (2017) | V8: 30年度 (2018) | W8: 31/1年度 (2019) | X8: 2年度(2020) | Y8: 3年度(2021) | Z8: 4年度(2022) | AA8: 5年度(2023) | AB8: 6年度(2024)
C9: エコアップ基準年度
C10: ｱ)建物系エネルギーCO2 | K10: =#REF! -> 
C11: ｲ)工場・現場系エネルギーCO2 | K11: =#REF! -> 
C12: ｳ ) 自動車燃料系ＣＯ₂ | K12: ='３．自動車燃料チェック'!AF56 -> 0
C13: ＣＯ₂排出量合計(ｱ+ｲ+ｳ) | K13: =K10+K11+K12 ->  | L13: =L10+L11+L12 -> 0 | M13: =M10+M11+M12 -> 0 | N13: 0 | O13: 0 | P13: 0 | Q13: 0 | R13: 0 | S13: 0 | T13: 0 | U13: 0 | V13: 0 | W13: 0 | X13: =X10+X11+X12 -> 0 | Y13: 0 | Z13: 0 | AA13: 0 | AB13: 0
C14: a.エコアップ認証ＣＯ₂基準排出量 | N14: =M56 ->  | P14: t-CO₂ | Q14: =IF(M59=12,"",IF(M55=2,"ＯＫ","")) -> 
C15: ｂ．（旧来の）エコアップ認証ＣＯ₂基準排出量 | N15: t-CO₂
C16: 基準排出量補正率（ａ÷ｂ） | L16: =IFERROR(N14/+L15,"") -> 
C19: （２）ＣＯ₂排出量原単位
AB20: CO2換算（ｔ-CO7／指標）
L21: 20年度 (2008) | M21: 21年度 (2009) | N21: 22年度 (2010) | O21: 23年度 (2011) | P21: 24年度 (2012) | Q21: 25年度 (2013) | R21: 26年度 (2014) | S21: 27年度 (2015) | T21: 28年度 (2016) | U21: 29年度 (2017) | V21: 30年度 (2018) | W21: 31/1年度 (2019) | X21: 2年度(2020) | Y21: 3年度(2021) | Z21: 4年度(2022) | AA21: 5年度(2023) | AB21: 6年度(2024)
C22: エコアップ基準年度 | J22: =IF(J9="","",J9) ->  | M22: =IF(M9="","",M9) ->  | X22: =IF(X9="","",X9) -> 
C23: 建物系エネルギー原単位 | L23: =IF(ISERROR(ROUND(L10/INDEX(L27:L33,$J23),4)),"",ROUND(L10/INDEX(L27:L33,$J23),4)) ->  | M23: =IF(ISERROR(ROUND(M10/INDEX(M27:M33,$J23),4)),"",ROUND(M10/INDEX(M27:M33,$J23),4)) ->  | X23: =IF(ISERROR(ROUND(X10/INDEX(X27:X33,$J23),4)),"",ROUND(X10/INDEX(X27:X33,$J23),4)) -> 
C24: 工場・現場系エネルギー原単位 | L24: =IF(ISERROR(ROUND(L11/INDEX(L27:L33,$J24),4)),"",ROUND(L11/INDEX(L27:L33,$J24),4)) ->  | M24: =IF(ISERROR(ROUND(M11/INDEX(M27:M33,$J24),4)),"",ROUND(M11/INDEX(M27:M33,$J24),4)) ->  | X24: =IF(ISERROR(ROUND(X11/INDEX(X27:X33,$J24),4)),"",ROUND(X11/INDEX(X27:X33,$J24),4)) -> 
C25: 自動車燃料系原単位 | L25: =IF(ISERROR(ROUND(L12/INDEX(L27:L33,$J25),4)),"",ROUND(L12/INDEX(L27:L33,J25),4)) ->  | M25: =IF(ISERROR(ROUND(M12/INDEX(M27:M33,$J25),4)),"",ROUND(M12/INDEX(M27:M33,K25),4)) ->  | X25: =IF(ISERROR(ROUND(X12/INDEX(X27:X33,$J25),4)),"",ROUND(X12/INDEX(X27:X33,V25),4)) ->  | Y25: =IF(ISERROR(ROUND(Y12/INDEX(Y27:Y33,$J25),4)),"",ROUND(Y12/INDEX(Y27:Y33,W25),4)) ->  | Z25: =IF(ISERROR(ROUND(Z12/INDEX(Z27:Z33,$J25),4)),"",ROUND(Z12/INDEX(Z27:Z33,X25),4)) ->  | AA25: =IF(ISERROR(ROUND(AA12/INDEX(AA27:AA33,$J25),4)),"",ROUND(AA12/INDEX(AA27:AA33,Y25),4)) ->  | AB25: =IF(ISERROR(ROUND(AB12/INDEX(AB27:AB33,$J25),4)),"",ROUND(AB12/INDEX(AB27:AB33,Z25),4)) -> 
C26: ＣＯ₂排出量合計原単位 | J26: =P34&Q34 -> t-CO₂／人 | K26: =IF(ISERROR(K13/INDEX(K27:K33,$F$27)),"",K13/INDEX(K27:K33,$F$27)) ->  | L26: =IF(ISERROR(ROUND(L13/INDEX(L27:L33,$F$27),4)),"",ROUND(L13/INDEX(L27:L33,$F$27),4)) ->  | M26: =IF(ISERROR(ROUND(M13/INDEX(M27:M33,$F$27),4)),"",ROUND(M13/INDEX(M27:M33,$F$27),4)) ->  | X26: =IF(ISERROR(ROUND(X13/INDEX(X27:X33,$F$27),4)),"",ROUND(X13/INDEX(X27:X33,$F$27),4)) -> 
C27: 活動規模の指標 | D27: 1 | F27: 3 | G27: 生産量 （単位） | I27: t
D28: 2 | G28: 売上額 （単位） | I28: 億円
D29: 3 | G29: 従業員数 （単位） | I29: 人
D30: 4 | G30: 床面積 （単位） | I30: ㎡
D31: 5 | G31: 台数 （単位） | I31: 台
D32: 6 | G32: 時間 （単位） | I32: Ｈ
D33: 7
C34: ｃ．ＣＯ₂基準原単位 | N34: =M62 ->  | P34: t-CO₂／ | Q34: =IF(I56=0,"",I56) -> 人 | R34: =IF(M59=12,"",IF(M61=2,"ＯＫ","")) -> 
C35: ｄ．（旧来の）エコアップ認証ＣＯ₂基準原単位 | N35: t-CO₂／
C36: 基準原単位補正率（ｃ÷ｄ） | L36: =IFERROR(N34/+L35,"") -> 
C40: （３）CO₂排出量、原単位目標値の補正
I42: 基準排出量 基準原単位 | M42: 21年度 (2009) | N42: 22年度 (2010) | O42: 23年度 (2011) | P42: 24年度 (2012) | Q42: 25年度 (2013) | R42: 26年度 (2014) | S42: 27年度 (2015) | T42: 28年度 (2016) | U42: 29年度 (2017) | V42: 30年度 (2018) | W42: 31年度 (2019) | X42: 31年度 (2020) | Y42: 31年度 (2021) | Z42: 31年度 (2022) | AA42: 31年度 (2023) | AB42: 31年度 (2024)
C43: e.これまでのＣＯ₂排出量目標値 | I43: =IF(L15="","",L15) -> 
C44: f.補正後のCO₂排出量目標値 | I44: =IF(N14="","",N14) ->  | M44: =IFERROR(M43*$L$16,"") ->  | N44: =IFERROR(N43*$L$16,"") ->  | X44: =IFERROR(X43*$L$16,"") -> 
C45: g.これまでのCO₂原単位目標値 | I45: =IF(L35="","",L35) -> 
C46: h.補正後のCO₂原単位目標値 | I46: =IF(N34="","",N34) ->  | M46: =IFERROR(M45*$L$36,"") ->  | N46: =IFERROR(N45*$L$36,"") ->  | X46: =IFERROR(X45*$L$36,"") -> 
V48: 日本工業規格Ａ列４番
N54: =IF(J9="○",1,0) -> 0 | O54: 0 | P54: 0 | Q54: 0 | R54: 0 | S54: 0 | T54: 0 | U54: 0 | V54: 0 | W54: 0 | X54: =IF(T9="○",1,0) -> 0 | Y54: =IF(U9="○",1,0) -> 0 | Z54: =IF(V9="○",1,0) -> 0 | AA54: =IF(W9="○",1,0) -> 0 | AB54: 0
M55: =SUM(N55:AA55) -> 0 | N55: =N54*O54 -> 0 | O55: 0 | P55: 0 | Q55: 0 | R55: 0 | S55: 0 | T55: 0 | U55: =U54*V54 -> 0 | V55: =V54*W54 -> 0 | W55: =W54*X54 -> 0 | X55: =X54*Y54 -> 0 | Y55: =Y54*Z54 -> 0 | Z55: =Z54*AA54 -> 0 | AA55: =AA54*AB54 -> 0 | AB55: =AB54*AC54 -> 0
I56: =INDEX(I27:I33,$F$27) -> 人 | L56: 基準排出量試算対象 | M56: =IF(M59=12,"",ROUND(SUM(N56:AA56)/M57,1)) ->  | N56: =IF(J9="○",J13,"") ->  | X56: =IF(T9="○",T13,"") ->  | Y56: =IF(U9="○",U13,"") ->  | Z56: =IF(V9="○",V13,"") ->  | AA56: =IF(W9="○",W13,"") -> 
M57: =COUNTA(L9:W9) -> 0
M58: =IF(SUM(N56:AA56)=0,"データ無",AVERAGE(N56:AA56)) -> データ無
M59: =COUNTBLANK(L9:W9) -> 12
N60: =IF(J22="○",1,0) -> 0 | O60: 0 | P60: 0 | Q60: 0 | R60: 0 | S60: 0 | T60: 0 | U60: 0 | V60: 0 | W60: 0 | X60: =IF(T22="○",1,0) -> 0 | Y60: =IF(U22="○",1,0) -> 0 | Z60: =IF(V22="○",1,0) -> 0 | AA60: =IF(W22="○",1,0) -> 0
M61: =SUM(N61:AA61) -> 0 | N61: =N60*O60 -> 0 | O61: 0 | P61: 0 | Q61: 0 | R61: 0 | S61: 0 | T61: 0 | U61: 0
L62: 基準原単位試算対象 | M62: =IF(M65=12,"",ROUND(SUM(N62:AA62)/M63,4)) ->  | N62: =IF(J9="○",J26,"") ->  | X62: =IF(T9="○",T26,"") ->  | Y62: =IF(U9="○",U26,"") ->  | Z62: =IF(V9="○",V26,"") ->  | AA62: =IF(W9="○",W26,"") -> 
M63: =COUNTIF(L22:W22,"○") -> 0
M64: =IF(SUM(N62:V62)=0,"データ無",AVERAGE(N62:V62)) -> データ無
M65: =COUNTBLANK(L22:W22) -> 12

Sheet 11．低炭素電力算定
B1: 低炭素電力受入量計算資料 | F1: 令和 | H1: 年度受入分 | P1: Rev.2021.3.21
M3: 作成日
B8: =IF($D$9="",$T$10,"") -> ※低炭素電力事業者をプルダウンから選択又は直接入力してください。 | J8: =IF($L$9="",$T$11,"") -> ※調整後排出係数を直接入力して下さい。0.370以下です。
B9: 低炭素電力事業者 | J9: 調整後排出係数 | N9: t-CO2/千kWh | T9: 未入力の場合のコメントリスト
B10: 登録番号 | D10: =IFERROR(INDEX(S54:S662,MATCH(D9,$T$54:$T$662,0),1),"") ->  | Q10: 月別 | T10: ※低炭素電力事業者をプルダウンから選択又は直接入力してください。
Q11: 年間 | T11: ※調整後排出係数を直接入力して下さい。0.370以下です。
B12: ※（電力メニューでない場合は不要）電力事業者から供給された料金メニューの名称等を入力してください。 | J12: ※（電力メニューでない場合は不要）国が告示したメニューのうち左記に記載した電力メニューに対応するものを入力してください。 | T12: ※購買伝票等から、低炭素電力の受入量を転記してください。
B13: 供給された電力 メニューの名称等 | J13: 国が告示した メニューの名称 | T13: ※購買伝票等から、算定対象より除く又は除くことができる電力の使用量を転記してください。
B15: 電力受入量
B16: 記入方法 | D16: 受入量 | E16: =IF(R25=0,$T$12,"") -> ※購買伝票等から、低炭素電力の受入量を転記してください。 | N16: =IF(C16="月別","単位: kWh","") ->  | O16: =IF(C16="年間","kWh","") -> 
B17: Ｎｏ． | C17: ４月 | D17: ５月 | E17: ６月 | F17: ７月 | G17: ８月 | H17: ９月 | I17: １０月 | J17: １１月 | K17: １２月 | L17: １月 | M17: ２月 | N17: ３月 | O17: 年間合計 | Q17: (月別入力計)
Q18: =IF(SUM(C18:N18)=0,"",SUM(C18:N18)) -> 
Q19: =IF(SUM(C19:N19)=0,"",SUM(C19:N19)) -> 
R24: 合計
R25: =IF($C$16="月別",SUM($Q$18:$Q$25),IF($C$16="年間",SUM($O$18:$O$25),0)) -> 0 | S25: kWh
B28: 算定から除外する電力受入量、他事業所等への電力の直接供給量
B29: 記入方法 | D29: 除外量 | E29: =IF(R34=0,$T$13,"") -> ※購買伝票等から、算定対象より除く又は除くことができる電力の使用量を転記してください。 | N29: =IF(C29="月別","kWh","") ->  | O29: =IF(C29="年間","単位: kWh","") -> 
B30: Ｎｏ． | C30: ４月 | D30: ５月 | E30: ６月 | F30: ７月 | G30: ８月 | H30: ９月 | I30: １０月 | J30: １１月 | K30: １２月 | L30: １月 | M30: ２月 | N30: ３月 | O30: 年間合計 | Q30: (月別入力計)
P31: 100000 | Q31: =IF(SUM(C31:N31)=0,"",SUM(C31:N31)) -> 
Q32: =IF(SUM(C32:N32)=0,"",SUM(C32:N32)) -> 
Q33: =IF(SUM(C33:N33)=0,"",SUM(C33:N33)) ->  | R33: 合計
Q34: =IF(SUM(C34:N34)=0,"",SUM(C34:N34)) ->  | R34: =IF($C$29="月別",SUM($Q$31:$Q$34),IF($C$29="年間",SUM($O$31:$O$34),0)) -> 0 | S34: kWh
O36: （小数点以下を四捨五入して整数にしています）
H38: 低炭素電力受入量 | L38: =IF($R$25-$R$34=0,0,IF($R$25>$R$34,($R$25-$R$34),"")) -> 0 | O38: kWh
K39: 低炭素電力によるＣＯ₂削減量⇒ | L39: =IF(L9="","",ROUND(L38*(0.495-L9)/1000,1)) ->  | O39: t-CO₂
L40: =IFERROR(IF($R$25-$R$34<0,"↑ 使用量より直接供給量が大きくなっています。見直してください。",""),"") -> 
O41: =INDIRECT("11．低炭素電力算定!$B$5３") -> Rev.3.0
S50: https://www.enecho.meti.go.jp/category/electricity_and_gas/electric/summary/retailers_list
S51: 更新日 | T51: 2021-03-27
B52: 改版履歴 | C52: 最新Rvision番号はB53セルに記入し、古い記述は下にシフトして記録を残していくこと。B53セルはO41セルにINDIRECTで表示している。 | S52: 登録番号 | T52: 氏名又は名称
B53: Rev.3.0 | D53: R3.4.1 | E53: 第３計画期間用First Revision | S53: A0001 | T53: 株式会社F-Power
S54: A0002 | T54: イーレックス株式会社
S55: A0003 | T55: リエスパワー株式会社
S56: A0004 | T56: イーレックス・スパーク・マーケティング株式会社
S57: A0006 | T57: イーレックス販売3号株式会社
S58: A0007 | T58: 株式会社SEウイングズ
S59: A0008 | T59: 株式会社イーセル
S60: A0009 | T60: 株式会社エネット
S61: A0011 | T61: 須賀川瓦斯株式会社
S62: A0012 | T62: (株)横須賀アーバンウッドパワー
S63: A0013 | T63: 株式会社ケイ・オプティコム
S64: A0014 | T64: エネサーブ株式会社
S65: A0015 | T65: 株式会社サイサン
S66: A0016 | T66: ミツウロコグリーンエネルギー株式会社
S67: A0017 | T67: 株式会社Shared Energy
S68: A0018 | T68: ネクストパワーやまと株式会社
S69: A0019 | T69: 日本テクノ株式会社
S70: A0020 | T70: 中央電力エナジー株式会社
S71: A0021 | T71: 株式会社Looop
S72: A0023 | T72: 株式会社ナンワエナジー
S73: A0024 | T73: 静岡ガス＆パワー株式会社
S74: A0025 | T74: 荏原環境プラント株式会社
S75: A0026 | T75: 東京エコサービス株式会社
S76: A0027 | T76: ダイヤモンドパワー株式会社
S77: A0028 | T77: 出光グリーンパワー株式会社
S78: A0029 | T78: プレミアムグリーンパワー株式会社
S79: A0031 | T79: 株式会社新出光
S80: A0032 | T80: 中央セントラルガス株式会社
S81: A0033 | T81: にちほクラウド電力株式会社
S82: A0034 | T82: 一般財団法人泉佐野電力
S83: A0035 | T83: 総合エネルギー株式会社
S84: A0036 | T84: 株式会社グリーンサークル
S85: A0037 | T85: 株式会社ウエスト電力
S86: A0039 | T86: 北海道瓦斯株式会社
S87: A0040 | T87: 一般財団法人神奈川県太陽光発電協会
S88: A0041 | T88: 株式会社日本エナジーバンク
S89: A0042 | T89: 新エネルギー開発株式会社
S90: A0043 | T90: 伊藤忠エネクス株式会社
S91: A0045 | T91: 株式会社V-Power
S92: A0046 | T92: 大和エネルギー株式会社
S93: A0048 | T93: 大阪瓦斯株式会社
S94: A0049 | T94: エフビットコミュニケーションズ株式会社
S95: A0050 | T95: ＪＸＴＧエネルギー株式会社
S96: A0051 | T96: 真庭バイオエネルギー株式会社
S97: A0052 | T97: 三井物産株式会社
S98: A0053 | T98: オリックス株式会社
S99: A0054 | T99: 株式会社エネサンス関東
S100: A0055 | T100: みんな電力株式会社
S101: A0056 | T101: シン・エナジー株式会社
S102: A0057 | T102: 株式会社サニックス
S103: A0058 | T103: 株式会社コンシェルジュ
S104: A0060 | T104: 株式会社アイ・グリッド・ソリューションズ
S105: A0061 | T105: サミットエナジー株式会社
S106: A0062 | T106: リコージャパン株式会社
S107: A0063 | T107: 株式会社エネルギア・ソリューション・アンド・サービス
S108: A0064 | T108: 東京ガス株式会社
S109: A0065 | T109: テス・エンジニアリング株式会社
S110: A0066 | T110: 青梅ガス株式会社
S111: A0067 | T111: 株式会社イーネットワークシステムズ
S112: A0068 | T112: 株式会社エネアーク関東
S113: A0069 | T113: 株式会社東急パワーサプライ
S114: A0070 | T114: 王子・伊藤忠エネクス電力販売株式会社
S115: A0071 | T115: 伊藤忠商事株式会社
S116: A0072 | T116: 株式会社エコスタイル
S117: A0073 | T117: 入間ガス株式会社
S118: A0074 | T118: テプコカスタマーサービス株式会社
S119: A0075 | T119: 株式会社とんでんホールディングス
S120: A0076 | T120: 新日鉄住金エンジニアリング株式会社
S121: A0077 | T121: KDDI株式会社
S122: A0079 | T122: イワタニ関東株式会社
S123: A0080 | T123: イワタニ首都圏株式会社
S124: A0081 | T124: サーラeエナジー株式会社
S125: A0082 | T125: 株式会社地球クラブ
S126: A0083 | T126: 株式会社エコア
S127: A0084 | T127: 西部瓦斯株式会社
S128: A0085 | T128: 東邦ガス株式会社
S129: A0086 | T129: シナネン株式会社
S130: A0087 | T130: 株式会社シナジアパワー
S131: A0088 | T131: 川重商事株式会社
S132: A0089 | T132: 大一ガス株式会社
S133: A0090 | T133: 株式会社リミックスポイント
S134: A0091 | T134: 大阪いずみ市民生活協同組合
S135: A0092 | T135: 株式会社中海テレビ放送
S136: A0093 | T136: パシフィックパワー株式会社
S137: A0094 | T137: 株式会社いちたかガスワン
S138: A0095 | T138: 株式会社ジェイコム足立
S139: A0096 | T139: 株式会社ジェイコムイースト
S140: A0097 | T140: 株式会社ジェイコム市川
S141: A0098 | T141: 株式会社ジェイコムウエスト
S142: A0099 | T142: 株式会社ジェイコム大田
S143: A0101 | T143: 株式会社ジェイコム川口戸田
S144: A0102 | T144: 株式会社ジェイコム北関東
S145: A0103 | T145: 株式会社ジェイコムさいたま
S146: A0104 | T146: 株式会社ジェイコム札幌
S147: A0105 | T147: 株式会社ジェイコム湘南
S148: A0106 | T148: 株式会社ジェイコム多摩
S149: A0107 | T149: 株式会社ジェイコム千葉
S150: A0108 | T150: 株式会社ジェイコム千葉セントラル
S151: A0109 | T151: 株式会社ジェイコム東葛葛飾
S152: A0110 | T152: 株式会社ジェイコム東京
S153: A0112 | T153: 株式会社ジェイコム中野
S154: A0113 | T154: 株式会社ジェイコム八王子
S155: A0114 | T155: 株式会社ジェイコム日野
S156: A0117 | T156: 株式会社ジェイコム南横浜
S157: A0118 | T157: 株式会社ジェイコム武蔵野三鷹
S158: A0119 | T158: 土浦ケーブルテレビ株式会社
S159: A0120 | T159: 鹿児島電力株式会社
S160: A0121 | T160: 太陽ガス株式会社
S161: A0122 | T161: アーバンエナジー株式会社
S162: A0123 | T162: パワーシェアリング株式会社
S163: A0124 | T163: 合同会社北上新電力
S164: A0125 | T164: パーパススマートパワー株式会社
S165: A0126 | T165: 株式会社タクマエナジー
S166: A0127 | T166: 株式会社スマートテック
S167: A0128 | T167: 水戸電力株式会社
S168: A0130 | T168: 丸紅新電力株式会社
S169: A0131 | T169: 株式会社エックスパワー
S170: A0132 | T170: ダイネン株式会社
S171: A0133 | T171: 奈良電力株式会社
S172: A0134 | T172: 日立造船株式会社
S173: A0135 | T173: 大東ガス株式会社
S174: A0136 | T174: パナソニック株式会社
S175: A0137 | T175: アストモスエネルギー株式会社
S176: A0138 | T176: 株式会社関電エネルギーソリューション
S177: A0139 | T177: 株式会社エプコ
S178: A0140 | T178: ＭＣリテールエナジー株式会社
S179: A0141 | T179: 株式会社北九州パワー
S180: A0142 | T180: 武州瓦斯株式会社
S181: A0143 | T181: 株式会社みらい電力
S182: A0144 | T182: 大垣ガス株式会社
S183: A0145 | T183: 株式会社藤田商店
S184: A0146 | T184: 株式会社ケーブルネット下関
S185: A0147 | T185: 株式会社ジェイコム九州
S186: A0149 | T186: 株式会社グローバルエンジニアリング
S187: A0150 | T187: 九州エナジー株式会社
S188: A0151 | T188: 株式会社トヨタエナジーソリューションズ
S189: A0153 | T189: 株式会社エナリス・パワー・マーケティング
S190: A0154 | T190: 株式会社エヌパワー南九州
S191: A0155 | T191: みやまスマートエネルギー株式会社
S192: A0156 | T192: エフィシエント株式会社
S193: A0157 | T193: 株式会社生活クラブエナジー
S194: A0158 | T194: 生活協同組合コープこうべ
S195: A0159 | T195: 株式会社シーエナジー
S196: A0160 | T196: 角栄ガス株式会社
S197: A0161 | T197: 京葉瓦斯株式会社
S198: A0162 | T198: 凸版印刷株式会社
S199: A0163 | T199: 伊勢崎ガス株式会社
S200: A0164 | T200: キヤノンマーケティングジャパン株式会社
S201: A0165 | T201: 株式会社とっとり市民電力
S202: A0166 | T202: 株式会社イーエムアイ
S203: A0167 | T203: 佐野瓦斯株式会社
S204: A0168 | T204: 桐生瓦斯株式会社
S205: A0169 | T205: 森の電力株式会社
S206: A0170 | T206: 大和ハウス工業株式会社
S207: A0171 | T207: 株式会社早稲田環境研究所
S208: A0172 | T208: ＨＴＢエナジー株式会社
S209: A0173 | T209: 株式会社アシストワンエナジー
S210: A0174 | T210: 株式会社サン・ビーム
S211: A0175 | T211: 株式会社フソウ・エナジー
S212: A0176 | T212: 株式会社日本エコシステム
S213: A0177 | T213: 湘南電力株式会社
S214: A0178 | T214: 大東エナジー株式会社
S215: A0179 | T215: アンフィニ株式会社
S216: A0180 | T216: 株式会社J-POWERサプライアンドトレーディング
S217: A0181 | T217: 鈴与商事株式会社
S218: A0183 | T218: 株式会社バランスハーツ
S219: A0184 | T219: ワタミファーム＆エナジー株式会社
S220: A0185 | T220: 株式会社パルシステム電力
S221: A0186 | T221: SBパワー株式会社
S222: A0187 | T222: NFパワーサービス株式会社
... 440 more rows

Sheet ２’．ｋＬ・ＣＯ₂量(建物系）《参考》 (hidden)
C1: ２’．ｋＬ・ＣＯ₂量（建物系）《参考》
FW2: 原油換算： | FX2: 0.0258 | FY2: ｋL/GJ
C3: 排出活動 | D3: 区分 | G3: 単位 | H3: 使 用 量 | FW3: 単位当たり発熱量 | FY3: 排出係数
H4: 事業所内使用量 | AI4: 算定対象外使用量 | BJ4: 控除後使用量 | CG4: 単位補正 | CH4: 控除後使用量 単位補正後 | DF4: エネルギー発熱量（GJ) | EC4: 原油換算使用量（ｋL) | EZ4: CO₂換算使用量 （t-CO₂）
H5: 燃料等 監視点 | I5: 計量器の種類 | J5: 検定等の有無 | K5: 入力方法 | L5: 14年度(2002) | M5: 15年度(2003) | N5: 16年度(2004) | O5: 17年度(2005) | P5: 18年度(2006) | Q5: 19年度(2007) | R5: 20年度(2008) | S5: 21年度(2009) | T5: 22年度(2010) | U5: 23年度(2011) | V5: 24年度(2012) | W5: 25年度(2013) | X5: 26年度(2014) | Y5: 27年度(2015) | Z5: 28年度(2016) | AA5: 29年度(2017) | AB5: 30年度(2018) | AC5: 31/1年度 (2019) | AD5: 2年度 (2020) | AE5: 3年度 (2021) | AF5: 4年度 (2022) | AG5: 5年度 (2023) | AH5: 6年度 (2024) | AI5: 燃料等 監視点 | AJ5: 計量器の種類 | AK5: 検定等の有無 | AL5: 入力方法 | AM5: 14年度(2002) | AN5: 15年度(2003) | AO5: 16年度(2004) | AP5: 17年度(2005) | AQ5: 18年度(2006) | AR5: 19年度(2007) | AS5: 20年度(2008) | AT5: 21年度(2009) | AU5: 22年度(2010) | AV5: 23年度(2011) | AW5: 24年度(2012) | AX5: 25年度(2013) | AY5: 26年度(2014) | AZ5: 27年度(2015) | BA5: 28年度(2016) | BB5: 29年度(2017) | BC5: 30年度(2018) | BD5: 31/1年度 (2019) | BE5: 2年度 (2020) | BF5: 3年度 (2021) | BG5: 4年度 (2022) | BH5: 5年度 (2023) | BI5: 6年度 (2024) | BJ5: 14年度(2002) | BK5: 15年度(2003) | BL5: 16年度(2004) | BM5: 17年度(2005) | BN5: 18年度(2006) | BO5: 19年度(2007) | BP5: 20年度(2008) | BQ5: 21年度(2009) | BR5: 22年度(2010) | BS5: 23年度(2011) | BT5: 24年度(2012) | BU5: 25年度(2013) | BV5: 26年度(2014) | BW5: 27年度(2015) | BX5: 28年度(2016) | BY5: 29年度(2017) | BZ5: 30年度(2018) | CA5: 31/1年度 (2019) | CB5: 2年度 (2020) | CC5: 3年度 (2021) | CD5: 4年度 (2022) | CE5: 5年度 (2023) | CF5: 6年度 (2024) | CH5: 単位 | CI5: 14年度(2002) | CJ5: 15年度(2003) | CK5: 16年度(2004) | CL5: 17年度(2005) | CM5: 18年度(2006) | CN5: 19年度(2007) | CO5: 20年度(2008) | CP5: 21年度(2009) | CQ5: 22年度(2010) | CR5: 23年度(2011) | CS5: 24年度(2012) | CT5: 25年度(2013) | CU5: 26年度(2014) | CV5: 27年度(2015) | CW5: 28年度(2016) | CX5: 29年度(2017) | CY5: 30年度(2018) | CZ5: 31/1年度 (2019) | DA5: 2年度 (2020) | DB5: 3年度 (2021) | DC5: 4年度 (2022) | DD5: 5年度 (2023) | DE5: 6年度 (2024) | DF5: 14年度(2002) | DG5: 15年度(2003) | DH5: 16年度(2004) | DI5: 17年度(2005) | DJ5: 18年度(2006) | DK5: 19年度(2007) | DL5: 20年度(2008) | DM5: 21年度(2009) | DN5: 22年度(2010) | DO5: 23年度(2011) | DP5: 24年度(2012) | DQ5: 25年度(2013) | DR5: 26年度(2014) | DS5: 27年度(2015) | DT5: 28年度(2016) | DU5: 29年度(2017) | DV5: 30年度(2018) | DW5: 31/1年度 (2019) | DX5: 2年度 (2020) | DY5: 3年度 (2021) | DZ5: 4年度 (2022) | EA5: 5年度 (2023) | EB5: 6年度 (2024) | EC5: 14年度(2002) | ED5: 15年度(2003) | EE5: 16年度(2004) | EF5: 17年度(2005) | EG5: 18年度(2006) | EH5: 19年度(2007) | EI5: 20年度(2008) | EJ5: 21年度(2009) | EK5: 22年度(2010) | EL5: 23年度(2011) | EM5: 24年度(2012) | EN5: 25年度(2013) | EO5: 26年度(2014) | EP5: 27年度(2015) | EQ5: 28年度(2016) | ER5: 29年度(2017) | ES5: 30年度(2018) | ET5: 31/1年度 (2019) | EU5: 2年度 (2020) | EV5: 3年度 (2021) | EW5: 4年度 (2022) | EX5: 5年度 (2023) | EY5: 6年度 (2024) | EZ5: 14年度(2002) | FA5: 15年度(2003) | FB5: 16年度(2004) | FC5: 17年度(2005) | FD5: 18年度(2006) | FE5: 19年度(2007) | FF5: 20年度(2008) | FG5: 21年度(2009) | FH5: 22年度(2010) | FI5: 23年度(2011) | FJ5: 24年度(2012) | FK5: 25年度(2013) | FL5: 26年度(2014) | FM5: 27年度(2015) | FN5: 28年度(2016) | FO5: 29年度(2017) | FP5: 30年度(2018) | FQ5: 31/1年度 (2019) | FR5: 2年度 (2020) | FS5: 3年度 (2021) | FT5: 4年度 (2022) | FU5: 5年度 (2023) | FV5: 6年度 (2024)
C6: 燃料 | D6: 原油（コンデンセートを除く） | G6: ='２．算定報告様式(建物系)'!G6 -> L | H6: ='２．算定報告様式(建物系)'!H6 -> 0 | I6: ='２．算定報告様式(建物系)'!I6 -> 0 | J6: ='２．算定報告様式(建物系)'!J6 -> 0 | K6: ='２．算定報告様式(建物系)'!K6 -> 0 | L6: ='２．算定報告様式(建物系)'!L6 -> 0 | M6: ='２．算定報告様式(建物系)'!M6 -> 0 | N6: ='２．算定報告様式(建物系)'!N6 -> 0 | O6: ='２．算定報告様式(建物系)'!O6 -> 0 | P6: ='２．算定報告様式(建物系)'!P6 -> 0 | Q6: ='２．算定報告様式(建物系)'!Q6 -> 0 | R6: ='２．算定報告様式(建物系)'!R6 -> 0 | S6: ='２．算定報告様式(建物系)'!S6 -> 0 | T6: ='２．算定報告様式(建物系)'!T6 -> 0 | U6: ='２．算定報告様式(建物系)'!U6 -> 0 | V6: ='２．算定報告様式(建物系)'!V6 -> 0 | W6: ='２．算定報告様式(建物系)'!W6 -> 0 | X6: ='２．算定報告様式(建物系)'!X6 -> 0 | Y6: ='２．算定報告様式(建物系)'!Y6 -> 0 | Z6: ='２．算定報告様式(建物系)'!Z6 -> 0 | AA6: ='２．算定報告様式(建物系)'!AA6 -> 0 | AB6: ='２．算定報告様式(建物系)'!AB6 -> 0 | AC6: ='２．算定報告様式(建物系)'!AC6 -> 0 | AD6: ='２．算定報告様式(建物系)'!AD6 -> 0 | AE6: ='２．算定報告様式(建物系)'!AE6 -> 0 | AF6: ='２．算定報告様式(建物系)'!AF6 -> 0 | AG6: ='２．算定報告様式(建物系)'!AG6 -> 0 | AH6: ='２．算定報告様式(建物系)'!AH6 -> 0 | BJ6: =H14_事業所内使用量-H14_算定外使用量 -> 0 | BK6: =H15_事業所内使用量-H15_算定外使用量 -> 0 | BL6: =H16_事業所内使用量-H16_算定外使用量 -> 0 | BM6: =H17_事業所内使用量-H17_算定外使用量 -> 0 | BN6: =H18_事業所内使用量-H18_算定外使用量 -> 0 | BO6: =H19_事業所内使用量-H19_算定外使用量 -> 0 | BP6: =H20_事業所内使用量-H20_算定外使用量 -> 0 | BQ6: =H21_事業所内使用量-H21_算定外使用量 -> 0 | BR6: =H22_事業所内使用量-H22_算定外使用量 -> 0 | BS6: =H23_事業所内使用量-H23_算定外使用量 -> 0 | BT6: =H24_事業所内使用量-H24_算定外使用量 -> 0 | BU6: =H25_事業所内使用量-H25_算定外使用量 -> 0 | BV6: =H26_事業所内使用量-H26_算定外使用量 -> 0 | BW6: =H27_事業所内使用量-H27_算定外使用量 -> 0 | BX6: =H28_事業所内使用量-H28_算定外使用量 -> 0 | BY6: =H29_事業所内使用量-H29_算定外使用量 -> 0 | BZ6: =H30_事業所内使用量-H30_算定外使用量 -> 0 | CA6: =AC6-BD6 -> 0 | CB6: =AD6-BE6 -> 0 | CC6: 0 | CD6: 0 | CE6: 0 | CF6: 0 | CG6: =VLOOKUP($G6,$GB$6:$GC$15,2,FALSE) -> 1000 | CH6: ｋL | CI6: =ROUND(H14_控除後使用量/単位補正,0) -> 0 | CJ6: =ROUND(H15_控除後使用量/単位補正,0) -> 0 | CK6: =ROUND(H16_控除後使用量/単位補正,0) -> 0 | CL6: =ROUND(H17_控除後使用量/単位補正,0) -> 0 | CM6: =ROUND(H18_控除後使用量/単位補正,0) -> 0 | CN6: =ROUND(H19_控除後使用量/単位補正,0) -> 0 | CO6: =ROUND(H20_控除後使用量/単位補正,0) -> 0 | CP6: =ROUND(H21_控除後使用量/単位補正,0) -> 0 | CQ6: =ROUND(H22_控除後使用量/単位補正,0) -> 0 | CR6: =ROUND(H23_控除後使用量/単位補正,0) -> 0 | CS6: =ROUND(H24_控除後使用量/単位補正,0) -> 0 | CT6: =ROUND(H25_控除後使用量/単位補正,0) -> 0 | CU6: =ROUND(H26_控除後使用量/単位補正,0) -> 0 | CV6: =ROUND(H27_控除後使用量/単位補正,0) -> 0 | CW6: =ROUND(H28_控除後使用量/単位補正,0) -> 0 | CX6: =ROUND(H29_控除後使用量/単位補正,0) -> 0 | CY6: =ROUND(H30_控除後使用量/単位補正,0) -> 0 | CZ6: =ROUND(CA6/単位補正,0) -> 0 | DA6: =ROUND(CB6/単位補正,0) -> 0 | DB6: =ROUND(CC6/単位補正,0) -> 0 | DC6: =ROUND(CD6/単位補正,0) -> 0 | DD6: =ROUND(CE6/単位補正,0) -> 0 | DE6: =ROUND(CF6/単位補正,0) -> 0 | DF6: =CI6*$FW6 -> 0 | DG6: 0 | DH6: 0 | DI6: 0 | DJ6: 0 | DK6: 0 | DL6: 0 | DM6: 0 | DN6: 0 | DO6: 0 | DP6: 0 | DQ6: 0 | DR6: 0 | DS6: 0 | DT6: 0 | DU6: 0 | DV6: =CY6*$FW6 -> 0 | DW6: 0 | DX6: 0 | DY6: 0 | DZ6: 0 | EA6: 0 | EB6: 0 | EC6: =DF6*$GC$19 -> 0 | ED6: 0 | EE6: 0 | EF6: 0 | EG6: 0 | EH6: 0 | EI6: 0 | EJ6: 0 | EK6: 0 | EL6: 0 | EM6: 0 | EN6: 0 | EO6: 0 | EP6: 0 | EQ6: 0 | ER6: 0 | ES6: =DV6*$GC$19 -> 0 | ET6: 0 | EU6: 0 | EV6: 0 | EW6: 0 | EX6: 0 | EY6: 0 | EZ6: =DF6*$FY6*44/12 -> 0 | FA6: 0 | FB6: 0 | FC6: 0 | FD6: 0 | FE6: 0 | FF6: 0 | FG6: 0 | FH6: 0 | FI6: 0 | FJ6: 0 | FK6: 0 | FL6: 0 | FM6: 0 | FN6: 0 | FO6: 0 | FP6: =DV6*$FY6*44/12 -> 0 | FQ6: 0 | FR6: 0 | FS6: 0 | FT6: 0 | FU6: 0 | FV6: 0 | FW6: 38.2 | FX6: GJ/kL | FY6: 0.0187 | FZ6: t-C/GJ | GB6: L | GC6: 1000
D7: 原油のうちコンデンセート（ＮＧＬ） | G7: ='２．算定報告様式(建物系)'!G7 -> L | H7: ='２．算定報告様式(建物系)'!H7 -> 0 | I7: ='２．算定報告様式(建物系)'!I7 -> 0 | J7: ='２．算定報告様式(建物系)'!J7 -> 0 | K7: ='２．算定報告様式(建物系)'!K7 -> 0 | L7: ='２．算定報告様式(建物系)'!L7 -> 0 | M7: ='２．算定報告様式(建物系)'!M7 -> 0 | N7: ='２．算定報告様式(建物系)'!N7 -> 0 | O7: ='２．算定報告様式(建物系)'!O7 -> 0 | P7: ='２．算定報告様式(建物系)'!P7 -> 0 | Q7: ='２．算定報告様式(建物系)'!Q7 -> 0 | R7: ='２．算定報告様式(建物系)'!R7 -> 0 | S7: ='２．算定報告様式(建物系)'!S7 -> 0 | T7: ='２．算定報告様式(建物系)'!T7 -> 0 | U7: ='２．算定報告様式(建物系)'!U7 -> 0 | V7: ='２．算定報告様式(建物系)'!V7 -> 0 | W7: ='２．算定報告様式(建物系)'!W7 -> 0 | X7: ='２．算定報告様式(建物系)'!X7 -> 0 | Y7: ='２．算定報告様式(建物系)'!Y7 -> 0 | Z7: ='２．算定報告様式(建物系)'!Z7 -> 0 | AA7: ='２．算定報告様式(建物系)'!AA7 -> 0 | AB7: ='２．算定報告様式(建物系)'!AB7 -> 0 | AC7: ='２．算定報告様式(建物系)'!AC7 -> 0 | AD7: ='２．算定報告様式(建物系)'!AD7 -> 0 | AE7: ='２．算定報告様式(建物系)'!AE7 -> 0 | AF7: ='２．算定報告様式(建物系)'!AF7 -> 0 | AG7: ='２．算定報告様式(建物系)'!AG7 -> 0 | AH7: ='２．算定報告様式(建物系)'!AH7 -> 0 | BJ7: 0 | BK7: 0 | BL7: 0 | BM7: 0 | BN7: 0 | BO7: 0 | BP7: 0 | BQ7: 0 | BR7: 0 | BS7: 0 | BT7: 0 | BU7: 0 | BV7: 0 | BW7: 0 | BX7: 0 | BY7: 0 | BZ7: 0 | CA7: =AC7-BD7 -> 0 | CB7: 0 | CC7: 0 | CD7: 0 | CE7: 0 | CF7: 0 | CG7: 1000 | CH7: ｋL | CI7: 0 | CJ7: 0 | CK7: 0 | CL7: 0 | CM7: 0 | CN7: 0 | CO7: 0 | CP7: 0 | CQ7: 0 | CR7: 0 | CS7: 0 | CT7: 0 | CU7: 0 | CV7: 0 | CW7: 0 | CX7: 0 | CY7: 0 | CZ7: 0 | DA7: 0 | DB7: 0 | DC7: 0 | DD7: 0 | DE7: 0 | DF7: 0 | DG7: 0 | DH7: 0 | DI7: 0 | DJ7: 0 | DK7: 0 | DL7: 0 | DM7: 0 | DN7: 0 | DO7: 0 | DP7: 0 | DQ7: 0 | DR7: 0 | DS7: 0 | DT7: 0 | DU7: 0 | DV7: 0 | DW7: 0 | DX7: 0 | DY7: 0 | DZ7: 0 | EA7: 0 | EB7: 0 | EC7: 0 | ED7: 0 | EE7: 0 | EF7: 0 | EG7: 0 | EH7: 0 | EI7: 0 | EJ7: 0 | EK7: 0 | EL7: 0 | EM7: 0 | EN7: 0 | EO7: 0 | EP7: 0 | EQ7: 0 | ER7: 0 | ES7: 0 | ET7: 0 | EU7: 0 | EV7: 0 | EW7: 0 | EX7: 0 | EY7: 0 | EZ7: 0 | FA7: 0 | FB7: 0 | FC7: 0 | FD7: 0 | FE7: 0 | FF7: 0 | FG7: 0 | FH7: 0 | FI7: 0 | FJ7: 0 | FK7: 0 | FL7: 0 | FM7: 0 | FN7: 0 | FO7: 0 | FP7: 0 | FQ7: 0 | FR7: 0 | FS7: 0 | FT7: 0 | FU7: 0 | FV7: 0 | FW7: 35.3 | FX7: GJ/kL | FY7: 0.0184 | FZ7: t-C/GJ | GB7: kL | GC7: 1
D8: 揮発油（ガソリン） | G8: ='２．算定報告様式(建物系)'!G8 -> kL | H8: ='２．算定報告様式(建物系)'!H8 -> 0 | I8: ='２．算定報告様式(建物系)'!I8 -> 0 | J8: ='２．算定報告様式(建物系)'!J8 -> 0 | K8: ='２．算定報告様式(建物系)'!K8 -> 0 | L8: ='２．算定報告様式(建物系)'!L8 -> 0 | M8: ='２．算定報告様式(建物系)'!M8 -> 0 | N8: ='２．算定報告様式(建物系)'!N8 -> 0 | O8: ='２．算定報告様式(建物系)'!O8 -> 0 | P8: ='２．算定報告様式(建物系)'!P8 -> 0 | Q8: ='２．算定報告様式(建物系)'!Q8 -> 0 | R8: ='２．算定報告様式(建物系)'!R8 -> 0 | S8: ='２．算定報告様式(建物系)'!S8 -> 0 | T8: ='２．算定報告様式(建物系)'!T8 -> 0 | U8: ='２．算定報告様式(建物系)'!U8 -> 0 | V8: ='２．算定報告様式(建物系)'!V8 -> 0 | W8: ='２．算定報告様式(建物系)'!W8 -> 0 | X8: ='２．算定報告様式(建物系)'!X8 -> 0 | Y8: ='２．算定報告様式(建物系)'!Y8 -> 0 | Z8: ='２．算定報告様式(建物系)'!Z8 -> 0 | AA8: ='２．算定報告様式(建物系)'!AA8 -> 0 | AB8: ='２．算定報告様式(建物系)'!AB8 -> 0 | AC8: ='２．算定報告様式(建物系)'!AC8 -> 0 | AD8: ='２．算定報告様式(建物系)'!AD8 -> 0 | AE8: ='２．算定報告様式(建物系)'!AE8 -> 0 | AF8: ='２．算定報告様式(建物系)'!AF8 -> 0 | AG8: ='２．算定報告様式(建物系)'!AG8 -> 0 | AH8: ='２．算定報告様式(建物系)'!AH8 -> 0 | BJ8: 0 | BK8: 0 | BL8: 0 | BM8: 0 | BN8: 0 | BO8: 0 | BP8: 0 | BQ8: 0 | BR8: 0 | BS8: 0 | BT8: 0 | BU8: 0 | BV8: 0 | BW8: 0 | BX8: 0 | BY8: 0 | BZ8: 0 | CA8: 0 | CB8: 0 | CC8: 0 | CD8: 0 | CE8: 0 | CF8: 0 | CG8: 1 | CH8: ｋL | CI8: 0 | CJ8: 0 | CK8: 0 | CL8: 0 | CM8: 0 | CN8: 0 | CO8: 0 | CP8: 0 | CQ8: 0 | CR8: 0 | CS8: 0 | CT8: 0 | CU8: 0 | CV8: 0 | CW8: 0 | CX8: 0 | CY8: 0 | CZ8: 0 | DA8: 0 | DB8: 0 | DC8: 0 | DD8: 0 | DE8: 0 | DF8: 0 | DG8: 0 | DH8: 0 | DI8: 0 | DJ8: 0 | DK8: 0 | DL8: 0 | DM8: 0 | DN8: 0 | DO8: 0 | DP8: 0 | DQ8: 0 | DR8: 0 | DS8: 0 | DT8: 0 | DU8: 0 | DV8: 0 | DW8: 0 | DX8: 0 | DY8: 0 | DZ8: 0 | EA8: 0 | EB8: 0 | EC8: 0 | ED8: 0 | EE8: 0 | EF8: 0 | EG8: 0 | EH8: 0 | EI8: 0 | EJ8: 0 | EK8: 0 | EL8: 0 | EM8: 0 | EN8: 0 | EO8: 0 | EP8: 0 | EQ8: 0 | ER8: 0 | ES8: 0 | ET8: 0 | EU8: 0 | EV8: 0 | EW8: 0 | EX8: 0 | EY8: 0 | EZ8: 0 | FA8: 0 | FB8: 0 | FC8: 0 | FD8: 0 | FE8: 0 | FF8: 0 | FG8: 0 | FH8: 0 | FI8: 0 | FJ8: 0 | FK8: 0 | FL8: 0 | FM8: 0 | FN8: 0 | FO8: 0 | FP8: 0 | FQ8: 0 | FR8: 0 | FS8: 0 | FT8: 0 | FU8: 0 | FV8: 0 | FW8: 34.6 | FX8: GJ/kL | FY8: 0.0183 | FZ8: t-C/GJ | GB8: kg | GC8: 1000
D9: ナフサ | G9: ='２．算定報告様式(建物系)'!G9 -> L | H9: ='２．算定報告様式(建物系)'!H9 -> 0 | I9: ='２．算定報告様式(建物系)'!I9 -> 0 | J9: ='２．算定報告様式(建物系)'!J9 -> 0 | K9: ='２．算定報告様式(建物系)'!K9 -> 0 | L9: ='２．算定報告様式(建物系)'!L9 -> 0 | M9: ='２．算定報告様式(建物系)'!M9 -> 0 | N9: ='２．算定報告様式(建物系)'!N9 -> 0 | O9: ='２．算定報告様式(建物系)'!O9 -> 0 | P9: ='２．算定報告様式(建物系)'!P9 -> 0 | Q9: ='２．算定報告様式(建物系)'!Q9 -> 0 | R9: ='２．算定報告様式(建物系)'!R9 -> 0 | S9: ='２．算定報告様式(建物系)'!S9 -> 0 | T9: ='２．算定報告様式(建物系)'!T9 -> 0 | U9: ='２．算定報告様式(建物系)'!U9 -> 0 | V9: ='２．算定報告様式(建物系)'!V9 -> 0 | W9: ='２．算定報告様式(建物系)'!W9 -> 0 | X9: ='２．算定報告様式(建物系)'!X9 -> 0 | Y9: ='２．算定報告様式(建物系)'!Y9 -> 0 | Z9: ='２．算定報告様式(建物系)'!Z9 -> 0 | AA9: ='２．算定報告様式(建物系)'!AA9 -> 0 | AB9: ='２．算定報告様式(建物系)'!AB9 -> 0 | AC9: ='２．算定報告様式(建物系)'!AC9 -> 0 | AD9: ='２．算定報告様式(建物系)'!AD9 -> 0 | AE9: ='２．算定報告様式(建物系)'!AE9 -> 0 | AF9: ='２．算定報告様式(建物系)'!AF9 -> 0 | AG9: ='２．算定報告様式(建物系)'!AG9 -> 0 | AH9: ='２．算定報告様式(建物系)'!AH9 -> 0 | BJ9: 0 | BK9: 0 | BL9: 0 | BM9: 0 | BN9: 0 | BO9: 0 | BP9: 0 | BQ9: 0 | BR9: 0 | BS9: 0 | BT9: 0 | BU9: 0 | BV9: 0 | BW9: 0 | BX9: 0 | BY9: 0 | BZ9: 0 | CA9: 0 | CB9: 0 | CC9: 0 | CD9: 0 | CE9: 0 | CF9: 0 | CG9: 1000 | CH9: ｋL | CI9: 0 | CJ9: 0 | CK9: 0 | CL9: 0 | CM9: 0 | CN9: 0 | CO9: 0 | CP9: 0 | CQ9: 0 | CR9: 0 | CS9: 0 | CT9: 0 | CU9: 0 | CV9: 0 | CW9: 0 | CX9: 0 | CY9: 0 | CZ9: 0 | DA9: 0 | DB9: 0 | DC9: 0 | DD9: 0 | DE9: 0 | DF9: 0 | DG9: 0 | DH9: 0 | DI9: 0 | DJ9: 0 | DK9: 0 | DL9: 0 | DM9: 0 | DN9: 0 | DO9: 0 | DP9: 0 | DQ9: 0 | DR9: 0 | DS9: 0 | DT9: 0 | DU9: 0 | DV9: 0 | DW9: 0 | DX9: 0 | DY9: 0 | DZ9: 0 | EA9: 0 | EB9: 0 | EC9: 0 | ED9: 0 | EE9: 0 | EF9: 0 | EG9: 0 | EH9: 0 | EI9: 0 | EJ9: 0 | EK9: 0 | EL9: 0 | EM9: 0 | EN9: 0 | EO9: 0 | EP9: 0 | EQ9: 0 | ER9: 0 | ES9: 0 | ET9: 0 | EU9: 0 | EV9: 0 | EW9: 0 | EX9: 0 | EY9: 0 | EZ9: 0 | FA9: 0 | FB9: 0 | FC9: 0 | FD9: 0 | FE9: 0 | FF9: 0 | FG9: 0 | FH9: 0 | FI9: 0 | FJ9: 0 | FK9: 0 | FL9: 0 | FM9: 0 | FN9: 0 | FO9: 0 | FP9: 0 | FQ9: 0 | FR9: 0 | FS9: 0 | FT9: 0 | FU9: 0 | FV9: 0 | FW9: 33.6 | FX9: GJ/kL | FY9: 0.0182 | FZ9: t-C/GJ | GB9: t | GC9: 1
D10: 灯油 | G10: ='２．算定報告様式(建物系)'!G10 -> L | H10: ='２．算定報告様式(建物系)'!H10 -> 0 | I10: ='２．算定報告様式(建物系)'!I10 -> 0 | J10: ='２．算定報告様式(建物系)'!J10 -> 0 | K10: ='２．算定報告様式(建物系)'!K10 -> 0 | L10: ='２．算定報告様式(建物系)'!L10 -> 0 | M10: ='２．算定報告様式(建物系)'!M10 -> 0 | N10: ='２．算定報告様式(建物系)'!N10 -> 0 | O10: ='２．算定報告様式(建物系)'!O10 -> 0 | P10: ='２．算定報告様式(建物系)'!P10 -> 0 | Q10: ='２．算定報告様式(建物系)'!Q10 -> 0 | R10: ='２．算定報告様式(建物系)'!R10 -> 0 | S10: ='２．算定報告様式(建物系)'!S10 -> 0 | T10: ='２．算定報告様式(建物系)'!T10 -> 0 | U10: ='２．算定報告様式(建物系)'!U10 -> 0 | V10: ='２．算定報告様式(建物系)'!V10 -> 0 | W10: ='２．算定報告様式(建物系)'!W10 -> 0 | X10: ='２．算定報告様式(建物系)'!X10 -> 0 | Y10: ='２．算定報告様式(建物系)'!Y10 -> 0 | Z10: ='２．算定報告様式(建物系)'!Z10 -> 0 | AA10: ='２．算定報告様式(建物系)'!AA10 -> 0 | AB10: ='２．算定報告様式(建物系)'!AB10 -> 0 | AC10: ='２．算定報告様式(建物系)'!AC10 -> 0 | AD10: ='２．算定報告様式(建物系)'!AD10 -> 0 | AE10: ='２．算定報告様式(建物系)'!AE10 -> 0 | AF10: ='２．算定報告様式(建物系)'!AF10 -> 0 | AG10: ='２．算定報告様式(建物系)'!AG10 -> 0 | AH10: ='２．算定報告様式(建物系)'!AH10 -> 0 | BJ10: 0 | BK10: 0 | BL10: 0 | BM10: 0 | BN10: 0 | BO10: 0 | BP10: 0 | BQ10: 0 | BR10: 0 | BS10: 0 | BT10: 0 | BU10: 0 | BV10: 0 | BW10: 0 | BX10: 0 | BY10: 0 | BZ10: 0 | CA10: 0 | CB10: 0 | CC10: 0 | CD10: 0 | CE10: 0 | CF10: 0 | CG10: 1000 | CH10: ｋL | CI10: 0 | CJ10: 0 | CK10: 0 | CL10: 0 | CM10: 0 | CN10: 0 | CO10: 0 | CP10: 0 | CQ10: 0 | CR10: 0 | CS10: 0 | CT10: 0 | CU10: 0 | CV10: 0 | CW10: 0 | CX10: 0 | CY10: 0 | CZ10: 0 | DA10: 0 | DB10: 0 | DC10: 0 | DD10: 0 | DE10: 0 | DF10: 0 | DG10: 0 | DH10: 0 | DI10: 0 | DJ10: 0 | DK10: 0 | DL10: 0 | DM10: 0 | DN10: 0 | DO10: 0 | DP10: 0 | DQ10: 0 | DR10: 0 | DS10: 0 | DT10: 0 | DU10: 0 | DV10: 0 | DW10: 0 | DX10: 0 | DY10: 0 | DZ10: 0 | EA10: 0 | EB10: 0 | EC10: 0 | ED10: 0 | EE10: 0 | EF10: 0 | EG10: 0 | EH10: 0 | EI10: 0 | EJ10: 0 | EK10: 0 | EL10: 0 | EM10: 0 | EN10: 0 | EO10: 0 | EP10: 0 | EQ10: 0 | ER10: 0 | ES10: 0 | ET10: 0 | EU10: 0 | EV10: 0 | EW10: 0 | EX10: 0 | EY10: 0 | EZ10: 0 | FA10: 0 | FB10: 0 | FC10: 0 | FD10: 0 | FE10: 0 | FF10: 0 | FG10: 0 | FH10: 0 | FI10: 0 | FJ10: 0 | FK10: 0 | FL10: 0 | FM10: 0 | FN10: 0 | FO10: 0 | FP10: 0 | FQ10: 0 | FR10: 0 | FS10: 0 | FT10: 0 | FU10: 0 | FV10: 0 | FW10: 36.7 | FX10: GJ/kL | FY10: 0.0185 | FZ10: t-C/GJ | GB10: Nm3 | GC10: 1000
D11: 軽油 | G11: ='２．算定報告様式(建物系)'!G11 -> L | H11: ='２．算定報告様式(建物系)'!H11 -> 0 | I11: ='２．算定報告様式(建物系)'!I11 -> 0 | J11: ='２．算定報告様式(建物系)'!J11 -> 0 | K11: ='２．算定報告様式(建物系)'!K11 -> 0 | L11: ='２．算定報告様式(建物系)'!L11 -> 0 | M11: ='２．算定報告様式(建物系)'!M11 -> 0 | N11: ='２．算定報告様式(建物系)'!N11 -> 0 | O11: ='２．算定報告様式(建物系)'!O11 -> 0 | P11: ='２．算定報告様式(建物系)'!P11 -> 0 | Q11: ='２．算定報告様式(建物系)'!Q11 -> 0 | R11: ='２．算定報告様式(建物系)'!R11 -> 0 | S11: ='２．算定報告様式(建物系)'!S11 -> 0 | T11: ='２．算定報告様式(建物系)'!T11 -> 0 | U11: ='２．算定報告様式(建物系)'!U11 -> 0 | V11: ='２．算定報告様式(建物系)'!V11 -> 0 | W11: ='２．算定報告様式(建物系)'!W11 -> 0 | X11: ='２．算定報告様式(建物系)'!X11 -> 0 | Y11: ='２．算定報告様式(建物系)'!Y11 -> 0 | Z11: ='２．算定報告様式(建物系)'!Z11 -> 0 | AA11: ='２．算定報告様式(建物系)'!AA11 -> 0 | AB11: ='２．算定報告様式(建物系)'!AB11 -> 0 | AC11: ='２．算定報告様式(建物系)'!AC11 -> 0 | AD11: ='２．算定報告様式(建物系)'!AD11 -> 0 | AE11: ='２．算定報告様式(建物系)'!AE11 -> 0 | AF11: ='２．算定報告様式(建物系)'!AF11 -> 0 | AG11: ='２．算定報告様式(建物系)'!AG11 -> 0 | AH11: ='２．算定報告様式(建物系)'!AH11 -> 0 | BJ11: 0 | BK11: 0 | BL11: 0 | BM11: 0 | BN11: 0 | BO11: 0 | BP11: 0 | BQ11: 0 | BR11: 0 | BS11: 0 | BT11: 0 | BU11: 0 | BV11: 0 | BW11: 0 | BX11: 0 | BY11: 0 | BZ11: 0 | CA11: 0 | CB11: 0 | CC11: 0 | CD11: 0 | CE11: 0 | CF11: 0 | CG11: 1000 | CH11: ｋL | CI11: 0 | CJ11: 0 | CK11: 0 | CL11: 0 | CM11: 0 | CN11: 0 | CO11: 0 | CP11: 0 | CQ11: 0 | CR11: 0 | CS11: 0 | CT11: 0 | CU11: 0 | CV11: 0 | CW11: 0 | CX11: 0 | CY11: 0 | CZ11: 0 | DA11: 0 | DB11: 0 | DC11: 0 | DD11: 0 | DE11: 0 | DF11: 0 | DG11: 0 | DH11: 0 | DI11: 0 | DJ11: 0 | DK11: 0 | DL11: 0 | DM11: 0 | DN11: 0 | DO11: 0 | DP11: 0 | DQ11: 0 | DR11: 0 | DS11: 0 | DT11: 0 | DU11: 0 | DV11: 0 | DW11: 0 | DX11: 0 | DY11: 0 | DZ11: 0 | EA11: 0 | EB11: 0 | EC11: 0 | ED11: 0 | EE11: 0 | EF11: 0 | EG11: 0 | EH11: 0 | EI11: 0 | EJ11: 0 | EK11: 0 | EL11: 0 | EM11: 0 | EN11: 0 | EO11: 0 | EP11: 0 | EQ11: 0 | ER11: 0 | ES11: 0 | ET11: 0 | EU11: 0 | EV11: 0 | EW11: 0 | EX11: 0 | EY11: 0 | EZ11: 0 | FA11: 0 | FB11: 0 | FC11: 0 | FD11: 0 | FE11: 0 | FF11: 0 | FG11: 0 | FH11: 0 | FI11: 0 | FJ11: 0 | FK11: 0 | FL11: 0 | FM11: 0 | FN11: 0 | FO11: 0 | FP11: 0 | FQ11: 0 | FR11: 0 | FS11: 0 | FT11: 0 | FU11: 0 | FV11: 0 | FW11: 37.7 | FX11: GJ/kL | FY11: 0.0187 | FZ11: t-C/GJ | GB11: 千Nｍ3 | GC11: 1
D12: Ａ重油 | G12: ='２．算定報告様式(建物系)'!G12 -> L | H12: ='２．算定報告様式(建物系)'!H12 -> 0 | I12: ='２．算定報告様式(建物系)'!I12 -> 0 | J12: ='２．算定報告様式(建物系)'!J12 -> 0 | K12: ='２．算定報告様式(建物系)'!K12 -> 0 | L12: ='２．算定報告様式(建物系)'!L12 -> 0 | M12: ='２．算定報告様式(建物系)'!M12 -> 0 | N12: ='２．算定報告様式(建物系)'!N12 -> 0 | O12: ='２．算定報告様式(建物系)'!O12 -> 0 | P12: ='２．算定報告様式(建物系)'!P12 -> 0 | Q12: ='２．算定報告様式(建物系)'!Q12 -> 0 | R12: ='２．算定報告様式(建物系)'!R12 -> 0 | S12: ='２．算定報告様式(建物系)'!S12 -> 0 | T12: ='２．算定報告様式(建物系)'!T12 -> 0 | U12: ='２．算定報告様式(建物系)'!U12 -> 0 | V12: ='２．算定報告様式(建物系)'!V12 -> 0 | W12: ='２．算定報告様式(建物系)'!W12 -> 0 | X12: ='２．算定報告様式(建物系)'!X12 -> 0 | Y12: ='２．算定報告様式(建物系)'!Y12 -> 0 | Z12: ='２．算定報告様式(建物系)'!Z12 -> 0 | AA12: ='２．算定報告様式(建物系)'!AA12 -> 0 | AB12: ='２．算定報告様式(建物系)'!AB12 -> 0 | AC12: ='２．算定報告様式(建物系)'!AC12 -> 0 | AD12: ='２．算定報告様式(建物系)'!AD12 -> 0 | AE12: ='２．算定報告様式(建物系)'!AE12 -> 0 | AF12: ='２．算定報告様式(建物系)'!AF12 -> 0 | AG12: ='２．算定報告様式(建物系)'!AG12 -> 0 | AH12: ='２．算定報告様式(建物系)'!AH12 -> 0 | BJ12: 0 | BK12: 0 | BL12: 0 | BM12: 0 | BN12: 0 | BO12: 0 | BP12: 0 | BQ12: 0 | BR12: 0 | BS12: =H23_事業所内使用量-H23_算定外使用量 -> 0 | BT12: =H24_事業所内使用量-H24_算定外使用量 -> 0 | BU12: =H25_事業所内使用量-H25_算定外使用量 -> 0 | BV12: 0 | BW12: 0 | BX12: 0 | BY12: 0 | BZ12: 0 | CA12: 0 | CB12: 0 | CC12: 0 | CD12: 0 | CE12: 0 | CF12: 0 | CG12: 1000 | CH12: ｋL | CI12: =ROUND(H14_控除後使用量/単位補正,0) -> 0 | CJ12: =ROUND(H15_控除後使用量/単位補正,0) -> 0 | CK12: =ROUND(H16_控除後使用量/単位補正,0) -> 0 | CL12: =ROUND(H17_控除後使用量/単位補正,0) -> 0 | CM12: =ROUND(H18_控除後使用量/単位補正,0) -> 0 | CN12: =ROUND(H19_控除後使用量/単位補正,0) -> 0 | CO12: =ROUND(H20_控除後使用量/単位補正,0) -> 0 | CP12: =ROUND(H21_控除後使用量/単位補正,0) -> 0 | CQ12: =ROUND(H22_控除後使用量/単位補正,0) -> 0 | CR12: =ROUND(H23_控除後使用量/単位補正,0) -> 0 | CS12: =ROUND(H24_控除後使用量/単位補正,0) -> 0 | CT12: =ROUND(H25_控除後使用量/単位補正,0) -> 0 | CU12: 0 | CV12: 0 | CW12: 0 | CX12: 0 | CY12: 0 | CZ12: 0 | DA12: 0 | DB12: 0 | DC12: 0 | DD12: 0 | DE12: 0 | DF12: 0 | DG12: 0 | DH12: 0 | DI12: 0 | DJ12: 0 | DK12: 0 | DL12: 0 | DM12: 0 | DN12: 0 | DO12: 0 | DP12: 0 | DQ12: 0 | DR12: 0 | DS12: 0 | DT12: 0 | DU12: 0 | DV12: 0 | DW12: 0 | DX12: 0 | DY12: 0 | DZ12: 0 | EA12: 0 | EB12: 0 | EC12: 0 | ED12: 0 | EE12: 0 | EF12: 0 | EG12: 0 | EH12: 0 | EI12: 0 | EJ12: 0 | EK12: 0 | EL12: 0 | EM12: 0 | EN12: 0 | EO12: 0 | EP12: 0 | EQ12: 0 | ER12: 0 | ES12: 0 | ET12: 0 | EU12: 0 | EV12: 0 | EW12: 0 | EX12: 0 | EY12: 0 | EZ12: 0 | FA12: 0 | FB12: 0 | FC12: 0 | FD12: 0 | FE12: 0 | FF12: 0 | FG12: 0 | FH12: 0 | FI12: 0 | FJ12: 0 | FK12: 0 | FL12: 0 | FM12: 0 | FN12: 0 | FO12: 0 | FP12: 0 | FQ12: 0 | FR12: 0 | FS12: 0 | FT12: 0 | FU12: 0 | FV12: 0 | FW12: 39.1 | FX12: GJ/kL | FY12: 0.0189 | FZ12: t-C/GJ | GB12: MJ | GC12: 1000
D13: Ｂ・Ｃ重油 | G13: ='２．算定報告様式(建物系)'!G13 -> L | H13: ='２．算定報告様式(建物系)'!H13 -> 0 | I13: ='２．算定報告様式(建物系)'!I13 -> 0 | J13: ='２．算定報告様式(建物系)'!J13 -> 0 | K13: ='２．算定報告様式(建物系)'!K13 -> 0 | L13: ='２．算定報告様式(建物系)'!L13 -> 0 | M13: ='２．算定報告様式(建物系)'!M13 -> 0 | N13: ='２．算定報告様式(建物系)'!N13 -> 0 | O13: ='２．算定報告様式(建物系)'!O13 -> 0 | P13: ='２．算定報告様式(建物系)'!P13 -> 0 | Q13: ='２．算定報告様式(建物系)'!Q13 -> 0 | R13: ='２．算定報告様式(建物系)'!R13 -> 0 | S13: ='２．算定報告様式(建物系)'!S13 -> 0 | T13: ='２．算定報告様式(建物系)'!T13 -> 0 | U13: ='２．算定報告様式(建物系)'!U13 -> 0 | V13: ='２．算定報告様式(建物系)'!V13 -> 0 | W13: ='２．算定報告様式(建物系)'!W13 -> 0 | X13: ='２．算定報告様式(建物系)'!X13 -> 0 | Y13: ='２．算定報告様式(建物系)'!Y13 -> 0 | Z13: ='２．算定報告様式(建物系)'!Z13 -> 0 | AA13: ='２．算定報告様式(建物系)'!AA13 -> 0 | AB13: ='２．算定報告様式(建物系)'!AB13 -> 0 | AC13: ='２．算定報告様式(建物系)'!AC13 -> 0 | AD13: ='２．算定報告様式(建物系)'!AD13 -> 0 | AE13: ='２．算定報告様式(建物系)'!AE13 -> 0 | AF13: ='２．算定報告様式(建物系)'!AF13 -> 0 | AG13: ='２．算定報告様式(建物系)'!AG13 -> 0 | AH13: ='２．算定報告様式(建物系)'!AH13 -> 0 | BJ13: 0 | BK13: 0 | BL13: 0 | BM13: 0 | BN13: 0 | BO13: 0 | BP13: 0 | BQ13: 0 | BR13: 0 | BS13: 0 | BT13: 0 | BU13: 0 | BV13: 0 | BW13: 0 | BX13: 0 | BY13: 0 | BZ13: 0 | CA13: 0 | CB13: 0 | CC13: 0 | CD13: 0 | CE13: 0 | CF13: 0 | CG13: 1000 | CH13: ｋL | CI13: 0 | CJ13: 0 | CK13: 0 | CL13: 0 | CM13: 0 | CN13: 0 | CO13: 0 | CP13: 0 | CQ13: 0 | CR13: 0 | CS13: 0 | CT13: 0 | CU13: 0 | CV13: 0 | CW13: 0 | CX13: 0 | CY13: 0 | CZ13: 0 | DA13: 0 | DB13: 0 | DC13: 0 | DD13: 0 | DE13: 0 | DF13: 0 | DG13: 0 | DH13: 0 | DI13: 0 | DJ13: 0 | DK13: 0 | DL13: 0 | DM13: 0 | DN13: 0 | DO13: 0 | DP13: 0 | DQ13: 0 | DR13: 0 | DS13: 0 | DT13: 0 | DU13: 0 | DV13: 0 | DW13: 0 | DX13: 0 | DY13: 0 | DZ13: 0 | EA13: 0 | EB13: 0 | EC13: 0 | ED13: 0 | EE13: 0 | EF13: 0 | EG13: 0 | EH13: 0 | EI13: 0 | EJ13: 0 | EK13: 0 | EL13: 0 | EM13: 0 | EN13: 0 | EO13: 0 | EP13: 0 | EQ13: 0 | ER13: 0 | ES13: 0 | ET13: 0 | EU13: 0 | EV13: 0 | EW13: 0 | EX13: 0 | EY13: 0 | EZ13: 0 | FA13: 0 | FB13: 0 | FC13: 0 | FD13: 0 | FE13: 0 | FF13: 0 | FG13: 0 | FH13: 0 | FI13: 0 | FJ13: 0 | FK13: 0 | FL13: 0 | FM13: 0 | FN13: 0 | FO13: 0 | FP13: 0 | FQ13: 0 | FR13: 0 | FS13: 0 | FT13: 0 | FU13: 0 | FV13: 0 | FW13: 41.9 | FX13: GJ/kL | FY13: 0.0195 | FZ13: t-C/GJ | GB13: GJ | GC13: 1
D14: 石油アスファルト | G14: ='２．算定報告様式(建物系)'!G14 -> kg | H14: ='２．算定報告様式(建物系)'!H14 -> 0 | I14: ='２．算定報告様式(建物系)'!I14 -> 0 | J14: ='２．算定報告様式(建物系)'!J14 -> 0 | K14: ='２．算定報告様式(建物系)'!K14 -> 0 | L14: ='２．算定報告様式(建物系)'!L14 -> 0 | M14: ='２．算定報告様式(建物系)'!M14 -> 0 | N14: ='２．算定報告様式(建物系)'!N14 -> 0 | O14: ='２．算定報告様式(建物系)'!O14 -> 0 | P14: ='２．算定報告様式(建物系)'!P14 -> 0 | Q14: ='２．算定報告様式(建物系)'!Q14 -> 0 | R14: ='２．算定報告様式(建物系)'!R14 -> 0 | S14: ='２．算定報告様式(建物系)'!S14 -> 0 | T14: ='２．算定報告様式(建物系)'!T14 -> 0 | U14: ='２．算定報告様式(建物系)'!U14 -> 0 | V14: ='２．算定報告様式(建物系)'!V14 -> 0 | W14: ='２．算定報告様式(建物系)'!W14 -> 0 | X14: ='２．算定報告様式(建物系)'!X14 -> 0 | Y14: ='２．算定報告様式(建物系)'!Y14 -> 0 | Z14: ='２．算定報告様式(建物系)'!Z14 -> 0 | AA14: ='２．算定報告様式(建物系)'!AA14 -> 0 | AB14: ='２．算定報告様式(建物系)'!AB14 -> 0 | AC14: ='２．算定報告様式(建物系)'!AC14 -> 0 | AD14: ='２．算定報告様式(建物系)'!AD14 -> 0 | AE14: ='２．算定報告様式(建物系)'!AE14 -> 0 | AF14: ='２．算定報告様式(建物系)'!AF14 -> 0 | AG14: ='２．算定報告様式(建物系)'!AG14 -> 0 | AH14: ='２．算定報告様式(建物系)'!AH14 -> 0 | BJ14: 0 | BK14: 0 | BL14: 0 | BM14: 0 | BN14: 0 | BO14: 0 | BP14: 0 | BQ14: 0 | BR14: 0 | BS14: 0 | BT14: 0 | BU14: 0 | BV14: 0 | BW14: 0 | BX14: 0 | BY14: 0 | BZ14: 0 | CA14: 0 | CB14: 0 | CC14: 0 | CD14: 0 | CE14: 0 | CF14: 0 | CG14: 1000 | CH14: ｔ | CI14: 0 | CJ14: 0 | CK14: 0 | CL14: 0 | CM14: 0 | CN14: 0 | CO14: 0 | CP14: 0 | CQ14: 0 | CR14: 0 | CS14: =ROUND(H24_控除後使用量/単位補正,0) -> 0 | CT14: 0 | CU14: 0 | CV14: 0 | CW14: 0 | CX14: 0 | CY14: 0 | CZ14: 0 | DA14: 0 | DB14: 0 | DC14: 0 | DD14: 0 | DE14: 0 | DF14: 0 | DG14: 0 | DH14: 0 | DI14: 0 | DJ14: 0 | DK14: 0 | DL14: 0 | DM14: 0 | DN14: 0 | DO14: 0 | DP14: 0 | DQ14: 0 | DR14: 0 | DS14: 0 | DT14: 0 | DU14: 0 | DV14: 0 | DW14: 0 | DX14: 0 | DY14: 0 | DZ14: 0 | EA14: 0 | EB14: 0 | EC14: 0 | ED14: 0 | EE14: 0 | EF14: 0 | EG14: 0 | EH14: 0 | EI14: 0 | EJ14: 0 | EK14: 0 | EL14: 0 | EM14: 0 | EN14: 0 | EO14: 0 | EP14: 0 | EQ14: 0 | ER14: 0 | ES14: 0 | ET14: 0 | EU14: 0 | EV14: 0 | EW14: 0 | EX14: 0 | EY14: 0 | EZ14: 0 | FA14: 0 | FB14: 0 | FC14: 0 | FD14: 0 | FE14: 0 | FF14: 0 | FG14: 0 | FH14: 0 | FI14: 0 | FJ14: 0 | FK14: 0 | FL14: 0 | FM14: 0 | FN14: 0 | FO14: 0 | FP14: 0 | FQ14: 0 | FR14: 0 | FS14: 0 | FT14: 0 | FU14: 0 | FV14: 0 | FW14: 40.9 | FX14: GJ/t | FY14: 0.0208 | FZ14: t-C/GJ | GB14: m3 | GC14: 1000
D15: 石油コークス | G15: ='２．算定報告様式(建物系)'!G15 -> kg | H15: ='２．算定報告様式(建物系)'!H15 -> 0 | I15: ='２．算定報告様式(建物系)'!I15 -> 0 | J15: ='２．算定報告様式(建物系)'!J15 -> 0 | K15: ='２．算定報告様式(建物系)'!K15 -> 0 | L15: ='２．算定報告様式(建物系)'!L15 -> 0 | M15: ='２．算定報告様式(建物系)'!M15 -> 0 | N15: ='２．算定報告様式(建物系)'!N15 -> 0 | O15: ='２．算定報告様式(建物系)'!O15 -> 0 | P15: ='２．算定報告様式(建物系)'!P15 -> 0 | Q15: ='２．算定報告様式(建物系)'!Q15 -> 0 | R15: ='２．算定報告様式(建物系)'!R15 -> 0 | S15: ='２．算定報告様式(建物系)'!S15 -> 0 | T15: ='２．算定報告様式(建物系)'!T15 -> 0 | U15: ='２．算定報告様式(建物系)'!U15 -> 0 | V15: ='２．算定報告様式(建物系)'!V15 -> 0 | W15: ='２．算定報告様式(建物系)'!W15 -> 0 | X15: ='２．算定報告様式(建物系)'!X15 -> 0 | Y15: ='２．算定報告様式(建物系)'!Y15 -> 0 | Z15: ='２．算定報告様式(建物系)'!Z15 -> 0 | AA15: ='２．算定報告様式(建物系)'!AA15 -> 0 | AB15: ='２．算定報告様式(建物系)'!AB15 -> 0 | AC15: ='２．算定報告様式(建物系)'!AC15 -> 0 | AD15: ='２．算定報告様式(建物系)'!AD15 -> 0 | AE15: ='２．算定報告様式(建物系)'!AE15 -> 0 | AF15: ='２．算定報告様式(建物系)'!AF15 -> 0 | AG15: ='２．算定報告様式(建物系)'!AG15 -> 0 | AH15: ='２．算定報告様式(建物系)'!AH15 -> 0 | BJ15: 0 | BK15: 0 | BL15: 0 | BM15: 0 | BN15: 0 | BO15: 0 | BP15: 0 | BQ15: 0 | BR15: 0 | BS15: 0 | BT15: 0 | BU15: 0 | BV15: 0 | BW15: 0 | BX15: 0 | BY15: 0 | BZ15: 0 | CA15: 0 | CB15: 0 | CC15: 0 | CD15: 0 | CE15: 0 | CF15: 0 | CG15: 1000 | CH15: ｔ | CI15: 0 | CJ15: 0 | CK15: 0 | CL15: 0 | CM15: 0 | CN15: 0 | CO15: 0 | CP15: 0 | CQ15: 0 | CR15: 0 | CS15: 0 | CT15: 0 | CU15: 0 | CV15: 0 | CW15: 0 | CX15: 0 | CY15: 0 | CZ15: 0 | DA15: 0 | DB15: 0 | DC15: 0 | DD15: 0 | DE15: 0 | DF15: 0 | DG15: 0 | DH15: 0 | DI15: 0 | DJ15: 0 | DK15: 0 | DL15: 0 | DM15: 0 | DN15: 0 | DO15: 0 | DP15: 0 | DQ15: 0 | DR15: 0 | DS15: 0 | DT15: 0 | DU15: 0 | DV15: 0 | DW15: 0 | DX15: 0 | DY15: 0 | DZ15: 0 | EA15: 0 | EB15: 0 | EC15: 0 | ED15: 0 | EE15: 0 | EF15: 0 | EG15: 0 | EH15: 0 | EI15: 0 | EJ15: 0 | EK15: 0 | EL15: 0 | EM15: 0 | EN15: 0 | EO15: 0 | EP15: 0 | EQ15: 0 | ER15: 0 | ES15: 0 | ET15: 0 | EU15: 0 | EV15: 0 | EW15: 0 | EX15: 0 | EY15: 0 | EZ15: 0 | FA15: 0 | FB15: 0 | FC15: 0 | FD15: 0 | FE15: 0 | FF15: 0 | FG15: 0 | FH15: 0 | FI15: 0 | FJ15: 0 | FK15: 0 | FL15: 0 | FM15: 0 | FN15: 0 | FO15: 0 | FP15: 0 | FQ15: 0 | FR15: 0 | FS15: 0 | FT15: 0 | FU15: 0 | FV15: 0 | FW15: 29.9 | FX15: GJ/t | FY15: 0.0254 | FZ15: t-C/GJ | GB15: 千m3 | GC15: 1
D16: 石油ガス | E16: 液化石油ガス（ＬＰＧ） | G16: ='２．算定報告様式(建物系)'!G16 -> t | H16: ='２．算定報告様式(建物系)'!H16 -> 0 | I16: ='２．算定報告様式(建物系)'!I16 -> 0 | J16: ='２．算定報告様式(建物系)'!J16 -> 0 | K16: ='２．算定報告様式(建物系)'!K16 -> 0 | L16: ='２．算定報告様式(建物系)'!L16 -> 0 | M16: ='２．算定報告様式(建物系)'!M16 -> 0 | N16: ='２．算定報告様式(建物系)'!N16 -> 0 | O16: ='２．算定報告様式(建物系)'!O16 -> 0 | P16: ='２．算定報告様式(建物系)'!P16 -> 0 | Q16: ='２．算定報告様式(建物系)'!Q16 -> 0 | R16: ='２．算定報告様式(建物系)'!R16 -> 0 | S16: ='２．算定報告様式(建物系)'!S16 -> 0 | T16: ='２．算定報告様式(建物系)'!T16 -> 0 | U16: ='２．算定報告様式(建物系)'!U16 -> 0 | V16: ='２．算定報告様式(建物系)'!V16 -> 0 | W16: ='２．算定報告様式(建物系)'!W16 -> 0 | X16: ='２．算定報告様式(建物系)'!X16 -> 0 | Y16: ='２．算定報告様式(建物系)'!Y16 -> 0 | Z16: ='２．算定報告様式(建物系)'!Z16 -> 0 | AA16: ='２．算定報告様式(建物系)'!AA16 -> 0 | AB16: ='２．算定報告様式(建物系)'!AB16 -> 0 | AC16: ='２．算定報告様式(建物系)'!AC16 -> 0 | AD16: ='２．算定報告様式(建物系)'!AD16 -> 0 | AE16: ='２．算定報告様式(建物系)'!AE16 -> 0 | AF16: ='２．算定報告様式(建物系)'!AF16 -> 0 | AG16: ='２．算定報告様式(建物系)'!AG16 -> 0 | AH16: ='２．算定報告様式(建物系)'!AH16 -> 0 | BJ16: 0 | BK16: 0 | BL16: 0 | BM16: 0 | BN16: 0 | BO16: 0 | BP16: 0 | BQ16: 0 | BR16: 0 | BS16: 0 | BT16: 0 | BU16: 0 | BV16: 0 | BW16: 0 | BX16: 0 | BY16: 0 | BZ16: 0 | CA16: 0 | CB16: 0 | CC16: 0 | CD16: 0 | CE16: 0 | CF16: 0 | CG16: 1 | CH16: ｔ | CI16: 0 | CJ16: 0 | CK16: 0 | CL16: 0 | CM16: 0 | CN16: 0 | CO16: 0 | CP16: 0 | CQ16: 0 | CR16: 0 | CS16: 0 | CT16: 0 | CU16: 0 | CV16: 0 | CW16: 0 | CX16: 0 | CY16: 0 | CZ16: 0 | DA16: 0 | DB16: 0 | DC16: 0 | DD16: 0 | DE16: 0 | DF16: 0 | DG16: 0 | DH16: 0 | DI16: 0 | DJ16: 0 | DK16: 0 | DL16: 0 | DM16: 0 | DN16: 0 | DO16: 0 | DP16: 0 | DQ16: 0 | DR16: 0 | DS16: 0 | DT16: 0 | DU16: 0 | DV16: 0 | DW16: 0 | DX16: 0 | DY16: 0 | DZ16: 0 | EA16: 0 | EB16: 0 | EC16: 0 | ED16: 0 | EE16: 0 | EF16: 0 | EG16: 0 | EH16: 0 | EI16: 0 | EJ16: 0 | EK16: 0 | EL16: 0 | EM16: 0 | EN16: 0 | EO16: 0 | EP16: 0 | EQ16: 0 | ER16: 0 | ES16: 0 | ET16: 0 | EU16: 0 | EV16: 0 | EW16: 0 | EX16: 0 | EY16: 0 | EZ16: 0 | FA16: 0 | FB16: 0 | FC16: 0 | FD16: 0 | FE16: 0 | FF16: 0 | FG16: 0 | FH16: 0 | FI16: 0 | FJ16: 0 | FK16: 0 | FL16: 0 | FM16: 0 | FN16: 0 | FO16: 0 | FP16: 0 | FQ16: 0 | FR16: 0 | FS16: 0 | FT16: 0 | FU16: 0 | FV16: 0 | FW16: 50.8 | FX16: GJ/t | FY16: 0.0161 | FZ16: t-C/GJ | GB16: kWh | GC16: 1000
